Workbook

Sheet Overview
A2: CDCM Annual Review Pack
A4: Company: | B4: ='CDCM Forecast Data'!E3 -> WPD South West
A5: Date of Issue: | B5: ='CDCM Forecast Data'!E4 -> 2017-01-01
A7: ="Although every effort has been made to ensure the accuracy of the information provided in this annual review pack, " & 'CDCM Forecast Data'!E3 & " does not accept any liability for the accuracy of the information contained herein and, in particular, " & 'CDCM Forecast Data'!E3 & " or any of its employees, shall not be held liable for any misstatement or opinion on which the recipient of this statement relies or seeks to rely." -> Although every effort has been made to ensure the accuracy of the information provided in this annual review pack, WPD South West does not accept any liability for the accuracy of the information contained herein and, in particular, WPD South West or any of its employees, shall not be held liable for any misstatement or opinion on which the recipient of this statement relies or seeks to rely.
A12: Contents:
A14: Sheet Name | B14: Detail
A15: Commentary | B15: This sheet contains the DNO's commentary on the forecast input CDCM data for the forecast over the 5 year period.
A16: CDCM Forecast Data | B16: This sheet contains historical and forecast data for all CDCM inputs except for volume data (table 1053) and matrix of applicability data (table 1025 - 1028). The RPI forecast is seperated out and listed as a standalone assumption. Any forecasts that relate to RPI will be linked to this row. Comments are provided alongside each forecast explaining any assumptions made by the DNO.
A17: Table 1 | B17: This sheet contains the DNO's table 1 produced in accordance with DCUSA Schedule 15 "cost information table".
A18: Mat of App | B18: This sheet contains the forecast CDCM matrix of applicability data (table 1025 - 1028). The default value is that the same matrix will be used for each of the five years.
A19: CDCM Volume Forecasts | B19: This sheet contains forecast CDCM volume data (table 1053). The matrix at the top can be used to apply different growth rates to groups of customers.
A20: CDCM Timebands | B20: Contains the time bands that the DNO plans to use for the coming year and advance warning of any changes.
A21: CDCM Input Sheet (Y) | B21: This sheet contains the CDCM input sheet for base year 0 (Y) in a format that can be copy and pasted (paste-value) into the CDCM spreadsheet model.
A22: CDCM Input Sheet (Y + 1) | B22: This sheet contains the CDCM input sheet for base year +1 (Y+1) in a format that can be copy and pasted (paste-value) into the CDCM spreadsheet model.
A23: CDCM Input Sheet (Y + 2) | B23: This sheet contains the CDCM input sheet for base year +2 (Y+2) in a format that can be copy and pasted (paste-value) into the CDCM spreadsheet model.
A24: CDCM Input Sheet (Y + 3) | B24: This sheet contains the CDCM input sheet for base year +3 (Y+3) in a format that can be copy and pasted (paste-value) into the CDCM spreadsheet model.
A25: CDCM Input Sheet (Y + 4) | B25: This sheet contains the CDCM input sheet for base year +4 (Y+4) in a format that can be copy and pasted (paste-value) into the CDCM spreadsheet model.
A26: Tariffs ARP | B26: This sheet contains the CDCM tariffs that are produced from the CDCM input data, after the Macro on this sheet has been run. It contains the tariffs for each of the 5 years.
A29: This document, model or dataset has been prepared by or for Reckon LLP on the instructions of the DCUSA Panel or
A30: one of its working groups. Only the DCUSA Panel and its working groups have authority to approve this
A31: material as meeting their requirements. Reckon LLP makes no representation about the suitability of this
A32: material for the purposes of complying with any licence conditions or furthering any relevant objective.

Sheet Commentary
B3: ='CDCM Forecast Data'!E3 -> WPD South West

Sheet CDCM Forecast Data
D3: Company: | E3: ='[2]CDCM Forecast Data'!E3:F3 -> WPD South West
D4: Date of Issue: | E4: ='[2]CDCM Forecast Data'!E4:F4 -> 2017-01-01
D5: Status | E5: ='[2]CDCM Forecast Data'!E5:F5 -> ARP
C9: Historical CDCM Input Data (Actuals) | E9: ="CDCM Values - "&E5 -> CDCM Values - ARP | F9: Forecast CDCM Values
B10: Year Ref -> | C10: Y-2 | D10: Y-1 | E10: Y | F10: Y+1 | G10: Y+2 | H10: Y+3 | I10: Y+4
B11: Charging Year -> | C11: 2017/18 | D11: 2018/19 | E11: 2019/20 | F11: 2020/21 | G11: 2021/22 | H11: 2022/23 | I11: 2023/24
B12: DPCR -> | C12: RIIO - ED1 | D12: RIIO - ED1 | E12: RIIO - ED1 | F12: RIIO - ED1 | G12: RIIO - ED1 | H12: RIIO - ED1 | I12: RIIO - ED2 | J12: Assumptions
B13: RPI Forecast: | D13: 0.03479036574 | E13: 0.03103448276 | F13: 0.03177257525 | G13: 0.03079416532 | H13: 0.03144654088 | I13: 0.031
A14: 1 | B14: 1000 Company name, charging year and model version
A15: 2 | B15: Company | C15: =E3 -> WPD South West | D15: =C15 -> WPD South West | E15: =D15 -> WPD South West | F15: WPD South West | G15: WPD South West | H15: WPD South West | I15: WPD South West
A16: 3 | B16: Year | C16: =C11 -> 2017/18 | D16: =D11 -> 2018/19 | E16: 2019/20 | F16: 2020/21 | G16: 2021/22 | H16: 2022/23 | I16: 2023/24
A17: 4 | B17: Version | C17: Finals | D17: Finals | E17: Finals | F17: Forecast | G17: Forecast | H17: Forecast | I17: Forecast
A18: 5 | B18: 1010 Financial and general assumptions
A19: 6 | B19: Rate of return | C19: 0.0431 | D19: 0.0421 | E19: 0.0408 | F19: 0.0421 | G19: 0.0421 | H19: 0.0421 | I19: 0.0421
A20: 7 | B20: Annualisation period (years) | C20: 40 | D20: 40 | E20: 40 | F20: 40 | G20: 40 | H20: 40 | I20: 40
A21: 8 | B21: Power factor | C21: 0.95 | D21: 0.95 | E21: 0.95 | F21: 0.95 | G21: 0.95 | H21: 0.95 | I21: 0.95
A22: 9 | B22: Days in the charging period | C22: 365 | D22: 365 | E22: 366 | F22: 365 | G22: 365 | H22: 365 | I22: 366
A23: 10 | B23: 1017 Diversity allowance between top and bottom of network level
A24: 11 | B24: GSPs | C24: 0.022 | D24: 0.022 | E24: 0.022 | F24: =E24 -> 0.022 | G24: =F24 -> 0.022 | H24: 0.022 | I24: 0.022
A25: 12 | B25: 132kV | C25: 0.031 | D25: 0.031 | E25: 0.031 | F25: =E25 -> 0.031 | G25: 0.031 | H25: 0.031 | I25: 0.031
A26: 13 | B26: EHV | C26: 0.075 | D26: 0.075 | E26: 0.075 | F26: 0.075 | G26: 0.075 | H26: 0.075 | I26: 0.075
A27: 14 | B27: HV | C27: 0.37 | D27: 0.37 | E27: 0.37 | F27: 0.37 | G27: 0.37 | H27: 0.37 | I27: 0.37
A28: 15 | B28: 1018 Proportion of relevant load going through 132kV/HV direct transformation | C28: 0 | D28: 0 | F28: 0 | G28: 0 | H28: 0 | I28: 0
A29: 16 | B29: 1019 Network model GSP demand (MW) | C29: 500 | D29: 500 | E29: =D29 -> 500 | F29: 500 | G29: 500 | H29: 500 | I29: 500
A30: 17 | B30: 1020 Gross asset cost by network level (£)
A31: 18 | B31: 132kV | C31: 114846093.1 | D31: 118377610.4 | E31: 115597442.9 | F31: =E31*(1+F$13) -> 119270271.3 | G31: 122943099.8 | H31: 126809235 | I31: 130740321.3
A32: 19 | B32: 132kV/EHV | C32: 16266714.4 | D32: 16766915.87 | E32: 17828167.63 | F32: 18394614.43 | G32: 18961061.23 | H32: 19557321.01 | I32: 20163597.96
A33: 20 | B33: EHV | C33: 41065271.3 | D33: 42328028.39 | E33: 39787911.55 | F33: 41052075.97 | G33: 42316240.38 | H33: 43646939.77 | I33: 44999994.9
A34: 21 | B34: EHV/HV | C34: 41272494.88 | D34: 42541624.1 | E34: 39489019.13 | F34: 40743686.97 | G34: 41998354.8 | H34: 43319057.78 | I34: 44661948.57
A35: 22 | B35: 132kV/HV | C35: 0 | D35: 0 | E35: 0 | F35: 0 | G35: 0 | H35: 0 | I35: 0
A36: 23 | B36: HV | C36: 146988165.2 | D36: 151508051.3 | E36: 152586065 | F36: 157434117.3 | G36: 162282169.5 | H36: 167385382.4 | I36: 172574329.2
A37: 24 | B37: HV/LV | C37: 62637952.53 | D37: 64564069.57 | E37: 63550971.61 | F37: 65570149.64 | G37: 67589327.67 | H37: 69714778.22 | I37: 71875936.35
A38: 25 | B38: LV circuits | C38: 134529782.8 | D38: 138666573.7 | E38: 148968205.5 | F38: 153701309 | G38: 158434412.5 | H38: 163416626.8 | I38: 168482542.2
A39: 26 | B39: 1022 LV service model asset cost (£)
A40: 27 | B40: LV service model 1 | C40: 5262.160904 | D40: 5423.972352 | E40: 4357.3283 | F40: =E40*(1+F$13) -> 4495.771841 | G40: 4634.215383 | H40: 4779.945426 | I40: 4928.123734
A41: 28 | B41: LV service model 2 | C41: 591.9404912 | D41: 610.1426613 | E41: 664.3320883 | F41: 685.4396296 | G41: 706.5471709 | H41: 728.7656354 | I41: 751.3573701
A42: 29 | B42: LV service model 3 | C42: 720.6833308 | D42: 742.8443432 | E42: 768.3550333 | F42: 792.7676514 | G42: 817.1802696 | H42: 842.8777623 | I42: 869.006973
A43: 30 | B43: LV service model 4 | C43: 534.4731483 | D43: 550.9081976 | E43: 557.61394 | F43: 575.3307709 | G43: 593.0476017 | H43: 611.6968974 | I43: 630.6595012
A44: 31 | B44: LV service model 5 | C44: 1214.976409 | D44: 1252.336934 | E44: 1230.218011 | F44: 1269.305205 | G44: 1308.392399 | H44: 1349.536814 | I44: 1391.372456
A45: 32 | B45: LV service model 6 | C45: 935.7907338 | D45: 964.5662989 | E45: 960.3594 | F45: 990.8724913 | G45: 1021.385583 | H45: 1053.504626 | I45: 1086.163269
A46: 33 | B46: LV service model 7 | C46: 0 | D46: 0 | E46: 0 | F46: 0 | G46: 0 | H46: 0 | I46: 0
A47: 34 | B47: LV service model 8 | C47: 489.4240134 | D47: 504.4738018 | E47: 525.61262 | F47: 542.3126865 | G47: 559.012753 | H47: 576.5917704 | I47: 594.4661153
A48: 35 | B48: 1023 HV service model asset cost (£)
A49: 36 | B49: HV service model 1 | C49: 9284.129939 | D49: 9569.616935 | E49: 10371.62568 | F49: =E49*(1+F$13) -> 10701.15894 | G49: 11030.69219 | H49: 11377.56931 | I49: 11730.27396
A50: 37 | B50: HV service model 2 | C50: 4476.192672 | D50: 4613.835597 | E50: 4264 | F50: 4399.478261 | G50: 4534.956522 | H50: 4677.565217 | I50: 4822.569739
A51: 38 | B51: HV service model 3 | C51: 0 | D51: 0 | E51: 0 | F51: 0 | G51: 0 | H51: 0 | I51: 0
A52: 39 | B52: HV service model 4 | C52: 0 | D52: 0 | E52: 0 | F52: 0 | G52: 0 | H52: 0 | I52: 0
A53: 40 | B53: HV service model 5 | C53: 0 | D53: 0 | E53: 0 | F53: 0 | G53: 0 | H53: 0 | I53: 0
A54: 41 | B54: 1025 Matrix of applicability of LV service models to tariffs with fixed charges
A55: 42 | B55: 1026 Matrix of applicability of LV service models to unmetered tariffs
A56: 43 | B56: 1028 Matrix of applicability of HV service models to tariffs with fixed charges
A57: 44 | B57: 1032 Loss adjustment factors to transmission
A58: 45 | B58: 132kV | C58: 1.008 | D58: 1.002 | E58: 1.002 | F58: =E58 -> 1.002 | G58: 1.002 | H58: 1.002 | I58: 1.002
A59: 46 | B59: 132kV/EHV | C59: 1.011 | D59: 1.006 | E59: 1.006 | F59: 1.006 | G59: 1.006 | H59: 1.006 | I59: 1.006
A60: 47 | B60: EHV | C60: 1.024 | D60: 1.012 | E60: 1.012 | F60: 1.012 | G60: 1.012 | H60: 1.012 | I60: 1.012
A61: 48 | B61: EHV/HV | C61: 1.034 | D61: 1.021 | E61: 1.021 | F61: 1.021 | G61: 1.021 | H61: 1.021 | I61: 1.021
A62: 49 | B62: HV | C62: 1.057 | D62: 1.038 | E62: 1.038 | F62: 1.038 | G62: 1.038 | H62: 1.038 | I62: 1.038
A63: 50 | B63: HV/LV | C63: 1.07 | D63: 1.049 | E63: 1.049 | F63: 1.049 | G63: 1.049 | H63: 1.049 | I63: 1.049
A64: 51 | B64: LV circuits | C64: 1.085 | D64: 1.062 | E64: 1.062 | F64: 1.062 | G64: 1.062 | H64: 1.062 | I64: 1.062
A65: 52 | B65: 1037 Embedded network (LDNO) discounts
A66: 53 | B66: LDNO LV: LV user | C66: 0.3712611553 | D66: 0.3726799999 | E66: 0.375266152 | F66: =E66 -> 0.375266152 | G66: 0.375266152 | H66: 0.375266152 | I66: 0.375266152
A67: 54 | B67: LDNO HV: LV user | C67: 0.6267306492 | D67: 0.6188090826 | E67: 0.6158354319 | F67: 0.6158354319 | G67: 0.6158354319 | H67: 0.6158354319 | I67: 0.6158354319
A68: 55 | B68: LDNO HV: LV sub user | C68: 0.3873865381 | D68: 0.3749541673 | E68: 0.3697741805 | F68: 0.3697741805 | G68: 0.3697741805 | H68: 0.3697741805 | I68: 0.3697741805
A69: 56 | B69: LDNO HV: HV user | C69: 0.2730601202 | D69: 0.2586328942 | E69: 0.2523098802 | F69: 0.2523098802 | G69: 0.2523098802 | H69: 0.2523098802 | I69: 0.2523098802
A70: 57 | B70: 1041 Load profile data for demand users: coincidence factor
A71: 58 | B71: Domestic Unrestricted | C71: 0.8959837386 | D71: 0.916120013 | E71: ='Smoothed Input Details'!E15 -> 0.9036972613 | F71: =E71 -> 0.9036972613 | G71: 0.9036972613 | H71: 0.9036972613 | I71: 0.9036972613
A72: 59 | B72: Domestic Two Rate | C72: 0.3245779496 | D72: 0.3425106348 | E72: ='Smoothed Input Details'!E16 -> 0.3484929087 | F72: 0.3484929087 | G72: 0.3484929087 | H72: 0.3484929087 | I72: 0.3484929087
A73: 60 | B73: Domestic Off Peak (related MPAN) | C73: 0
A74: 61 | B74: Small Non Domestic Unrestricted | C74: 0.650404445 | D74: 0.6358102486 | E74: ='Smoothed Input Details'!E18 -> 0.6573652486 | F74: =E74 -> 0.6573652486 | G74: 0.6573652486 | H74: 0.6573652486 | I74: 0.6573652486
A75: 62 | B75: Small Non Domestic Two Rate | C75: 0.607484391 | D75: 0.5884054495 | E75: ='Smoothed Input Details'!E19 -> 0.6308650462 | F75: 0.6308650462 | G75: 0.6308650462 | H75: 0.6308650462 | I75: 0.6308650462
A76: 63 | B76: Small Non Domestic Off Peak (related MPAN) | C76: 0
A77: 64 | B77: LV Medium Non-Domestic | C77: 0.8656552911 | D77: 0.8585513205 | E77: ='Smoothed Input Details'!E21 -> 0.8585513205 | F77: =E77 -> 0.8585513205 | G77: 0.8585513205 | H77: 0.8585513205 | I77: 0.8585513205
A78: 65 | B78: LV Sub Medium Non-Domestic | C78: 0.8393389627 | D78: 0.8382314172 | E78: ='Smoothed Input Details'!E22 -> 0.8382314172 | F78: 0.8382314172 | G78: 0.8382314172 | H78: 0.8382314172 | I78: 0.8382314172
A79: 66 | B79: HV Medium Non-Domestic | C79: 0.6970776727 | D79: 0.6632207801 | E79: ='Smoothed Input Details'!E23 -> 0.6632207801 | F79: 0.6632207801 | G79: 0.6632207801 | H79: 0.6632207801 | I79: 0.6632207801
A80: 67 | B80: LV Network Domestic | C80: 0.8061995478 | D80: 0.8259895753 | E80: ='Smoothed Input Details'!E24 -> 0.8164587795 | F80: 0.8164587795 | G80: 0.8164587795 | H80: 0.8164587795 | I80: 0.8164587795
A81: 68 | B81: LV Network Non-Domestic Non-CT | C81: 0.6417754507 | D81: 0.6262796049 | E81: ='Smoothed Input Details'!E25 -> 0.6520374339 | F81: 0.6520374339 | G81: 0.6520374339 | H81: 0.6520374339 | I81: 0.6520374339
A82: 69 | B82: LV HH Metered | C82: 0.8173631553 | D82: 0.803287895 | E82: ='Smoothed Input Details'!E26 -> 0.803287895 | F82: 0.803287895 | G82: 0.803287895 | H82: 0.803287895 | I82: 0.803287895
A83: 70 | B83: LV Sub HH Metered | C83: 0.7785052724 | D83: 0.7658193845 | E83: ='Smoothed Input Details'!E27 -> 0.7658193845 | F83: 0.7658193845 | G83: 0.7658193845 | H83: 0.7658193845 | I83: 0.7658193845
A84: 71 | B84: HV HH Metered | C84: 0.8114350236 | D84: 0.8005762642 | E84: ='Smoothed Input Details'!E28 -> 0.819551906 | F84: 0.819551906 | G84: 0.819551906 | H84: 0.819551906 | I84: 0.819551906
A85: 72 | B85: NHH UMS category A | C85: 1 | D85: 1 | E85: ='Smoothed Input Details'!E29 -> 1 | F85: 1 | G85: 1 | H85: 1 | I85: 1
A86: 73 | B86: NHH UMS category B | C86: 0.983875969 | D86: 0.983875969 | E86: ='Smoothed Input Details'!E30 -> 0.983875969 | F86: 0.983875969 | G86: 0.983875969 | H86: 0.983875969 | I86: 0.983875969
A87: 74 | B87: NHH UMS category C | C87: 0.8807422494 | D87: 0.8805058428 | E87: ='Smoothed Input Details'!E31 -> 0.8805058428 | F87: 0.8805058428 | G87: 0.8805058428 | H87: 0.8805058428 | I87: 0.8805058428
A88: 75 | B88: NHH UMS category D | C88: 0 | D88: 0 | E88: ='Smoothed Input Details'!E32 -> 0 | F88: 0 | G88: 0 | H88: 0 | I88: 0
A89: 76 | B89: LV UMS (Pseudo HH Metered) | C89: 0.9761564673 | D89: 0.9713745501 | E89: ='Smoothed Input Details'!E33 -> 0.9656353209 | F89: 0.9656353209 | G89: 0.9656353209 | H89: 0.9656353209 | I89: 0.9656353209
A90: 77 | B90: 1041 Load profile data for demand users: load factor
A91: 78 | B91: Domestic Unrestricted | C91: 0.4153686244 | D91: 0.4179484873 | E91: ='Smoothed Input Details'!E42 -> 0.4101809031 | F91: =E91 -> 0.4101809031 | G91: 0.4101809031 | H91: 0.4101809031 | I91: 0.4101809031
A92: 79 | B92: Domestic Two Rate | C92: 0.2545353902 | D92: 0.2578726855 | E92: ='Smoothed Input Details'!E43 -> 0.2578651801 | F92: 0.2578651801 | G92: 0.2578651801 | H92: 0.2578651801 | I92: 0.2578651801
A93: 80 | B93: Domestic Off Peak (related MPAN) | C93: 0.1454311131 | D93: 0.1440818751 | E93: ='Smoothed Input Details'!E44 -> 0.1430432895 | F93: 0.1430432895 | G93: 0.1430432895 | H93: 0.1430432895 | I93: 0.1430432895
A94: 81 | B94: Small Non Domestic Unrestricted | C94: 0.3936048619 | D94: 0.3916832263 | E94: ='Smoothed Input Details'!E45 -> 0.3893231103 | F94: 0.3893231103 | G94: 0.3893231103 | H94: 0.3893231103 | I94: 0.3893231103
A95: 82 | B95: Small Non Domestic Two Rate | C95: 0.4473372106 | D95: 0.4286725136 | E95: ='Smoothed Input Details'!E46 -> 0.4408770156 | F95: 0.4408770156 | G95: 0.4408770156 | H95: 0.4408770156 | I95: 0.4408770156
A96: 83 | B96: Small Non Domestic Off Peak (related MPAN) | C96: 0.1529768781 | D96: 0.1529440454 | E96: ='Smoothed Input Details'!E47 -> 0.1559146372 | F96: 0.1559146372 | G96: 0.1559146372 | H96: 0.1559146372 | I96: 0.1559146372
A97: 84 | B97: LV Medium Non-Domestic | C97: 0.595227284 | D97: 0.593601508 | E97: ='Smoothed Input Details'!E48 -> 0.593601508 | F97: 0.593601508 | G97: 0.593601508 | H97: 0.593601508 | I97: 0.593601508
A98: 85 | B98: LV Sub Medium Non-Domestic | C98: 0.6026679344 | D98: 0.6000900558 | E98: ='Smoothed Input Details'!E49 -> 0.6000900558 | F98: 0.6000900558 | G98: 0.6000900558 | H98: 0.6000900558 | I98: 0.6000900558
A99: 86 | B99: HV Medium Non-Domestic | C99: 0.4854906448 | D99: 0.4549084208 | E99: ='Smoothed Input Details'!E50 -> 0.4549084208 | F99: 0.4549084208 | G99: 0.4549084208 | H99: 0.4549084208 | I99: 0.4549084208
A100: 87 | B100: LV Network Domestic | C100: 0.3873396363 | D100: 0.3899928896 | E100: ='Smoothed Input Details'!E51 -> 0.3835067319 | F100: 0.3835067319 | G100: 0.3835067319 | H100: 0.3835067319 | I100: 0.3835067319
A101: 88 | B101: LV Network Non-Domestic Non-CT | C101: 0.398207747 | D101: 0.3930495306 | E101: ='Smoothed Input Details'!E52 -> 0.3936768454 | F101: 0.3936768454 | G101: 0.3936768454 | H101: 0.3936768454 | I101: 0.3936768454
A102: 89 | B102: LV HH Metered | C102: 0.5906997178 | D102: 0.5875803245 | E102: ='Smoothed Input Details'!E53 -> 0.5875803245 | F102: 0.5875803245 | G102: 0.5875803245 | H102: 0.5875803245 | I102: 0.5875803245
A103: 90 | B103: LV Sub HH Metered | C103: 0.6145101035 | D103: 0.6115171759 | E103: ='Smoothed Input Details'!E54 -> 0.6115171759 | F103: 0.6115171759 | G103: 0.6115171759 | H103: 0.6115171759 | I103: 0.6115171759
A104: 91 | B104: HV HH Metered | C104: 0.7221419462 | D104: 0.7228719463 | E104: ='Smoothed Input Details'!E55 -> 0.7322211111 | F104: 0.7322211111 | G104: 0.7322211111 | H104: 0.7322211111 | I104: 0.7322211111
A105: 92 | B105: NHH UMS category A | C105: 1 | D105: 1 | E105: ='Smoothed Input Details'!E56 -> 1 | F105: 1 | G105: 1 | H105: 1 | I105: 1
A106: 93 | B106: NHH UMS category B | C106: 0.4755366169 | D106: 0.4749547891 | E106: ='Smoothed Input Details'!E57 -> 0.4756809068 | F106: 0.4756809068 | G106: 0.4756809068 | H106: 0.4756809068 | I106: 0.4756809068
A107: 94 | B107: NHH UMS category C | C107: 0.2460682166 | D107: 0.2463161498 | E107: ='Smoothed Input Details'!E58 -> 0.2562760241 | F107: =E107 -> 0.2562760241 | G107: 0.2562760241 | H107: 0.2562760241 | I107: 0.2562760241
A108: 95 | B108: NHH UMS category D | C108: 0.5152430348 | D108: 0.5152659389 | E108: ='Smoothed Input Details'!E59 -> 0.515288843 | F108: 0.515288843 | G108: 0.515288843 | H108: 0.515288843 | I108: 0.515288843
A109: 96 | B109: LV UMS (Pseudo HH Metered) | C109: 0.4604827766 | D109: 0.4554929434 | E109: ='Smoothed Input Details'!E60 -> 0.459118878 | F109: 0.459118878 | G109: 0.459118878 | H109: 0.459118878 | I109: 0.459118878
A110: 97 | B110: 1053. Volume forecasts for the charging year
A111: 98 | B111: 1055 Transmission exit charges (£/year) | C111: 8918394.385 | D111: 8442465.88 | E111: 8982651.192 | F111: 9268053.153 | G111: 9553455.114 | H111: 9853878.231 | I111: =H111*(1+I$13) -> 10159348.46
A112: 99 | B112: 1059 Other Expenditure (£/year)
A113: 100 | B113: Direct cost (£/year) | C113: 27171630.88 | D113: 33743177.65 | E113: 34887252.55 | F113: 35995710.41 | G113: 37104168.26 | H113: 38270966.01 | I113: 39457365.95
A114: 101 | B114: Indirect cost (£/year) | C114: 95114172.4 | D114: 100910650.8 | E114: 105564004.4 | F114: 108918044.7 | G114: 112272085 | H114: 115802653.7 | I114: 119392536
A115: 102 | B115: Indirect cost proportion | C115: 0.6 | D115: 0.6 | E115: 0.6 | F115: =E115 -> 0.6 | G115: 0.6 | H115: 0.6 | I115: 0.6
A116: 103 | B116: Network rates (£/year) | C116: 18218261.23 | D116: 19601920 | E116: 20212419.78 | F116: 20818792.37 | G116: 21443356.15 | H116: 22086656.83 | I116: 22771343.19
A117: 104 | B117: 1060 Customer contributions under current connection charging policy
A118: 105 | B118: LV network
A119: 106 | B119: Assets 132kV | C119: 0 | D119: 0 | E119: 0 | F119: =E119 -> 0 | G119: =F119 -> 0 | H119: =G119 -> 0 | I119: =H119 -> 0
A120: 107 | B120: Assets 132kV/EHV | C120: 0 | D120: 0 | E120: 0 | F120: 0 | G120: 0 | H120: 0 | I120: 0
A121: 108 | B121: Assets EHV | C121: 0 | D121: 0 | E121: 0 | F121: 0 | G121: 0 | H121: 0 | I121: 0
A122: 109 | B122: Assets EHV/HV | C122: 0.81 | D122: 0.81 | E122: 0.81 | F122: 0.81 | G122: 0.81 | H122: 0.81 | I122: 0.81
A123: 110 | B123: Assets 132kV/HV | C123: 0 | D123: 0 | E123: 0 | F123: 0 | G123: 0 | H123: 0 | I123: 0
A124: 111 | B124: Assets HV | C124: 0.81 | D124: 0.81 | E124: 0.81 | F124: 0.81 | G124: 0.81 | H124: 0.81 | I124: 0.81
A125: 112 | B125: Assets HV/LV | C125: 0.95 | D125: 0.95 | E125: 0.95 | F125: 0.95 | G125: 0.95 | H125: 0.95 | I125: 0.95
A126: 113 | B126: Assets LV circuits | C126: 0.95 | D126: 0.95 | E126: 0.95 | F126: 0.95 | G126: 0.95 | H126: 0.95 | I126: 0.95
A127: 114 | B127: LV substation
A128: 115 | B128: Assets 132kV | C128: 0 | D128: 0 | E128: 0 | F128: =E128 -> 0 | G128: =F128 -> 0 | H128: =G128 -> 0 | I128: =H128 -> 0
A129: 116 | B129: Assets 132kV/EHV | C129: 0 | D129: 0 | E129: 0 | F129: 0 | G129: 0 | H129: 0 | I129: 0
A130: 117 | B130: Assets EHV | C130: 0 | D130: 0 | E130: 0 | F130: 0 | G130: 0 | H130: 0 | I130: 0
A131: 118 | B131: Assets EHV/HV | C131: 0.81 | D131: 0.81 | E131: 0.81 | F131: 0.81 | G131: 0.81 | H131: 0.81 | I131: 0.81
A132: 119 | B132: Assets 132kV/HV | C132: 0 | D132: 0 | E132: 0 | F132: 0 | G132: 0 | H132: 0 | I132: 0
A133: 120 | B133: Assets HV | C133: 0.81 | D133: 0.81 | E133: 0.81 | F133: 0.81 | G133: 0.81 | H133: 0.81 | I133: 0.81
A134: 121 | B134: Assets HV/LV | C134: 0.95 | D134: 0.95 | E134: 0.95 | F134: 0.95 | G134: 0.95 | H134: 0.95 | I134: 0.95
A135: 122 | B135: HV network
A136: 123 | B136: Assets 132kV | C136: 0 | D136: 0 | E136: 0 | F136: =E136 -> 0 | G136: =F136 -> 0 | H136: =G136 -> 0 | I136: =H136 -> 0
A137: 124 | B137: Assets 132kV/EHV | C137: 0.67 | D137: 0.67 | E137: 0.67 | F137: 0.67 | G137: 0.67 | H137: 0.67 | I137: 0.67
A138: 125 | B138: Assets EHV | C138: 0.67 | D138: 0.67 | E138: 0.67 | F138: 0.67 | G138: 0.67 | H138: 0.67 | I138: 0.67
A139: 126 | B139: Assets EHV/HV | C139: 1 | D139: 1 | E139: 1 | F139: 1 | G139: 1 | H139: 1 | I139: 1
A140: 127 | B140: Assets 132kV/HV | C140: 0 | D140: 0 | E140: 0 | F140: 0 | G140: 0 | H140: 0 | I140: 0
A141: 128 | B141: Assets HV | C141: 1 | D141: 1 | E141: 1 | F141: 1 | G141: 1 | H141: 1 | I141: 1
A142: 129 | B142: HV substation
A143: 130 | B143: Assets 132kV | C143: 0 | D143: 0 | E143: 0 | F143: =E143 -> 0 | G143: =F143 -> 0 | H143: =G143 -> 0 | I143: =H143 -> 0
A144: 131 | B144: Assets 132kV/EHV | C144: 0.67 | D144: 0.67 | E144: 0.67 | F144: 0.67 | G144: 0.67 | H144: 0.67 | I144: 0.67
A145: 132 | B145: Assets EHV | C145: 0.67 | D145: 0.67 | E145: 0.67 | F145: 0.67 | G145: 0.67 | H145: 0.67 | I145: 0.67
A146: 133 | B146: Assets EHV/HV | C146: 1 | D146: 1 | E146: 1 | F146: 1 | G146: 1 | H146: 1 | I146: 1
A147: 134 | B147: 1061 Average split of rate 1 units by distribution time band
A148: 135 | B148: RED
A149: 136 | B149: Domestic Unrestricted | C149: 0.08862032897 | D149: 0.08874020031 | E149: ='Smoothed Input Details'!K70 -> 0.08855507272 | F149: =E149 -> 0.08855507272 | G149: =F149 -> 0.08855507272 | H149: =G149 -> 0.08855507272 | I149: =H149 -> 0.08855507272
A150: 137 | B150: Domestic Two Rate | C150: 0.1067679862 | D150: 0.1075158524 | E150: ='Smoothed Input Details'!K71 -> 0.1074411722 | F150: 0.1074411722 | G150: 0.1074411722 | H150: 0.1074411722 | I150: 0.1074411722
A151: 138 | B151: Domestic Off Peak (related MPAN) | C151: 0.001299241053 | D151: 0.001346745284 | E151: ='Smoothed Input Details'!K72 -> 0.001345780001 | F151: 0.001345780001 | G151: 0.001345780001 | H151: 0.001345780001 | I151: 0.001345780001
A152: 139 | B152: Small Non Domestic Unrestricted | C152: 0.06211254985 | D152: 0.06262004655 | E152: ='Smoothed Input Details'!K73 -> 0.0628293925 | F152: 0.0628293925 | G152: 0.0628293925 | H152: 0.0628293925 | I152: 0.0628293925
A153: 140 | B153: Small Non Domestic Two Rate | C153: 0.08002807725 | D153: 0.08115654121 | E153: ='Smoothed Input Details'!K74 -> 0.082466726 | F153: 0.082466726 | G153: 0.082466726 | H153: 0.082466726 | I153: 0.082466726
A154: 141 | B154: Small Non Domestic Off Peak (related MPAN) | C154: 0.001974191376 | D154: 0.002110885594 | E154: ='Smoothed Input Details'!K75 -> 0.002169422316 | F154: 0.002169422316 | G154: 0.002169422316 | H154: 0.002169422316 | I154: 0.002169422316
A155: 142 | B155: LV Medium Non-Domestic | C155: 0.08249427729 | D155: 0.08297024793 | E155: ='Smoothed Input Details'!K76 -> 0.08300215513 | F155: 0.08300215513 | G155: 0.08300215513 | H155: 0.08300215513 | I155: 0.08300215513
A156: 143 | B156: LV Sub Medium Non-Domestic | C156: 0.08138349977 | D156: 0.08188860342 | E156: ='Smoothed Input Details'!K77 -> 0.08236594968 | F156: 0.08236594968 | G156: 0.08236594968 | H156: 0.08236594968 | I156: 0.08236594968
A157: 144 | B157: HV Medium Non-Domestic | C157: 0.0829178245 | D157: 0.08215022324 | E157: ='Smoothed Input Details'!K78 -> 0.08023641913 | F157: 0.08023641913 | G157: 0.08023641913 | H157: 0.08023641913 | I157: 0.08023641913
A158: 145 | B158: AMBER
A159: 146 | B159: Domestic Unrestricted | C159: 0.4620712742 | D159: 0.4623955963 | E159: ='Smoothed Input Details'!L70 -> 0.4612830793 | F159: =E159 -> 0.4612830793 | G159: =F159 -> 0.4612830793 | H159: =G159 -> 0.4612830793 | I159: =H159 -> 0.4612830793
A160: 147 | B160: Domestic Two Rate | C160: 0.5361322108 | D160: 0.5392899373 | E160: ='Smoothed Input Details'!L71 -> 0.5413473228 | F160: 0.5413473228 | G160: 0.5413473228 | H160: 0.5413473228 | I160: 0.5413473228
A161: 148 | B161: Domestic Off Peak (related MPAN) | C161: 0.1084605769 | D161: 0.1087054702 | E161: ='Smoothed Input Details'!L72 -> 0.1088787561 | F161: 0.1088787561 | G161: 0.1088787561 | H161: 0.1088787561 | I161: 0.1088787561
A162: 149 | B162: Small Non Domestic Unrestricted | C162: 0.5684268829 | D162: 0.5659629484 | E162: ='Smoothed Input Details'!L73 -> 0.5639817942 | F162: 0.5639817942 | G162: 0.5639817942 | H162: 0.5639817942 | I162: 0.5639817942
A163: 150 | B163: Small Non Domestic Two Rate | C163: 0.631685709 | D163: 0.6306607774 | E163: ='Smoothed Input Details'!L74 -> 0.6279420793 | F163: 0.6279420793 | G163: 0.6279420793 | H163: 0.6279420793 | I163: 0.6279420793
A164: 151 | B164: Small Non Domestic Off Peak (related MPAN) | C164: 0.1156568508 | D164: 0.1180265489 | E164: ='Smoothed Input Details'!L75 -> 0.1191021685 | F164: 0.1191021685 | G164: 0.1191021685 | H164: 0.1191021685 | I164: 0.1191021685
A165: 152 | B165: LV Medium Non-Domestic | C165: 0.6198233539 | D165: 0.6203611008 | E165: ='Smoothed Input Details'!L76 -> 0.6205572098 | F165: 0.6205572098 | G165: 0.6205572098 | H165: 0.6205572098 | I165: 0.6205572098
A166: 153 | B166: LV Sub Medium Non-Domestic | C166: 0.6185661035 | D166: 0.6185584 | E166: ='Smoothed Input Details'!L77 -> 0.6189862426 | F166: 0.6189862426 | G166: 0.6189862426 | H166: 0.6189862426 | I166: 0.6189862426
A167: 154 | B167: HV Medium Non-Domestic | C167: 0.6332060946 | D167: 0.6395586657 | E167: ='Smoothed Input Details'!L78 -> 0.6468240975 | F167: 0.6468240975 | G167: 0.6468240975 | H167: 0.6468240975 | I167: 0.6468240975
A168: 155 | B168: GREEN
A169: 156 | B169: Domestic Unrestricted | C169: 0.4493083969 | D169: 0.4488642034 | E169: ='Smoothed Input Details'!M70 -> 0.450161848 | F169: =E169 -> 0.450161848 | G169: =F169 -> 0.450161848 | H169: =G169 -> 0.450161848 | I169: =H169 -> 0.450161848
A170: 157 | B170: Domestic Two Rate | C170: 0.357099803 | D170: 0.3531942103 | E170: ='Smoothed Input Details'!M71 -> 0.351211505 | F170: 0.351211505 | G170: 0.351211505 | H170: 0.351211505 | I170: 0.351211505
A171: 158 | B171: Domestic Off Peak (related MPAN) | C171: 0.8902401821 | D171: 0.8899477845 | E171: ='Smoothed Input Details'!M72 -> 0.8897754639 | F171: 0.8897754639 | G171: 0.8897754639 | H171: 0.8897754639 | I171: 0.8897754639
A172: 159 | B172: Small Non Domestic Unrestricted | C172: 0.3694605673 | D172: 0.371417005 | E172: ='Smoothed Input Details'!M73 -> 0.3731888133 | F172: 0.3731888133 | G172: 0.3731888133 | H172: 0.3731888133 | I172: 0.3731888133
A173: 160 | B173: Small Non Domestic Two Rate | C173: 0.2882862138 | D173: 0.2881826814 | E173: ='Smoothed Input Details'!M74 -> 0.2895911947 | F173: 0.2895911947 | G173: 0.2895911947 | H173: 0.2895911947 | I173: 0.2895911947
A174: 161 | B174: Small Non Domestic Off Peak (related MPAN) | C174: 0.8823689578 | D174: 0.8798625655 | E174: ='Smoothed Input Details'!M75 -> 0.8787284092 | F174: 0.8787284092 | G174: 0.8787284092 | H174: 0.8787284092 | I174: 0.8787284092
A175: 162 | B175: LV Medium Non-Domestic | C175: 0.2976823688 | D175: 0.2966686513 | E175: ='Smoothed Input Details'!M76 -> 0.296440635 | F175: 0.296440635 | G175: 0.296440635 | H175: 0.296440635 | I175: 0.296440635
A176: 163 | B176: LV Sub Medium Non-Domestic | C176: 0.3000503968 | D176: 0.2995529966 | E176: ='Smoothed Input Details'!M77 -> 0.2986478077 | F176: 0.2986478077 | G176: 0.2986478077 | H176: 0.2986478077 | I176: 0.2986478077
A177: 164 | B177: HV Medium Non-Domestic | C177: 0.2838760809 | D177: 0.2782911111 | E177: ='Smoothed Input Details'!M78 -> 0.2729394834 | F177: 0.2729394834 | G177: 0.2729394834 | H177: 0.2729394834 | I177: 0.2729394834
A178: 165 | B178: 1062 Average split of rate 2 units by distribution time band
A179: 166 | B179: RED
A180: 167 | B180: Domestic Two Rate | C180: 0 | D180: 0 | E180: ='Smoothed Input Details'!K88 -> 0 | F180: =E180 -> 0 | G180: =F180 -> 0 | H180: =G180 -> 0 | I180: =H180 -> 0
A181: 168 | B181: Small Non Domestic Two Rate | C181: 0 | D181: 0 | E181: ='Smoothed Input Details'!K89 -> 0 | F181: 0 | G181: 0 | H181: 0 | I181: 0
A182: 169 | B182: LV Medium Non-Domestic | C182: 0 | D182: 0 | E182: ='Smoothed Input Details'!K90 -> 0 | F182: 0 | G182: 0 | H182: 0 | I182: 0
A183: 170 | B183: LV Sub Medium Non-Domestic | C183: 0 | D183: 0 | E183: ='Smoothed Input Details'!K91 -> 0 | F183: 0 | G183: 0 | H183: 0 | I183: 0
A184: 171 | B184: HV Medium Non-Domestic | C184: 0 | D184: 0 | E184: ='Smoothed Input Details'!K92 -> 0 | F184: 0 | G184: 0 | H184: 0 | I184: 0
A185: 172 | B185: AMBER
A186: 173 | B186: Domestic Two Rate | C186: 0.0202504771 | D186: 0.02098092982 | E186: ='Smoothed Input Details'!L88 -> 0.02116687823 | F186: =E186 -> 0.02116687823 | G186: =F186 -> 0.02116687823 | H186: =G186 -> 0.02116687823 | I186: =H186 -> 0.02116687823
A187: 174 | B187: Small Non Domestic Two Rate | C187: 0.02466712092 | D187: 0.0264445948 | E187: ='Smoothed Input Details'!L89 -> 0.02740263557 | F187: 0.02740263557 | G187: 0.02740263557 | H187: 0.02740263557 | I187: 0.02740263557
A188: 175 | B188: LV Medium Non-Domestic | C188: 0 | D188: 0 | E188: ='Smoothed Input Details'!L90 -> 0 | F188: 0 | G188: 0 | H188: 0 | I188: 0
A189: 176 | B189: LV Sub Medium Non-Domestic | C189: 0 | D189: 0 | E189: ='Smoothed Input Details'!L91 -> 0 | F189: 0 | G189: 0 | H189: 0 | I189: 0
A190: 177 | B190: HV Medium Non-Domestic | C190: 0 | D190: 0 | E190: ='Smoothed Input Details'!L92 -> 0 | F190: 0 | G190: 0 | H190: 0 | I190: 0
A191: 178 | B191: GREEN
A192: 179 | B192: Domestic Two Rate | C192: 0.9797495229 | D192: 0.9790190702 | E192: ='Smoothed Input Details'!M88 -> 0.9788331218 | F192: =E192 -> 0.9788331218 | G192: =F192 -> 0.9788331218 | H192: =G192 -> 0.9788331218 | I192: =H192 -> 0.9788331218
A193: 180 | B193: Small Non Domestic Two Rate | C193: 0.9753328791 | D193: 0.9735554052 | E193: ='Smoothed Input Details'!M89 -> 0.9725973644 | F193: 0.9725973644 | G193: 0.9725973644 | H193: 0.9725973644 | I193: 0.9725973644
A194: 181 | B194: LV Medium Non-Domestic | C194: 1 | D194: 1 | E194: ='Smoothed Input Details'!M90 -> 1 | F194: 1 | G194: 1 | H194: 1 | I194: 1
A195: 182 | B195: LV Sub Medium Non-Domestic | C195: 1 | D195: 1 | E195: ='Smoothed Input Details'!M91 -> 1 | F195: 1 | G195: 1 | H195: 1 | I195: 1
A196: 183 | B196: HV Medium Non-Domestic | C196: 1 | D196: 1 | E196: ='Smoothed Input Details'!M92 -> 1 | F196: 1 | G196: 1 | H196: 1 | I196: 1
A197: 184 | B197: 1064. Average split of rate 1 units by special distribution time band
A198: 185 | B198: BLACK
A199: 186 | B199: NHH UMS category A | C199: 0.01750380518 | D199: 0.01733579526 | E199: ='Smoothed Input Details'!K102 -> 0.01725969176 | F199: =E199 -> 0.01725969176 | G199: =F199 -> 0.01725969176 | H199: =G199 -> 0.01725969176 | I199: =H199 -> 0.01725969176
A200: 187 | B200: NHH UMS category B | C200: 0.03321711273 | D200: 0.03284730272 | E200: ='Smoothed Input Details'!K103 -> 0.03278202532 | F200: 0.03278202532 | G200: 0.03278202532 | H200: 0.03278202532 | I200: 0.03278202532
A201: 188 | B201: NHH UMS category C | C201: 0.06032346443 | D201: 0.05927359579 | E201: ='Smoothed Input Details'!K104 -> 0.05867340836 | F201: 0.05867340836 | G201: 0.05867340836 | H201: 0.05867340836 | I201: 0.05867340836
A202: 189 | B202: NHH UMS category D | C202: 0.002463152623 | D202: 0.002449289722 | E202: ='Smoothed Input Details'!K105 -> 0.002449289722 | F202: 0.002449289722 | G202: 0.002449289722 | H202: 0.002449289722 | I202: 0.002449289722
A203: 190 | B203: YELLOW
A204: 191 | B204: NHH UMS category A | C204: 0.4348173516 | D204: 0.4355228685 | E204: ='Smoothed Input Details'!L102 -> 0.435598972 | F204: =E204 -> 0.435598972 | G204: =F204 -> 0.435598972 | H204: =G204 -> 0.435598972 | I204: =H204 -> 0.435598972
A205: 192 | B205: NHH UMS category B | C205: 0.1515664702 | D205: 0.1517630106 | E205: ='Smoothed Input Details'!L103 -> 0.1517540321 | F205: 0.1517540321 | G205: 0.1517540321 | H205: 0.1517540321 | I205: 0.1517540321
... 66 more rows

Sheet Table 1
A1: Schedule 15 table 1
A2: ="Company Name: "&'CDCM Forecast Data'!E3 -> Company Name: WPD South West
A3: Date:
A5: Description | B5: Licence Term | C5: CRC | K5: Assumptions
A6: Regulatory Year | D6: t-2 | E6: t-1 | F6: t | G6: t+1 | H6: t+2 | I6: t+3 | J6: t+4
A7: Regulatory Year | D7: ='CDCM Forecast Data'!C11 -> 2017/18 | E7: ='CDCM Forecast Data'!D11 -> 2018/19 | F7: ='CDCM Forecast Data'!E11 -> 2019/20 | G7: ='CDCM Forecast Data'!F11 -> 2020/21 | H7: ='CDCM Forecast Data'!G11 -> 2021/22 | I7: ='CDCM Forecast Data'!H11 -> 2022/23 | J7: ='CDCM Forecast Data'!I11 -> 2023/24
A8: Base Demand Revenue Before Inflation (A1) | B8: PU | C8: CRC2A | D8: ='[3]R6 Base Demand Revenue'!I6 -> 296.5 | E8: ='[3]R6 Base Demand Revenue'!J6 -> 299.5 | F8: ='[3]R6 Base Demand Revenue'!K6 -> 302.5 | G8: ='[3]R6 Base Demand Revenue'!L6 -> 305.5 | H8: ='[3]R6 Base Demand Revenue'!M6 -> 308.6 | I8: ='[3]R6 Base Demand Revenue'!N6 -> 311.7 | J8: =I8 -> 311.7
A9: Annual Iteration adjustment before inflation (A2) | B9: MOD | C9: CRC2A | D9: ='[3]R6 Base Demand Revenue'!I7 -> -3.989704153 | E9: ='[3]R6 Base Demand Revenue'!J7 -> -8.354930164 | F9: ='[3]R6 Base Demand Revenue'!K7 -> -8.588488656 | G9: ='[3]R6 Base Demand Revenue'!L7 -> -14.7317662 | H9: ='[3]R6 Base Demand Revenue'!M7 -> -17.84421004 | I9: ='[3]R6 Base Demand Revenue'!N7 -> -21.29826877 | J9: ='[3]R6 Base Demand Revenue'!O7 -> 0
A10: RPI True-up before inflation (A3) | B10: TRU | C10: CRC2A | D10: ='[3]R6 Base Demand Revenue'!I8 -> -6.326709255 | E10: ='[3]R6 Base Demand Revenue'!J8 -> -1.142782946 | F10: ='[3]R6 Base Demand Revenue'!K8 -> 0.2099027869 | G10: ='[3]R6 Base Demand Revenue'!L8 -> 0 | H10: ='[3]R6 Base Demand Revenue'!M8 -> 0 | I10: ='[3]R6 Base Demand Revenue'!N8 -> 0 | J10: ='[3]R6 Base Demand Revenue'!O8 -> 0
A11: Price index adjustment (RPI index) (A4) | B11: RPIF | C11: CRC2A | D11: ='[3]R6 Base Demand Revenue'!I9 -> 1.121 | E11: =(1+'CDCM Forecast Data'!D13)*D11 -> 1.16 | F11: =(1+'CDCM Forecast Data'!E13)*E11 -> 1.196 | G11: =(1+'CDCM Forecast Data'!F13)*F11 -> 1.234 | H11: =(1+'CDCM Forecast Data'!G13)*G11 -> 1.272 | I11: =(1+'CDCM Forecast Data'!H13)*H11 -> 1.312 | J11: =(1+'CDCM Forecast Data'!I13)*I11 -> 1.352672
A12: Base Demand Revenue (A): [A = (A1 + A2 + A3) * A4] | B12: BR | C12: CRC2A | D12: =(D8+D9+D10)*D11 -> 320.8118006 | E12: =(E8+E9+E10)*E11 -> 336.4026528 | F12: 351.7692113 | G12: 358.8080005 | H12: 369.8413648 | I12: 381.0070714 | J12: 421.6278624 | K12: A = (A1 + A2 + A3) * A4
A13: Pass-Through Licence Fees (B1) | B13: LF | C13: CRC2B | D13: ='[3]R8 Pass-Through Items'!I6 -> 0.1317302994 | E13: ='[3]R8 Pass-Through Items'!J6 -> -0.05604842329 | F13: ='[3]R8 Pass-Through Items'!K6 -> 0.2122174448 | G13: ='[3]R8 Pass-Through Items'!L6 -> 0.2180816212 | H13: ='[3]R8 Pass-Through Items'!M6 -> 0.2236606987 | I13: ='[3]R8 Pass-Through Items'!N6 -> 0.2296601786 | J13: =I13 -> 0.2296601786
A14: Pass-Through Business Rates (B2) | B14: RB | C14: CRC2B | D14: ='[3]R8 Pass-Through Items'!I7 -> 0.277991422 | E14: ='[3]R8 Pass-Through Items'!J7 -> 0.04024962347 | F14: ='[3]R8 Pass-Through Items'!K7 -> 0.8174675746 | G14: ='[3]R8 Pass-Through Items'!L7 -> -2.76873916 | H14: ='[3]R8 Pass-Through Items'!M7 -> -5.004416801 | I14: ='[3]R8 Pass-Through Items'!N7 -> -5.178978834 | J14: =I14 -> -5.178978834
A15: Pass-Through Transmission Connection Point Charges (B3) | B15: TB | C15: CRC2B | D15: ='[3]R8 Pass-Through Items'!I8 -> -1.119604453 | E15: ='[3]R8 Pass-Through Items'!J8 -> -1.641113077 | F15: ='[3]R8 Pass-Through Items'!K8 -> -2.129619227 | G15: ='[3]R8 Pass-Through Items'!L8 -> -2.188466711 | H15: ='[3]R8 Pass-Through Items'!M8 -> -2.285029739 | I15: ='[3]R8 Pass-Through Items'!N8 -> -2.346323432 | J15: -2.346323432
A16: Pass-through Smart Meter Communication Licence Costs (B4) | B16: SMC | C16: CRC2B | D16: ='[3]R8 Pass-Through Items'!I10 -> -0.09776986892 | E16: ='[3]R8 Pass-Through Items'!J10 -> 0.2823662426 | F16: ='[3]R8 Pass-Through Items'!K10 -> 0.2720565257 | G16: ='[3]R8 Pass-Through Items'!L10 -> 0.6365036121 | H16: ='[3]R8 Pass-Through Items'!M10 -> 0.7908103145 | I16: ='[3]R8 Pass-Through Items'!N10 -> 1.068347128 | J16: 1.068347128
A17: Pass-through Smart Meter IT Costs (B5) | B17: SMIT | C17: CRC2B | D17: ='[3]R8 Pass-Through Items'!I11 -> -0.1912549589 | E17: ='[3]R8 Pass-Through Items'!J11 -> -0.1892236675 | F17: ='[3]R8 Pass-Through Items'!K11 -> 0.1167866311 | G17: ='[3]R8 Pass-Through Items'!L11 -> -0.243117489 | H17: ='[3]R8 Pass-Through Items'!M11 -> 0.3601896289 | I17: ='[3]R8 Pass-Through Items'!N11 -> -0.5572552563 | J17: -0.5572552563
A18: Pass-through Ring Fence Costs | B18: RF | C18: CRC2B | D18: ='[3]R8 Pass-Through Items'!I12 -> 0.02451133457 | E18: ='[3]R8 Pass-Through Items'!J12 -> 0.02545713582 | F18: ='[3]R8 Pass-Through Items'!K12 -> 0.02617255563 | G18: ='[3]R8 Pass-Through Items'!L12 -> 0.02689577838 | H18: ='[3]R8 Pass-Through Items'!M12 -> 0.02758384017 | I18: ='[3]R8 Pass-Through Items'!N12 -> 0.02832374976 | J18: 0.02832374976
A19: Pass-Through Others (B5) | B19: HB, SEC, UNC | C19: CRC2B
A20: Allowed Pass-Through Items (B): [B = B1 + B2 + B3 +B4 + B5 + B6 + B7] | B20: PT | C20: CRC2B | D20: =SUM(D13:D19) -> -0.9743962251 | E20: =SUM(E13:E19) -> -1.538312166 | F20: -0.684918495 | G20: -4.318842349 | H20: -5.887202058 | I20: -6.756226466 | J20: -6.756226466 | K20: B = B1 + B2 + B3 +B4 + B5 + B6 + B7
A21: Broad Measure of Customer Service incentive (C1) | B21: BM | C21: CRC2C | D21: ='[3]R7 Output Incentives'!I6 -> 3.985298775 | E21: ='[3]R7 Output Incentives'!J6 -> 4.144781379 | F21: ='[3]R7 Output Incentives'!K6 -> 4.067080231 | G21: ='[3]R7 Output Incentives'!L6 -> 4.205741938 | H21: ='[3]R7 Output Incentives'!M6 -> 4.336264963 | I21: ='[3]R7 Output Incentives'!N6 -> 4.474039268 | J21: =I21 -> 4.474039268
A22: Quality of Service incentive (C2) | B22: IQ | C22: CRC2D | D22: ='[3]R7 Output Incentives'!I7 -> 5.820555668 | E22: ='[3]R7 Output Incentives'!J7 -> 4.212119855 | F22: ='[3]R7 Output Incentives'!K7 -> 1.449889536 | G22: ='[3]R7 Output Incentives'!L7 -> 1.689138132 | H22: ='[3]R7 Output Incentives'!M7 -> 0.9484274939 | I22: ='[3]R7 Output Incentives'!N7 -> -0.03892646875 | J22: =I22 -> -0.03892646875
A23: Connections Engagement incentive (C3) | B23: ICE | C23: CRC2E | D23: ='[3]R7 Output Incentives'!I8 -> 0 | E23: ='[3]R7 Output Incentives'!J8 -> 0 | F23: ='[3]R7 Output Incentives'!K8 -> 0 | G23: ='[3]R7 Output Incentives'!L8 -> 0 | H23: ='[3]R7 Output Incentives'!M8 -> 0 | I23: ='[3]R7 Output Incentives'!N8 -> 0 | J23: 0
A24: Time to Connect incentive (C4) | B24: TTC | C24: CRC2F | D24: ='[3]R7 Output Incentives'!I9 -> 1.203989666 | E24: ='[3]R7 Output Incentives'!J9 -> 1.031809046 | F24: ='[3]R7 Output Incentives'!K9 -> 1.346106291 | G24: ='[3]R7 Output Incentives'!L9 -> 1.392 | H24: ='[3]R7 Output Incentives'!M9 -> 1.4352 | I24: ='[3]R7 Output Incentives'!N9 -> 1.4808 | J24: 1.4808
A25: Losses Discretionary Reward incentive (C5) | B25: LDR | C25: CRC2G | D25: ='[3]R7 Output Incentives'!I10 -> 0.04484 | E25: ='[3]R7 Output Incentives'!J10 -> 0 | F25: ='[3]R7 Output Incentives'!K10 -> 0.04784 | G25: ='[3]R7 Output Incentives'!L10 -> 0 | H25: ='[3]R7 Output Incentives'!M10 -> 0.05088 | I25: ='[3]R7 Output Incentives'!N10 -> 0 | J25: 0
A26: Network Innovation Allowance (C6) | B26: NIA | C26: CRC2H | D26: ='[3]R14 Allowed Revenue Summary'!I$11 -> 1.286968148 | E26: ='[3]R14 Allowed Revenue Summary'!J$11 -> 1.211968148 | F26: ='[3]R14 Allowed Revenue Summary'!K$11 -> 1.090771333 | G26: ='[3]R14 Allowed Revenue Summary'!L$11 -> 0.9816941995 | H26: ='[3]R14 Allowed Revenue Summary'!M$11 -> 0.7853553596 | I26: ='[3]R14 Allowed Revenue Summary'!N$11 -> 0.5497487517 | J26: 0.5497487517
A27: Low Carbon Network Fund - Tier 1 unrecoverable (C7) | B27: LCN1 | C27: CRC2J | D27: 0 | E27: 0 | F27: 0 | G27: 0 | H27: 0 | I27: 0 | J27: 0
A28: Low Carbon Network Fund - Tier 2 & Discretionary Funding (C7) | B28: LCN2 | C28: CRC2J | D28: ='[3]R14 Allowed Revenue Summary'!I$12 -> 0.6058722788 | E28: ='[3]R14 Allowed Revenue Summary'!J$12 -> 0.1683722788 | F28: ='[3]R14 Allowed Revenue Summary'!K$12 -> 0.1683722788 | G28: ='[3]R14 Allowed Revenue Summary'!L$12 -> 0.1683722788 | H28: ='[3]R14 Allowed Revenue Summary'!M$12 -> 0.1683722788 | I28: ='[3]R14 Allowed Revenue Summary'!N$12 -> 0.1683722788 | J28: 0.1683722788
A29: Connection Guaranteed Standards Systems & Processes penalty (C8) | B29: AUM, CGSRA | C29: CRC2K-L | D29: 0 | E29: 0 | F29: 0 | G29: 0 | H29: 0 | I29: 0 | J29: 0
A30: Residual Losses and Growth Incentive - Losses (C9) | B30: PPL | C30: CRC2M | D30: ='[3]R14 Allowed Revenue Summary'!I$15 -> 0 | E30: ='[3]R14 Allowed Revenue Summary'!J$15 -> 0 | F30: ='[3]R14 Allowed Revenue Summary'!K$15 -> 0 | G30: ='[3]R14 Allowed Revenue Summary'!L$15 -> 0 | H30: ='[3]R14 Allowed Revenue Summary'!M$15 -> 0 | I30: ='[3]R14 Allowed Revenue Summary'!N$15 -> 0 | J30: ='[3]R14 Allowed Revenue Summary'!O$15 -> 0
A31: Residual Losses and Growth Incentive - Growth (C9) | B31: GTA | C31: CRC2M | D31: 0 | E31: 0 | F31: 0 | G31: 0 | H31: 0 | I31: 0 | J31: 0
A32: Incentive Revenue and Other Adjustments (C): [C = C1 + C2 + C3 + C4 + C5 + C6 + C7 + C8 + C9] | D32: =SUM(D21:D31) -> 12.94752453 | E32: 10.76905071 | F32: 8.17005967 | G32: 8.436946548 | H32: 7.724500096 | I32: 6.63403383 | J32: 6.63403383 | K32: C = C1 + C2 + C3 + C4 + C5 + C6 + C7 + C8 + C9
A33: Correction Factor (D) | B33: -K | C33: CRC2A | D33: =-'[3]R14 Allowed Revenue Summary'!I$17 -> 2.915948859 | E33: =-'[3]R14 Allowed Revenue Summary'!J$17 -> -12.62015825 | F33: =-'[3]R14 Allowed Revenue Summary'!K$17 -> -7.071032949 | G33: =-'[3]R14 Allowed Revenue Summary'!L$17 -> -14.7808816 | H33: =-'[3]R14 Allowed Revenue Summary'!M$17 -> -4.92555588e-07 | I33: =-'[3]R14 Allowed Revenue Summary'!N$17 -> 0 | J33: =-'[3]R14 Allowed Revenue Summary'!O$17 -> 0
A34: Total allowed Revenue (E): [E = A + B + C + D] | B34: AR | C34: CRC2A | D34: =D12+D20+D32+D33 -> 335.7008777 | E34: =E12+E20+E32+E33 -> 333.0132331 | F34: 352.1833195 | G34: 348.1452231 | H34: 371.6786624 | I34: 380.8848787 | J34: 421.5056698 | K34: E = A + B + C + D
A35: Other 1. Excluded services - Top-up, standby, and enhanced system security (F1) (see note 1) | B35: DRS4 | C35: CRC5C | D35: 0 | E35: 0 | F35: 0 | G35: 0 | H35: 0 | I35: 0 | J35: 0
A36: Other 2. Excluded services - Revenue protection services (F2) (see note 1) | B36: DRS5 | C36: CRC5C | D36: 0 | E36: 0 | F36: 0 | G36: 0 | H36: 0 | I36: 0 | J36: 0
A37: Other 3. Excluded services - Miscellaneous (F3) (see note 1) | B37: DRS9 | C37: CRC5C | D37: 0 | E37: 0 | F37: 0 | G37: 0 | H37: 0 | I37: 0 | J37: 0
A38: Other 4. - blank or if required please provide description (F4) | D38: 0 | E38: 0 | F38: 0 | G38: 0 | H38: 0 | I38: 0 | J38: 0
A39: Other 5. - blank or if required please provide description (F5) | D39: 0 | E39: 0 | F39: 0 | G39: 0 | H39: 0 | I39: 0 | J39: 0
A40: Total Other Revenue to be recovered by Use of System Charges (F): [F = F1 + F2 + F3 + F4 +F5] | D40: =SUM(D35:D39) -> 0 | E40: =SUM(E35:E39) -> 0 | F40: 0 | G40: 0 | H40: 0 | I40: 0 | J40: 0 | K40: F = F1 + F2 + F3 + F4 +F5
A41: Total Revenue for Use of System Charges (G): [G=E + F] | D41: =D34+D40 -> 335.7008777 | E41: =E34+E40 -> 333.0132331 | F41: 352.1833195 | G41: 348.1452231 | H41: 371.6786624 | I41: 380.8848787 | J41: 421.5056698 | K41: G = E + F
A42: 1. Revenue raised outside CDCM - EDCM and Certain Interconnector Revenue (H1) | D42: =[4]Table1!F$41 -> 5.956939418 | E42: =[4]Table1!G$41 -> 5.690316627 | F42: =5419028.96352836/1000000 -> 5.419028964 | G42: =G41/F41*F42 -> 5.356894955 | H42: =H41/G41*G42 -> 5.719002931 | I42: 5.86065857 | J42: 6.485688862
A43: 2. Revenue raised outside CDCM - Voluntary under-recovery (H2)
A44: 3. Revenue raised outside CDCM - blank or if required please provide description (H3)
A45: 4. Revenue raised outside CDCM - blank or if required please provide description (H4)
A46: Total Revenue to be raised outside the CDCM (H): [H = H1 + H2 + H3 + H4] | D46: =D42+D43+D44+D45 -> 5.956939418 | E46: =E42+E43+E44+E45 -> 5.690316627 | F46: 5.419028964 | G46: 5.356894955 | H46: 5.719002931 | I46: 5.86065857 | J46: 6.485688862 | K46: H = H1 + H2 + H3 + H4
A47: Latest forecast of CDCM Revenue (I): [I = G - H] | D47: =D41-D46 -> 329.7439383 | E47: 327.3229165 | F47: 346.7642906 | G47: 342.7883282 | H47: 365.9596594 | I47: 375.0242202 | J47: 415.0199809 | K47: I = G - H
A48: CDCM Revenue Used in Charging Model [Equal to I] | D48: =D47 -> 329.7439383 | E48: =E47 -> 327.3229165 | F48: 346.7642906 | G48: 342.7883282 | H48: 365.9596594 | I48: 375.0242202 | J48: 415.0199809 | K48: Equal to I
A49: Final Collected Revenue Forecast (J) | D49: ='[3]R5 Input Page'!I$47 -> 342.5071603 | E49: ='[3]R5 Input Page'!J$47 -> 347.220155 | F49: ='[3]R5 Input Page'!K$47 -> 352.18332 | G49: ='[3]R5 Input Page'!L$47 -> 348.1452231 | H49: ='[3]R5 Input Page'!M$47 -> 371.6786624 | I49: ='[3]R5 Input Page'!N$47 -> 380.8848787 | J49: =J41 -> 421.5056698
A50: Forecast Over / (Under) Recovery [being (J - F - E + H2] | D50: =D49-D40-D34+D43 -> 6.806282544 | E50: 14.20692196 | F50: 4.73429111e-07 | G50: 0 | H50: -5.684341886e-14 | I50: -1.136868377e-13 | J50: 0 | K50: J - F - E + H2
A51: Forecast overall percentage change to Allowed Revenue (K) | E51: =E34/D34-1 -> -0.008006069788 | F51: =F34/E34-1 -> 0.05756553956 | G51: -0.01146589346 | H51: 0.06759661688 | I51: 0.02476928944 | J51: 0.1066484738
A52: Overall % change to Use of System Charges effective 1st April of Regulatory Year to balance (L) | E52: =E49/D49-1 -> 0.01376028096 | F52: 0.01429400018 | G52: -0.01146589479 | H52: 0.06759661688 | I52: 0.02476928944 | J52: 0.1066484738
A53: Note 1: Cost categories associated with excluded services should only be populated if the Company recovers the costs of providing these services from Use of System Charges

Sheet Smoothed Input Details
A1: DNO | B1: =+'CDCM Forecast Data'!E3 -> WPD South West
A2: Charges for (year Y) | B2: =+'CDCM Forecast Data'!E11 -> 2019/20
A4: Year charges are set (year Y - 2) | B4: =+'CDCM Forecast Data'!C11 -> 2017/18
A6: Year to which input data relates
A7: Year Y - 3 | B7: 2016/17
A8: Year Y - 4 | B8: 2015/16
A9: Year Y - 5 | B9: 2014/15
A11: 1041 - load profile for demand users - coincidence factors
A12: Charges for year Y are set in Y-2 using historical data for the previous three years
B14: Y - 5 | C14: Y - 4 | D14: Y - 3 | E14: Information to be used calculating tariffs in year t
A15: Domestic Unrestricted | B15: ='[5]South West'!F15 -> 0.9208738555 | C15: ='[5]South West'!G15 -> 0.9302105079 | D15: ='[5]South West'!H15 -> 0.8600074206 | E15: =AVERAGE(B15:D15) -> 0.9036972613
A16: Domestic Two Rate | B16: ='[5]South West'!F16 -> 0.3357313738 | C16: ='[5]South West'!G16 -> 0.3688387313 | D16: ='[5]South West'!H16 -> 0.3409086211 | E16: =AVERAGE(B16:D16) -> 0.3484929087
A17: Domestic Off Peak (related MPAN) | B17: ='[5]South West'!F17 -> 0 | C17: ='[5]South West'!G17 -> 0 | D17: ='[5]South West'!H17 -> 0
A18: Small Non Domestic Unrestricted | B18: ='[5]South West'!F18 -> 0.6109335414 | C18: ='[5]South West'!G18 -> 0.6340872209 | D18: ='[5]South West'!H18 -> 0.7270749834 | E18: =AVERAGE(B18:D18) -> 0.6573652486
A19: Small Non Domestic Two Rate | B19: ='[5]South West'!F19 -> 0.6019063129 | C19: ='[5]South West'!G19 -> 0.5472064096 | D19: ='[5]South West'!H19 -> 0.7434824159 | E19: =AVERAGE(B19:D19) -> 0.6308650462
A20: Small Non Domestic Off Peak (related MPAN) | B20: ='[5]South West'!F20 -> 0 | C20: ='[5]South West'!G20 -> 0 | D20: ='[5]South West'!H20 -> 0
A21: LV Medium Non-Domestic | B21: ='[5]South West'!E21 -> 0.8576926793 | C21: ='[5]South West'!F21 -> 0.8484600574 | D21: ='[5]South West'!G21 -> 0.8695012248 | E21: =AVERAGE(B21:D21) -> 0.8585513205
A22: LV Sub Medium Non-Domestic | B22: ='[5]South West'!E22 -> 0.8219354729 | C22: ='[5]South West'!F22 -> 0.838004055 | D22: ='[5]South West'!G22 -> 0.8547547238 | E22: 0.8382314172
A23: HV Medium Non-Domestic | B23: ='[5]South West'!E23 -> 0.7829041186 | C23: ='[5]South West'!F23 -> 0.6521480353 | D23: ='[5]South West'!G23 -> 0.5546101865 | E23: 0.6632207801
A24: LV Network Domestic | B24: ='[5]South West'!F24 -> 0.8289312374 | C24: ='[5]South West'!G24 -> 0.8420029474 | D24: ='[5]South West'!H24 -> 0.7784421537 | E24: =AVERAGE(B24:D24) -> 0.8164587795
A25: LV Network Non-Domestic Non-CT | B25: ='[5]South West'!F25 -> 0.6091186345 | C25: ='[5]South West'!G25 -> 0.616620001 | D25: ='[5]South West'!H25 -> 0.7303736661 | E25: 0.6520374339
A26: LV HH Metered | B26: ='[5]South West'!E26 -> 0.8172081953 | C26: ='[5]South West'!F26 -> 0.8006203125 | D26: ='[5]South West'!G26 -> 0.7920351771 | E26: 0.803287895
A27: LV Sub HH Metered | B27: ='[5]South West'!E27 -> 0.7706309414 | C27: ='[5]South West'!F27 -> 0.7716390054 | D27: ='[5]South West'!G27 -> 0.7551882067 | E27: 0.7658193845
A28: HV HH Metered | B28: ='[5]South West'!F28 -> 0.8230904591 | C28: ='[5]South West'!G28 -> 0.7873879093 | D28: ='[5]South West'!H28 -> 0.8481773495 | E28: 0.819551906
A29: NHH UMS category A | B29: ='[5]South West'!F29 -> 1 | C29: ='[5]South West'!G29 -> 1 | D29: ='[5]South West'!H29 -> 1 | E29: =AVERAGE(B29:D29) -> 1
A30: NHH UMS category B | B30: ='[5]South West'!F30 -> 0.951627907 | C30: ='[5]South West'!G30 -> 1 | D30: ='[5]South West'!H30 -> 1 | E30: 0.983875969
A31: NHH UMS category C | B31: ='[5]South West'!F31 -> 0.6422267481 | C31: ='[5]South West'!G31 -> 0.9992907801 | D31: ='[5]South West'!H31 -> 1 | E31: =AVERAGE(B31:D31) -> 0.8805058428
A32: NHH UMS category D | B32: ='[5]South West'!F32 -> 0 | C32: ='[5]South West'!G32 -> 0 | D32: ='[5]South West'!H32 -> 0 | E32: 0
A33: LV UMS (Pseudo HH Metered) | B33: ='[5]South West'!F33 -> 0.9642686787 | C33: ='[5]South West'!G33 -> 0.9671576329 | D33: ='[5]South West'!H33 -> 0.9654796512 | E33: 0.9656353209
A37: 1041 - load profile for demand users - load factors
A38: Charges for year Y are set in Y-2 using historical data for the previous three years
B41: Y - 5 | C41: Y - 4 | D41: Y - 3 | E41: Information to be used calculating tariffs in year t
A42: Domestic Unrestricted | B42: ='[5]South West'!F42 -> 0.410787843 | C42: ='[5]South West'!G42 -> 0.4148821669 | D42: ='[5]South West'!H42 -> 0.4048726995 | E42: =AVERAGE(B42:D42) -> 0.4101809031
A43: Domestic Two Rate | B43: ='[5]South West'!F43 -> 0.2492703123 | C43: ='[5]South West'!G43 -> 0.2627629067 | D43: ='[5]South West'!H43 -> 0.2615623215 | E43: 0.2578651801
A44: Domestic Off Peak (related MPAN) | B44: ='[5]South West'!F44 -> 0.1378751086 | C44: ='[5]South West'!G44 -> 0.1451890333 | D44: ='[5]South West'!H44 -> 0.1460657267 | E44: 0.1430432895
A45: Small Non Domestic Unrestricted | B45: ='[5]South West'!F45 -> 0.3887980998 | C45: ='[5]South West'!G45 -> 0.3901745883 | D45: ='[5]South West'!H45 -> 0.3889966427 | E45: 0.3893231103
A46: Small Non Domestic Two Rate | B46: ='[5]South West'!F46 -> 0.4465746151 | C46: ='[5]South West'!G46 -> 0.3837676741 | D46: ='[5]South West'!H46 -> 0.4922887576 | E46: 0.4408770156
A47: Small Non Domestic Off Peak (related MPAN) | B47: ='[5]South West'!F47 -> 0.1493744913 | C47: ='[5]South West'!G47 -> 0.1567380229 | D47: ='[5]South West'!H47 -> 0.1616313974 | E47: 0.1559146372
A48: LV Medium Non-Domestic | B48: ='[5]South West'!E48 -> 0.5909536406 | C48: ='[5]South West'!F48 -> 0.5947713045 | D48: ='[5]South West'!G48 -> 0.5950795788 | E48: 0.593601508
A49: LV Sub Medium Non-Domestic | B49: ='[5]South West'!E49 -> 0.5926675879 | C49: ='[5]South West'!F49 -> 0.6045606117 | D49: ='[5]South West'!G49 -> 0.6030419676 | E49: 0.6000900558
A50: HV Medium Non-Domestic | B50: ='[5]South West'!E50 -> 0.5067394777 | C50: ='[5]South West'!F50 -> 0.4595669335 | D50: ='[5]South West'!G50 -> 0.3984188511 | E50: 0.4549084208
A51: LV Network Domestic | B51: ='[5]South West'!F51 -> 0.3826190122 | C51: ='[5]South West'!G51 -> 0.388209716 | D51: ='[5]South West'!H51 -> 0.3796914677 | E51: =AVERAGE(B51:D51) -> 0.3835067319
A52: LV Network Non-Domestic Non-CT | B52: ='[5]South West'!F52 -> 0.3942237058 | C52: ='[5]South West'!G52 -> 0.3831620626 | D52: ='[5]South West'!H52 -> 0.4036447679 | E52: 0.3936768454
A53: LV HH Metered | B53: ='[5]South West'!E53 -> 0.5887297487 | C53: ='[5]South West'!F53 -> 0.5943711435 | D53: ='[5]South West'!G53 -> 0.5796400814 | E53: 0.5875803245
A54: LV Sub HH Metered | B54: ='[5]South West'!E54 -> 0.6053694158 | C54: ='[5]South West'!F54 -> 0.6148051723 | D54: ='[5]South West'!G54 -> 0.6143769396 | E54: 0.6115171759
A55: HV HH Metered | B55: ='[5]South West'!F55 -> 0.7304466798 | C55: ='[5]South West'!G55 -> 0.7268564566 | D55: ='[5]South West'!H55 -> 0.7393601969 | E55: 0.7322211111
A56: NHH UMS category A | B56: ='[5]South West'!F56 -> 1 | C56: ='[5]South West'!G56 -> 1 | D56: ='[5]South West'!H56 -> 1 | E56: 1
A57: NHH UMS category B | B57: ='[5]South West'!F57 -> 0.4822935648 | C57: ='[5]South West'!G57 -> 0.4704126596 | D57: ='[5]South West'!H57 -> 0.4743364958 | E57: 0.4756809068
A58: NHH UMS category C | B58: ='[5]South West'!F58 -> 0.2478081494 | C58: ='[5]South West'!G58 -> 0.2459420497 | D58: ='[5]South West'!H58 -> 0.275077873 | E58: 0.2562760241
A59: NHH UMS category D | B59: ='[5]South West'!F59 -> 0.5152430348 | C59: ='[5]South West'!G59 -> 0.5153117471 | D59: ='[5]South West'!H59 -> 0.5153117471 | E59: 0.515288843
A60: LV UMS (Pseudo HH Metered) | B60: ='[5]South West'!F60 -> 0.4548428481 | C60: ='[5]South West'!G60 -> 0.4521507224 | D60: ='[5]South West'!H60 -> 0.4703630636 | E60: 0.459118878
A64: 1061 - Average split of rate 1 units by distribution time band
A65: Charges for year Y are set in Y-2 using historical data for the previous three years
B68: Y - 5 | E68: Y - 4 | H68: Y - 3 | K68: Information to be used calculating tariffs in year t
B69: Red | C69: Amber | D69: Green | E69: Red | F69: Amber | G69: Green | H69: Red | I69: Amber | J69: Green | K69: Red | L69: Amber | M69: Green
A70: Domestic Unrestricted | B70: ='[5]South West'!N70 -> 0.08865128497 | C70: ='[5]South West'!O70 -> 0.4625663278 | D70: ='[5]South West'!P70 -> 0.4487823872 | E70: ='[5]South West'!Q70 -> 0.08893565743 | F70: ='[5]South West'!R70 -> 0.4620328817 | G70: ='[5]South West'!S70 -> 0.4490314609 | H70: ='[5]South West'!T70 -> 0.08807827575 | I70: ='[5]South West'!U70 -> 0.4592500284 | J70: ='[5]South West'!V70 -> 0.4526716958 | K70: =AVERAGE(B70,E70,H70) -> 0.08855507272 | L70: 0.4612830793 | M70: 0.450161848
A71: Domestic Two Rate | B71: ='[5]South West'!N71 -> 0.1071165394 | C71: ='[5]South West'!O71 -> 0.5402955758 | D71: ='[5]South West'!P71 -> 0.3525878848 | E71: ='[5]South West'!Q71 -> 0.1082316902 | F71: ='[5]South West'!R71 -> 0.5424252216 | G71: ='[5]South West'!S71 -> 0.3493430882 | H71: ='[5]South West'!T71 -> 0.106975287 | I71: ='[5]South West'!U71 -> 0.5413211709 | J71: ='[5]South West'!V71 -> 0.3517035421 | K71: =AVERAGE(B71,E71,H71) -> 0.1074411722 | L71: =AVERAGE(C71,F71,I71) -> 0.5413473228 | M71: =AVERAGE(D71,G71,J71) -> 0.351211505
A72: Domestic Off Peak (related MPAN) | B72: ='[5]South West'!N72 -> 0.001318243698 | C72: ='[5]South West'!O72 -> 0.1077452085 | D72: ='[5]South West'!P72 -> 0.8909365478 | E72: ='[5]South West'!Q72 -> 0.001389199354 | F72: ='[5]South West'!R72 -> 0.1089264998 | G72: ='[5]South West'!S72 -> 0.8896843009 | H72: ='[5]South West'!T72 -> 0.001329896949 | I72: ='[5]South West'!U72 -> 0.1099645599 | J72: ='[5]South West'!V72 -> 0.8887055431 | K72: 0.001345780001 | L72: 0.1088787561 | M72: 0.8897754639
A73: Small Non Domestic Unrestricted | B73: ='[5]South West'!N73 -> 0.06250799166 | C73: ='[5]South West'!O73 -> 0.5637538597 | D73: ='[5]South West'!P73 -> 0.3737381486 | E73: ='[5]South West'!Q73 -> 0.06303418139 | F73: ='[5]South West'!R73 -> 0.5631648706 | G73: ='[5]South West'!S73 -> 0.3738009481 | H73: ='[5]South West'!T73 -> 0.06294600443 | I73: ='[5]South West'!U73 -> 0.5650266523 | J73: ='[5]South West'!V73 -> 0.3720273433 | K73: 0.0628293925 | L73: 0.5639817942 | M73: 0.3731888133
A74: Small Non Domestic Two Rate | B74: ='[5]South West'!N74 -> 0.08084832656 | C74: ='[5]South West'!O74 -> 0.6317501869 | D74: ='[5]South West'!P74 -> 0.2874014866 | E74: ='[5]South West'!Q74 -> 0.08285609845 | F74: ='[5]South West'!R74 -> 0.6279021775 | G74: ='[5]South West'!S74 -> 0.289241724 | H74: ='[5]South West'!T74 -> 0.08369575298 | I74: ='[5]South West'!U74 -> 0.6241738735 | J74: ='[5]South West'!V74 -> 0.2921303735 | K74: 0.082466726 | L74: 0.6279420793 | M74: 0.2895911947
A75: Small Non Domestic Off Peak (related MPAN) | B75: ='[5]South West'!N75 -> 0.002151015161 | C75: ='[5]South West'!O75 -> 0.1171604897 | D75: ='[5]South West'!P75 -> 0.8806884951 | E75: ='[5]South West'!Q75 -> 0.002216407474 | F75: ='[5]South West'!R75 -> 0.1201730056 | G75: ='[5]South West'!S75 -> 0.877610587 | H75: ='[5]South West'!T75 -> 0.002140844315 | I75: ='[5]South West'!U75 -> 0.1199730103 | J75: ='[5]South West'!V75 -> 0.8778861454 | K75: 0.002169422316 | L75: 0.1191021685 | M75: 0.8787284092
A76: LV Medium Non-Domestic | B76: ='[5]South West'!N76 -> 0.08282448855 | C76: ='[5]South West'!O76 -> 0.6204212523 | D76: ='[5]South West'!P76 -> 0.2967542591 | E76: ='[5]South West'!Q76 -> 0.08330982564 | F76: ='[5]South West'!R76 -> 0.6205837259 | G76: ='[5]South West'!S76 -> 0.2961064485 | H76: ='[5]South West'!T76 -> 0.08287215119 | I76: ='[5]South West'!U76 -> 0.6206666513 | J76: ='[5]South West'!V76 -> 0.2964611975 | K76: 0.08300215513 | L76: 0.6205572098 | M76: 0.296440635
A77: LV Sub Medium Non-Domestic | B77: ='[5]South West'!N77 -> 0.08163547511 | C77: ='[5]South West'!O77 -> 0.617635887 | D77: ='[5]South West'!P77 -> 0.3007286379 | E77: ='[5]South West'!Q77 -> 0.08268213406 | F77: ='[5]South West'!R77 -> 0.6188651147 | G77: ='[5]South West'!S77 -> 0.2984527512 | H77: ='[5]South West'!T77 -> 0.08278023986 | I77: ='[5]South West'!U77 -> 0.6204577259 | J77: ='[5]South West'!V77 -> 0.2967620342 | K77: 0.08236594968 | L77: 0.6189862426 | M77: 0.2986478077
A78: HV Medium Non-Domestic | B78: ='[5]South West'!N78 -> 0.08182656195 | C78: ='[5]South West'!O78 -> 0.6360159363 | D78: ='[5]South West'!P78 -> 0.2821575017 | E78: ='[5]South West'!Q78 -> 0.08102862287 | F78: ='[5]South West'!R78 -> 0.6479570455 | G78: ='[5]South West'!S78 -> 0.2710143316 | H78: ='[5]South West'!T78 -> 0.07785407256 | I78: ='[5]South West'!U78 -> 0.6564993106 | J78: ='[5]South West'!V78 -> 0.2656466169 | K78: 0.08023641913 | L78: 0.6468240975 | M78: 0.2729394834
A82: 1062 - Average split of rate 2 units by distribution time band
A83: Charges for year Y are set in Y-2 using historical data for the previous three years
B86: Y - 5 | E86: Y - 4 | H86: Y - 3 | K86: Information to be used calculating tariffs in year t
B87: Red | C87: Amber | D87: Green | E87: Red | F87: Amber | G87: Green | H87: Red | I87: Amber | J87: Green | K87: Red | L87: Amber | M87: Green
A88: Domestic Two Rate | B88: ='[5]South West'!N88 -> 0 | C88: ='[5]South West'!O88 -> 0.02066819684 | D88: ='[5]South West'!P88 -> 0.9793318032 | E88: ='[5]South West'!Q88 -> 0 | F88: ='[5]South West'!R88 -> 0.02162457948 | G88: ='[5]South West'!S88 -> 0.9783754205 | H88: ='[5]South West'!T88 -> 0 | I88: ='[5]South West'!U88 -> 0.02120785836 | J88: ='[5]South West'!V88 -> 0.9787921416 | K88: =AVERAGE(B88,E88,H88) -> 0 | L88: 0.02116687823 | M88: 0.9788331218
A89: Small Non Domestic Two Rate | B89: ='[5]South West'!N89 -> 0 | C89: ='[5]South West'!O89 -> 0.02615517998 | D89: ='[5]South West'!P89 -> 0.97384482 | E89: ='[5]South West'!Q89 -> 0 | F89: ='[5]South West'!R89 -> 0.02818228426 | G89: ='[5]South West'!S89 -> 0.9718177157 | H89: ='[5]South West'!T89 -> 0 | I89: ='[5]South West'!U89 -> 0.02787044249 | J89: ='[5]South West'!V89 -> 0.9721295575 | K89: 0 | L89: 0.02740263557 | M89: 0.9725973644
A90: LV Medium Non-Domestic | B90: ='[5]South West'!N90 -> 0 | C90: ='[5]South West'!O90 -> 0 | D90: ='[5]South West'!P90 -> 1 | E90: ='[5]South West'!Q90 -> 0 | F90: ='[5]South West'!R90 -> 0 | G90: ='[5]South West'!S90 -> 1 | H90: ='[5]South West'!T90 -> 0 | I90: ='[5]South West'!U90 -> 0 | J90: ='[5]South West'!V90 -> 1 | K90: 0 | L90: 0 | M90: 1
A91: LV Sub Medium Non-Domestic | B91: ='[5]South West'!N91 -> 0 | C91: ='[5]South West'!O91 -> 0 | D91: ='[5]South West'!P91 -> 1 | E91: ='[5]South West'!Q91 -> 0 | F91: ='[5]South West'!R91 -> 0 | G91: ='[5]South West'!S91 -> 1 | H91: ='[5]South West'!T91 -> 0 | I91: ='[5]South West'!U91 -> 0 | J91: ='[5]South West'!V91 -> 1 | K91: 0 | L91: 0 | M91: 1
A92: HV Medium Non-Domestic | B92: ='[5]South West'!N92 -> 0 | C92: ='[5]South West'!O92 -> 0 | D92: ='[5]South West'!P92 -> 1 | E92: ='[5]South West'!Q92 -> 0 | F92: ='[5]South West'!R92 -> 0 | G92: ='[5]South West'!S92 -> 1 | H92: ='[5]South West'!T92 -> 0 | I92: ='[5]South West'!U92 -> 0 | J92: ='[5]South West'!V92 -> 1 | K92: 0 | L92: 0 | M92: 1
A96: 1064. Average split of rate 1 units by special distribution time band
A97: Charges for year Y are set in Y-2 using historical data for the previous three years
B100: Y - 5 | E100: Y - 4 | H100: Y - 3 | K100: Information to be used calculating tariffs in year t
B101: Black | C101: Yellow | D101: Green | E101: Black | F101: Yellow | G101: Green | H101: Black | I101: Yellow | J101: Green | K101: Red | L101: Amber | M101: Green
A102: NHH UMS category A | B102: ='[5]South West'!N117 -> 0.01712328767 | C102: ='[5]South West'!O117 -> 0.4356164384 | D102: ='[5]South West'!P117 -> 0.547260274 | E102: ='[5]South West'!Q117 -> 0.01730418944 | F102: ='[5]South West'!R117 -> 0.4357923497 | G102: ='[5]South West'!S117 -> 0.5469034608 | H102: ='[5]South West'!T117 -> 0.01735159817 | I102: ='[5]South West'!U117 -> 0.4353881279 | J102: ='[5]South West'!V117 -> 0.547260274 | K102: =AVERAGE(B102,E102,H102) -> 0.01725969176 | L102: =AVERAGE(C102,F102,I102) -> 0.435598972 | M102: =AVERAGE(D102,G102,J102) -> 0.5471413363
A103: NHH UMS category B | B103: ='[5]South West'!N118 -> 0.0320294808 | C103: ='[5]South West'!O118 -> 0.1606062571 | D103: ='[5]South West'!P118 -> 0.8073642621 | E103: ='[5]South West'!Q118 -> 0.03297837866 | F103: ='[5]South West'!R118 -> 0.1471730951 | G103: ='[5]South West'!S118 -> 0.8198485263 | H103: ='[5]South West'!T118 -> 0.03333821649 | I103: ='[5]South West'!U118 -> 0.1474827442 | J103: ='[5]South West'!V118 -> 0.8191790393 | K103: 0.03278202532 | L103: 0.1517540321 | M103: 0.8154639426
A104: NHH UMS category C | B104: ='[5]South West'!N119 -> 0.05808582251 | C104: ='[5]South West'!O119 -> 0.2400809986 | D104: ='[5]South West'!P119 -> 0.7018331789 | E104: ='[5]South West'!Q119 -> 0.0588230756 | F104: ='[5]South West'!R119 -> 0.250234357 | G104: ='[5]South West'!S119 -> 0.6909425674 | H104: ='[5]South West'!T119 -> 0.05911132696 | I104: ='[5]South West'!U119 -> 0.2774191414 | J104: ='[5]South West'!V119 -> 0.6634695316 | K104: 0.05867340836 | L104: 0.255911499 | M104: 0.6854150927
A105: NHH UMS category D | B105: 0.002531353004 | C105: 0.6992210842 | D105: 0.2982475628 | E105: 0.002378703143 | F105: 0.6994109855 | G105: 0.2982103114 | H105: 0.00243781302 | I105: 0.7000893804 | J105: 0.2974728065 | K105: 0.002449289722 | L105: 0.6995738167 | M105: 0.2979768936
A109: 1069 - Peaking probabilities by network level
A110: Charges for year Y are set in Y-2 using historical data for the previous three years
B113: Y - 5 | F113: Y - 4 | J113: Y - 3 | N113: Information to be used calculating tariffs in year t
B114: Red | C114: Amber | D114: Green | E114: Black | F114: Red | G114: Amber | H114: Green | I114: Black | J114: Red | K114: Amber | L114: Green | M114: Black | N114: Red | O114: Amber | P114: Green | Q114: Black
A115: GSPs | B115: ='[5]South West'!R102 -> 1 | C115: ='[5]South West'!S102 -> 0 | D115: ='[5]South West'!T102 -> 0 | E115: ='[5]South West'!U102 -> 0.7646944948 | F115: ='[5]South West'!V102 -> 1 | G115: ='[5]South West'!W102 -> 0 | H115: ='[5]South West'!X102 -> 0 | I115: ='[5]South West'!Y102 -> 1 | J115: ='[5]South West'!Z102 -> 1 | K115: ='[5]South West'!AA102 -> 0 | L115: ='[5]South West'!AB102 -> 0 | M115: ='[5]South West'!AC102 -> 0.765365845 | N115: =AVERAGE(B115,F115,J115) -> 1 | O115: =AVERAGE(C115,G115,K115) -> 0 | P115: =AVERAGE(D115,H115,L115) -> 0 | Q115: =AVERAGE(E115,I115,M115) -> 0.8433534466
A116: 132kV | B116: ='[5]South West'!R103 -> 0.8590669123 | C116: ='[5]South West'!S103 -> 0.09121379064 | D116: ='[5]South West'!T103 -> 0.04971929707 | E116: ='[5]South West'!U103 -> 0.7613373345 | F116: ='[5]South West'!V103 -> 0.8816905595 | G116: ='[5]South West'!W103 -> 0.06929494726 | H116: ='[5]South West'!X103 -> 0.04901449322 | I116: ='[5]South West'!Y103 -> 0.8645733459 | J116: ='[5]South West'!Z103 -> 0.9237520542 | K116: ='[5]South West'!AA103 -> 0.07312287587 | L116: ='[5]South West'!AB103 -> 0.003125069957 | M116: ='[5]South West'!AC103 -> 0.6834166637 | N116: 0.888169842 | O116: 0.07787720459 | P116: 0.03395295342 | Q116: 0.7697757814
A117: 132kV/EHV | B117: ='[5]South West'!R104 -> 0.8590669123 | C117: ='[5]South West'!S104 -> 0.09121379064 | D117: ='[5]South West'!T104 -> 0.04971929707 | E117: ='[5]South West'!U104 -> 0.7613373345 | F117: ='[5]South West'!V104 -> 0.8816905595 | G117: ='[5]South West'!W104 -> 0.06929494726 | H117: ='[5]South West'!X104 -> 0.04901449322 | I117: ='[5]South West'!Y104 -> 0.8645733459 | J117: ='[5]South West'!Z104 -> 0.9237520542 | K117: ='[5]South West'!AA104 -> 0.07312287587 | L117: ='[5]South West'!AB104 -> 0.003125069957 | M117: ='[5]South West'!AC104 -> 0.6834166637 | N117: 0.888169842 | O117: 0.07787720459 | P117: 0.03395295342 | Q117: 0.7697757814
A118: EHV | B118: ='[5]South West'!R105 -> 0.6335519144 | C118: ='[5]South West'!S105 -> 0.2857063547 | D118: ='[5]South West'!T105 -> 0.08074173093 | E118: ='[5]South West'!U105 -> 0.5227699792 | F118: ='[5]South West'!V105 -> 0.6517447427 | G118: ='[5]South West'!W105 -> 0.2781721129 | H118: ='[5]South West'!X105 -> 0.0700831444 | I118: ='[5]South West'!Y105 -> 0.6138721268 | J118: ='[5]South West'!Z105 -> 0.6090510553 | K118: ='[5]South West'!AA105 -> 0.3234923815 | L118: ='[5]South West'!AB105 -> 0.06745656321 | M118: ='[5]South West'!AC105 -> 0.3984049635 | N118: 0.6314492374 | O118: 0.295790283 | P118: 0.07276047951 | Q118: 0.5116823565
A119: EHV/HV | B119: ='[5]South West'!R106 -> 0.6335519144 | C119: ='[5]South West'!S106 -> 0.2857063547 | D119: ='[5]South West'!T106 -> 0.08074173093 | E119: ='[5]South West'!U106 -> 0.5227699792 | F119: ='[5]South West'!V106 -> 0.6517447427 | G119: ='[5]South West'!W106 -> 0.2781721129 | H119: ='[5]South West'!X106 -> 0.0700831444 | I119: ='[5]South West'!Y106 -> 0.6138721268 | J119: ='[5]South West'!Z106 -> 0.6090510553 | K119: ='[5]South West'!AA106 -> 0.3234923815 | L119: ='[5]South West'!AB106 -> 0.06745656321 | M119: ='[5]South West'!AC106 -> 0.3984049635 | N119: 0.6314492374 | O119: 0.295790283 | P119: 0.07276047951 | Q119: 0.5116823565
A120: 132kV/HV | B120: ='[5]South West'!R107 -> 0.8590669123 | C120: ='[5]South West'!S107 -> 0.09121379064 | D120: ='[5]South West'!T107 -> 0.04971929707 | E120: ='[5]South West'!U107 -> 0.7613373345 | F120: ='[5]South West'!V107 -> 0.8816905595 | G120: ='[5]South West'!W107 -> 0.06929494726 | H120: ='[5]South West'!X107 -> 0.04901449322 | I120: ='[5]South West'!Y107 -> 0.8645733459 | J120: ='[5]South West'!Z107 -> 0.9237520542 | K120: ='[5]South West'!AA107 -> 0.07312287587 | L120: ='[5]South West'!AB107 -> 0.003125069957 | M120: ='[5]South West'!AC107 -> 0.6834166637 | N120: 0.888169842 | O120: 0.07787720459 | P120: 0.03395295342 | Q120: 0.7697757814
A121: HV | B121: ='[5]South West'!R108 -> 0.6335519144 | C121: ='[5]South West'!S108 -> 0.2857063547 | D121: ='[5]South West'!T108 -> 0.08074173093 | E121: ='[5]South West'!U108 -> 0.5227699792 | F121: ='[5]South West'!V108 -> 0.6517447427 | G121: ='[5]South West'!W108 -> 0.2781721129 | H121: ='[5]South West'!X108 -> 0.0700831444 | I121: ='[5]South West'!Y108 -> 0.6138721268 | J121: ='[5]South West'!Z108 -> 0.6090510553 | K121: ='[5]South West'!AA108 -> 0.3234923815 | L121: ='[5]South West'!AB108 -> 0.06745656321 | M121: ='[5]South West'!AC108 -> 0.3984049635 | N121: 0.6314492374 | O121: 0.295790283 | P121: 0.07276047951 | Q121: 0.5116823565
A122: HV/LV | B122: ='[5]South West'!R109 -> 0.6335519144 | C122: ='[5]South West'!S109 -> 0.2857063547 | D122: ='[5]South West'!T109 -> 0.08074173093 | E122: ='[5]South West'!U109 -> 0.5227699792 | F122: ='[5]South West'!V109 -> 0.6517447427 | G122: ='[5]South West'!W109 -> 0.2781721129 | H122: ='[5]South West'!X109 -> 0.0700831444 | I122: ='[5]South West'!Y109 -> 0.6138721268 | J122: ='[5]South West'!Z109 -> 0.6090510553 | K122: ='[5]South West'!AA109 -> 0.3234923815 | L122: ='[5]South West'!AB109 -> 0.06745656321 | M122: ='[5]South West'!AC109 -> 0.3984049635 | N122: 0.6314492374 | O122: 0.295790283 | P122: 0.07276047951 | Q122: 0.5116823565
A123: LV circuits | B123: ='[5]South West'!R110 -> 0.6335519144 | C123: ='[5]South West'!S110 -> 0.2857063547 | D123: ='[5]South West'!T110 -> 0.08074173093 | E123: ='[5]South West'!U110 -> 0.5227699792 | F123: ='[5]South West'!V110 -> 0.6517447427 | G123: ='[5]South West'!W110 -> 0.2781721129 | H123: ='[5]South West'!X110 -> 0.0700831444 | I123: ='[5]South West'!Y110 -> 0.6138721268 | J123: ='[5]South West'!Z110 -> 0.6090510553 | K123: ='[5]South West'!AA110 -> 0.3234923815 | L123: ='[5]South West'!AB110 -> 0.06745656321 | M123: ='[5]South West'!AC110 -> 0.3984049635 | N123: 0.6314492374 | O123: 0.295790283 | P123: 0.07276047951 | Q123: 0.5116823565

Sheet Mat of App
B3: 1025. Matrix of applicability of LV service models to tariffs with fixed charges
C5: ='CDCM Forecast Data'!$E$11 -> 2019/20 | K5: ='CDCM Forecast Data'!$F$11 -> 2020/21 | S5: ='CDCM Forecast Data'!$G$11 -> 2021/22 | AA5: ='CDCM Forecast Data'!$H$11 -> 2022/23 | AI5: ='CDCM Forecast Data'!$I$11 -> 2023/24
C6: LV service model 1 | D6: LV service model 2 | E6: LV service model 3 | F6: LV service model 4 | G6: LV service model 5 | H6: LV service model 6 | I6: LV service model 7 | J6: LV service model 8 | K6: LV service model 1 | L6: LV service model 2 | M6: LV service model 3 | N6: LV service model 4 | O6: LV service model 5 | P6: LV service model 6 | Q6: LV service model 7 | R6: LV service model 8 | S6: LV service model 1 | T6: LV service model 2 | U6: LV service model 3 | V6: LV service model 4 | W6: LV service model 5 | X6: LV service model 6 | Y6: LV service model 7 | Z6: LV service model 8 | AA6: LV service model 1 | AB6: LV service model 2 | AC6: LV service model 3 | AD6: LV service model 4 | AE6: LV service model 5 | AF6: LV service model 6 | AG6: LV service model 7 | AH6: LV service model 8 | AI6: LV service model 1 | AJ6: LV service model 2 | AK6: LV service model 3 | AL6: LV service model 4 | AM6: LV service model 5 | AN6: LV service model 6 | AO6: LV service model 7 | AP6: LV service model 8
B7: Domestic Unrestricted | C7: 0.05 | D7: 0 | E7: 0 | F7: 0 | G7: 0 | H7: 0 | I7: 0 | J7: 0 | K7: =C7 -> 0.05 | L7: =D7 -> 0 | M7: =E7 -> 0 | N7: =F7 -> 0 | O7: =G7 -> 0 | P7: =H7 -> 0 | Q7: =I7 -> 0 | R7: =J7 -> 0 | S7: =K7 -> 0.05 | T7: =L7 -> 0 | U7: =M7 -> 0 | V7: =N7 -> 0 | W7: =O7 -> 0 | X7: =P7 -> 0 | Y7: =Q7 -> 0 | Z7: =R7 -> 0 | AA7: =S7 -> 0.05 | AB7: =T7 -> 0 | AC7: =U7 -> 0 | AD7: =V7 -> 0 | AE7: =W7 -> 0 | AF7: =X7 -> 0 | AG7: =Y7 -> 0 | AH7: =Z7 -> 0 | AI7: =AA7 -> 0.05 | AJ7: =AB7 -> 0 | AK7: =AC7 -> 0 | AL7: =AD7 -> 0 | AM7: =AE7 -> 0 | AN7: =AF7 -> 0 | AO7: =AG7 -> 0 | AP7: =AH7 -> 0
B8: Domestic Two Rate | C8: 0.05 | D8: 0 | E8: 0 | F8: 0 | G8: 0 | H8: 0 | I8: 0 | J8: 0 | K8: =C8 -> 0.05 | L8: =D8 -> 0 | M8: =E8 -> 0 | N8: =F8 -> 0 | O8: =G8 -> 0 | P8: =H8 -> 0 | Q8: =I8 -> 0 | R8: =J8 -> 0 | S8: =K8 -> 0.05 | T8: =L8 -> 0 | U8: =M8 -> 0 | V8: =N8 -> 0 | W8: =O8 -> 0 | X8: =P8 -> 0 | Y8: =Q8 -> 0 | Z8: =R8 -> 0 | AA8: =S8 -> 0.05 | AB8: =T8 -> 0 | AC8: =U8 -> 0 | AD8: =V8 -> 0 | AE8: =W8 -> 0 | AF8: =X8 -> 0 | AG8: =Y8 -> 0 | AH8: =Z8 -> 0 | AI8: =AA8 -> 0.05 | AJ8: =AB8 -> 0 | AK8: =AC8 -> 0 | AL8: =AD8 -> 0 | AM8: =AE8 -> 0 | AN8: =AF8 -> 0 | AO8: =AG8 -> 0 | AP8: =AH8 -> 0
B9: Small Non Domestic Unrestricted | C9: 0 | D9: 1 | E9: 0 | F9: 0 | G9: 0 | H9: 0 | I9: 0 | J9: 0 | K9: 0 | L9: 1 | M9: 0 | N9: 0 | O9: 0 | P9: 0 | Q9: 0 | R9: 0 | S9: 0 | T9: 1 | U9: 0 | V9: 0 | W9: 0 | X9: 0 | Y9: 0 | Z9: 0 | AA9: 0 | AB9: 1 | AC9: 0 | AD9: 0 | AE9: 0 | AF9: 0 | AG9: 0 | AH9: 0 | AI9: 0 | AJ9: 1 | AK9: 0 | AL9: 0 | AM9: 0 | AN9: 0 | AO9: 0 | AP9: 0
B10: Small Non Domestic Two Rate | C10: 0 | D10: 1 | E10: 0 | F10: 0 | G10: 0 | H10: 0 | I10: 0 | J10: 0 | K10: 0 | L10: 1 | M10: 0 | N10: 0 | O10: 0 | P10: 0 | Q10: 0 | R10: 0 | S10: 0 | T10: 1 | U10: 0 | V10: 0 | W10: 0 | X10: 0 | Y10: 0 | Z10: 0 | AA10: 0 | AB10: 1 | AC10: 0 | AD10: 0 | AE10: 0 | AF10: 0 | AG10: 0 | AH10: 0 | AI10: 0 | AJ10: 1 | AK10: 0 | AL10: 0 | AM10: 0 | AN10: 0 | AO10: 0 | AP10: 0
B11: LV Medium Non-Domestic | C11: 0 | D11: 0 | E11: 1 | F11: 0 | G11: 0 | H11: 0 | I11: 0 | J11: 0 | K11: 0 | L11: 0 | M11: 1 | N11: 0 | O11: 0 | P11: 0 | Q11: 0 | R11: 0 | S11: 0 | T11: 0 | U11: 1 | V11: 0 | W11: 0 | X11: 0 | Y11: 0 | Z11: 0 | AA11: 0 | AB11: 0 | AC11: 1 | AD11: 0 | AE11: 0 | AF11: 0 | AG11: 0 | AH11: 0 | AI11: 0 | AJ11: 0 | AK11: 1 | AL11: 0 | AM11: 0 | AN11: 0 | AO11: 0 | AP11: 0
B12: LV Sub Medium Non-Domestic | C12: 0 | D12: 0 | E12: 0 | F12: 1 | G12: 0 | H12: 0 | I12: 0 | J12: 0 | K12: 0 | L12: 0 | M12: 0 | N12: 1 | O12: 0 | P12: 0 | Q12: 0 | R12: 0 | S12: 0 | T12: 0 | U12: 0 | V12: 1 | W12: 0 | X12: 0 | Y12: 0 | Z12: 0 | AA12: 0 | AB12: 0 | AC12: 0 | AD12: 1 | AE12: 0 | AF12: 0 | AG12: 0 | AH12: 0 | AI12: 0 | AJ12: 0 | AK12: 0 | AL12: 1 | AM12: 0 | AN12: 0 | AO12: 0 | AP12: 0
B13: LV Network Domestic | C13: 0.05 | D13: 0 | E13: 0 | F13: 0 | G13: 0 | H13: 0 | I13: 0 | J13: 0 | K13: 0.05 | L13: 0 | M13: 0 | N13: 0 | O13: 0 | P13: 0 | Q13: 0 | R13: 0 | S13: 0.05 | T13: 0 | U13: 0 | V13: 0 | W13: 0 | X13: 0 | Y13: 0 | Z13: 0 | AA13: 0.05 | AB13: 0 | AC13: 0 | AD13: 0 | AE13: 0 | AF13: 0 | AG13: 0 | AH13: 0 | AI13: 0.05 | AJ13: 0 | AK13: 0 | AL13: 0 | AM13: 0 | AN13: 0 | AO13: 0 | AP13: 0
B14: LV Network Non-Domestic Non-CT | C14: 0 | D14: 1 | E14: 0 | F14: 0 | G14: 0 | H14: 0 | I14: 0 | J14: 0 | K14: 0 | L14: 1 | M14: 0 | N14: 0 | O14: 0 | P14: 0 | Q14: 0 | R14: 0 | S14: 0 | T14: 1 | U14: 0 | V14: 0 | W14: 0 | X14: 0 | Y14: 0 | Z14: 0 | AA14: 0 | AB14: 1 | AC14: 0 | AD14: 0 | AE14: 0 | AF14: 0 | AG14: 0 | AH14: 0 | AI14: 0 | AJ14: 1 | AK14: 0 | AL14: 0 | AM14: 0 | AN14: 0 | AO14: 0 | AP14: 0
B15: LV HH Metered | C15: 0 | D15: 0 | E15: 0 | F15: 0 | G15: 1 | H15: 0 | I15: 0 | J15: 0 | K15: 0 | L15: 0 | M15: 0 | N15: 0 | O15: 1 | P15: 0 | Q15: 0 | R15: 0 | S15: 0 | T15: 0 | U15: 0 | V15: 0 | W15: 1 | X15: 0 | Y15: 0 | Z15: 0 | AA15: 0 | AB15: 0 | AC15: 0 | AD15: 0 | AE15: 1 | AF15: 0 | AG15: 0 | AH15: 0 | AI15: 0 | AJ15: 0 | AK15: 0 | AL15: 0 | AM15: 1 | AN15: 0 | AO15: 0 | AP15: 0
B16: LV Sub HH Metered | C16: 0 | D16: 0 | E16: 0 | F16: 0 | G16: 0 | H16: 1 | I16: 0 | J16: 0 | K16: 0 | L16: 0 | M16: 0 | N16: 0 | O16: 0 | P16: 1 | Q16: 0 | R16: 0 | S16: 0 | T16: 0 | U16: 0 | V16: 0 | W16: 0 | X16: 1 | Y16: 0 | Z16: 0 | AA16: 0 | AB16: 0 | AC16: 0 | AD16: 0 | AE16: 0 | AF16: 1 | AG16: 0 | AH16: 0 | AI16: 0 | AJ16: 0 | AK16: 0 | AL16: 0 | AM16: 0 | AN16: 1 | AO16: 0 | AP16: 0
B17: LV Generation NHH or Aggregate HH | C17: 0 | D17: 0 | E17: 0 | F17: 0 | G17: 0 | H17: 0 | I17: 1 | J17: 0 | K17: 0 | L17: 0 | M17: 0 | N17: 0 | O17: 0 | P17: 0 | Q17: 1 | R17: 0 | S17: 0 | T17: 0 | U17: 0 | V17: 0 | W17: 0 | X17: 0 | Y17: 1 | Z17: 0 | AA17: 0 | AB17: 0 | AC17: 0 | AD17: 0 | AE17: 0 | AF17: 0 | AG17: 1 | AH17: 0 | AI17: 0 | AJ17: 0 | AK17: 0 | AL17: 0 | AM17: 0 | AN17: 0 | AO17: 1 | AP17: 0
B18: LV Sub Generation NHH | C18: 0 | D18: 0 | E18: 0 | F18: 0 | G18: 0 | H18: 0 | I18: 1 | J18: 0 | K18: 0 | L18: 0 | M18: 0 | N18: 0 | O18: 0 | P18: 0 | Q18: 1 | R18: 0 | S18: 0 | T18: 0 | U18: 0 | V18: 0 | W18: 0 | X18: 0 | Y18: 1 | Z18: 0 | AA18: 0 | AB18: 0 | AC18: 0 | AD18: 0 | AE18: 0 | AF18: 0 | AG18: 1 | AH18: 0 | AI18: 0 | AJ18: 0 | AK18: 0 | AL18: 0 | AM18: 0 | AN18: 0 | AO18: 1 | AP18: 0
B19: LV Generation Intermittent | C19: 0 | D19: 0 | E19: 0 | F19: 0 | G19: 0 | H19: 0 | I19: 1 | J19: 0 | K19: 0 | L19: 0 | M19: 0 | N19: 0 | O19: 0 | P19: 0 | Q19: 1 | R19: 0 | S19: 0 | T19: 0 | U19: 0 | V19: 0 | W19: 0 | X19: 0 | Y19: 1 | Z19: 0 | AA19: 0 | AB19: 0 | AC19: 0 | AD19: 0 | AE19: 0 | AF19: 0 | AG19: 1 | AH19: 0 | AI19: 0 | AJ19: 0 | AK19: 0 | AL19: 0 | AM19: 0 | AN19: 0 | AO19: 1 | AP19: 0
B20: LV Generation Intermittent no RP charge | C20: 0 | D20: 0 | E20: 0 | F20: 0 | G20: 0 | H20: 0 | I20: 1 | J20: 0 | K20: 0 | L20: 0 | M20: 0 | N20: 0 | O20: 0 | P20: 0 | Q20: 1 | R20: 0 | S20: 0 | T20: 0 | U20: 0 | V20: 0 | W20: 0 | X20: 0 | Y20: 1 | Z20: 0 | AA20: 0 | AB20: 0 | AC20: 0 | AD20: 0 | AE20: 0 | AF20: 0 | AG20: 1 | AH20: 0 | AI20: 0 | AJ20: 0 | AK20: 0 | AL20: 0 | AM20: 0 | AN20: 0 | AO20: 1 | AP20: 0
B21: LV Generation Non-Intermittent | C21: 0 | D21: 0 | E21: 0 | F21: 0 | G21: 0 | H21: 0 | I21: 0 | J21: 0 | K21: 0 | L21: 0 | M21: 0 | N21: 0 | O21: 0 | P21: 0 | Q21: 0 | R21: 0 | S21: 0 | T21: 0 | U21: 0 | V21: 0 | W21: 0 | X21: 0 | Y21: 0 | Z21: 0 | AA21: 0 | AB21: 0 | AC21: 0 | AD21: 0 | AE21: 0 | AF21: 0 | AG21: 0 | AH21: 0 | AI21: 0 | AJ21: 0 | AK21: 0 | AL21: 0 | AM21: 0 | AN21: 0 | AO21: 0 | AP21: 0
B22: LV Generation Non-Intermittent no RP charge | C22: 0 | D22: 0 | E22: 0 | F22: 0 | G22: 0 | H22: 0 | I22: 0 | J22: 0 | K22: 0 | L22: 0 | M22: 0 | N22: 0 | O22: 0 | P22: 0 | Q22: 0 | R22: 0 | S22: 0 | T22: 0 | U22: 0 | V22: 0 | W22: 0 | X22: 0 | Y22: 0 | Z22: 0 | AA22: 0 | AB22: 0 | AC22: 0 | AD22: 0 | AE22: 0 | AF22: 0 | AG22: 0 | AH22: 0 | AI22: 0 | AJ22: 0 | AK22: 0 | AL22: 0 | AM22: 0 | AN22: 0 | AO22: 0 | AP22: 0
B23: LV Sub Generation Intermittent | C23: 0 | D23: 0 | E23: 0 | F23: 0 | G23: 0 | H23: 0 | I23: 0 | J23: 0 | K23: 0 | L23: 0 | M23: 0 | N23: 0 | O23: 0 | P23: 0 | Q23: 0 | R23: 0 | S23: 0 | T23: 0 | U23: 0 | V23: 0 | W23: 0 | X23: 0 | Y23: 0 | Z23: 0 | AA23: 0 | AB23: 0 | AC23: 0 | AD23: 0 | AE23: 0 | AF23: 0 | AG23: 0 | AH23: 0 | AI23: 0 | AJ23: 0 | AK23: 0 | AL23: 0 | AM23: 0 | AN23: 0 | AO23: 0 | AP23: 0
B24: LV Sub Generation Intermittent no RP charge | C24: 0 | D24: 0 | E24: 0 | F24: 0 | G24: 0 | H24: 0 | I24: 0 | J24: 0 | K24: 0 | L24: 0 | M24: 0 | N24: 0 | O24: 0 | P24: 0 | Q24: 0 | R24: 0 | S24: 0 | T24: 0 | U24: 0 | V24: 0 | W24: 0 | X24: 0 | Y24: 0 | Z24: 0 | AA24: 0 | AB24: 0 | AC24: 0 | AD24: 0 | AE24: 0 | AF24: 0 | AG24: 0 | AH24: 0 | AI24: 0 | AJ24: 0 | AK24: 0 | AL24: 0 | AM24: 0 | AN24: 0 | AO24: 0 | AP24: 0
B25: LV Sub Generation Non-Intermittent | C25: 0 | D25: 0 | E25: 0 | F25: 0 | G25: 0 | H25: 0 | I25: 0 | J25: 0 | K25: 0 | L25: 0 | M25: 0 | N25: 0 | O25: 0 | P25: 0 | Q25: 0 | R25: 0 | S25: 0 | T25: 0 | U25: 0 | V25: 0 | W25: 0 | X25: 0 | Y25: 0 | Z25: 0 | AA25: 0 | AB25: 0 | AC25: 0 | AD25: 0 | AE25: 0 | AF25: 0 | AG25: 0 | AH25: 0 | AI25: 0 | AJ25: 0 | AK25: 0 | AL25: 0 | AM25: 0 | AN25: 0 | AO25: 0 | AP25: 0
B26: LV Sub Generation Non-Intermittent no RP charge | C26: 0 | D26: 0 | E26: 0 | F26: 0 | G26: 0 | H26: 0 | I26: 0 | J26: 0 | K26: 0 | L26: 0 | M26: 0 | N26: 0 | O26: 0 | P26: 0 | Q26: 0 | R26: 0 | S26: 0 | T26: 0 | U26: 0 | V26: 0 | W26: 0 | X26: 0 | Y26: 0 | Z26: 0 | AA26: 0 | AB26: 0 | AC26: 0 | AD26: 0 | AE26: 0 | AF26: 0 | AG26: 0 | AH26: 0 | AI26: 0 | AJ26: 0 | AK26: 0 | AL26: 0 | AM26: 0 | AN26: 0 | AO26: 0 | AP26: 0
B28: 1026. Matrix of applicability of LV service models to unmetered tariffs
B30: Source: service models
B31: Proportion of service model involved in connecting load of 1 MWh/year | C31: ='CDCM Forecast Data'!$E$11 -> 2019/20 | K31: ='CDCM Forecast Data'!$F$11 -> 2020/21 | S31: ='CDCM Forecast Data'!$G$11 -> 2021/22 | AA31: ='CDCM Forecast Data'!$H$11 -> 2022/23 | AI31: ='CDCM Forecast Data'!$I$11 -> 2023/24
C32: LV service model 1 | D32: LV service model 2 | E32: LV service model 3 | F32: LV service model 4 | G32: LV service model 5 | H32: LV service model 6 | I32: LV service model 7 | J32: LV service model 8 | K32: LV service model 1 | L32: LV service model 2 | M32: LV service model 3 | N32: LV service model 4 | O32: LV service model 5 | P32: LV service model 6 | Q32: LV service model 7 | R32: LV service model 8 | S32: LV service model 1 | T32: LV service model 2 | U32: LV service model 3 | V32: LV service model 4 | W32: LV service model 5 | X32: LV service model 6 | Y32: LV service model 7 | Z32: LV service model 8 | AA32: LV service model 1 | AB32: LV service model 2 | AC32: LV service model 3 | AD32: LV service model 4 | AE32: LV service model 5 | AF32: LV service model 6 | AG32: LV service model 7 | AH32: LV service model 8 | AI32: LV service model 1 | AJ32: LV service model 2 | AK32: LV service model 3 | AL32: LV service model 4 | AM32: LV service model 5 | AN32: LV service model 6 | AO32: LV service model 7 | AP32: LV service model 8
B33: All LV unmetered tariffs | C33: 0 | D33: 0 | E33: 0 | F33: 0 | G33: 0 | H33: 0 | I33: 0 | J33: 0.488 | K33: =C33 -> 0 | L33: 0 | M33: 0 | N33: 0 | O33: 0 | P33: 0 | Q33: 0 | R33: 0.488 | S33: =K33 -> 0 | T33: =L33 -> 0 | U33: =M33 -> 0 | V33: =N33 -> 0 | W33: =O33 -> 0 | X33: =P33 -> 0 | Y33: =Q33 -> 0 | Z33: =R33 -> 0.488 | AA33: =S33 -> 0 | AB33: =T33 -> 0 | AC33: =U33 -> 0 | AD33: =V33 -> 0 | AE33: =W33 -> 0 | AF33: =X33 -> 0 | AG33: =Y33 -> 0 | AH33: =Z33 -> 0.488 | AI33: =AA33 -> 0 | AJ33: =AB33 -> 0 | AK33: =AC33 -> 0 | AL33: =AD33 -> 0 | AM33: =AE33 -> 0 | AN33: =AF33 -> 0 | AO33: =AG33 -> 0 | AP33: =AH33 -> 0.488
B35: 1028. Matrix of applicability of HV service models to tariffs with fixed charges
C36: ='CDCM Forecast Data'!$E$11 -> 2019/20 | H36: =+'CDCM Forecast Data'!F11 -> 2020/21 | M36: =+'CDCM Forecast Data'!G11 -> 2021/22 | R36: =+'CDCM Forecast Data'!H11 -> 2022/23 | W36: =+'CDCM Forecast Data'!I11 -> 2023/24
C37: HV service model 1 | D37: HV service model 2 | E37: HV service model 3 | F37: HV service model 4 | G37: HV service model 5 | H37: HV service model 1 | I37: HV service model 2 | J37: HV service model 3 | K37: HV service model 4 | L37: HV service model 5 | M37: HV service model 1 | N37: HV service model 2 | O37: HV service model 3 | P37: HV service model 4 | Q37: HV service model 5 | R37: HV service model 1 | S37: HV service model 2 | T37: HV service model 3 | U37: HV service model 4 | V37: HV service model 5 | W37: HV service model 1 | X37: HV service model 2 | Y37: HV service model 3 | Z37: HV service model 4 | AA37: HV service model 5
B38: HV Medium Non-Domestic | C38: 1 | D38: 0 | E38: 0 | F38: 0 | G38: 0 | H38: =C38 -> 1 | I38: =D38 -> 0 | J38: =E38 -> 0 | K38: =F38 -> 0 | L38: =G38 -> 0 | M38: =H38 -> 1 | N38: =I38 -> 0 | O38: =J38 -> 0 | P38: =K38 -> 0 | Q38: =L38 -> 0 | R38: =M38 -> 1 | S38: =N38 -> 0 | T38: =O38 -> 0 | U38: =P38 -> 0 | V38: =Q38 -> 0 | W38: =R38 -> 1 | X38: =S38 -> 0 | Y38: =T38 -> 0 | Z38: =U38 -> 0 | AA38: =V38 -> 0
B39: HV HH Metered | C39: 1 | D39: 0 | E39: 0 | F39: 0 | G39: 0 | H39: =C39 -> 1 | I39: =D39 -> 0 | J39: =E39 -> 0 | K39: =F39 -> 0 | L39: =G39 -> 0 | M39: =H39 -> 1 | N39: =I39 -> 0 | O39: =J39 -> 0 | P39: =K39 -> 0 | Q39: =L39 -> 0 | R39: =M39 -> 1 | S39: =N39 -> 0 | T39: =O39 -> 0 | U39: =P39 -> 0 | V39: =Q39 -> 0 | W39: =R39 -> 1 | X39: =S39 -> 0 | Y39: =T39 -> 0 | Z39: =U39 -> 0 | AA39: =V39 -> 0
B40: HV Generation Intermittent | C40: 0 | D40: 1 | E40: 0 | F40: 0 | G40: 0 | H40: 0 | I40: 1 | J40: 0 | K40: 0 | L40: 0 | M40: 0 | N40: 1 | O40: 0 | P40: 0 | Q40: 0 | R40: 0 | S40: 1 | T40: 0 | U40: 0 | V40: 0 | W40: 0 | X40: 1 | Y40: 0 | Z40: 0 | AA40: 0
B41: HV Generation Intermittent no RP charge | C41: 0 | D41: 1 | E41: 0 | F41: 0 | G41: 0 | H41: 0 | I41: 1 | J41: 0 | K41: 0 | L41: 0 | M41: 0 | N41: 1 | O41: 0 | P41: 0 | Q41: 0 | R41: 0 | S41: 1 | T41: 0 | U41: 0 | V41: 0 | W41: 0 | X41: 1 | Y41: 0 | Z41: 0 | AA41: 0
B42: HV Generation Non-Intermittent | C42: 0 | D42: 1 | E42: 0 | F42: 0 | G42: 0 | H42: 0 | I42: 1 | J42: 0 | K42: 0 | L42: 0 | M42: 0 | N42: 1 | O42: 0 | P42: 0 | Q42: 0 | R42: 0 | S42: 1 | T42: 0 | U42: 0 | V42: 0 | W42: 0 | X42: 1 | Y42: 0 | Z42: 0 | AA42: 0
B43: HV Generation Non-Intermittent no RP charge | C43: 0 | D43: 1 | E43: 0 | F43: 0 | G43: 0 | H43: 0 | I43: 1 | J43: 0 | K43: 0 | L43: 0 | M43: 0 | N43: 1 | O43: 0 | P43: 0 | Q43: 0 | R43: 0 | S43: 1 | T43: 0 | U43: 0 | V43: 0 | W43: 0 | X43: 1 | Y43: 0 | Z43: 0 | AA43: 0

Sheet CDCM Volume Forecasts
G3: Growth Rates (%)
G4: VOLUME - RED BAND | L4: VOLUME - AMBER BAND | P4: VOLUME - GREEN BAND | T4: CUSTOMER NUMBERS | X4: IMPORT CAPACITY | AB4: EXCEEDED CAPACITY | AF4: REACTIVE POWER
G5: Y | H5: Y + 1 | I5: Y + 2 | J5: Y + 3 | K5: Y + 4 | L5: Y + 1 | M5: Y + 2 | N5: Y + 3 | O5: Y + 4 | P5: Y + 1 | Q5: Y + 2 | R5: Y + 3 | S5: Y + 4 | T5: Y + 1 | U5: Y + 2 | V5: Y + 3 | W5: Y + 4 | X5: Y + 1 | Y5: Y + 2 | Z5: Y + 3 | AA5: Y + 4 | AB5: Y + 1 | AC5: Y + 2 | AD5: Y + 3 | AE5: Y + 4 | AF5: Y + 1 | AG5: Y + 2 | AH5: Y + 3 | AI5: Y + 4
E6: Customer Category | F6: Description | G6: =+'CDCM Forecast Data'!E11 -> 2019/20 | H6: =+'CDCM Forecast Data'!F11 -> 2020/21 | I6: =+'CDCM Forecast Data'!G11 -> 2021/22 | J6: =+'CDCM Forecast Data'!H11 -> 2022/23 | K6: =+'CDCM Forecast Data'!I11 -> 2023/24 | L6: =+H6 -> 2020/21 | M6: 2021/22 | N6: 2022/23 | O6: 2023/24 | P6: 2020/21 | Q6: 2021/22 | R6: 2022/23 | S6: 2023/24 | T6: 2020/21 | U6: 2021/22 | V6: 2022/23 | W6: 2023/24 | X6: 2020/21 | Y6: 2021/22 | Z6: 2022/23 | AA6: 2023/24 | AB6: =+T6 -> 2020/21 | AC6: 2021/22 | AD6: 2022/23 | AE6: 2023/24 | AF6: 2020/21 | AG6: 2021/22 | AH6: 2022/23 | AI6: 2023/24 | AJ6: Assumptions
E7: 1 | F7: Aggregated demand
E8: 2 | F8: Site-specific demand
E9: 3 | F9: Not used
E10: 4 | F10: Generation
E11: 5 | F11: Not used
E12: 6 | F12: Not used
E13: 7 | F13: Not used
E14: 8 | F14: Not used
E15: 9 | F15: Not used
E16: 10 | F16: Not used
E18: Summary Data | F18: Year | G18: =G6 -> 2019/20 | H18: =H6 -> 2020/21 | I18: =I6 -> 2021/22 | J18: =J6 -> 2022/23 | K18: =K6 -> 2023/24
F19: Total Volume | G19: =SUM(D29:F136) -> 13404500.28 | H19: =SUM(K29:M136) -> 13404500.28 | I19: =SUM(R29:T136) -> 13404500.28 | J19: =SUM(Y29:AA136) -> 13404500.28 | K19: =SUM(AF29:AH136) -> 13404500.28
F20: No. of MPANs | G20: =SUM(G29:G136) -> 1684619.781 | H20: =SUM(N29:N136) -> 1684619.781 | I20: =SUM(U29:U136) -> 1684619.781 | J20: =SUM(AB29:AB136) -> 1684619.781 | K20: =SUM(AI29:AI136) -> 1684619.781
F21: Total Import Capacity | G21: =SUM(H29:H136) -> 1961032.561 | H21: =SUM(O29:O136) -> 1961032.561 | I21: =SUM(V29:V136) -> 1961032.561 | J21: =SUM(AC29:AC136) -> 1961032.561 | K21: =SUM(AJ29:AJ136) -> 1961032.561
F22: Total exceeded capacity | G22: =SUM(I29:I136) -> 46346.47816 | H22: =SUM(P29:P136) -> 46346.47816 | I22: =SUM(W29:W136) -> 46346.47816 | J22: =SUM(AD29:AD136) -> 46346.47816 | K22: =SUM(AK29:AK136) -> 46346.47816
F23: Total Reactive | G23: =SUM(J29:J136) -> 365909.903 | H23: =SUM(Q29:Q136) -> 365909.903 | I23: =SUM(X29:X136) -> 365909.903 | J23: =SUM(AE29:AE136) -> 365909.903 | K23: =SUM(AL29:AL136) -> 365909.903
C26: 1053. Volume forecasts for the charging year: | D26: =G6& " - ("&G5&")" -> 2019/20 - (Y) | K26: =H6& " - ("&H5&")" -> 2020/21 - (Y + 1) | R26: =I6& " - ("&I5&")" -> 2021/22 - (Y + 2) | Y26: =J6& " - ("&J5&")" -> 2022/23 - (Y + 3) | AF26: =K6& " - ("&K5&")" -> 2023/24 - (Y + 4)
B27: Customer Category | C27: Tariff | D27: Rate 1 units (MWh) | E27: Rate 2 units (MWh) | F27: Rate 3 units (MWh) | G27: MPANs | H27: Import capacity (kVA) | I27: Exceeded capacity (kVA) | J27: Reactive power units (MVArh) | K27: Rate 1 units (MWh) | L27: Rate 2 units (MWh) | M27: Rate 3 units (MWh) | N27: MPANs | O27: Import capacity (kVA) | P27: Exceeded capacity (kVA) | Q27: Reactive power units (MVArh) | R27: Rate 1 units (MWh) | S27: Rate 2 units (MWh) | T27: Rate 3 units (MWh) | U27: MPANs | V27: Import capacity (kVA) | W27: Exceeded capacity (kVA) | X27: Reactive power units (MVArh) | Y27: Rate 1 units (MWh) | Z27: Rate 2 units (MWh) | AA27: Rate 3 units (MWh) | AB27: MPANs | AC27: Import capacity (kVA) | AD27: Exceeded capacity (kVA) | AE27: Reactive power units (MVArh) | AF27: Rate 1 units (MWh) | AG27: Rate 2 units (MWh) | AH27: Rate 3 units (MWh) | AI27: MPANs | AJ27: Import capacity (kVA) | AK27: Exceeded capacity (kVA) | AL27: Reactive power units (MVArh)
A28: 1 | C28: > Domestic Unrestricted
A29: =A28+1 -> 2 | B29: 1 | C29: Domestic Unrestricted | D29: 4325611.921 | E29: 0 | F29: 0 | G29: 1265207.227 | H29: 0 | I29: 0 | J29: 0 | K29: =IF(D29,((VLOOKUP($B29,$E$7:$AI$16,4)+1)*D29),) -> 4325611.921 | L29: =IF(E29,((VLOOKUP($B29,$E$7:$AI$16,8)+1)*E29),) -> 0 | M29: =IF(F29,((VLOOKUP($B29,$E$7:$AI$16,12)+1)*F29),) -> 0 | N29: =IF(G29,((VLOOKUP($B29,$E$7:$AI$16,16)+1)*G29),) -> 1265207.227 | O29: =IF(H29,((VLOOKUP($B29,$E$7:$AI$16,20)+1)*H29),) -> 0 | R29: =IF(D29,((VLOOKUP($B29,$E$7:$AI$16,5)+1)*K29),) -> 4325611.921 | S29: =IF(E29,((VLOOKUP($B29,$E$7:$AI$16,5+4)+1)*L29),) -> 0 | T29: =IF(F29,((VLOOKUP($B29,$E$7:$AI$16,5+8)+1)*M29),) -> 0 | U29: =IF(G29,((VLOOKUP($B29,$E$7:$AI$16,5+12)+1)*N29),) -> 1265207.227 | V29: =IF(H29,((VLOOKUP($B29,$E$7:$AI$16,5+16)+1)*O29),) -> 0 | Y29: =IF(D29,((VLOOKUP($B29,$E$7:$AI$16,6)+1)*R29),) -> 4325611.921 | Z29: =IF(E29,((VLOOKUP($B29,$E$7:$AI$16,6+4)+1)*S29),) -> 0 | AA29: =IF(F29,((VLOOKUP($B29,$E$7:$AI$16,6+8)+1)*T29),) -> 0 | AB29: =IF(G29,((VLOOKUP($B29,$E$7:$AI$16,6+12)+1)*U29),) -> 1265207.227 | AC29: =IF(H29,((VLOOKUP($B29,$E$7:$AI$16,6+16)+1)*V29),) -> 0 | AF29: =IF(D29,((VLOOKUP($B29,$E$7:$AI$16,7)+1)*Y29),) -> 4325611.921 | AG29: =IF(E29,((VLOOKUP($B29,$E$7:$AI$16,7+4)+1)*Z29),) -> 0 | AH29: =IF(F29,((VLOOKUP($B29,$E$7:$AI$16,7+8)+1)*AA29),) -> 0 | AI29: =IF(G29,((VLOOKUP($B29,$E$7:$AI$16,7+12)+1)*AB29),) -> 1265207.227 | AJ29: =IF(H29,((VLOOKUP($B29,$E$7:$AI$16,7+16)+1)*AC29),) -> 0
A30: =A29+1 -> 3 | B30: 1 | C30: LDNO LV: Domestic Unrestricted | D30: 26901.24523 | E30: 0 | F30: 0 | G30: 10731.18734 | H30: 0 | I30: 0 | J30: 0 | K30: =IF(D30,((VLOOKUP($B30,$E$7:$AI$16,4)+1)*D30),) -> 26901.24523 | L30: =IF(E30,((VLOOKUP($B30,$E$7:$AI$16,8)+1)*E30),) -> 0 | M30: =IF(F30,((VLOOKUP($B30,$E$7:$AI$16,12)+1)*F30),) -> 0 | N30: =IF(G30,((VLOOKUP($B30,$E$7:$AI$16,16)+1)*G30),) -> 10731.18734 | O30: =IF(H30,((VLOOKUP($B30,$E$7:$AI$16,20)+1)*H30),) -> 0 | R30: =IF(D30,((VLOOKUP($B30,$E$7:$AI$16,5)+1)*K30),) -> 26901.24523 | S30: =IF(E30,((VLOOKUP($B30,$E$7:$AI$16,5+4)+1)*L30),) -> 0 | T30: =IF(F30,((VLOOKUP($B30,$E$7:$AI$16,5+8)+1)*M30),) -> 0 | U30: =IF(G30,((VLOOKUP($B30,$E$7:$AI$16,5+12)+1)*N30),) -> 10731.18734 | V30: =IF(H30,((VLOOKUP($B30,$E$7:$AI$16,5+16)+1)*O30),) -> 0 | Y30: =IF(D30,((VLOOKUP($B30,$E$7:$AI$16,6)+1)*R30),) -> 26901.24523 | Z30: =IF(E30,((VLOOKUP($B30,$E$7:$AI$16,6+4)+1)*S30),) -> 0 | AA30: =IF(F30,((VLOOKUP($B30,$E$7:$AI$16,6+8)+1)*T30),) -> 0 | AB30: =IF(G30,((VLOOKUP($B30,$E$7:$AI$16,6+12)+1)*U30),) -> 10731.18734 | AC30: =IF(H30,((VLOOKUP($B30,$E$7:$AI$16,6+16)+1)*V30),) -> 0 | AF30: =IF(D30,((VLOOKUP($B30,$E$7:$AI$16,7)+1)*Y30),) -> 26901.24523 | AG30: =IF(E30,((VLOOKUP($B30,$E$7:$AI$16,7+4)+1)*Z30),) -> 0 | AH30: =IF(F30,((VLOOKUP($B30,$E$7:$AI$16,7+8)+1)*AA30),) -> 0 | AI30: =IF(G30,((VLOOKUP($B30,$E$7:$AI$16,7+12)+1)*AB30),) -> 10731.18734 | AJ30: =IF(H30,((VLOOKUP($B30,$E$7:$AI$16,7+16)+1)*AC30),) -> 0
A31: 4 | B31: 1 | C31: LDNO HV: Domestic Unrestricted | D31: 55013.17403 | E31: 0 | F31: 0 | G31: 23203.54275 | H31: 0 | I31: 0 | J31: 0 | K31: 55013.17403 | L31: 0 | M31: 0 | N31: 23203.54275 | O31: 0 | R31: 55013.17403 | S31: 0 | T31: 0 | U31: 23203.54275 | V31: 0 | Y31: 55013.17403 | Z31: 0 | AA31: 0 | AB31: 23203.54275 | AC31: 0 | AF31: 55013.17403 | AG31: 0 | AH31: 0 | AI31: 23203.54275 | AJ31: 0
A32: 5 | C32: > Domestic Two Rate | D32: 0 | E32: 0 | F32: 0 | G32: 0 | H32: 0 | I32: 0 | J32: 0 | K32: 0 | L32: 0 | M32: 0 | N32: 0 | O32: 0 | R32: 0 | S32: 0 | T32: 0 | U32: 0 | V32: 0 | Y32: 0 | Z32: 0 | AA32: 0 | AB32: 0 | AC32: 0 | AF32: 0 | AG32: 0 | AH32: 0 | AI32: 0 | AJ32: 0
A33: 6 | B33: 1 | C33: Domestic Two Rate | D33: 631896.2065 | E33: 608756.1369 | F33: 0 | G33: 204084.5815 | H33: 0 | I33: 0 | J33: 0 | K33: 631896.2065 | L33: 608756.1369 | M33: 0 | N33: 204084.5815 | O33: 0 | R33: 631896.2065 | S33: 608756.1369 | T33: 0 | U33: 204084.5815 | V33: 0 | Y33: 631896.2065 | Z33: 608756.1369 | AA33: 0 | AB33: 204084.5815 | AC33: 0 | AF33: 631896.2065 | AG33: 608756.1369 | AH33: 0 | AI33: 204084.5815 | AJ33: 0
A34: 7 | B34: 1 | C34: LDNO LV: Domestic Two Rate | D34: 1606.416511 | E34: 611.2867969 | F34: 0 | G34: 726.066174 | H34: 0 | I34: 0 | J34: 0 | K34: 1606.416511 | L34: 611.2867969 | M34: 0 | N34: 726.066174 | O34: 0 | R34: 1606.416511 | S34: 611.2867969 | T34: 0 | U34: 726.066174 | V34: 0 | Y34: 1606.416511 | Z34: 611.2867969 | AA34: 0 | AB34: 726.066174 | AC34: 0 | AF34: 1606.416511 | AG34: 611.2867969 | AH34: 0 | AI34: 726.066174 | AJ34: 0
A35: 8 | B35: 1 | C35: LDNO HV: Domestic Two Rate | D35: 1981.803301 | E35: 699.8861911 | F35: 0 | G35: 760.4569348 | H35: 0 | I35: 0 | J35: 0 | K35: 1981.803301 | L35: 699.8861911 | M35: 0 | N35: 760.4569348 | O35: 0 | R35: 1981.803301 | S35: 699.8861911 | T35: 0 | U35: 760.4569348 | V35: 0 | Y35: 1981.803301 | Z35: 699.8861911 | AA35: 0 | AB35: 760.4569348 | AC35: 0 | AF35: 1981.803301 | AG35: 699.8861911 | AH35: 0 | AI35: 760.4569348 | AJ35: 0
A36: 9 | C36: > Domestic Off Peak (related MPAN) | D36: 0 | E36: 0 | F36: 0 | G36: 0 | H36: 0 | I36: 0 | J36: 0 | K36: 0 | L36: 0 | M36: 0 | N36: 0 | O36: 0 | R36: 0 | S36: 0 | T36: 0 | U36: 0 | V36: 0 | Y36: 0 | Z36: 0 | AA36: 0 | AB36: 0 | AC36: 0 | AF36: 0 | AG36: 0 | AH36: 0 | AI36: 0 | AJ36: 0
A37: 10 | B37: 1 | C37: Domestic Off Peak (related MPAN) | D37: 49584.94863 | F37: 0 | G37: 14616 | H37: 0 | I37: 0 | J37: 0 | K37: 49584.94863 | L37: 0 | M37: 0 | N37: 14616 | O37: 0 | R37: 49584.94863 | S37: 0 | T37: 0 | U37: 14616 | V37: 0 | Y37: 49584.94863 | Z37: 0 | AA37: 0 | AB37: 14616 | AC37: 0 | AF37: 49584.94863 | AG37: 0 | AH37: 0 | AI37: 14616 | AJ37: 0
A38: 11 | B38: 1 | C38: LDNO LV: Domestic Off Peak (related MPAN) | D38: 0 | E38: 0 | F38: 0 | G38: 0 | H38: 0 | I38: 0 | J38: 0 | K38: 0 | L38: 0 | M38: 0 | N38: 0 | O38: 0 | R38: 0 | S38: 0 | T38: 0 | U38: 0 | V38: 0 | Y38: 0 | Z38: 0 | AA38: 0 | AB38: 0 | AC38: 0 | AF38: 0 | AG38: 0 | AH38: 0 | AI38: 0 | AJ38: 0
A39: 12 | B39: 1 | C39: LDNO HV: Domestic Off Peak (related MPAN) | D39: 0 | E39: 0 | F39: 0 | G39: 0 | H39: 0 | I39: 0 | J39: 0 | K39: 0 | L39: 0 | M39: 0 | N39: 0 | O39: 0 | R39: 0 | S39: 0 | T39: 0 | U39: 0 | V39: 0 | Y39: 0 | Z39: 0 | AA39: 0 | AB39: 0 | AC39: 0 | AF39: 0 | AG39: 0 | AH39: 0 | AI39: 0 | AJ39: 0
A40: 13 | C40: > Small Non Domestic Unrestricted | D40: 0 | E40: 0 | F40: 0 | G40: 0 | H40: 0 | I40: 0 | J40: 0 | K40: 0 | L40: 0 | M40: 0 | N40: 0 | O40: 0 | R40: 0 | S40: 0 | T40: 0 | U40: 0 | V40: 0 | Y40: 0 | Z40: 0 | AA40: 0 | AB40: 0 | AC40: 0 | AF40: 0 | AG40: 0 | AH40: 0 | AI40: 0 | AJ40: 0
A41: 14 | B41: 1 | C41: Small Non Domestic Unrestricted | D41: 1188673.863 | E41: 0 | F41: 0 | G41: 109551.1821 | H41: 0 | I41: 0 | J41: 0 | K41: 1188673.863 | L41: 0 | M41: 0 | N41: 109551.1821 | O41: 0 | R41: 1188673.863 | S41: 0 | T41: 0 | U41: 109551.1821 | V41: 0 | Y41: 1188673.863 | Z41: 0 | AA41: 0 | AB41: 109551.1821 | AC41: 0 | AF41: 1188673.863 | AG41: 0 | AH41: 0 | AI41: 109551.1821 | AJ41: 0
A42: 15 | B42: 1 | C42: LDNO LV: Small Non Domestic Unrestricted | D42: 1302.442217 | E42: 0 | F42: 0 | G42: 222.1176994 | H42: 0 | I42: 0 | J42: 0 | K42: 1302.442217 | L42: 0 | M42: 0 | N42: 222.1176994 | O42: 0 | R42: 1302.442217 | S42: 0 | T42: 0 | U42: 222.1176994 | V42: 0 | Y42: 1302.442217 | Z42: 0 | AA42: 0 | AB42: 222.1176994 | AC42: 0 | AF42: 1302.442217 | AG42: 0 | AH42: 0 | AI42: 222.1176994 | AJ42: 0
A43: 16 | B43: 1 | C43: LDNO HV: Small Non Domestic Unrestricted | D43: 10841.52452 | E43: 0 | F43: 0 | G43: 839.4722938 | H43: 0 | I43: 0 | J43: 0 | K43: 10841.52452 | L43: 0 | M43: 0 | N43: 839.4722938 | O43: 0 | R43: 10841.52452 | S43: 0 | T43: 0 | U43: 839.4722938 | V43: 0 | Y43: 10841.52452 | Z43: 0 | AA43: 0 | AB43: 839.4722938 | AC43: 0 | AF43: 10841.52452 | AG43: 0 | AH43: 0 | AI43: 839.4722938 | AJ43: 0
A44: 17 | C44: > Small Non Domestic Two Rate | D44: 0 | E44: 0 | F44: 0 | G44: 0 | H44: 0 | I44: 0 | J44: 0 | K44: 0 | L44: 0 | M44: 0 | N44: 0 | O44: 0 | R44: 0 | S44: 0 | T44: 0 | U44: 0 | V44: 0 | Y44: 0 | Z44: 0 | AA44: 0 | AB44: 0 | AC44: 0 | AF44: 0 | AG44: 0 | AH44: 0 | AI44: 0 | AJ44: 0
A45: 18 | B45: 1 | C45: Small Non Domestic Two Rate | D45: 408779.3081 | E45: 170833.8982 | F45: 0 | G45: 30180.33101 | H45: 0 | I45: 0 | J45: 0 | K45: 408779.3081 | L45: 170833.8982 | M45: 0 | N45: 30180.33101 | O45: 0 | R45: 408779.3081 | S45: 170833.8982 | T45: 0 | U45: 30180.33101 | V45: 0 | Y45: 408779.3081 | Z45: 170833.8982 | AA45: 0 | AB45: 30180.33101 | AC45: 0 | AF45: 408779.3081 | AG45: 170833.8982 | AH45: 0 | AI45: 30180.33101 | AJ45: 0
A46: 19 | B46: 1 | C46: LDNO LV: Small Non Domestic Two Rate | D46: 61.82357923 | E46: 24.87329924 | F46: 0 | G46: 3.387705146 | H46: 0 | I46: 0 | J46: 0 | K46: 61.82357923 | L46: 24.87329924 | M46: 0 | N46: 3.387705146 | O46: 0 | R46: 61.82357923 | S46: 24.87329924 | T46: 0 | U46: 3.387705146 | V46: 0 | Y46: 61.82357923 | Z46: 24.87329924 | AA46: 0 | AB46: 3.387705146 | AC46: 0 | AF46: 61.82357923 | AG46: 24.87329924 | AH46: 0 | AI46: 3.387705146 | AJ46: 0
A47: 20 | B47: 1 | C47: LDNO HV: Small Non Domestic Two Rate | D47: 1089.425813 | E47: 319.6974232 | F47: 0 | G47: 32.70298254 | H47: 0 | I47: 0 | J47: 0 | K47: 1089.425813 | L47: 319.6974232 | M47: 0 | N47: 32.70298254 | O47: 0 | R47: 1089.425813 | S47: 319.6974232 | T47: 0 | U47: 32.70298254 | V47: 0 | Y47: 1089.425813 | Z47: 319.6974232 | AA47: 0 | AB47: 32.70298254 | AC47: 0 | AF47: 1089.425813 | AG47: 319.6974232 | AH47: 0 | AI47: 32.70298254 | AJ47: 0
A48: 21 | C48: > Small Non Domestic Off Peak (related MPAN) | D48: 0 | E48: 0 | F48: 0 | G48: 0 | H48: 0 | I48: 0 | J48: 0 | K48: 0 | L48: 0 | M48: 0 | N48: 0 | O48: 0 | R48: 0 | S48: 0 | T48: 0 | U48: 0 | V48: 0 | Y48: 0 | Z48: 0 | AA48: 0 | AB48: 0 | AC48: 0 | AF48: 0 | AG48: 0 | AH48: 0 | AI48: 0 | AJ48: 0
A49: 22 | B49: 1 | C49: Small Non Domestic Off Peak (related MPAN) | D49: 18696.27093 | F49: 0 | G49: 3163 | H49: 0 | I49: 0 | J49: 0 | K49: 18696.27093 | L49: 0 | M49: 0 | N49: 3163 | O49: 0 | R49: 18696.27093 | S49: 0 | T49: 0 | U49: 3163 | V49: 0 | Y49: 18696.27093 | Z49: 0 | AA49: 0 | AB49: 3163 | AC49: 0 | AF49: 18696.27093 | AG49: 0 | AH49: 0 | AI49: 3163 | AJ49: 0
A50: 23 | B50: 1 | C50: LDNO LV: Small Non Domestic Off Peak (related MPAN) | D50: 0 | E50: 0 | F50: 0 | G50: 0 | H50: 0 | I50: 0 | J50: 0 | K50: 0 | L50: 0 | M50: 0 | N50: 0 | O50: 0 | R50: 0 | S50: 0 | T50: 0 | U50: 0 | V50: 0 | Y50: 0 | Z50: 0 | AA50: 0 | AB50: 0 | AC50: 0 | AF50: 0 | AG50: 0 | AH50: 0 | AI50: 0 | AJ50: 0
A51: 24 | B51: 1 | C51: LDNO HV: Small Non Domestic Off Peak (related MPAN) | D51: 0 | E51: 0 | F51: 0 | G51: 0 | H51: 0 | I51: 0 | J51: 0 | K51: 0 | L51: 0 | M51: 0 | N51: 0 | O51: 0 | R51: 0 | S51: 0 | T51: 0 | U51: 0 | V51: 0 | Y51: 0 | Z51: 0 | AA51: 0 | AB51: 0 | AC51: 0 | AF51: 0 | AG51: 0 | AH51: 0 | AI51: 0 | AJ51: 0
A52: 25 | C52: > LV Medium Non-Domestic | D52: 0 | E52: 0 | F52: 0 | G52: 0 | H52: 0 | I52: 0 | J52: 0 | K52: 0 | L52: 0 | M52: 0 | N52: 0 | O52: 0 | R52: 0 | S52: 0 | T52: 0 | U52: 0 | V52: 0 | Y52: 0 | Z52: 0 | AA52: 0 | AB52: 0 | AC52: 0 | AF52: 0 | AG52: 0 | AH52: 0 | AI52: 0 | AJ52: 0
A53: 26 | B53: 1 | C53: LV Medium Non-Domestic | D53: 61016.90072 | E53: 15363.29892 | F53: 0 | G53: 1833.471678 | H53: 0 | I53: 0 | J53: 0 | K53: 61016.90072 | L53: 15363.29892 | M53: 0 | N53: 1833.471678 | O53: 0 | R53: 61016.90072 | S53: 15363.29892 | T53: 0 | U53: 1833.471678 | V53: 0 | Y53: 61016.90072 | Z53: 15363.29892 | AA53: 0 | AB53: 1833.471678 | AC53: 0 | AF53: 61016.90072 | AG53: 15363.29892 | AH53: 0 | AI53: 1833.471678 | AJ53: 0
A54: 27 | B54: 1 | C54: LDNO LV: LV Medium Non-Domestic | D54: 0 | E54: 0 | F54: 0 | G54: 0 | H54: 0 | I54: 0 | J54: 0 | K54: 0 | L54: 0 | M54: 0 | N54: 0 | O54: 0 | R54: 0 | S54: 0 | T54: 0 | U54: 0 | V54: 0 | Y54: 0 | Z54: 0 | AA54: 0 | AB54: 0 | AC54: 0 | AF54: 0 | AG54: 0 | AH54: 0 | AI54: 0 | AJ54: 0
A55: 28 | B55: 1 | C55: LDNO HV: LV Medium Non-Domestic | D55: 0 | E55: -1.818989404e-15 | F55: 0 | G55: 0 | H55: 0 | I55: 0 | J55: 0 | K55: 0 | L55: -1.818989404e-15 | M55: 0 | N55: 0 | O55: 0 | R55: 0 | S55: -1.818989404e-15 | T55: 0 | U55: 0 | V55: 0 | Y55: 0 | Z55: -1.818989404e-15 | AA55: 0 | AB55: 0 | AC55: 0 | AF55: 0 | AG55: -1.818989404e-15 | AH55: 0 | AI55: 0 | AJ55: 0
A56: 29 | C56: > LV Sub Medium Non-Domestic | D56: 0 | E56: 0 | F56: 0 | G56: 0 | H56: 0 | I56: 0 | J56: 0 | K56: 0 | L56: 0 | M56: 0 | N56: 0 | O56: 0 | R56: 0 | S56: 0 | T56: 0 | U56: 0 | V56: 0 | Y56: 0 | Z56: 0 | AA56: 0 | AB56: 0 | AC56: 0 | AF56: 0 | AG56: 0 | AH56: 0 | AI56: 0 | AJ56: 0
A57: 30 | B57: 1 | C57: LV Sub Medium Non-Domestic | D57: 11011.49022 | E57: 2877.336903 | F57: 0 | G57: 151.4251277 | H57: 0 | I57: 0 | J57: 0 | K57: 11011.49022 | L57: 2877.336903 | M57: 0 | N57: 151.4251277 | O57: 0 | R57: 11011.49022 | S57: 2877.336903 | T57: 0 | U57: 151.4251277 | V57: 0 | Y57: 11011.49022 | Z57: 2877.336903 | AA57: 0 | AB57: 151.4251277 | AC57: 0 | AF57: 11011.49022 | AG57: 2877.336903 | AH57: 0 | AI57: 151.4251277 | AJ57: 0
A58: 31 | C58: > HV Medium Non-Domestic | D58: 0 | E58: 0 | F58: 0 | G58: 0 | H58: 0 | I58: 0 | J58: 0 | K58: 0 | L58: 0 | M58: 0 | N58: 0 | O58: 0 | R58: 0 | S58: 0 | T58: 0 | U58: 0 | V58: 0 | Y58: 0 | Z58: 0 | AA58: 0 | AB58: 0 | AC58: 0 | AF58: 0 | AG58: 0 | AH58: 0 | AI58: 0 | AJ58: 0
A59: 32 | B59: 1 | C59: HV Medium Non-Domestic | D59: 475.1455588 | E59: 185.1968348 | F59: 0 | G59: 11.57760531 | H59: 0 | I59: 0 | J59: 0 | K59: 475.1455588 | L59: 185.1968348 | M59: 0 | N59: 11.57760531 | O59: 0 | R59: 475.1455588 | S59: 185.1968348 | T59: 0 | U59: 11.57760531 | V59: 0 | Y59: 475.1455588 | Z59: 185.1968348 | AA59: 0 | AB59: 11.57760531 | AC59: 0 | AF59: 475.1455588 | AG59: 185.1968348 | AH59: 0 | AI59: 11.57760531 | AJ59: 0
A60: 33 | C60: > LV Network Domestic | D60: 0 | E60: 0 | F60: 0 | G60: 0 | H60: 0 | I60: 0 | J60: 0 | K60: 0 | L60: 0 | M60: 0 | N60: 0 | O60: 0 | R60: 0 | S60: 0 | T60: 0 | U60: 0 | V60: 0 | Y60: 0 | Z60: 0 | AA60: 0 | AB60: 0 | AC60: 0 | AF60: 0 | AG60: 0 | AH60: 0 | AI60: 0 | AJ60: 0
A61: 34 | B61: 1 | C61: LV Network Domestic | D61: 17.91450059 | E61: 148.9061615 | F61: 132.1498047 | G61: 90.26226422 | H61: 0 | I61: 0 | J61: 0 | K61: 17.91450059 | L61: 148.9061615 | M61: 132.1498047 | N61: 90.26226422 | O61: 0 | R61: 17.91450059 | S61: 148.9061615 | T61: 132.1498047 | U61: 90.26226422 | V61: 0 | Y61: 17.91450059 | Z61: 148.9061615 | AA61: 132.1498047 | AB61: 90.26226422 | AC61: 0 | AF61: 17.91450059 | AG61: 148.9061615 | AH61: 132.1498047 | AI61: 90.26226422 | AJ61: 0
A62: 35 | B62: 1 | C62: LDNO LV: LV Network Domestic | D62: 0 | E62: 0 | F62: 0 | G62: 0 | H62: 0 | I62: 0 | J62: 0 | K62: 0 | L62: 0 | M62: 0 | N62: 0 | O62: 0 | R62: 0 | S62: 0 | T62: 0 | U62: 0 | V62: 0 | Y62: 0 | Z62: 0 | AA62: 0 | AB62: 0 | AC62: 0 | AF62: 0 | AG62: 0 | AH62: 0 | AI62: 0 | AJ62: 0
A63: 36 | B63: 1 | C63: LDNO HV: LV Network Domestic | D63: 0 | E63: 0 | F63: 0 | G63: 0 | H63: 0 | I63: 0 | J63: 0 | K63: 0 | L63: 0 | M63: 0 | N63: 0 | O63: 0 | R63: 0 | S63: 0 | T63: 0 | U63: 0 | V63: 0 | Y63: 0 | Z63: 0 | AA63: 0 | AB63: 0 | AC63: 0 | AF63: 0 | AG63: 0 | AH63: 0 | AI63: 0 | AJ63: 0
A64: 37 | C64: > LV Network Non-Domestic Non-CT | D64: 0 | E64: 0 | F64: 0 | G64: 0 | H64: 0 | I64: 0 | J64: 0 | K64: 0 | L64: 0 | M64: 0 | N64: 0 | O64: 0 | R64: 0 | S64: 0 | T64: 0 | U64: 0 | V64: 0 | Y64: 0 | Z64: 0 | AA64: 0 | AB64: 0 | AC64: 0 | AF64: 0 | AG64: 0 | AH64: 0 | AI64: 0 | AJ64: 0
A65: 38 | B65: 1 | C65: LV Network Non-Domestic Non-CT | D65: 25120.809 | E65: 181265.3363 | F65: 162228.4589 | G65: 5017.125897 | H65: 0 | I65: 0 | J65: 0 | K65: 25120.809 | L65: 181265.3363 | M65: 162228.4589 | N65: 5017.125897 | O65: 0 | R65: 25120.809 | S65: 181265.3363 | T65: 162228.4589 | U65: 5017.125897 | V65: 0 | Y65: 25120.809 | Z65: 181265.3363 | AA65: 162228.4589 | AB65: 5017.125897 | AC65: 0 | AF65: 25120.809 | AG65: 181265.3363 | AH65: 162228.4589 | AI65: 5017.125897 | AJ65: 0
A66: 39 | B66: 1 | C66: LDNO LV: LV Network Non-Domestic Non-CT | D66: 5.655269468 | E66: 41.96646988 | F66: 40.2914082 | G66: 2.285782398 | H66: 0 | I66: 0 | J66: 0 | K66: 5.655269468 | L66: 41.96646988 | M66: 40.2914082 | N66: 2.285782398 | O66: 0 | R66: 5.655269468 | S66: 41.96646988 | T66: 40.2914082 | U66: 2.285782398 | V66: 0 | Y66: 5.655269468 | Z66: 41.96646988 | AA66: 40.2914082 | AB66: 2.285782398 | AC66: 0 | AF66: 5.655269468 | AG66: 41.96646988 | AH66: 40.2914082 | AI66: 2.285782398 | AJ66: 0
A67: 40 | B67: 1 | C67: LDNO HV: LV Network Non-Domestic Non-CT | D67: 196.871113 | E67: 798.0854267 | F67: 644.0586198 | G67: 40.06998868 | H67: 0 | I67: 0 | J67: 0 | K67: 196.871113 | L67: 798.0854267 | M67: 644.0586198 | N67: 40.06998868 | O67: 0 | R67: 196.871113 | S67: 798.0854267 | T67: 644.0586198 | U67: 40.06998868 | V67: 0 | Y67: 196.871113 | Z67: 798.0854267 | AA67: 644.0586198 | AB67: 40.06998868 | AC67: 0 | AF67: 196.871113 | AG67: 798.0854267 | AH67: 644.0586198 | AI67: 40.06998868 | AJ67: 0
A68: 41 | C68: > LV HH Metered | D68: 0 | E68: 0 | F68: 0 | G68: 0 | H68: 0 | I68: 0 | J68: 0 | K68: 0 | L68: 0 | M68: 0 | N68: 0 | O68: 0 | R68: 0 | S68: 0 | T68: 0 | U68: 0 | V68: 0 | Y68: 0 | Z68: 0 | AA68: 0 | AB68: 0 | AC68: 0 | AF68: 0 | AG68: 0 | AH68: 0 | AI68: 0 | AJ68: 0
A69: 42 | B69: 2 | C69: LV HH Metered | D69: 88440.19018 | E69: 636664.9164 | F69: 540985.3164 | G69: 7358.873392 | H69: 669999.8413 | I69: 26935.33574 | J69: 103729.9852 | K69: 88440.19018 | L69: 636664.9164 | M69: 540985.3164 | N69: 7358.873392 | O69: 669999.8413 | P69: =IF(I69,((VLOOKUP($B69,$E$7:$AI$16,24)+1)*I69),) -> 26935.33574 | Q69: =IF(J69,((VLOOKUP($B69,$E$7:$AI$16,28)+1)*J69),) -> 103729.9852 | R69: 88440.19018 | S69: 636664.9164 | T69: 540985.3164 | U69: 7358.873392 | V69: 669999.8413 | W69: =IF(I69,((VLOOKUP($B69,$E$7:$AI$16,5+20)+1)*P69),) -> 26935.33574 | X69: =IF(J69,((VLOOKUP($B69,$E$7:$AI$16,5+24)+1)*Q69),) -> 103729.9852 | Y69: 88440.19018 | Z69: 636664.9164 | AA69: 540985.3164 | AB69: 7358.873392 | AC69: 669999.8413 | AD69: =IF(I69,((VLOOKUP($B69,$E$7:$AI$16,6+20)+1)*W69),) -> 26935.33574 | AE69: =IF(J69,((VLOOKUP($B69,$E$7:$AI$16,6+24)+1)*X69),) -> 103729.9852 | AF69: 88440.19018 | AG69: 636664.9164 | AH69: 540985.3164 | AI69: 7358.873392 | AJ69: 669999.8413 | AK69: =IF(I69,((VLOOKUP($B69,$E$7:$AI$16,7+20)+1)*AD69),) -> 26935.33574 | AL69: =IF(J69,((VLOOKUP($B69,$E$7:$AI$16,7+24)+1)*AE69),) -> 103729.9852
A70: 43 | B70: 2 | C70: LDNO LV: LV HH Metered | D70: 86.16521614 | E70: 538.6117911 | F70: 513.0487545 | G70: 13.16584969 | H70: 1617.217604 | I70: 0 | J70: 106.3204184 | K70: 86.16521614 | L70: 538.6117911 | M70: 513.0487545 | N70: 13.16584969 | O70: 1617.217604 | P70: =IF(I70,((VLOOKUP($B70,$E$7:$AI$16,24)+1)*I70),) -> 0 | Q70: =IF(J70,((VLOOKUP($B70,$E$7:$AI$16,28)+1)*J70),) -> 106.3204184 | R70: 86.16521614 | S70: 538.6117911 | T70: 513.0487545 | U70: 13.16584969 | V70: 1617.217604 | W70: =IF(I70,((VLOOKUP($B70,$E$7:$AI$16,5+20)+1)*P70),) -> 0 | X70: =IF(J70,((VLOOKUP($B70,$E$7:$AI$16,5+24)+1)*Q70),) -> 106.3204184 | Y70: 86.16521614 | Z70: 538.6117911 | AA70: 513.0487545 | AB70: 13.16584969 | AC70: 1617.217604 | AD70: =IF(I70,((VLOOKUP($B70,$E$7:$AI$16,6+20)+1)*W70),) -> 0 | AE70: =IF(J70,((VLOOKUP($B70,$E$7:$AI$16,6+24)+1)*X70),) -> 106.3204184 | AF70: 86.16521614 | AG70: 538.6117911 | AH70: 513.0487545 | AI70: 13.16584969 | AJ70: 1617.217604 | AK70: =IF(I70,((VLOOKUP($B70,$E$7:$AI$16,7+20)+1)*AD70),) -> 0 | AL70: =IF(J70,((VLOOKUP($B70,$E$7:$AI$16,7+24)+1)*AE70),) -> 106.3204184
A71: 44 | B71: 2 | C71: LDNO HV: LV HH Metered | D71: 4262.877109 | E71: 24227.26939 | F71: 20257.54291 | G71: 191.4203038 | H71: 29908.94749 | I71: 581.7612978 | J71: 2716.187582 | K71: 4262.877109 | L71: 24227.26939 | M71: 20257.54291 | N71: 191.4203038 | O71: 29908.94749 | P71: 581.7612978 | Q71: 2716.187582 | R71: 4262.877109 | S71: 24227.26939 | T71: 20257.54291 | U71: 191.4203038 | V71: 29908.94749 | W71: 581.7612978 | X71: 2716.187582 | Y71: 4262.877109 | Z71: 24227.26939 | AA71: 20257.54291 | AB71: 191.4203038 | AC71: 29908.94749 | AD71: 581.7612978 | AE71: 2716.187582 | AF71: 4262.877109 | AG71: 24227.26939 | AH71: 20257.54291 | AI71: 191.4203038 | AJ71: 29908.94749 | AK71: 581.7612978 | AL71: 2716.187582
A72: 45 | C72: > LV Sub HH Metered | D72: 0 | E72: 0 | F72: 0 | G72: 0 | H72: 0 | I72: 0 | J72: 0 | K72: 0 | L72: 0 | M72: 0 | N72: 0 | O72: 0 | R72: 0 | S72: 0 | T72: 0 | U72: 0 | V72: 0 | Y72: 0 | Z72: 0 | AA72: 0 | AB72: 0 | AC72: 0 | AF72: 0 | AG72: 0 | AH72: 0 | AI72: 0 | AJ72: 0
A73: 46 | B73: 2 | C73: LV Sub HH Metered | D73: 48977.5164 | E73: 361536.8328 | F73: 330106.1002 | G73: 1767.931462 | H73: 352078.7432 | I73: 5897.369936 | J73: 68974.53484 | K73: 48977.5164 | L73: 361536.8328 | M73: 330106.1002 | N73: 1767.931462 | O73: 352078.7432 | P73: =IF(I73,((VLOOKUP($B73,$E$7:$AI$16,24)+1)*I73),) -> 5897.369936 | Q73: =IF(J73,((VLOOKUP($B73,$E$7:$AI$16,28)+1)*J73),) -> 68974.53484 | R73: 48977.5164 | S73: 361536.8328 | T73: 330106.1002 | U73: 1767.931462 | V73: 352078.7432 | W73: =IF(I73,((VLOOKUP($B73,$E$7:$AI$16,5+20)+1)*P73),) -> 5897.369936 | X73: =IF(J73,((VLOOKUP($B73,$E$7:$AI$16,5+24)+1)*Q73),) -> 68974.53484 | Y73: 48977.5164 | Z73: 361536.8328 | AA73: 330106.1002 | AB73: 1767.931462 | AC73: 352078.7432 | AD73: =IF(I73,((VLOOKUP($B73,$E$7:$AI$16,6+20)+1)*W73),) -> 5897.369936 | AE73: =IF(J73,((VLOOKUP($B73,$E$7:$AI$16,6+24)+1)*X73),) -> 68974.53484 | AF73: 48977.5164 | AG73: 361536.8328 | AH73: 330106.1002 | AI73: 1767.931462 | AJ73: 352078.7432 | AK73: =IF(I73,((VLOOKUP($B73,$E$7:$AI$16,7+20)+1)*AD73),) -> 5897.369936 | AL73: =IF(J73,((VLOOKUP($B73,$E$7:$AI$16,7+24)+1)*AE73),) -> 68974.53484
A74: 47 | B74: 2 | C74: LDNO HV: LV Sub HH Metered | D74: 409.7914242 | E74: 2104.566065 | F74: 2395.703292 | G74: 4.351344122 | H74: 2418.217773 | I74: 0 | J74: 404.8937827 | K74: 409.7914242 | L74: 2104.566065 | M74: 2395.703292 | N74: 4.351344122 | O74: 2418.217773 | P74: 0 | Q74: 404.8937827 | R74: 409.7914242 | S74: 2104.566065 | T74: 2395.703292 | U74: 4.351344122 | V74: 2418.217773 | W74: 0 | X74: 404.8937827 | Y74: 409.7914242 | Z74: 2104.566065 | AA74: 2395.703292 | AB74: 4.351344122 | AC74: 2418.217773 | AD74: 0 | AE74: 404.8937827 | AF74: 409.7914242 | AG74: 2104.566065 | AH74: 2395.703292 | AI74: 4.351344122 | AJ74: 2418.217773 | AK74: =IF(I74,((VLOOKUP($B74,$E$7:$AI$16,7+20)+1)*AD74),) -> 0 | AL74: =IF(J74,((VLOOKUP($B74,$E$7:$AI$16,7+24)+1)*AE74),) -> 404.8937827
A75: 48 | C75: > HV HH Metered | D75: 0 | E75: 0 | F75: 0 | G75: 0 | H75: 0 | I75: 0 | J75: 0 | K75: 0 | L75: 0 | M75: 0 | N75: 0 | O75: 0 | R75: 0 | S75: 0 | T75: 0 | U75: 0 | V75: 0 | Y75: 0 | Z75: 0 | AA75: 0 | AB75: 0 | AC75: 0 | AF75: 0 | AG75: 0 | AH75: 0 | AI75: 0 | AJ75: 0
A76: 49 | B76: 2 | C76: HV HH Metered | D76: 158180.58 | E76: 1114577.674 | F76: 1231512.847 | G76: 1242.427106 | H76: 888545.7243 | I76: 12932.01119 | J76: 171554.1734 | K76: 158180.58 | L76: 1114577.674 | M76: 1231512.847 | N76: 1242.427106 | O76: 888545.7243 | P76: =IF(I76,((VLOOKUP($B76,$E$7:$AI$16,24)+1)*I76),) -> 12932.01119 | Q76: =IF(J76,((VLOOKUP($B76,$E$7:$AI$16,28)+1)*J76),) -> 171554.1734 | R76: 158180.58 | S76: 1114577.674 | T76: 1231512.847 | U76: 1242.427106 | V76: 888545.7243 | W76: =IF(I76,((VLOOKUP($B76,$E$7:$AI$16,5+20)+1)*P76),) -> 12932.01119 | X76: =IF(J76,((VLOOKUP($B76,$E$7:$AI$16,5+24)+1)*Q76),) -> 171554.1734 | Y76: 158180.58 | Z76: 1114577.674 | AA76: 1231512.847 | AB76: 1242.427106 | AC76: 888545.7243 | AD76: =IF(I76,((VLOOKUP($B76,$E$7:$AI$16,6+20)+1)*W76),) -> 12932.01119 | AE76: =IF(J76,((VLOOKUP($B76,$E$7:$AI$16,6+24)+1)*X76),) -> 171554.1734 | AF76: 158180.58 | AG76: 1114577.674 | AH76: 1231512.847 | AI76: 1242.427106 | AJ76: 888545.7243 | AK76: =IF(I76,((VLOOKUP($B76,$E$7:$AI$16,7+20)+1)*AD76),) -> 12932.01119 | AL76: =IF(J76,((VLOOKUP($B76,$E$7:$AI$16,7+24)+1)*AE76),) -> 171554.1734
A77: 50 | B77: 2 | C77: LDNO HV: HV HH Metered | D77: 1479.333832 | E77: 8277.244473 | F77: 11213.06626 | G77: 11.17578242 | H77: 16463.86924 | I77: 0 | J77: 616.2023296 | K77: 1479.333832 | L77: 8277.244473 | M77: 11213.06626 | N77: 11.17578242 | O77: 16463.86924 | P77: 0 | Q77: 616.2023296 | R77: 1479.333832 | S77: 8277.244473 | T77: 11213.06626 | U77: 11.17578242 | V77: 16463.86924 | W77: 0 | X77: 616.2023296 | Y77: 1479.333832 | Z77: 8277.244473 | AA77: 11213.06626 | AB77: 11.17578242 | AC77: 16463.86924 | AD77: 0 | AE77: 616.2023296 | AF77: 1479.333832 | AG77: 8277.244473 | AH77: 11213.06626 | AI77: 11.17578242 | AJ77: 16463.86924 | AK77: =IF(I77,((VLOOKUP($B77,$E$7:$AI$16,7+20)+1)*AD77),) -> 0 | AL77: =IF(J77,((VLOOKUP($B77,$E$7:$AI$16,7+24)+1)*AE77),) -> 616.2023296
A78: 51 | C78: > NHH UMS category A | D78: 0 | E78: 0 | F78: 0 | G78: 0 | H78: 0 | I78: 0 | J78: 0 | K78: 0 | L78: 0 | M78: 0 | N78: 0 | O78: 0 | R78: 0 | S78: 0 | T78: 0 | U78: 0 | V78: 0 | Y78: 0 | Z78: 0 | AA78: 0 | AB78: 0 | AC78: 0 | AF78: 0 | AG78: 0 | AH78: 0 | AI78: 0 | AJ78: 0
A79: 52 | B79: 1 | C79: NHH UMS category A | D79: 4068.429323 | E79: 0 | F79: 0 | G79: 818 | H79: 0 | I79: 0 | J79: 0 | K79: 4068.429323 | L79: 0 | M79: 0 | N79: 818 | O79: 0 | R79: 4068.429323 | S79: 0 | T79: 0 | U79: 818 | V79: 0 | Y79: 4068.429323 | Z79: 0 | AA79: 0 | AB79: 818 | AC79: 0 | AF79: 4068.429323 | AG79: 0 | AH79: 0 | AI79: 818 | AJ79: 0
A80: 53 | B80: 1 | C80: LDNO LV: NHH UMS category A | D80: 0 | E80: 0 | F80: 0 | G80: 0 | H80: 0 | I80: 0 | J80: 0 | K80: 0 | L80: 0 | M80: 0 | N80: 0 | O80: 0 | R80: 0 | S80: 0 | T80: 0 | U80: 0 | V80: 0 | Y80: 0 | Z80: 0 | AA80: 0 | AB80: 0 | AC80: 0 | AF80: 0 | AG80: 0 | AH80: 0 | AI80: 0 | AJ80: 0
A81: 54 | B81: 1 | C81: LDNO HV: NHH UMS category A | D81: 207.6954543 | E81: 0 | F81: 0 | G81: 0 | H81: 0 | I81: 0 | J81: 0 | K81: 207.6954543 | L81: 0 | M81: 0 | N81: 0 | O81: 0 | R81: 207.6954543 | S81: 0 | T81: 0 | U81: 0 | V81: 0 | Y81: 207.6954543 | Z81: 0 | AA81: 0 | AB81: 0 | AC81: 0 | AF81: 207.6954543 | AG81: 0 | AH81: 0 | AI81: 0 | AJ81: 0
A82: 55 | C82: > NHH UMS category B | D82: 0 | E82: 0 | F82: 0 | G82: 0 | H82: 0 | I82: 0 | J82: 0 | K82: 0 | L82: 0 | M82: 0 | N82: 0 | O82: 0 | R82: 0 | S82: 0 | T82: 0 | U82: 0 | V82: 0 | Y82: 0 | Z82: 0 | AA82: 0 | AB82: 0 | AC82: 0 | AF82: 0 | AG82: 0 | AH82: 0 | AI82: 0 | AJ82: 0
A83: 56 | B83: 1 | C83: NHH UMS category B | D83: 4958.851789 | E83: 0 | F83: 0 | G83: 759 | H83: 0 | I83: 0 | J83: 0 | K83: 4958.851789 | L83: 0 | M83: 0 | N83: 759 | O83: 0 | R83: 4958.851789 | S83: 0 | T83: 0 | U83: 759 | V83: 0 | Y83: 4958.851789 | Z83: 0 | AA83: 0 | AB83: 759 | AC83: 0 | AF83: 4958.851789 | AG83: 0 | AH83: 0 | AI83: 759 | AJ83: 0
A84: 57 | B84: 1 | C84: LDNO LV: NHH UMS category B | D84: 133.9819522 | E84: 0 | F84: 0 | G84: 0 | H84: 0 | I84: 0 | J84: 0 | K84: 133.9819522 | L84: 0 | M84: 0 | N84: 0 | O84: 0 | R84: 133.9819522 | S84: 0 | T84: 0 | U84: 0 | V84: 0 | Y84: 133.9819522 | Z84: 0 | AA84: 0 | AB84: 0 | AC84: 0 | AF84: 133.9819522 | AG84: 0 | AH84: 0 | AI84: 0 | AJ84: 0
A85: 58 | B85: 1 | C85: LDNO HV: NHH UMS category B | D85: 454.6986531 | E85: 0 | F85: 0 | G85: 0 | H85: 0 | I85: 0 | J85: 0 | K85: 454.6986531 | L85: 0 | M85: 0 | N85: 0 | O85: 0 | R85: 454.6986531 | S85: 0 | T85: 0 | U85: 0 | V85: 0 | Y85: 454.6986531 | Z85: 0 | AA85: 0 | AB85: 0 | AC85: 0 | AF85: 454.6986531 | AG85: 0 | AH85: 0 | AI85: 0 | AJ85: 0
A86: 59 | C86: > NHH UMS category C | D86: 0 | E86: 0 | F86: 0 | G86: 0 | H86: 0 | I86: 0 | J86: 0 | K86: 0 | L86: 0 | M86: 0 | N86: 0 | O86: 0 | R86: 0 | S86: 0 | T86: 0 | U86: 0 | V86: 0 | Y86: 0 | Z86: 0 | AA86: 0 | AB86: 0 | AC86: 0 | AF86: 0 | AG86: 0 | AH86: 0 | AI86: 0 | AJ86: 0
A87: 60 | B87: 1 | C87: NHH UMS category C | D87: 593.783964 | E87: 0 | F87: 0 | G87: 191 | H87: 0 | I87: 0 | J87: 0 | K87: 593.783964 | L87: 0 | M87: 0 | N87: 191 | O87: 0 | R87: 593.783964 | S87: 0 | T87: 0 | U87: 191 | V87: 0 | Y87: 593.783964 | Z87: 0 | AA87: 0 | AB87: 191 | AC87: 0 | AF87: 593.783964 | AG87: 0 | AH87: 0 | AI87: 191 | AJ87: 0
A88: 61 | B88: 1 | C88: LDNO LV: NHH UMS category C | D88: 0.0192010544 | E88: 0 | F88: 0 | G88: 0 | H88: 0 | I88: 0 | J88: 0 | K88: 0.0192010544 | L88: 0 | M88: 0 | N88: 0 | O88: 0 | R88: 0.0192010544 | S88: 0 | T88: 0 | U88: 0 | V88: 0 | Y88: 0.0192010544 | Z88: 0 | AA88: 0 | AB88: 0 | AC88: 0 | AF88: 0.0192010544 | AG88: 0 | AH88: 0 | AI88: 0 | AJ88: 0
A89: 62 | B89: 1 | C89: LDNO HV: NHH UMS category C | D89: 3.959794337 | E89: 0 | F89: 0 | G89: 0 | H89: 0 | I89: 0 | J89: 0 | K89: 3.959794337 | L89: 0 | M89: 0 | N89: 0 | O89: 0 | R89: 3.959794337 | S89: 0 | T89: 0 | U89: 0 | V89: 0 | Y89: 3.959794337 | Z89: 0 | AA89: 0 | AB89: 0 | AC89: 0 | AF89: 3.959794337 | AG89: 0 | AH89: 0 | AI89: 0 | AJ89: 0
A90: 63 | C90: > NHH UMS category D | D90: 0 | E90: 0 | F90: 0 | G90: 0 | H90: 0 | I90: 0 | J90: 0 | K90: 0 | L90: 0 | M90: 0 | N90: 0 | O90: 0 | R90: 0 | S90: 0 | T90: 0 | U90: 0 | V90: 0 | Y90: 0 | Z90: 0 | AA90: 0 | AB90: 0 | AC90: 0 | AF90: 0 | AG90: 0 | AH90: 0 | AI90: 0 | AJ90: 0
A91: 64 | B91: 1 | C91: NHH UMS category D | D91: 0 | E91: 0 | F91: 0 | G91: 0 | H91: 0 | I91: 0 | J91: 0 | K91: 0 | L91: 0 | M91: 0 | N91: 0 | O91: 0 | R91: 0 | S91: 0 | T91: 0 | U91: 0 | V91: 0 | Y91: 0 | Z91: 0 | AA91: 0 | AB91: 0 | AC91: 0 | AF91: 0 | AG91: 0 | AH91: 0 | AI91: 0 | AJ91: 0
A92: 65 | B92: 1 | C92: LDNO LV: NHH UMS category D | D92: 0 | E92: 0 | F92: 0 | G92: 0 | H92: 0 | I92: 0 | J92: 0 | K92: 0 | L92: 0 | M92: 0 | N92: 0 | O92: 0 | R92: 0 | S92: 0 | T92: 0 | U92: 0 | V92: 0 | Y92: 0 | Z92: 0 | AA92: 0 | AB92: 0 | AC92: 0 | AF92: 0 | AG92: 0 | AH92: 0 | AI92: 0 | AJ92: 0
A93: 66 | B93: 1 | C93: LDNO HV: NHH UMS category D | D93: 0 | E93: 0 | F93: 0 | G93: 0 | H93: 0 | I93: 0 | J93: 0 | K93: 0 | L93: 0 | M93: 0 | N93: 0 | O93: 0 | R93: 0 | S93: 0 | T93: 0 | U93: 0 | V93: 0 | Y93: 0 | Z93: 0 | AA93: 0 | AB93: 0 | AC93: 0 | AF93: 0 | AG93: 0 | AH93: 0 | AI93: 0 | AJ93: 0
A94: =A93+1 -> 67 | C94: > LV UMS (Pseudo HH Metered) | D94: 0 | E94: 0 | F94: 0 | G94: 0 | H94: 0 | I94: 0 | J94: 0 | K94: =IF(D94,((VLOOKUP($B94,$E$7:$AI$16,4)+1)*D94),) -> 0 | L94: =IF(E94,((VLOOKUP($B94,$E$7:$AI$16,8)+1)*E94),) -> 0 | M94: =IF(F94,((VLOOKUP($B94,$E$7:$AI$16,12)+1)*F94),) -> 0 | N94: =IF(G94,((VLOOKUP($B94,$E$7:$AI$16,16)+1)*G94),) -> 0 | O94: =IF(H94,((VLOOKUP($B94,$E$7:$AI$16,20)+1)*H94),) -> 0 | R94: =IF(D94,((VLOOKUP($B94,$E$7:$AI$16,5)+1)*K94),) -> 0 | S94: =IF(E94,((VLOOKUP($B94,$E$7:$AI$16,5+4)+1)*L94),) -> 0 | T94: =IF(F94,((VLOOKUP($B94,$E$7:$AI$16,5+8)+1)*M94),) -> 0 | U94: =IF(G94,((VLOOKUP($B94,$E$7:$AI$16,5+12)+1)*N94),) -> 0 | V94: =IF(H94,((VLOOKUP($B94,$E$7:$AI$16,5+16)+1)*O94),) -> 0 | Y94: =IF(D94,((VLOOKUP($B94,$E$7:$AI$16,6)+1)*R94),) -> 0 | Z94: =IF(E94,((VLOOKUP($B94,$E$7:$AI$16,6+4)+1)*S94),) -> 0 | AA94: =IF(F94,((VLOOKUP($B94,$E$7:$AI$16,6+8)+1)*T94),) -> 0 | AB94: =IF(G94,((VLOOKUP($B94,$E$7:$AI$16,6+12)+1)*U94),) -> 0 | AC94: =IF(H94,((VLOOKUP($B94,$E$7:$AI$16,6+16)+1)*V94),) -> 0 | AF94: =IF(D94,((VLOOKUP($B94,$E$7:$AI$16,7)+1)*Y94),) -> 0 | AG94: =IF(E94,((VLOOKUP($B94,$E$7:$AI$16,7+4)+1)*Z94),) -> 0 | AH94: =IF(F94,((VLOOKUP($B94,$E$7:$AI$16,7+8)+1)*AA94),) -> 0 | AI94: =IF(G94,((VLOOKUP($B94,$E$7:$AI$16,7+12)+1)*AB94),) -> 0 | AJ94: =IF(H94,((VLOOKUP($B94,$E$7:$AI$16,7+16)+1)*AC94),) -> 0
A95: 68 | B95: 2 | C95: LV UMS (Pseudo HH Metered) | D95: 4025.426365 | E95: 30461.37997 | F95: 87397.55944 | G95: 22.33060109 | H95: 0 | I95: 0 | J95: 0 | K95: 4025.426365 | L95: 30461.37997 | M95: 87397.55944 | N95: 22.33060109 | O95: 0 | R95: 4025.426365 | S95: 30461.37997 | T95: 87397.55944 | U95: 22.33060109 | V95: 0 | Y95: 4025.426365 | Z95: 30461.37997 | AA95: 87397.55944 | AB95: 22.33060109 | AC95: 0 | AF95: 4025.426365 | AG95: 30461.37997 | AH95: 87397.55944 | AI95: 22.33060109 | AJ95: 0
A96: 69 | B96: 2 | C96: LDNO LV: LV UMS (Pseudo HH Metered) | D96: 0 | E96: 0 | F96: 0 | G96: 0 | H96: 0 | I96: 0 | J96: 0 | K96: 0 | L96: 0 | M96: 0 | N96: 0 | O96: 0 | R96: 0 | S96: 0 | T96: 0 | U96: 0 | V96: 0 | Y96: 0 | Z96: 0 | AA96: 0 | AB96: 0 | AC96: 0 | AF96: 0 | AG96: 0 | AH96: 0 | AI96: 0 | AJ96: 0
A97: 70 | B97: 2 | C97: LDNO HV: LV UMS (Pseudo HH Metered) | D97: 2.06307143 | E97: 7.29268794 | F97: 41.1568347 | G97: 1.693852573 | H97: 0 | I97: 0 | J97: 0 | K97: 2.06307143 | L97: 7.29268794 | M97: 41.1568347 | N97: 1.693852573 | O97: 0 | R97: 2.06307143 | S97: 7.29268794 | T97: 41.1568347 | U97: 1.693852573 | V97: 0 | Y97: 2.06307143 | Z97: 7.29268794 | AA97: 41.1568347 | AB97: 1.693852573 | AC97: 0 | AF97: 2.06307143 | AG97: 7.29268794 | AH97: 41.1568347 | AI97: 1.693852573 | AJ97: 0
A98: 71 | C98: > LV Generation NHH or Aggregate HH | D98: 0 | E98: 0 | F98: 0 | G98: 0 | H98: 0 | I98: 0 | J98: 0 | K98: 0 | L98: 0 | M98: 0 | N98: 0 | O98: 0 | R98: 0 | S98: 0 | T98: 0 | U98: 0 | V98: 0 | Y98: 0 | Z98: 0 | AA98: 0 | AB98: 0 | AC98: 0 | AF98: 0 | AG98: 0 | AH98: 0 | AI98: 0 | AJ98: 0
A99: 72 | B99: 4 | C99: LV Generation NHH or Aggregate HH | D99: 3884.145239 | E99: 0 | F99: 0 | G99: 332 | H99: 0 | I99: 0 | J99: 0 | K99: 3884.145239 | L99: 0 | M99: 0 | N99: 332 | O99: 0 | R99: 3884.145239 | S99: 0 | T99: 0 | U99: 332 | V99: 0 | Y99: 3884.145239 | Z99: 0 | AA99: 0 | AB99: 332 | AC99: 0 | AF99: 3884.145239 | AG99: 0 | AH99: 0 | AI99: 332 | AJ99: 0
A100: 73 | B100: 4 | C100: LDNO LV: LV Generation NHH or Aggregate HH | D100: 78.22429457 | E100: 0 | F100: 0 | G100: 0 | H100: 0 | I100: 0 | J100: 0 | K100: 78.22429457 | L100: 0 | M100: 0 | N100: 0 | O100: 0 | R100: 78.22429457 | S100: 0 | T100: 0 | U100: 0 | V100: 0 | Y100: 78.22429457 | Z100: 0 | AA100: 0 | AB100: 0 | AC100: 0 | AF100: 78.22429457 | AG100: 0 | AH100: 0 | AI100: 0 | AJ100: 0
A101: 74 | B101: 4 | C101: LDNO HV: LV Generation NHH or Aggregate HH | D101: 0 | E101: 0 | F101: 0 | G101: 0 | H101: 0 | I101: 0 | J101: 0 | K101: 0 | L101: 0 | M101: 0 | N101: 0 | O101: 0 | R101: 0 | S101: 0 | T101: 0 | U101: 0 | V101: 0 | Y101: 0 | Z101: 0 | AA101: 0 | AB101: 0 | AC101: 0 | AF101: 0 | AG101: 0 | AH101: 0 | AI101: 0 | AJ101: 0
A102: 75 | C102: > LV Sub Generation NHH | D102: 0 | E102: 0 | F102: 0 | G102: 0 | H102: 0 | I102: 0 | J102: 0 | K102: 0 | L102: 0 | M102: 0 | N102: 0 | O102: 0 | R102: 0 | S102: 0 | T102: 0 | U102: 0 | V102: 0 | Y102: 0 | Z102: 0 | AA102: 0 | AB102: 0 | AC102: 0 | AF102: 0 | AG102: 0 | AH102: 0 | AI102: 0 | AJ102: 0
A103: 76 | B103: 4 | C103: LV Sub Generation NHH | D103: 0 | E103: 0 | F103: 0 | G103: 0 | H103: 0 | I103: 0 | J103: 0 | K103: 0 | L103: 0 | M103: 0 | N103: 0 | O103: 0 | R103: 0 | S103: 0 | T103: 0 | U103: 0 | V103: 0 | Y103: 0 | Z103: 0 | AA103: 0 | AB103: 0 | AC103: 0 | AF103: 0 | AG103: 0 | AH103: 0 | AI103: 0 | AJ103: 0
A104: 77 | B104: 4 | C104: LDNO HV: LV Sub Generation NHH | D104: 0 | E104: 0 | F104: 0 | G104: 0 | H104: 0 | I104: 0 | J104: 0 | K104: 0 | L104: 0 | M104: 0 | N104: 0 | O104: 0 | R104: 0 | S104: 0 | T104: 0 | U104: 0 | V104: 0 | Y104: 0 | Z104: 0 | AA104: 0 | AB104: 0 | AC104: 0 | AF104: 0 | AG104: 0 | AH104: 0 | AI104: 0 | AJ104: 0
A105: 78 | C105: > LV Generation Intermittent | D105: 0 | E105: 0 | F105: 0 | G105: 0 | J105: 0 | K105: 0 | L105: 0 | M105: 0 | N105: 0 | O105: 0 | R105: 0 | S105: 0 | T105: 0 | U105: 0 | V105: 0 | Y105: 0 | Z105: 0 | AA105: 0 | AB105: 0 | AC105: 0 | AF105: 0 | AG105: 0 | AH105: 0 | AI105: 0 | AJ105: 0
A106: 79 | B106: 4 | C106: LV Generation Intermittent | D106: 70648.16806 | E106: 0 | F106: 0 | G106: 949.8952923 | J106: 6652.62173 | K106: 70648.16806 | L106: 0 | M106: 0 | N106: 949.8952923 | O106: 0 | Q106: =IF(J106,((VLOOKUP($B106,$E$7:$AI$16,28)+1)*J106),) -> 6652.62173 | R106: 70648.16806 | S106: 0 | T106: 0 | U106: 949.8952923 | V106: 0 | X106: =IF(J106,((VLOOKUP($B106,$E$7:$AI$16,5+24)+1)*Q106),) -> 6652.62173 | Y106: 70648.16806 | Z106: 0 | AA106: 0 | AB106: 949.8952923 | AC106: 0 | AE106: =IF(J106,((VLOOKUP($B106,$E$7:$AI$16,6+24)+1)*X106),) -> 6652.62173 | AF106: 70648.16806 | AG106: 0 | AH106: 0 | AI106: 949.8952923 | AJ106: 0 | AL106: =IF(J106,((VLOOKUP($B106,$E$7:$AI$16,7+24)+1)*AE106),) -> 6652.62173
A107: 80 | B107: 4 | C107: LDNO LV: LV Generation Intermittent | D107: 0 | E107: 0 | F107: 0 | G107: 0 | J107: 0 | K107: 0 | L107: 0 | M107: 0 | N107: 0 | O107: 0 | Q107: 0 | R107: 0 | S107: 0 | T107: 0 | U107: 0 | V107: 0 | X107: 0 | Y107: 0 | Z107: 0 | AA107: 0 | AB107: 0 | AC107: 0 | AE107: 0 | AF107: 0 | AG107: 0 | AH107: 0 | AI107: 0 | AJ107: 0 | AL107: 0
A108: 81 | B108: 4 | C108: LDNO HV: LV Generation Intermittent | D108: 1073.963274 | G108: 4.03442623 | J108: 0.6418212429 | K108: 1073.963274 | L108: 0 | M108: 0 | N108: 4.03442623 | O108: 0 | Q108: 0.6418212429 | R108: 1073.963274 | S108: 0 | T108: 0 | U108: 4.03442623 | V108: 0 | X108: 0.6418212429 | Y108: 1073.963274 | Z108: 0 | AA108: 0 | AB108: 4.03442623 | AC108: 0 | AE108: 0.6418212429 | AF108: 1073.963274 | AG108: 0 | AH108: 0 | AI108: 4.03442623 | AJ108: 0 | AL108: 0.6418212429
A109: 82 | C109: > LV Generation Intermittent no RP charge | D109: 0 | E109: 0 | F109: 0 | G109: 0 | J109: 0 | K109: 0 | L109: 0 | M109: 0 | N109: 0 | O109: 0 | R109: 0 | S109: 0 | T109: 0 | U109: 0 | V109: 0 | Y109: 0 | Z109: 0 | AA109: 0 | AB109: 0 | AC109: 0 | AF109: 0 | AG109: 0 | AH109: 0 | AI109: 0 | AJ109: 0
A110: 83 | B110: 4 | C110: LV Generation Intermittent no RP charge | D110: 0 | E110: 0 | F110: 0 | G110: 0 | J110: 0 | K110: 0 | L110: 0 | M110: 0 | N110: 0 | O110: 0 | R110: 0 | S110: 0 | T110: 0 | U110: 0 | V110: 0 | Y110: 0 | Z110: 0 | AA110: 0 | AB110: 0 | AC110: 0 | AF110: 0 | AG110: 0 | AH110: 0 | AI110: 0 | AJ110: 0
A111: 84 | C111: > LV Generation Non-Intermittent | D111: 0 | E111: 0 | F111: 0 | G111: 0 | J111: 0 | K111: 0 | L111: 0 | M111: 0 | N111: 0 | O111: 0 | R111: 0 | S111: 0 | T111: 0 | U111: 0 | V111: 0 | Y111: 0 | Z111: 0 | AA111: 0 | AB111: 0 | AC111: 0 | AF111: 0 | AG111: 0 | AH111: 0 | AI111: 0 | AJ111: 0
A112: 85 | B112: 4 | C112: LV Generation Non-Intermittent | D112: 227.8877878 | E112: 1445.789302 | F112: 2003.03914 | G112: 18.34156352 | J112: 646.0717253 | K112: 227.8877878 | L112: 1445.789302 | M112: 2003.03914 | N112: 18.34156352 | O112: 0 | Q112: =IF(J112,((VLOOKUP($B112,$E$7:$AI$16,28)+1)*J112),) -> 646.0717253 | R112: 227.8877878 | S112: 1445.789302 | T112: 2003.03914 | U112: 18.34156352 | V112: 0 | X112: =IF(J112,((VLOOKUP($B112,$E$7:$AI$16,5+24)+1)*Q112),) -> 646.0717253 | Y112: 227.8877878 | Z112: 1445.789302 | AA112: 2003.03914 | AB112: 18.34156352 | AC112: 0 | AE112: =IF(J112,((VLOOKUP($B112,$E$7:$AI$16,6+24)+1)*X112),) -> 646.0717253 | AF112: 227.8877878 | AG112: 1445.789302 | AH112: 2003.03914 | AI112: 18.34156352 | AJ112: 0 | AL112: =IF(J112,((VLOOKUP($B112,$E$7:$AI$16,7+24)+1)*AE112),) -> 646.0717253
A113: 86 | B113: 4 | C113: LDNO LV: LV Generation Non-Intermittent | D113: 0 | E113: 0 | F113: 0 | G113: 0 | J113: 0 | K113: 0 | L113: 0 | M113: 0 | N113: 0 | O113: 0 | Q113: 0 | R113: 0 | S113: 0 | T113: 0 | U113: 0 | V113: 0 | X113: 0 | Y113: 0 | Z113: 0 | AA113: 0 | AB113: 0 | AC113: 0 | AE113: 0 | AF113: 0 | AG113: 0 | AH113: 0 | AI113: 0 | AJ113: 0 | AL113: 0
A114: 87 | B114: 4 | C114: LDNO HV: LV Generation Non-Intermittent | D114: 0 | E114: 0 | F114: 0 | G114: 0 | J114: 0 | K114: 0 | L114: 0 | M114: 0 | N114: 0 | O114: 0 | Q114: 0 | R114: 0 | S114: 0 | T114: 0 | U114: 0 | V114: 0 | X114: 0 | Y114: 0 | Z114: 0 | AA114: 0 | AB114: 0 | AC114: 0 | AE114: 0 | AF114: 0 | AG114: 0 | AH114: 0 | AI114: 0 | AJ114: 0 | AL114: =IF(J114,((VLOOKUP($B114,$E$7:$AI$16,7+24)+1)*AE114),) -> 0
A115: 88 | C115: > LV Generation Non-Intermittent no RP charge | D115: 0 | E115: 0 | F115: 0 | G115: 0 | J115: 0 | K115: 0 | L115: 0 | M115: 0 | N115: 0 | O115: 0 | R115: 0 | S115: 0 | T115: 0 | U115: 0 | V115: 0 | Y115: 0 | Z115: 0 | AA115: 0 | AB115: 0 | AC115: 0 | AF115: 0 | AG115: 0 | AH115: 0 | AI115: 0 | AJ115: 0
A116: 89 | B116: 4 | C116: LV Generation Non-Intermittent no RP charge | D116: 0 | E116: 0 | F116: 0 | G116: 0 | J116: 0 | K116: 0 | L116: 0 | M116: 0 | N116: 0 | O116: 0 | R116: 0 | S116: 0 | T116: 0 | U116: 0 | V116: 0 | Y116: 0 | Z116: 0 | AA116: 0 | AB116: 0 | AC116: 0 | AF116: 0 | AG116: 0 | AH116: 0 | AI116: 0 | AJ116: 0
A117: 90 | C117: > LV Sub Generation Intermittent | D117: 0 | E117: 0 | F117: 0 | G117: 0 | J117: 0 | K117: 0 | L117: 0 | M117: 0 | N117: 0 | O117: 0 | R117: 0 | S117: 0 | T117: 0 | U117: 0 | V117: 0 | Y117: 0 | Z117: 0 | AA117: 0 | AB117: 0 | AC117: 0 | AF117: 0 | AG117: 0 | AH117: 0 | AI117: 0 | AJ117: 0
A118: 91 | B118: 4 | C118: LV Sub Generation Intermittent | D118: 11531.7894 | E118: 0 | F118: 0 | G118: 129.0496407 | J118: 1450.804581 | K118: 11531.7894 | L118: 0 | M118: 0 | N118: 129.0496407 | O118: 0 | Q118: =IF(J118,((VLOOKUP($B118,$E$7:$AI$16,28)+1)*J118),) -> 1450.804581 | R118: 11531.7894 | S118: 0 | T118: 0 | U118: 129.0496407 | V118: 0 | X118: =IF(J118,((VLOOKUP($B118,$E$7:$AI$16,5+24)+1)*Q118),) -> 1450.804581 | Y118: 11531.7894 | Z118: 0 | AA118: 0 | AB118: 129.0496407 | AC118: 0 | AE118: =IF(J118,((VLOOKUP($B118,$E$7:$AI$16,6+24)+1)*X118),) -> 1450.804581 | AF118: 11531.7894 | AG118: 0 | AH118: 0 | AI118: 129.0496407 | AJ118: 0 | AL118: =IF(J118,((VLOOKUP($B118,$E$7:$AI$16,7+24)+1)*AE118),) -> 1450.804581
A119: 92 | B119: 4 | C119: LDNO HV: LV Sub Generation Intermittent | D119: 0 | E119: 0 | F119: 0 | G119: 0 | J119: 0 | K119: 0 | L119: 0 | M119: 0 | N119: 0 | O119: 0 | Q119: 0 | R119: 0 | S119: 0 | T119: 0 | U119: 0 | V119: 0 | X119: 0 | Y119: 0 | Z119: 0 | AA119: 0 | AB119: 0 | AC119: 0 | AE119: 0 | AF119: 0 | AG119: 0 | AH119: 0 | AI119: 0 | AJ119: 0 | AL119: 0
A120: 93 | C120: > LV Sub Generation Intermittent no RP charge | D120: 0 | E120: 0 | F120: 0 | G120: 0 | J120: 0 | K120: 0 | L120: 0 | M120: 0 | N120: 0 | O120: 0 | R120: 0 | S120: 0 | T120: 0 | U120: 0 | V120: 0 | Y120: 0 | Z120: 0 | AA120: 0 | AB120: 0 | AC120: 0 | AF120: 0 | AG120: 0 | AH120: 0 | AI120: 0 | AJ120: 0
A121: 94 | B121: 4 | C121: LV Sub Generation Intermittent no RP charge | D121: 0 | E121: 0 | F121: 0 | G121: 0 | J121: 0 | K121: 0 | L121: 0 | M121: 0 | N121: 0 | O121: 0 | R121: 0 | S121: 0 | T121: 0 | U121: 0 | V121: 0 | Y121: 0 | Z121: 0 | AA121: 0 | AB121: 0 | AC121: 0 | AF121: 0 | AG121: 0 | AH121: 0 | AI121: 0 | AJ121: 0
A122: 95 | C122: > LV Sub Generation Non-Intermittent | D122: 0 | E122: 0 | F122: 0 | G122: 0 | J122: 0 | K122: 0 | L122: 0 | M122: 0 | N122: 0 | O122: 0 | R122: 0 | S122: 0 | T122: 0 | U122: 0 | V122: 0 | Y122: 0 | Z122: 0 | AA122: 0 | AB122: 0 | AC122: 0 | AF122: 0 | AG122: 0 | AH122: 0 | AI122: 0 | AJ122: 0
A123: 96 | B123: 4 | C123: LV Sub Generation Non-Intermittent | D123: 264.2177213 | E123: 1475.703139 | F123: 2402.10967 | G123: 13.12969057 | J123: 631.4905013 | K123: 264.2177213 | L123: 1475.703139 | M123: 2402.10967 | N123: 13.12969057 | O123: 0 | Q123: =IF(J123,((VLOOKUP($B123,$E$7:$AI$16,28)+1)*J123),) -> 631.4905013 | R123: 264.2177213 | S123: 1475.703139 | T123: 2402.10967 | U123: 13.12969057 | V123: 0 | X123: =IF(J123,((VLOOKUP($B123,$E$7:$AI$16,5+24)+1)*Q123),) -> 631.4905013 | Y123: 264.2177213 | Z123: 1475.703139 | AA123: 2402.10967 | AB123: 13.12969057 | AC123: 0 | AE123: =IF(J123,((VLOOKUP($B123,$E$7:$AI$16,6+24)+1)*X123),) -> 631.4905013 | AF123: 264.2177213 | AG123: 1475.703139 | AH123: 2402.10967 | AI123: 13.12969057 | AJ123: 0 | AL123: =IF(J123,((VLOOKUP($B123,$E$7:$AI$16,7+24)+1)*AE123),) -> 631.4905013
A124: 97 | B124: 4 | C124: LDNO HV: LV Sub Generation Non-Intermittent | D124: 0 | E124: 0 | F124: 0 | G124: 0 | J124: 0 | K124: 0 | L124: 0 | M124: 0 | N124: 0 | O124: 0 | Q124: 0 | R124: 0 | S124: 0 | T124: 0 | U124: 0 | V124: 0 | X124: 0 | Y124: 0 | Z124: 0 | AA124: 0 | AB124: 0 | AC124: 0 | AE124: 0 | AF124: 0 | AG124: 0 | AH124: 0 | AI124: 0 | AJ124: 0 | AL124: 0
A125: 98 | C125: > LV Sub Generation Non-Intermittent no RP charge | D125: 0 | E125: 0 | F125: 0 | G125: 0 | J125: 0 | K125: 0 | L125: 0 | M125: 0 | N125: 0 | O125: 0 | R125: 0 | S125: 0 | T125: 0 | U125: 0 | V125: 0 | Y125: 0 | Z125: 0 | AA125: 0 | AB125: 0 | AC125: 0 | AF125: 0 | AG125: 0 | AH125: 0 | AI125: 0 | AJ125: 0
A126: 99 | B126: 4 | C126: LV Sub Generation Non-Intermittent no RP charge | D126: 0 | E126: 0 | F126: 0 | G126: 0 | J126: 0 | K126: 0 | L126: 0 | M126: 0 | N126: 0 | O126: 0 | R126: 0 | S126: 0 | T126: 0 | U126: 0 | V126: 0 | Y126: 0 | Z126: 0 | AA126: 0 | AB126: 0 | AC126: 0 | AF126: 0 | AG126: 0 | AH126: 0 | AI126: 0 | AJ126: 0
A127: 100 | C127: > HV Generation Intermittent | D127: 0 | E127: 0 | F127: 0 | G127: 0 | J127: 0 | K127: 0 | L127: 0 | M127: 0 | N127: 0 | O127: 0 | R127: 0 | S127: 0 | T127: 0 | U127: 0 | V127: 0 | Y127: 0 | Z127: 0 | AA127: 0 | AB127: 0 | AC127: 0 | AF127: 0 | AG127: 0 | AH127: 0 | AI127: 0 | AJ127: 0
A128: 101 | B128: 4 | C128: HV Generation Intermittent | D128: 407729.8752 | E128: 0 | F128: 0 | G128: 252.79925 | J128: 4529.077871 | K128: 407729.8752 | L128: 0 | M128: 0 | N128: 252.79925 | O128: 0 | Q128: =IF(J128,((VLOOKUP($B128,$E$7:$AI$16,28)+1)*J128),) -> 4529.077871 | R128: 407729.8752 | S128: 0 | T128: 0 | U128: 252.79925 | V128: 0 | X128: =IF(J128,((VLOOKUP($B128,$E$7:$AI$16,5+24)+1)*Q128),) -> 4529.077871 | Y128: 407729.8752 | Z128: 0 | AA128: 0 | AB128: 252.79925 | AC128: 0 | AE128: =IF(J128,((VLOOKUP($B128,$E$7:$AI$16,6+24)+1)*X128),) -> 4529.077871 | AF128: 407729.8752 | AG128: 0 | AH128: 0 | AI128: 252.79925 | AJ128: 0 | AL128: =IF(J128,((VLOOKUP($B128,$E$7:$AI$16,7+24)+1)*AE128),) -> 4529.077871
A129: 102 | B129: 4 | C129: LDNO HV: HV Generation Intermittent | D129: 10.9835856 | G129: 1.566262295 | J129: 0 | K129: 10.9835856 | L129: 0 | M129: 0 | N129: 1.566262295 | O129: 0 | Q129: 0 | R129: 10.9835856 | S129: 0 | T129: 0 | U129: 1.566262295 | V129: 0 | X129: 0 | Y129: 10.9835856 | Z129: 0 | AA129: 0 | AB129: 1.566262295 | AC129: 0 | AE129: 0 | AF129: 10.9835856 | AG129: 0 | AH129: 0 | AI129: 1.566262295 | AJ129: 0 | AL129: 0
A130: 103 | C130: > HV Generation Intermittent no RP charge | D130: 0 | E130: 0 | F130: 0 | G130: 0 | J130: 0 | K130: 0 | L130: 0 | M130: 0 | N130: 0 | O130: 0 | R130: 0 | S130: 0 | T130: 0 | U130: 0 | V130: 0 | Y130: 0 | Z130: 0 | AA130: 0 | AB130: 0 | AC130: 0 | AF130: 0 | AG130: 0 | AH130: 0 | AI130: 0 | AJ130: 0
A131: 104 | B131: 4 | C131: HV Generation Intermittent no RP charge | D131: 0 | E131: 0 | F131: 0 | G131: 0 | J131: 0 | K131: 0 | L131: 0 | M131: 0 | N131: 0 | O131: 0 | R131: 0 | S131: 0 | T131: 0 | U131: 0 | V131: 0 | Y131: 0 | Z131: 0 | AA131: 0 | AB131: 0 | AC131: 0 | AF131: 0 | AG131: 0 | AH131: 0 | AI131: 0 | AJ131: 0
A132: 105 | C132: > HV Generation Non-Intermittent | D132: 0 | E132: 0 | F132: 0 | G132: 0 | J132: 0 | K132: 0 | L132: 0 | M132: 0 | N132: 0 | O132: 0 | R132: 0 | S132: 0 | T132: 0 | U132: 0 | V132: 0 | Y132: 0 | Z132: 0 | AA132: 0 | AB132: 0 | AC132: 0 | AF132: 0 | AG132: 0 | AH132: 0 | AI132: 0 | AJ132: 0
A133: 106 | B133: 4 | C133: HV Generation Non-Intermittent | D133: 17033.16591 | E133: 85342.19072 | F133: 115386.5906 | G133: 68.90640061 | J133: 3896.522863 | K133: 17033.16591 | L133: 85342.19072 | M133: 115386.5906 | N133: 68.90640061 | O133: 0 | Q133: =IF(J133,((VLOOKUP($B133,$E$7:$AI$16,28)+1)*J133),) -> 3896.522863 | R133: 17033.16591 | S133: 85342.19072 | T133: 115386.5906 | U133: 68.90640061 | V133: 0 | X133: =IF(J133,((VLOOKUP($B133,$E$7:$AI$16,5+24)+1)*Q133),) -> 3896.522863 | Y133: 17033.16591 | Z133: 85342.19072 | AA133: 115386.5906 | AB133: 68.90640061 | AC133: 0 | AE133: =IF(J133,((VLOOKUP($B133,$E$7:$AI$16,6+24)+1)*X133),) -> 3896.522863 | AF133: 17033.16591 | AG133: 85342.19072 | AH133: 115386.5906 | AI133: 68.90640061 | AJ133: 0 | AL133: =IF(J133,((VLOOKUP($B133,$E$7:$AI$16,7+24)+1)*AE133),) -> 3896.522863
A134: 107 | B134: 4 | C134: LDNO HV: HV Generation Non-Intermittent | D134: 0.01858734545 | E134: 0.5929782591 | F134: 2.309856941 | G134: 1.214852459 | J134: 0.37434915 | K134: 0.01858734545 | L134: 0.5929782591 | M134: 2.309856941 | N134: 1.214852459 | O134: 0 | Q134: 0.37434915 | R134: 0.01858734545 | S134: 0.5929782591 | T134: 2.309856941 | U134: 1.214852459 | V134: 0 | X134: 0.37434915 | Y134: 0.01858734545 | Z134: 0.5929782591 | AA134: 2.309856941 | AB134: 1.214852459 | AC134: 0 | AE134: 0.37434915 | AF134: 0.01858734545 | AG134: 0.5929782591 | AH134: 2.309856941 | AI134: 1.214852459 | AJ134: 0 | AL134: 0.37434915
A135: 108 | C135: > HV Generation Non-Intermittent no RP charge | D135: 0 | E135: 0 | F135: 0 | G135: 0 | H135: 0 | I135: 0 | J135: 0 | K135: 0 | L135: 0 | M135: 0 | N135: 0 | O135: 0 | R135: 0 | S135: 0 | T135: 0 | U135: 0 | V135: 0 | Y135: 0 | Z135: 0 | AA135: 0 | AB135: 0 | AC135: 0 | AF135: 0 | AG135: 0 | AH135: 0 | AI135: 0 | AJ135: 0
A136: 109 | B136: 4 | C136: HV Generation Non-Intermittent no RP charge | D136: 0 | E136: 0 | F136: 0 | G136: 0 | H136: 0 | I136: 0 | J136: 0 | K136: 0 | L136: 0 | M136: 0 | N136: 0 | O136: 0 | R136: 0 | S136: 0 | T136: 0 | U136: 0 | V136: 0 | Y136: 0 | Z136: 0 | AA136: 0 | AB136: 0 | AC136: 0 | AF136: 0 | AG136: 0 | AH136: 0 | AI136: 0 | AJ136: 0

Sheet CDCM Timebands
B2: CDCM Timebands
C4: 2019/20
C5: WD (incl. bank holidays) | D5: WE | E5: 2020/21 | F5: 2021/22 | G5: 2022/23 | H5: 2023/24
B6: Red | C6: ='[2]CDCM Timebands'!C6 -> 17:00 to 19:00 | E6: ='[2]CDCM Timebands'!E6 -> No Change | F6: ='[2]CDCM Timebands'!F6 -> No Change | G6: ='[2]CDCM Timebands'!G6 -> No Change | H6: ='[2]CDCM Timebands'!H6 -> No Change
E7: ='[2]CDCM Timebands'!E7 -> 0 | F7: ='[2]CDCM Timebands'!F7 -> 0 | G7: ='[2]CDCM Timebands'!G7 -> 0 | H7: ='[2]CDCM Timebands'!H7 -> 0
B8: Amber | C8: ='[2]CDCM Timebands'!C8 -> 07:30 to 17:00 | D8: ='[2]CDCM Timebands'!D8 -> 16:30 to 19:30 | E8: ='[2]CDCM Timebands'!E8 -> 0 | F8: ='[2]CDCM Timebands'!F8 -> 0 | G8: ='[2]CDCM Timebands'!G8 -> 0 | H8: ='[2]CDCM Timebands'!H8 -> 0
C9: ='[2]CDCM Timebands'!C9 -> 19:00 to 21:30 | E9: ='[2]CDCM Timebands'!E9 -> 0 | F9: ='[2]CDCM Timebands'!F9 -> 0 | G9: ='[2]CDCM Timebands'!G9 -> 0 | H9: ='[2]CDCM Timebands'!H9 -> 0
E10: ='[2]CDCM Timebands'!E10 -> 0 | F10: ='[2]CDCM Timebands'!F10 -> 0 | G10: ='[2]CDCM Timebands'!G10 -> 0 | H10: ='[2]CDCM Timebands'!H10 -> 0
B11: Green | C11: ='[2]CDCM Timebands'!C11 -> 00:00 to 07:30 | D11: ='[2]CDCM Timebands'!D11 -> 00:00 to 16:30 | E11: ='[2]CDCM Timebands'!E11 -> 0 | F11: ='[2]CDCM Timebands'!F11 -> 0 | G11: ='[2]CDCM Timebands'!G11 -> 0 | H11: ='[2]CDCM Timebands'!H11 -> 0
C12: ='[2]CDCM Timebands'!C12 -> 21:30 to 24:00 | D12: ='[2]CDCM Timebands'!D12 -> 19:30 to 24:00 | E12: ='[2]CDCM Timebands'!E12 -> 0 | F12: ='[2]CDCM Timebands'!F12 -> 0 | G12: ='[2]CDCM Timebands'!G12 -> 0 | H12: ='[2]CDCM Timebands'!H12 -> 0
C14: 2019/20
C15: WD (incl. bank holidays) Nov to Feb | D15: WD (incl. bank holidays) Mar to Oct | E15: WE | F15: 2020/21 | G15: 2021/22 | H15: 2022/23 | I15: 2023/24
B16: Black | C16: ='[2]CDCM Timebands'!C16 -> 17:00 to 19:00 | F16: ='[2]CDCM Timebands'!F16 -> No Change | G16: ='[2]CDCM Timebands'!G16 -> No Change | H16: ='[2]CDCM Timebands'!H16 -> No Change | I16: ='[2]CDCM Timebands'!I16 -> No Change
F17: ='[2]CDCM Timebands'!F17 -> 0 | G17: ='[2]CDCM Timebands'!G17 -> 0 | H17: ='[2]CDCM Timebands'!H17 -> 0 | I17: ='[2]CDCM Timebands'!I17 -> 0
B18: Yellow | C18: ='[2]CDCM Timebands'!C18 -> 07:30 to 17:00 | D18: ='[2]CDCM Timebands'!D18 -> 07:30 to 21:30 | E18: ='[2]CDCM Timebands'!E18 -> 16:30 to 19:30 | F18: ='[2]CDCM Timebands'!F18 -> 0 | G18: ='[2]CDCM Timebands'!G18 -> 0 | H18: ='[2]CDCM Timebands'!H18 -> 0 | I18: ='[2]CDCM Timebands'!I18 -> 0
C19: ='[2]CDCM Timebands'!C19 -> 19:00 to 21:30 | F19: ='[2]CDCM Timebands'!F19 -> 0 | G19: ='[2]CDCM Timebands'!G19 -> 0 | H19: ='[2]CDCM Timebands'!H19 -> 0 | I19: ='[2]CDCM Timebands'!I19 -> 0
F20: ='[2]CDCM Timebands'!F20 -> 0 | G20: ='[2]CDCM Timebands'!G20 -> 0 | H20: ='[2]CDCM Timebands'!H20 -> 0 | I20: ='[2]CDCM Timebands'!I20 -> 0
B21: Green | C21: ='[2]CDCM Timebands'!C21 -> 00:00 to 07:30 | D21: ='[2]CDCM Timebands'!D21 -> 00:00 to 07:30 | E21: ='[2]CDCM Timebands'!E21 -> 00:00 to 16:30 | F21: ='[2]CDCM Timebands'!F21 -> 0 | G21: ='[2]CDCM Timebands'!G21 -> 0 | H21: ='[2]CDCM Timebands'!H21 -> 0 | I21: ='[2]CDCM Timebands'!I21 -> 0
C22: ='[2]CDCM Timebands'!C22 -> 21:30 to 24:00 | D22: ='[2]CDCM Timebands'!D22 -> 21:30 to 24:00 | E22: ='[2]CDCM Timebands'!E22 -> 19:30 to 24:00 | F22: ='[2]CDCM Timebands'!F22 -> 0 | G22: ='[2]CDCM Timebands'!G22 -> 0 | H22: ='[2]CDCM Timebands'!H22 -> 0 | I22: ='[2]CDCM Timebands'!I22 -> 0

Sheet (Y)
A1: Input data (Y)
A4: 1000. Company, charging year, data version
B6: Company | C6: Year | D6: Version
A7: Company, charging year, data version | B7: =VLOOKUP(Vlookup!B7,'CDCM Forecast Data'!$A$14:$I$271,5,FALSE) -> WPD South West | C7: =VLOOKUP(Vlookup!C7,'CDCM Forecast Data'!$A$14:$I$271,5,FALSE) -> 2019/20 | D7: =VLOOKUP(Vlookup!D7,'CDCM Forecast Data'!$A$14:$I$271,5,FALSE) -> Finals
A9: 1010. Financial and general assumptions
A11: Sources: financial assumptions; calendar; network model.
A12: These financial assumptions determine the annuity rate applied to convert the asset values of the network model into an annual charge.
B13: Rate of return | C13: Annualisation period (years) | D13: Annuity proportion for customer-contributed assets | E13: Power factor | F13: Days in the charging period
A14: Financial and general assumptions | B14: =VLOOKUP(Vlookup!B14,'CDCM Forecast Data'!$A$14:$I$271,5,FALSE) -> 0.0408 | C14: =VLOOKUP(Vlookup!C14,'CDCM Forecast Data'!$A$14:$I$271,5,FALSE) -> 40 | E14: =VLOOKUP(Vlookup!E14,'CDCM Forecast Data'!$A$14:$I$271,5,FALSE) -> 0.95 | F14: =VLOOKUP(Vlookup!F14,'CDCM Forecast Data'!$A$14:$I$271,5,FALSE) -> 366
A16: 1017. Diversity allowance between top and bottom of network level
A18: Source: operational data analysis and/or network model.
A19: The diversity figure against GSP is the diversity between GSP Group (the whole system) and individual GSPs.
A20: The diversity figure against 132kV is the diversity between GSPs (the top of the 132kV network) and 132kV/EHV bulk supply points (the bottom of the 132kV network).
A21: The diversity figure against EHV is the diversity between 132kV/EHV bulk supply points (the top of the EHV network) and EHV/HV primary substations (the bottom of the EHV network).
A22: The diversity figure against HV is the diversity between EHV/HV primary substations (the top of the HV network) and HV/LV substations (the bottom of the HV network).
B23: Diversity allowance between top and bottom of network level
A24: GSPs | B24: =VLOOKUP(Vlookup!B24,'CDCM Forecast Data'!$A$14:$I$271,5,FALSE) -> 0.022
A25: 132kV | B25: =VLOOKUP(Vlookup!B25,'CDCM Forecast Data'!$A$14:$I$271,5,FALSE) -> 0.031
A26: 132kV/EHV
A27: EHV | B27: =VLOOKUP(Vlookup!B27,'CDCM Forecast Data'!$A$14:$I$271,5,FALSE) -> 0.075
A28: EHV/HV
A29: HV | B29: =VLOOKUP(Vlookup!B29,'CDCM Forecast Data'!$A$14:$I$271,5,FALSE) -> 0.37
A30: HV/LV
A31: LV circuits
A33: 1018. Proportion of relevant load going through 132kV/HV direct transformation
B35: 132kV/HV
A36: EHV/HV | B36: =VLOOKUP(Vlookup!B36,'CDCM Forecast Data'!$A$14:$I$271,5,FALSE) -> 0
A38: 1019. Network model GSP peak demand (MW)
B40: Network model GSP peak demand (MW)
A41: Network model GSP peak demand (MW) | B41: =VLOOKUP(Vlookup!B41,'CDCM Forecast Data'!$A$14:$I$271,5,FALSE) -> 500
A43: 1020. Gross asset cost by network level (£)
B45: Gross assets £
A46: 132kV | B46: =VLOOKUP(Vlookup!B46,'CDCM Forecast Data'!$A$14:$I$271,5,FALSE) -> 115597442.9
A47: 132kV/EHV | B47: =VLOOKUP(Vlookup!B47,'CDCM Forecast Data'!$A$14:$I$271,5,FALSE) -> 17828167.63
A48: EHV | B48: =VLOOKUP(Vlookup!B48,'CDCM Forecast Data'!$A$14:$I$271,5,FALSE) -> 39787911.55
A49: EHV/HV | B49: =VLOOKUP(Vlookup!B49,'CDCM Forecast Data'!$A$14:$I$271,5,FALSE) -> 39489019.13
A50: 132kV/HV | B50: =VLOOKUP(Vlookup!B50,'CDCM Forecast Data'!$A$14:$I$271,5,FALSE) -> 0
A51: HV | B51: =VLOOKUP(Vlookup!B51,'CDCM Forecast Data'!$A$14:$I$271,5,FALSE) -> 152586065
A52: HV/LV | B52: =VLOOKUP(Vlookup!B52,'CDCM Forecast Data'!$A$14:$I$271,5,FALSE) -> 63550971.61
A53: LV circuits | B53: =VLOOKUP(Vlookup!B53,'CDCM Forecast Data'!$A$14:$I$271,5,FALSE) -> 148968205.5
A55: 1022. LV service model asset cost (£)
B57: LV service model 1 | C57: LV service model 2 | D57: LV service model 3 | E57: LV service model 4 | F57: LV service model 5 | G57: LV service model 6 | H57: LV service model 7 | I57: LV service model 8
A58: LV service model asset cost (£) | B58: =VLOOKUP(Vlookup!B58,'CDCM Forecast Data'!$A$14:$I$271,5,FALSE) -> 4357.3283 | C58: =VLOOKUP(Vlookup!C58,'CDCM Forecast Data'!$A$14:$I$271,5,FALSE) -> 664.3320883 | D58: =VLOOKUP(Vlookup!D58,'CDCM Forecast Data'!$A$14:$I$271,5,FALSE) -> 768.3550333 | E58: =VLOOKUP(Vlookup!E58,'CDCM Forecast Data'!$A$14:$I$271,5,FALSE) -> 557.61394 | F58: =VLOOKUP(Vlookup!F58,'CDCM Forecast Data'!$A$14:$I$271,5,FALSE) -> 1230.218011 | G58: =VLOOKUP(Vlookup!G58,'CDCM Forecast Data'!$A$14:$I$271,5,FALSE) -> 960.3594 | H58: =VLOOKUP(Vlookup!H58,'CDCM Forecast Data'!$A$14:$I$271,5,FALSE) -> 0 | I58: =VLOOKUP(Vlookup!I58,'CDCM Forecast Data'!$A$14:$I$271,5,FALSE) -> 525.61262
A60: 1023. HV service model asset cost (£)
B62: HV service model 1 | C62: HV service model 2 | D62: HV service model 3 | E62: HV service model 4 | F62: HV service model 5
A63: HV service model asset cost (£) | B63: =VLOOKUP(Vlookup!B63,'CDCM Forecast Data'!$A$14:$I$271,5,FALSE) -> 10371.62568 | C63: =VLOOKUP(Vlookup!C63,'CDCM Forecast Data'!$A$14:$I$271,5,FALSE) -> 4264 | D63: =VLOOKUP(Vlookup!D63,'CDCM Forecast Data'!$A$14:$I$271,5,FALSE) -> 0 | E63: =VLOOKUP(Vlookup!E63,'CDCM Forecast Data'!$A$14:$I$271,5,FALSE) -> 0 | F63: =VLOOKUP(Vlookup!F63,'CDCM Forecast Data'!$A$14:$I$271,5,FALSE) -> 0
A65: 1025. Matrix of applicability of LV service models to tariffs with fixed charges
B66: 2 | C66: =B66+1 -> 3 | D66: 4 | E66: 5 | F66: 6 | G66: 7 | H66: 8 | I66: 9
B67: LV service model 1 | C67: LV service model 2 | D67: LV service model 3 | E67: LV service model 4 | F67: LV service model 5 | G67: LV service model 6 | H67: LV service model 7 | I67: LV service model 8
A68: Domestic Unrestricted | B68: =VLOOKUP($A68,'Mat of App'!$B$7:$AP$43,B$66,FALSE) -> 0.05 | C68: =VLOOKUP($A68,'Mat of App'!$B$7:$AP$43,C$66,FALSE) -> 0 | D68: =VLOOKUP($A68,'Mat of App'!$B$7:$AP$43,D$66,FALSE) -> 0 | E68: =VLOOKUP($A68,'Mat of App'!$B$7:$AP$43,E$66,FALSE) -> 0 | F68: =VLOOKUP($A68,'Mat of App'!$B$7:$AP$43,F$66,FALSE) -> 0 | G68: =VLOOKUP($A68,'Mat of App'!$B$7:$AP$43,G$66,FALSE) -> 0 | H68: =VLOOKUP($A68,'Mat of App'!$B$7:$AP$43,H$66,FALSE) -> 0 | I68: =VLOOKUP($A68,'Mat of App'!$B$7:$AP$43,I$66,FALSE) -> 0
A69: Domestic Two Rate | B69: =VLOOKUP($A69,'Mat of App'!$B$7:$AP$43,B$66,FALSE) -> 0.05 | C69: =VLOOKUP($A69,'Mat of App'!$B$7:$AP$43,C$66,FALSE) -> 0 | D69: =VLOOKUP($A69,'Mat of App'!$B$7:$AP$43,D$66,FALSE) -> 0 | E69: =VLOOKUP($A69,'Mat of App'!$B$7:$AP$43,E$66,FALSE) -> 0 | F69: =VLOOKUP($A69,'Mat of App'!$B$7:$AP$43,F$66,FALSE) -> 0 | G69: =VLOOKUP($A69,'Mat of App'!$B$7:$AP$43,G$66,FALSE) -> 0 | H69: =VLOOKUP($A69,'Mat of App'!$B$7:$AP$43,H$66,FALSE) -> 0 | I69: =VLOOKUP($A69,'Mat of App'!$B$7:$AP$43,I$66,FALSE) -> 0
A70: Small Non Domestic Unrestricted | B70: =VLOOKUP($A70,'Mat of App'!$B$7:$AP$43,B$66,FALSE) -> 0 | C70: =VLOOKUP($A70,'Mat of App'!$B$7:$AP$43,C$66,FALSE) -> 1 | D70: =VLOOKUP($A70,'Mat of App'!$B$7:$AP$43,D$66,FALSE) -> 0 | E70: =VLOOKUP($A70,'Mat of App'!$B$7:$AP$43,E$66,FALSE) -> 0 | F70: =VLOOKUP($A70,'Mat of App'!$B$7:$AP$43,F$66,FALSE) -> 0 | G70: =VLOOKUP($A70,'Mat of App'!$B$7:$AP$43,G$66,FALSE) -> 0 | H70: =VLOOKUP($A70,'Mat of App'!$B$7:$AP$43,H$66,FALSE) -> 0 | I70: =VLOOKUP($A70,'Mat of App'!$B$7:$AP$43,I$66,FALSE) -> 0
A71: Small Non Domestic Two Rate | B71: =VLOOKUP($A71,'Mat of App'!$B$7:$AP$43,B$66,FALSE) -> 0 | C71: =VLOOKUP($A71,'Mat of App'!$B$7:$AP$43,C$66,FALSE) -> 1 | D71: =VLOOKUP($A71,'Mat of App'!$B$7:$AP$43,D$66,FALSE) -> 0 | E71: =VLOOKUP($A71,'Mat of App'!$B$7:$AP$43,E$66,FALSE) -> 0 | F71: =VLOOKUP($A71,'Mat of App'!$B$7:$AP$43,F$66,FALSE) -> 0 | G71: =VLOOKUP($A71,'Mat of App'!$B$7:$AP$43,G$66,FALSE) -> 0 | H71: =VLOOKUP($A71,'Mat of App'!$B$7:$AP$43,H$66,FALSE) -> 0 | I71: =VLOOKUP($A71,'Mat of App'!$B$7:$AP$43,I$66,FALSE) -> 0
A72: LV Medium Non-Domestic | B72: =VLOOKUP($A72,'Mat of App'!$B$7:$AP$43,B$66,FALSE) -> 0 | C72: =VLOOKUP($A72,'Mat of App'!$B$7:$AP$43,C$66,FALSE) -> 0 | D72: =VLOOKUP($A72,'Mat of App'!$B$7:$AP$43,D$66,FALSE) -> 1 | E72: =VLOOKUP($A72,'Mat of App'!$B$7:$AP$43,E$66,FALSE) -> 0 | F72: =VLOOKUP($A72,'Mat of App'!$B$7:$AP$43,F$66,FALSE) -> 0 | G72: =VLOOKUP($A72,'Mat of App'!$B$7:$AP$43,G$66,FALSE) -> 0 | H72: =VLOOKUP($A72,'Mat of App'!$B$7:$AP$43,H$66,FALSE) -> 0 | I72: =VLOOKUP($A72,'Mat of App'!$B$7:$AP$43,I$66,FALSE) -> 0
A73: LV Sub Medium Non-Domestic | B73: =VLOOKUP($A73,'Mat of App'!$B$7:$AP$43,B$66,FALSE) -> 0 | C73: =VLOOKUP($A73,'Mat of App'!$B$7:$AP$43,C$66,FALSE) -> 0 | D73: =VLOOKUP($A73,'Mat of App'!$B$7:$AP$43,D$66,FALSE) -> 0 | E73: =VLOOKUP($A73,'Mat of App'!$B$7:$AP$43,E$66,FALSE) -> 1 | F73: =VLOOKUP($A73,'Mat of App'!$B$7:$AP$43,F$66,FALSE) -> 0 | G73: =VLOOKUP($A73,'Mat of App'!$B$7:$AP$43,G$66,FALSE) -> 0 | H73: =VLOOKUP($A73,'Mat of App'!$B$7:$AP$43,H$66,FALSE) -> 0 | I73: =VLOOKUP($A73,'Mat of App'!$B$7:$AP$43,I$66,FALSE) -> 0
A74: LV Network Domestic | B74: =VLOOKUP($A74,'Mat of App'!$B$7:$AP$43,B$66,FALSE) -> 0.05 | C74: =VLOOKUP($A74,'Mat of App'!$B$7:$AP$43,C$66,FALSE) -> 0 | D74: =VLOOKUP($A74,'Mat of App'!$B$7:$AP$43,D$66,FALSE) -> 0 | E74: =VLOOKUP($A74,'Mat of App'!$B$7:$AP$43,E$66,FALSE) -> 0 | F74: =VLOOKUP($A74,'Mat of App'!$B$7:$AP$43,F$66,FALSE) -> 0 | G74: =VLOOKUP($A74,'Mat of App'!$B$7:$AP$43,G$66,FALSE) -> 0 | H74: =VLOOKUP($A74,'Mat of App'!$B$7:$AP$43,H$66,FALSE) -> 0 | I74: =VLOOKUP($A74,'Mat of App'!$B$7:$AP$43,I$66,FALSE) -> 0
A75: LV Network Non-Domestic Non-CT | B75: =VLOOKUP($A75,'Mat of App'!$B$7:$AP$43,B$66,FALSE) -> 0 | C75: =VLOOKUP($A75,'Mat of App'!$B$7:$AP$43,C$66,FALSE) -> 1 | D75: =VLOOKUP($A75,'Mat of App'!$B$7:$AP$43,D$66,FALSE) -> 0 | E75: =VLOOKUP($A75,'Mat of App'!$B$7:$AP$43,E$66,FALSE) -> 0 | F75: =VLOOKUP($A75,'Mat of App'!$B$7:$AP$43,F$66,FALSE) -> 0 | G75: =VLOOKUP($A75,'Mat of App'!$B$7:$AP$43,G$66,FALSE) -> 0 | H75: =VLOOKUP($A75,'Mat of App'!$B$7:$AP$43,H$66,FALSE) -> 0 | I75: =VLOOKUP($A75,'Mat of App'!$B$7:$AP$43,I$66,FALSE) -> 0
A76: LV HH Metered | B76: =VLOOKUP($A76,'Mat of App'!$B$7:$AP$43,B$66,FALSE) -> 0 | C76: =VLOOKUP($A76,'Mat of App'!$B$7:$AP$43,C$66,FALSE) -> 0 | D76: =VLOOKUP($A76,'Mat of App'!$B$7:$AP$43,D$66,FALSE) -> 0 | E76: =VLOOKUP($A76,'Mat of App'!$B$7:$AP$43,E$66,FALSE) -> 0 | F76: =VLOOKUP($A76,'Mat of App'!$B$7:$AP$43,F$66,FALSE) -> 1 | G76: =VLOOKUP($A76,'Mat of App'!$B$7:$AP$43,G$66,FALSE) -> 0 | H76: =VLOOKUP($A76,'Mat of App'!$B$7:$AP$43,H$66,FALSE) -> 0 | I76: =VLOOKUP($A76,'Mat of App'!$B$7:$AP$43,I$66,FALSE) -> 0
A77: LV Sub HH Metered | B77: =VLOOKUP($A77,'Mat of App'!$B$7:$AP$43,B$66,FALSE) -> 0 | C77: =VLOOKUP($A77,'Mat of App'!$B$7:$AP$43,C$66,FALSE) -> 0 | D77: =VLOOKUP($A77,'Mat of App'!$B$7:$AP$43,D$66,FALSE) -> 0 | E77: =VLOOKUP($A77,'Mat of App'!$B$7:$AP$43,E$66,FALSE) -> 0 | F77: =VLOOKUP($A77,'Mat of App'!$B$7:$AP$43,F$66,FALSE) -> 0 | G77: =VLOOKUP($A77,'Mat of App'!$B$7:$AP$43,G$66,FALSE) -> 1 | H77: =VLOOKUP($A77,'Mat of App'!$B$7:$AP$43,H$66,FALSE) -> 0 | I77: =VLOOKUP($A77,'Mat of App'!$B$7:$AP$43,I$66,FALSE) -> 0
A78: LV Generation NHH or Aggregate HH | B78: =VLOOKUP($A78,'Mat of App'!$B$7:$AP$43,B$66,FALSE) -> 0 | C78: =VLOOKUP($A78,'Mat of App'!$B$7:$AP$43,C$66,FALSE) -> 0 | D78: =VLOOKUP($A78,'Mat of App'!$B$7:$AP$43,D$66,FALSE) -> 0 | E78: =VLOOKUP($A78,'Mat of App'!$B$7:$AP$43,E$66,FALSE) -> 0 | F78: =VLOOKUP($A78,'Mat of App'!$B$7:$AP$43,F$66,FALSE) -> 0 | G78: =VLOOKUP($A78,'Mat of App'!$B$7:$AP$43,G$66,FALSE) -> 0 | H78: =VLOOKUP($A78,'Mat of App'!$B$7:$AP$43,H$66,FALSE) -> 1 | I78: =VLOOKUP($A78,'Mat of App'!$B$7:$AP$43,I$66,FALSE) -> 0
A79: LV Sub Generation NHH | B79: =VLOOKUP($A79,'Mat of App'!$B$7:$AP$43,B$66,FALSE) -> 0 | C79: =VLOOKUP($A79,'Mat of App'!$B$7:$AP$43,C$66,FALSE) -> 0 | D79: =VLOOKUP($A79,'Mat of App'!$B$7:$AP$43,D$66,FALSE) -> 0 | E79: =VLOOKUP($A79,'Mat of App'!$B$7:$AP$43,E$66,FALSE) -> 0 | F79: =VLOOKUP($A79,'Mat of App'!$B$7:$AP$43,F$66,FALSE) -> 0 | G79: =VLOOKUP($A79,'Mat of App'!$B$7:$AP$43,G$66,FALSE) -> 0 | H79: =VLOOKUP($A79,'Mat of App'!$B$7:$AP$43,H$66,FALSE) -> 1 | I79: =VLOOKUP($A79,'Mat of App'!$B$7:$AP$43,I$66,FALSE) -> 0
A80: LV Generation Intermittent | B80: =VLOOKUP($A80,'Mat of App'!$B$7:$AP$43,B$66,FALSE) -> 0 | C80: =VLOOKUP($A80,'Mat of App'!$B$7:$AP$43,C$66,FALSE) -> 0 | D80: =VLOOKUP($A80,'Mat of App'!$B$7:$AP$43,D$66,FALSE) -> 0 | E80: =VLOOKUP($A80,'Mat of App'!$B$7:$AP$43,E$66,FALSE) -> 0 | F80: =VLOOKUP($A80,'Mat of App'!$B$7:$AP$43,F$66,FALSE) -> 0 | G80: =VLOOKUP($A80,'Mat of App'!$B$7:$AP$43,G$66,FALSE) -> 0 | H80: =VLOOKUP($A80,'Mat of App'!$B$7:$AP$43,H$66,FALSE) -> 1 | I80: =VLOOKUP($A80,'Mat of App'!$B$7:$AP$43,I$66,FALSE) -> 0
A81: LV Generation Intermittent no RP charge | B81: =VLOOKUP($A81,'Mat of App'!$B$7:$AP$43,B$66,FALSE) -> 0 | C81: =VLOOKUP($A81,'Mat of App'!$B$7:$AP$43,C$66,FALSE) -> 0 | D81: =VLOOKUP($A81,'Mat of App'!$B$7:$AP$43,D$66,FALSE) -> 0 | E81: =VLOOKUP($A81,'Mat of App'!$B$7:$AP$43,E$66,FALSE) -> 0 | F81: =VLOOKUP($A81,'Mat of App'!$B$7:$AP$43,F$66,FALSE) -> 0 | G81: =VLOOKUP($A81,'Mat of App'!$B$7:$AP$43,G$66,FALSE) -> 0 | H81: =VLOOKUP($A81,'Mat of App'!$B$7:$AP$43,H$66,FALSE) -> 1 | I81: =VLOOKUP($A81,'Mat of App'!$B$7:$AP$43,I$66,FALSE) -> 0
A82: LV Generation Non-Intermittent | B82: =VLOOKUP($A82,'Mat of App'!$B$7:$AP$43,B$66,FALSE) -> 0 | C82: =VLOOKUP($A82,'Mat of App'!$B$7:$AP$43,C$66,FALSE) -> 0 | D82: =VLOOKUP($A82,'Mat of App'!$B$7:$AP$43,D$66,FALSE) -> 0 | E82: =VLOOKUP($A82,'Mat of App'!$B$7:$AP$43,E$66,FALSE) -> 0 | F82: =VLOOKUP($A82,'Mat of App'!$B$7:$AP$43,F$66,FALSE) -> 0 | G82: =VLOOKUP($A82,'Mat of App'!$B$7:$AP$43,G$66,FALSE) -> 0 | H82: =VLOOKUP($A82,'Mat of App'!$B$7:$AP$43,H$66,FALSE) -> 0 | I82: =VLOOKUP($A82,'Mat of App'!$B$7:$AP$43,I$66,FALSE) -> 0
A83: LV Generation Non-Intermittent no RP charge | B83: =VLOOKUP($A83,'Mat of App'!$B$7:$AP$43,B$66,FALSE) -> 0 | C83: =VLOOKUP($A83,'Mat of App'!$B$7:$AP$43,C$66,FALSE) -> 0 | D83: =VLOOKUP($A83,'Mat of App'!$B$7:$AP$43,D$66,FALSE) -> 0 | E83: =VLOOKUP($A83,'Mat of App'!$B$7:$AP$43,E$66,FALSE) -> 0 | F83: =VLOOKUP($A83,'Mat of App'!$B$7:$AP$43,F$66,FALSE) -> 0 | G83: =VLOOKUP($A83,'Mat of App'!$B$7:$AP$43,G$66,FALSE) -> 0 | H83: =VLOOKUP($A83,'Mat of App'!$B$7:$AP$43,H$66,FALSE) -> 0 | I83: =VLOOKUP($A83,'Mat of App'!$B$7:$AP$43,I$66,FALSE) -> 0
A84: LV Sub Generation Intermittent | B84: =VLOOKUP($A84,'Mat of App'!$B$7:$AP$43,B$66,FALSE) -> 0 | C84: =VLOOKUP($A84,'Mat of App'!$B$7:$AP$43,C$66,FALSE) -> 0 | D84: =VLOOKUP($A84,'Mat of App'!$B$7:$AP$43,D$66,FALSE) -> 0 | E84: =VLOOKUP($A84,'Mat of App'!$B$7:$AP$43,E$66,FALSE) -> 0 | F84: =VLOOKUP($A84,'Mat of App'!$B$7:$AP$43,F$66,FALSE) -> 0 | G84: =VLOOKUP($A84,'Mat of App'!$B$7:$AP$43,G$66,FALSE) -> 0 | H84: =VLOOKUP($A84,'Mat of App'!$B$7:$AP$43,H$66,FALSE) -> 0 | I84: =VLOOKUP($A84,'Mat of App'!$B$7:$AP$43,I$66,FALSE) -> 0
A85: LV Sub Generation Intermittent no RP charge | B85: =VLOOKUP($A85,'Mat of App'!$B$7:$AP$43,B$66,FALSE) -> 0 | C85: =VLOOKUP($A85,'Mat of App'!$B$7:$AP$43,C$66,FALSE) -> 0 | D85: =VLOOKUP($A85,'Mat of App'!$B$7:$AP$43,D$66,FALSE) -> 0 | E85: =VLOOKUP($A85,'Mat of App'!$B$7:$AP$43,E$66,FALSE) -> 0 | F85: =VLOOKUP($A85,'Mat of App'!$B$7:$AP$43,F$66,FALSE) -> 0 | G85: =VLOOKUP($A85,'Mat of App'!$B$7:$AP$43,G$66,FALSE) -> 0 | H85: =VLOOKUP($A85,'Mat of App'!$B$7:$AP$43,H$66,FALSE) -> 0 | I85: =VLOOKUP($A85,'Mat of App'!$B$7:$AP$43,I$66,FALSE) -> 0
A86: LV Sub Generation Non-Intermittent | B86: =VLOOKUP($A86,'Mat of App'!$B$7:$AP$43,B$66,FALSE) -> 0 | C86: =VLOOKUP($A86,'Mat of App'!$B$7:$AP$43,C$66,FALSE) -> 0 | D86: =VLOOKUP($A86,'Mat of App'!$B$7:$AP$43,D$66,FALSE) -> 0 | E86: =VLOOKUP($A86,'Mat of App'!$B$7:$AP$43,E$66,FALSE) -> 0 | F86: =VLOOKUP($A86,'Mat of App'!$B$7:$AP$43,F$66,FALSE) -> 0 | G86: =VLOOKUP($A86,'Mat of App'!$B$7:$AP$43,G$66,FALSE) -> 0 | H86: =VLOOKUP($A86,'Mat of App'!$B$7:$AP$43,H$66,FALSE) -> 0 | I86: =VLOOKUP($A86,'Mat of App'!$B$7:$AP$43,I$66,FALSE) -> 0
A87: LV Sub Generation Non-Intermittent no RP charge | B87: =VLOOKUP($A87,'Mat of App'!$B$7:$AP$43,B$66,FALSE) -> 0 | C87: =VLOOKUP($A87,'Mat of App'!$B$7:$AP$43,C$66,FALSE) -> 0 | D87: =VLOOKUP($A87,'Mat of App'!$B$7:$AP$43,D$66,FALSE) -> 0 | E87: =VLOOKUP($A87,'Mat of App'!$B$7:$AP$43,E$66,FALSE) -> 0 | F87: =VLOOKUP($A87,'Mat of App'!$B$7:$AP$43,F$66,FALSE) -> 0 | G87: =VLOOKUP($A87,'Mat of App'!$B$7:$AP$43,G$66,FALSE) -> 0 | H87: =VLOOKUP($A87,'Mat of App'!$B$7:$AP$43,H$66,FALSE) -> 0 | I87: =VLOOKUP($A87,'Mat of App'!$B$7:$AP$43,I$66,FALSE) -> 0
A89: 1026. Matrix of applicability of LV service models to unmetered tariffs
A91: Source: service models
A92: Proportion of service model involved in connecting load of 1 MWh/year
B93: LV service model 1 | C93: LV service model 2 | D93: LV service model 3 | E93: LV service model 4 | F93: LV service model 5 | G93: LV service model 6 | H93: LV service model 7 | I93: LV service model 8
A94: All LV unmetered tariffs | B94: =VLOOKUP($A94,'Mat of App'!$B$7:$AP$43,B$66,FALSE) -> 0 | C94: =VLOOKUP($A94,'Mat of App'!$B$7:$AP$43,C$66,FALSE) -> 0 | D94: =VLOOKUP($A94,'Mat of App'!$B$7:$AP$43,D$66,FALSE) -> 0 | E94: =VLOOKUP($A94,'Mat of App'!$B$7:$AP$43,E$66,FALSE) -> 0 | F94: =VLOOKUP($A94,'Mat of App'!$B$7:$AP$43,F$66,FALSE) -> 0 | G94: =VLOOKUP($A94,'Mat of App'!$B$7:$AP$43,G$66,FALSE) -> 0 | H94: =VLOOKUP($A94,'Mat of App'!$B$7:$AP$43,H$66,FALSE) -> 0 | I94: =VLOOKUP($A94,'Mat of App'!$B$7:$AP$43,I$66,FALSE) -> 0.488
A96: 1028. Matrix of applicability of HV service models to tariffs with fixed charges
B97: 2 | C97: =B97+1 -> 3 | D97: =C97+1 -> 4 | E97: =D97+1 -> 5 | F97: =E97+1 -> 6
B98: HV service model 1 | C98: HV service model 2 | D98: HV service model 3 | E98: HV service model 4 | F98: HV service model 5
A99: HV Medium Non-Domestic | B99: =VLOOKUP($A99,'Mat of App'!$B$7:$AP$43,B$97,FALSE) -> 1 | C99: =VLOOKUP($A99,'Mat of App'!$B$7:$AP$43,C$97,FALSE) -> 0 | D99: =VLOOKUP($A99,'Mat of App'!$B$7:$AP$43,D$97,FALSE) -> 0 | E99: =VLOOKUP($A99,'Mat of App'!$B$7:$AP$43,E$97,FALSE) -> 0 | F99: =VLOOKUP($A99,'Mat of App'!$B$7:$AP$43,F$97,FALSE) -> 0
A100: HV HH Metered | B100: =VLOOKUP($A100,'Mat of App'!$B$7:$AP$43,B$97,FALSE) -> 1 | C100: =VLOOKUP($A100,'Mat of App'!$B$7:$AP$43,C$97,FALSE) -> 0 | D100: =VLOOKUP($A100,'Mat of App'!$B$7:$AP$43,D$97,FALSE) -> 0 | E100: =VLOOKUP($A100,'Mat of App'!$B$7:$AP$43,E$97,FALSE) -> 0 | F100: =VLOOKUP($A100,'Mat of App'!$B$7:$AP$43,F$97,FALSE) -> 0
A101: HV Generation Intermittent | B101: =VLOOKUP($A101,'Mat of App'!$B$7:$AP$43,B$97,FALSE) -> 0 | C101: =VLOOKUP($A101,'Mat of App'!$B$7:$AP$43,C$97,FALSE) -> 1 | D101: =VLOOKUP($A101,'Mat of App'!$B$7:$AP$43,D$97,FALSE) -> 0 | E101: =VLOOKUP($A101,'Mat of App'!$B$7:$AP$43,E$97,FALSE) -> 0 | F101: =VLOOKUP($A101,'Mat of App'!$B$7:$AP$43,F$97,FALSE) -> 0
A102: HV Generation Intermittent no RP charge | B102: =VLOOKUP($A102,'Mat of App'!$B$7:$AP$43,B$97,FALSE) -> 0 | C102: =VLOOKUP($A102,'Mat of App'!$B$7:$AP$43,C$97,FALSE) -> 1 | D102: =VLOOKUP($A102,'Mat of App'!$B$7:$AP$43,D$97,FALSE) -> 0 | E102: =VLOOKUP($A102,'Mat of App'!$B$7:$AP$43,E$97,FALSE) -> 0 | F102: =VLOOKUP($A102,'Mat of App'!$B$7:$AP$43,F$97,FALSE) -> 0
A103: HV Generation Non-Intermittent | B103: =VLOOKUP($A103,'Mat of App'!$B$7:$AP$43,B$97,FALSE) -> 0 | C103: =VLOOKUP($A103,'Mat of App'!$B$7:$AP$43,C$97,FALSE) -> 1 | D103: =VLOOKUP($A103,'Mat of App'!$B$7:$AP$43,D$97,FALSE) -> 0 | E103: =VLOOKUP($A103,'Mat of App'!$B$7:$AP$43,E$97,FALSE) -> 0 | F103: =VLOOKUP($A103,'Mat of App'!$B$7:$AP$43,F$97,FALSE) -> 0
A104: HV Generation Non-Intermittent no RP charge | B104: =VLOOKUP($A104,'Mat of App'!$B$7:$AP$43,B$97,FALSE) -> 0 | C104: =VLOOKUP($A104,'Mat of App'!$B$7:$AP$43,C$97,FALSE) -> 1 | D104: =VLOOKUP($A104,'Mat of App'!$B$7:$AP$43,D$97,FALSE) -> 0 | E104: =VLOOKUP($A104,'Mat of App'!$B$7:$AP$43,E$97,FALSE) -> 0 | F104: =VLOOKUP($A104,'Mat of App'!$B$7:$AP$43,F$97,FALSE) -> 0
A106: 1032. Loss adjustment factors to transmission
A108: Source: losses model or loss adjustment factors at time of system peak.
B109: 132kV | C109: 132kV/EHV | D109: EHV | E109: EHV/HV | F109: HV | G109: HV/LV | H109: LV circuits
A110: Loss adjustment factor | B110: =VLOOKUP(Vlookup!B69,'CDCM Forecast Data'!$A$14:$I$271,5,FALSE) -> 1.002 | C110: =VLOOKUP(Vlookup!C69,'CDCM Forecast Data'!$A$14:$I$271,5,FALSE) -> 1.006 | D110: =VLOOKUP(Vlookup!D69,'CDCM Forecast Data'!$A$14:$I$271,5,FALSE) -> 1.012 | E110: =VLOOKUP(Vlookup!E69,'CDCM Forecast Data'!$A$14:$I$271,5,FALSE) -> 1.021 | F110: =VLOOKUP(Vlookup!F69,'CDCM Forecast Data'!$A$14:$I$271,5,FALSE) -> 1.038 | G110: =VLOOKUP(Vlookup!G69,'CDCM Forecast Data'!$A$14:$I$271,5,FALSE) -> 1.049 | H110: =VLOOKUP(Vlookup!H69,'CDCM Forecast Data'!$A$14:$I$271,5,FALSE) -> 1.062
A112: 1037. Embedded network (LDNO) discounts
A114: Source: separate price control disaggregation model.
B115: No discount | C115: LDNO LV: LV user | D115: LDNO HV: LV user | E115: LDNO HV: LV sub user | F115: LDNO HV: HV user
A116: LDNO discount | C116: =VLOOKUP(Vlookup!C75,'CDCM Forecast Data'!$A$14:$I$271,5,FALSE) -> 0.375266152 | D116: =VLOOKUP(Vlookup!D75,'CDCM Forecast Data'!$A$14:$I$271,5,FALSE) -> 0.6158354319 | E116: =VLOOKUP(Vlookup!E75,'CDCM Forecast Data'!$A$14:$I$271,5,FALSE) -> 0.3697741805 | F116: =VLOOKUP(Vlookup!F75,'CDCM Forecast Data'!$A$14:$I$271,5,FALSE) -> 0.2523098802
A118: 1041. Load profile data for demand users
A120: Source: load data analysis.
B121: Coincidence factor | C121: Load factor
A122: Domestic Unrestricted | B122: =VLOOKUP(Vlookup!B81,'CDCM Forecast Data'!$A$14:$I$271,5,FALSE) -> 0.9036972613 | C122: =VLOOKUP(Vlookup!C81,'CDCM Forecast Data'!$A$14:$I$271,5,FALSE) -> 0.4101809031
A123: Domestic Two Rate | B123: =VLOOKUP(Vlookup!B82,'CDCM Forecast Data'!$A$14:$I$271,5,FALSE) -> 0.3484929087 | C123: =VLOOKUP(Vlookup!C82,'CDCM Forecast Data'!$A$14:$I$271,5,FALSE) -> 0.2578651801
A124: Domestic Off Peak (related MPAN) | C124: =VLOOKUP(Vlookup!C83,'CDCM Forecast Data'!$A$14:$I$271,5,FALSE) -> 0.1430432895
A125: Small Non Domestic Unrestricted | B125: =VLOOKUP(Vlookup!B84,'CDCM Forecast Data'!$A$14:$I$271,5,FALSE) -> 0.6573652486 | C125: =VLOOKUP(Vlookup!C84,'CDCM Forecast Data'!$A$14:$I$271,5,FALSE) -> 0.3893231103
A126: Small Non Domestic Two Rate | B126: =VLOOKUP(Vlookup!B85,'CDCM Forecast Data'!$A$14:$I$271,5,FALSE) -> 0.6308650462 | C126: =VLOOKUP(Vlookup!C85,'CDCM Forecast Data'!$A$14:$I$271,5,FALSE) -> 0.4408770156
A127: Small Non Domestic Off Peak (related MPAN) | C127: =VLOOKUP(Vlookup!C86,'CDCM Forecast Data'!$A$14:$I$271,5,FALSE) -> 0.1559146372
A128: LV Medium Non-Domestic | B128: =VLOOKUP(Vlookup!B87,'CDCM Forecast Data'!$A$14:$I$271,5,FALSE) -> 0.8585513205 | C128: =VLOOKUP(Vlookup!C87,'CDCM Forecast Data'!$A$14:$I$271,5,FALSE) -> 0.593601508
A129: LV Sub Medium Non-Domestic | B129: =VLOOKUP(Vlookup!B88,'CDCM Forecast Data'!$A$14:$I$271,5,FALSE) -> 0.8382314172 | C129: =VLOOKUP(Vlookup!C88,'CDCM Forecast Data'!$A$14:$I$271,5,FALSE) -> 0.6000900558
A130: HV Medium Non-Domestic | B130: =VLOOKUP(Vlookup!B89,'CDCM Forecast Data'!$A$14:$I$271,5,FALSE) -> 0.6632207801 | C130: =VLOOKUP(Vlookup!C89,'CDCM Forecast Data'!$A$14:$I$271,5,FALSE) -> 0.4549084208
A131: LV Network Domestic | B131: =VLOOKUP(Vlookup!B90,'CDCM Forecast Data'!$A$14:$I$271,5,FALSE) -> 0.8164587795 | C131: =VLOOKUP(Vlookup!C90,'CDCM Forecast Data'!$A$14:$I$271,5,FALSE) -> 0.3835067319
A132: LV Network Non-Domestic Non-CT | B132: =VLOOKUP(Vlookup!B91,'CDCM Forecast Data'!$A$14:$I$271,5,FALSE) -> 0.6520374339 | C132: =VLOOKUP(Vlookup!C91,'CDCM Forecast Data'!$A$14:$I$271,5,FALSE) -> 0.3936768454
A133: LV HH Metered | B133: =VLOOKUP(Vlookup!B92,'CDCM Forecast Data'!$A$14:$I$271,5,FALSE) -> 0.803287895 | C133: =VLOOKUP(Vlookup!C92,'CDCM Forecast Data'!$A$14:$I$271,5,FALSE) -> 0.5875803245
A134: LV Sub HH Metered | B134: =VLOOKUP(Vlookup!B93,'CDCM Forecast Data'!$A$14:$I$271,5,FALSE) -> 0.7658193845 | C134: =VLOOKUP(Vlookup!C93,'CDCM Forecast Data'!$A$14:$I$271,5,FALSE) -> 0.6115171759
A135: HV HH Metered | B135: =VLOOKUP(Vlookup!B94,'CDCM Forecast Data'!$A$14:$I$271,5,FALSE) -> 0.819551906 | C135: =VLOOKUP(Vlookup!C94,'CDCM Forecast Data'!$A$14:$I$271,5,FALSE) -> 0.7322211111
A136: NHH UMS category A | B136: =VLOOKUP(Vlookup!B95,'CDCM Forecast Data'!$A$14:$I$271,5,FALSE) -> 1 | C136: =VLOOKUP(Vlookup!C95,'CDCM Forecast Data'!$A$14:$I$271,5,FALSE) -> 1
A137: NHH UMS category B | B137: =VLOOKUP(Vlookup!B96,'CDCM Forecast Data'!$A$14:$I$271,5,FALSE) -> 0.983875969 | C137: =VLOOKUP(Vlookup!C96,'CDCM Forecast Data'!$A$14:$I$271,5,FALSE) -> 0.4756809068
A138: NHH UMS category C | B138: =VLOOKUP(Vlookup!B97,'CDCM Forecast Data'!$A$14:$I$271,5,FALSE) -> 0.8805058428 | C138: =VLOOKUP(Vlookup!C97,'CDCM Forecast Data'!$A$14:$I$271,5,FALSE) -> 0.2562760241
A139: NHH UMS category D | B139: =VLOOKUP(Vlookup!B98,'CDCM Forecast Data'!$A$14:$I$271,5,FALSE) -> 0 | C139: =VLOOKUP(Vlookup!C98,'CDCM Forecast Data'!$A$14:$I$271,5,FALSE) -> 0.515288843
A140: LV UMS (Pseudo HH Metered) | B140: =VLOOKUP(Vlookup!B99,'CDCM Forecast Data'!$A$14:$I$271,5,FALSE) -> 0.9656353209 | C140: =VLOOKUP(Vlookup!C99,'CDCM Forecast Data'!$A$14:$I$271,5,FALSE) -> 0.459118878
A142: 1053. Volume forecasts for the charging year
B143: 4 | C143: 5 | D143: 6 | E143: 7 | F143: 8 | G143: 9 | H143: 10
A144: Source: forecast.
A145: Please include MPAN counts for tariffs with no fixed charge (e.g. off-peak tariffs),
A146: but exclude MPANs on tariffs with a fixed charge that are not subject to a fixed charge due to a site grouping arrangement.
B147: Rate 1 units (MWh) | C147: Rate 2 units (MWh) | D147: Rate 3 units (MWh) | E147: MPANs | F147: Import capacity (kVA) | G147: Exceeded capacity (kVA) | H147: Reactive power units (MVArh)
A148: > Domestic Unrestricted | B148: =VLOOKUP(Vlookup!$B107,'CDCM Volume Forecasts'!$A$28:$AL$136,B$143,FALSE) -> 0 | C148: =VLOOKUP(Vlookup!$B107,'CDCM Volume Forecasts'!$A$28:$AL$136,C$143,FALSE) -> 0 | D148: =VLOOKUP(Vlookup!$B107,'CDCM Volume Forecasts'!$A$28:$AL$136,D$143,FALSE) -> 0 | E148: =VLOOKUP(Vlookup!$B107,'CDCM Volume Forecasts'!$A$28:$AL$136,E$143,FALSE) -> 0 | F148: =VLOOKUP(Vlookup!$B107,'CDCM Volume Forecasts'!$A$28:$AL$136,F$143,FALSE) -> 0 | H148: =VLOOKUP(Vlookup!$B107,'CDCM Volume Forecasts'!$A$28:$AL$136,G$143,FALSE) -> 0
A149: Domestic Unrestricted | B149: =VLOOKUP(Vlookup!$B108,'CDCM Volume Forecasts'!$A$28:$AL$136,B$143,FALSE) -> 4325611.921 | E149: =VLOOKUP(Vlookup!$B108,'CDCM Volume Forecasts'!$A$28:$AL$136,E$143,FALSE) -> 1265207.227
A150: LDNO LV: Domestic Unrestricted | B150: =VLOOKUP(Vlookup!$B109,'CDCM Volume Forecasts'!$A$28:$AL$136,B$143,FALSE) -> 26901.24523 | E150: =VLOOKUP(Vlookup!$B109,'CDCM Volume Forecasts'!$A$28:$AL$136,E$143,FALSE) -> 10731.18734
A151: LDNO HV: Domestic Unrestricted | B151: =VLOOKUP(Vlookup!$B110,'CDCM Volume Forecasts'!$A$28:$AL$136,B$143,FALSE) -> 55013.17403 | E151: =VLOOKUP(Vlookup!$B110,'CDCM Volume Forecasts'!$A$28:$AL$136,E$143,FALSE) -> 23203.54275
A152: > Domestic Two Rate
A153: Domestic Two Rate | B153: =VLOOKUP(Vlookup!$B112,'CDCM Volume Forecasts'!$A$28:$AL$136,B$143,FALSE) -> 631896.2065 | C153: =VLOOKUP(Vlookup!$B112,'CDCM Volume Forecasts'!$A$28:$AL$136,C$143,FALSE) -> 608756.1369 | E153: =VLOOKUP(Vlookup!$B112,'CDCM Volume Forecasts'!$A$28:$AL$136,E$143,FALSE) -> 204084.5815
A154: LDNO LV: Domestic Two Rate | B154: =VLOOKUP(Vlookup!$B113,'CDCM Volume Forecasts'!$A$28:$AL$136,B$143,FALSE) -> 1606.416511 | C154: =VLOOKUP(Vlookup!$B113,'CDCM Volume Forecasts'!$A$28:$AL$136,C$143,FALSE) -> 611.2867969 | E154: =VLOOKUP(Vlookup!$B113,'CDCM Volume Forecasts'!$A$28:$AL$136,E$143,FALSE) -> 726.066174
A155: LDNO HV: Domestic Two Rate | B155: =VLOOKUP(Vlookup!$B114,'CDCM Volume Forecasts'!$A$28:$AL$136,B$143,FALSE) -> 1981.803301 | C155: =VLOOKUP(Vlookup!$B114,'CDCM Volume Forecasts'!$A$28:$AL$136,C$143,FALSE) -> 699.8861911 | E155: =VLOOKUP(Vlookup!$B114,'CDCM Volume Forecasts'!$A$28:$AL$136,E$143,FALSE) -> 760.4569348
A156: > Domestic Off Peak (related MPAN)
A157: Domestic Off Peak (related MPAN) | B157: =VLOOKUP(Vlookup!$B116,'CDCM Volume Forecasts'!$A$28:$AL$136,B$143,FALSE) -> 49584.94863 | E157: =VLOOKUP(Vlookup!$B116,'CDCM Volume Forecasts'!$A$28:$AL$136,E$143,FALSE) -> 14616
A158: LDNO LV: Domestic Off Peak (related MPAN) | B158: =VLOOKUP(Vlookup!$B117,'CDCM Volume Forecasts'!$A$28:$AL$136,B$143,FALSE) -> 0 | E158: =VLOOKUP(Vlookup!$B117,'CDCM Volume Forecasts'!$A$28:$AL$136,E$143,FALSE) -> 0
A159: LDNO HV: Domestic Off Peak (related MPAN) | B159: =VLOOKUP(Vlookup!$B118,'CDCM Volume Forecasts'!$A$28:$AL$136,B$143,FALSE) -> 0 | E159: =VLOOKUP(Vlookup!$B118,'CDCM Volume Forecasts'!$A$28:$AL$136,E$143,FALSE) -> 0
A160: > Small Non Domestic Unrestricted
A161: Small Non Domestic Unrestricted | B161: =VLOOKUP(Vlookup!$B120,'CDCM Volume Forecasts'!$A$28:$AL$136,B$143,FALSE) -> 1188673.863 | E161: =VLOOKUP(Vlookup!$B120,'CDCM Volume Forecasts'!$A$28:$AL$136,E$143,FALSE) -> 109551.1821
A162: LDNO LV: Small Non Domestic Unrestricted | B162: =VLOOKUP(Vlookup!$B121,'CDCM Volume Forecasts'!$A$28:$AL$136,B$143,FALSE) -> 1302.442217 | E162: =VLOOKUP(Vlookup!$B121,'CDCM Volume Forecasts'!$A$28:$AL$136,E$143,FALSE) -> 222.1176994
A163: LDNO HV: Small Non Domestic Unrestricted | B163: =VLOOKUP(Vlookup!$B122,'CDCM Volume Forecasts'!$A$28:$AL$136,B$143,FALSE) -> 10841.52452 | E163: =VLOOKUP(Vlookup!$B122,'CDCM Volume Forecasts'!$A$28:$AL$136,E$143,FALSE) -> 839.4722938
A164: > Small Non Domestic Two Rate
A165: Small Non Domestic Two Rate | B165: =VLOOKUP(Vlookup!$B124,'CDCM Volume Forecasts'!$A$28:$AL$136,B$143,FALSE) -> 408779.3081 | C165: =VLOOKUP(Vlookup!$B124,'CDCM Volume Forecasts'!$A$28:$AL$136,C$143,FALSE) -> 170833.8982 | E165: =VLOOKUP(Vlookup!$B124,'CDCM Volume Forecasts'!$A$28:$AL$136,E$143,FALSE) -> 30180.33101
A166: LDNO LV: Small Non Domestic Two Rate | B166: =VLOOKUP(Vlookup!$B125,'CDCM Volume Forecasts'!$A$28:$AL$136,B$143,FALSE) -> 61.82357923 | C166: =VLOOKUP(Vlookup!$B125,'CDCM Volume Forecasts'!$A$28:$AL$136,C$143,FALSE) -> 24.87329924 | E166: =VLOOKUP(Vlookup!$B125,'CDCM Volume Forecasts'!$A$28:$AL$136,E$143,FALSE) -> 3.387705146
A167: LDNO HV: Small Non Domestic Two Rate | B167: =VLOOKUP(Vlookup!$B126,'CDCM Volume Forecasts'!$A$28:$AL$136,B$143,FALSE) -> 1089.425813 | C167: =VLOOKUP(Vlookup!$B126,'CDCM Volume Forecasts'!$A$28:$AL$136,C$143,FALSE) -> 319.6974232 | E167: =VLOOKUP(Vlookup!$B126,'CDCM Volume Forecasts'!$A$28:$AL$136,E$143,FALSE) -> 32.70298254
A168: > Small Non Domestic Off Peak (related MPAN)
A169: Small Non Domestic Off Peak (related MPAN) | B169: =VLOOKUP(Vlookup!$B128,'CDCM Volume Forecasts'!$A$28:$AL$136,B$143,FALSE) -> 18696.27093 | E169: =VLOOKUP(Vlookup!$B128,'CDCM Volume Forecasts'!$A$28:$AL$136,E$143,FALSE) -> 3163
A170: LDNO LV: Small Non Domestic Off Peak (related MPAN) | B170: =VLOOKUP(Vlookup!$B129,'CDCM Volume Forecasts'!$A$28:$AL$136,B$143,FALSE) -> 0 | E170: =VLOOKUP(Vlookup!$B129,'CDCM Volume Forecasts'!$A$28:$AL$136,E$143,FALSE) -> 0
A171: LDNO HV: Small Non Domestic Off Peak (related MPAN) | B171: =VLOOKUP(Vlookup!$B130,'CDCM Volume Forecasts'!$A$28:$AL$136,B$143,FALSE) -> 0 | E171: =VLOOKUP(Vlookup!$B130,'CDCM Volume Forecasts'!$A$28:$AL$136,E$143,FALSE) -> 0
A172: > LV Medium Non-Domestic
A173: LV Medium Non-Domestic | B173: =VLOOKUP(Vlookup!$B132,'CDCM Volume Forecasts'!$A$28:$AL$136,B$143,FALSE) -> 61016.90072 | C173: =VLOOKUP(Vlookup!$B132,'CDCM Volume Forecasts'!$A$28:$AL$136,C$143,FALSE) -> 15363.29892 | E173: =VLOOKUP(Vlookup!$B132,'CDCM Volume Forecasts'!$A$28:$AL$136,E$143,FALSE) -> 1833.471678
A174: LDNO LV: LV Medium Non-Domestic | B174: =VLOOKUP(Vlookup!$B133,'CDCM Volume Forecasts'!$A$28:$AL$136,B$143,FALSE) -> 0 | C174: =VLOOKUP(Vlookup!$B133,'CDCM Volume Forecasts'!$A$28:$AL$136,C$143,FALSE) -> 0 | E174: =VLOOKUP(Vlookup!$B133,'CDCM Volume Forecasts'!$A$28:$AL$136,E$143,FALSE) -> 0
A175: LDNO HV: LV Medium Non-Domestic | B175: =VLOOKUP(Vlookup!$B134,'CDCM Volume Forecasts'!$A$28:$AL$136,B$143,FALSE) -> 0 | C175: =VLOOKUP(Vlookup!$B134,'CDCM Volume Forecasts'!$A$28:$AL$136,C$143,FALSE) -> -1.818989404e-15 | E175: =VLOOKUP(Vlookup!$B134,'CDCM Volume Forecasts'!$A$28:$AL$136,E$143,FALSE) -> 0
A176: > LV Sub Medium Non-Domestic
A177: LV Sub Medium Non-Domestic | B177: =VLOOKUP(Vlookup!$B136,'CDCM Volume Forecasts'!$A$28:$AL$136,B$143,FALSE) -> 11011.49022 | C177: =VLOOKUP(Vlookup!$B136,'CDCM Volume Forecasts'!$A$28:$AL$136,C$143,FALSE) -> 2877.336903 | E177: =VLOOKUP(Vlookup!$B136,'CDCM Volume Forecasts'!$A$28:$AL$136,E$143,FALSE) -> 151.4251277
A178: > HV Medium Non-Domestic
A179: HV Medium Non-Domestic | B179: =VLOOKUP(Vlookup!$B138,'CDCM Volume Forecasts'!$A$28:$AL$136,B$143,FALSE) -> 475.1455588 | C179: =VLOOKUP(Vlookup!$B138,'CDCM Volume Forecasts'!$A$28:$AL$136,C$143,FALSE) -> 185.1968348 | E179: =VLOOKUP(Vlookup!$B138,'CDCM Volume Forecasts'!$A$28:$AL$136,E$143,FALSE) -> 11.57760531
A180: > LV Network Domestic
A181: LV Network Domestic | B181: =VLOOKUP(Vlookup!$B140,'CDCM Volume Forecasts'!$A$28:$AL$136,B$143,FALSE) -> 17.91450059 | C181: =VLOOKUP(Vlookup!$B140,'CDCM Volume Forecasts'!$A$28:$AL$136,C$143,FALSE) -> 148.9061615 | D181: =VLOOKUP(Vlookup!$B140,'CDCM Volume Forecasts'!$A$28:$AL$136,D$143,FALSE) -> 132.1498047 | E181: =VLOOKUP(Vlookup!$B140,'CDCM Volume Forecasts'!$A$28:$AL$136,E$143,FALSE) -> 90.26226422
A182: LDNO LV: LV Network Domestic | B182: =VLOOKUP(Vlookup!$B141,'CDCM Volume Forecasts'!$A$28:$AL$136,B$143,FALSE) -> 0 | C182: =VLOOKUP(Vlookup!$B141,'CDCM Volume Forecasts'!$A$28:$AL$136,C$143,FALSE) -> 0 | D182: =VLOOKUP(Vlookup!$B141,'CDCM Volume Forecasts'!$A$28:$AL$136,D$143,FALSE) -> 0 | E182: =VLOOKUP(Vlookup!$B141,'CDCM Volume Forecasts'!$A$28:$AL$136,E$143,FALSE) -> 0
A183: LDNO HV: LV Network Domestic | B183: =VLOOKUP(Vlookup!$B142,'CDCM Volume Forecasts'!$A$28:$AL$136,B$143,FALSE) -> 0 | C183: =VLOOKUP(Vlookup!$B142,'CDCM Volume Forecasts'!$A$28:$AL$136,C$143,FALSE) -> 0 | D183: =VLOOKUP(Vlookup!$B142,'CDCM Volume Forecasts'!$A$28:$AL$136,D$143,FALSE) -> 0 | E183: =VLOOKUP(Vlookup!$B142,'CDCM Volume Forecasts'!$A$28:$AL$136,E$143,FALSE) -> 0
A184: > LV Network Non-Domestic Non-CT
A185: LV Network Non-Domestic Non-CT | B185: =VLOOKUP(Vlookup!$B144,'CDCM Volume Forecasts'!$A$28:$AL$136,B$143,FALSE) -> 25120.809 | C185: =VLOOKUP(Vlookup!$B144,'CDCM Volume Forecasts'!$A$28:$AL$136,C$143,FALSE) -> 181265.3363 | D185: =VLOOKUP(Vlookup!$B144,'CDCM Volume Forecasts'!$A$28:$AL$136,D$143,FALSE) -> 162228.4589 | E185: =VLOOKUP(Vlookup!$B144,'CDCM Volume Forecasts'!$A$28:$AL$136,E$143,FALSE) -> 5017.125897
A186: LDNO LV: LV Network Non-Domestic Non-CT | B186: =VLOOKUP(Vlookup!$B145,'CDCM Volume Forecasts'!$A$28:$AL$136,B$143,FALSE) -> 5.655269468 | C186: =VLOOKUP(Vlookup!$B145,'CDCM Volume Forecasts'!$A$28:$AL$136,C$143,FALSE) -> 41.96646988 | D186: =VLOOKUP(Vlookup!$B145,'CDCM Volume Forecasts'!$A$28:$AL$136,D$143,FALSE) -> 40.2914082 | E186: =VLOOKUP(Vlookup!$B145,'CDCM Volume Forecasts'!$A$28:$AL$136,E$143,FALSE) -> 2.285782398
A187: LDNO HV: LV Network Non-Domestic Non-CT | B187: =VLOOKUP(Vlookup!$B146,'CDCM Volume Forecasts'!$A$28:$AL$136,B$143,FALSE) -> 196.871113 | C187: =VLOOKUP(Vlookup!$B146,'CDCM Volume Forecasts'!$A$28:$AL$136,C$143,FALSE) -> 798.0854267 | D187: =VLOOKUP(Vlookup!$B146,'CDCM Volume Forecasts'!$A$28:$AL$136,D$143,FALSE) -> 644.0586198 | E187: =VLOOKUP(Vlookup!$B146,'CDCM Volume Forecasts'!$A$28:$AL$136,E$143,FALSE) -> 40.06998868
A188: > LV HH Metered
A189: LV HH Metered | B189: =VLOOKUP(Vlookup!$B148,'CDCM Volume Forecasts'!$A$28:$AL$136,B$143,FALSE) -> 88440.19018 | C189: =VLOOKUP(Vlookup!$B148,'CDCM Volume Forecasts'!$A$28:$AL$136,C$143,FALSE) -> 636664.9164 | D189: =VLOOKUP(Vlookup!$B148,'CDCM Volume Forecasts'!$A$28:$AL$136,D$143,FALSE) -> 540985.3164 | E189: =VLOOKUP(Vlookup!$B148,'CDCM Volume Forecasts'!$A$28:$AL$136,E$143,FALSE) -> 7358.873392 | F189: =VLOOKUP(Vlookup!$B148,'CDCM Volume Forecasts'!$A$28:$AL$136,F$143,FALSE) -> 669999.8413 | G189: =VLOOKUP(Vlookup!$B148,'CDCM Volume Forecasts'!$A$28:$AL$136,G$143,FALSE) -> 26935.33574 | H189: =VLOOKUP(Vlookup!$B148,'CDCM Volume Forecasts'!$A$28:$AL$136,H$143,FALSE) -> 103729.9852
A190: LDNO LV: LV HH Metered | B190: =VLOOKUP(Vlookup!$B149,'CDCM Volume Forecasts'!$A$28:$AL$136,B$143,FALSE) -> 86.16521614 | C190: =VLOOKUP(Vlookup!$B149,'CDCM Volume Forecasts'!$A$28:$AL$136,C$143,FALSE) -> 538.6117911 | D190: =VLOOKUP(Vlookup!$B149,'CDCM Volume Forecasts'!$A$28:$AL$136,D$143,FALSE) -> 513.0487545 | E190: =VLOOKUP(Vlookup!$B149,'CDCM Volume Forecasts'!$A$28:$AL$136,E$143,FALSE) -> 13.16584969 | F190: =VLOOKUP(Vlookup!$B149,'CDCM Volume Forecasts'!$A$28:$AL$136,F$143,FALSE) -> 1617.217604 | G190: =VLOOKUP(Vlookup!$B149,'CDCM Volume Forecasts'!$A$28:$AL$136,G$143,FALSE) -> 0 | H190: =VLOOKUP(Vlookup!$B149,'CDCM Volume Forecasts'!$A$28:$AL$136,H$143,FALSE) -> 106.3204184
A191: LDNO HV: LV HH Metered | B191: =VLOOKUP(Vlookup!$B150,'CDCM Volume Forecasts'!$A$28:$AL$136,B$143,FALSE) -> 4262.877109 | C191: =VLOOKUP(Vlookup!$B150,'CDCM Volume Forecasts'!$A$28:$AL$136,C$143,FALSE) -> 24227.26939 | D191: =VLOOKUP(Vlookup!$B150,'CDCM Volume Forecasts'!$A$28:$AL$136,D$143,FALSE) -> 20257.54291 | E191: =VLOOKUP(Vlookup!$B150,'CDCM Volume Forecasts'!$A$28:$AL$136,E$143,FALSE) -> 191.4203038 | F191: =VLOOKUP(Vlookup!$B150,'CDCM Volume Forecasts'!$A$28:$AL$136,F$143,FALSE) -> 29908.94749 | G191: =VLOOKUP(Vlookup!$B150,'CDCM Volume Forecasts'!$A$28:$AL$136,G$143,FALSE) -> 581.7612978 | H191: =VLOOKUP(Vlookup!$B150,'CDCM Volume Forecasts'!$A$28:$AL$136,H$143,FALSE) -> 2716.187582
A192: > LV Sub HH Metered
A193: LV Sub HH Metered | B193: =VLOOKUP(Vlookup!$B152,'CDCM Volume Forecasts'!$A$28:$AL$136,B$143,FALSE) -> 48977.5164 | C193: =VLOOKUP(Vlookup!$B152,'CDCM Volume Forecasts'!$A$28:$AL$136,C$143,FALSE) -> 361536.8328 | D193: =VLOOKUP(Vlookup!$B152,'CDCM Volume Forecasts'!$A$28:$AL$136,D$143,FALSE) -> 330106.1002 | E193: =VLOOKUP(Vlookup!$B152,'CDCM Volume Forecasts'!$A$28:$AL$136,E$143,FALSE) -> 1767.931462 | F193: =VLOOKUP(Vlookup!$B152,'CDCM Volume Forecasts'!$A$28:$AL$136,F$143,FALSE) -> 352078.7432 | G193: =VLOOKUP(Vlookup!$B152,'CDCM Volume Forecasts'!$A$28:$AL$136,G$143,FALSE) -> 5897.369936 | H193: =VLOOKUP(Vlookup!$B152,'CDCM Volume Forecasts'!$A$28:$AL$136,H$143,FALSE) -> 68974.53484
A194: LDNO HV: LV Sub HH Metered | B194: =VLOOKUP(Vlookup!$B153,'CDCM Volume Forecasts'!$A$28:$AL$136,B$143,FALSE) -> 409.7914242 | C194: =VLOOKUP(Vlookup!$B153,'CDCM Volume Forecasts'!$A$28:$AL$136,C$143,FALSE) -> 2104.566065 | D194: =VLOOKUP(Vlookup!$B153,'CDCM Volume Forecasts'!$A$28:$AL$136,D$143,FALSE) -> 2395.703292 | E194: =VLOOKUP(Vlookup!$B153,'CDCM Volume Forecasts'!$A$28:$AL$136,E$143,FALSE) -> 4.351344122 | F194: =VLOOKUP(Vlookup!$B153,'CDCM Volume Forecasts'!$A$28:$AL$136,F$143,FALSE) -> 2418.217773 | G194: =VLOOKUP(Vlookup!$B153,'CDCM Volume Forecasts'!$A$28:$AL$136,G$143,FALSE) -> 0 | H194: =VLOOKUP(Vlookup!$B153,'CDCM Volume Forecasts'!$A$28:$AL$136,H$143,FALSE) -> 404.8937827
A195: > HV HH Metered
A196: HV HH Metered | B196: =VLOOKUP(Vlookup!$B155,'CDCM Volume Forecasts'!$A$28:$AL$136,B$143,FALSE) -> 158180.58 | C196: =VLOOKUP(Vlookup!$B155,'CDCM Volume Forecasts'!$A$28:$AL$136,C$143,FALSE) -> 1114577.674 | D196: =VLOOKUP(Vlookup!$B155,'CDCM Volume Forecasts'!$A$28:$AL$136,D$143,FALSE) -> 1231512.847 | E196: =VLOOKUP(Vlookup!$B155,'CDCM Volume Forecasts'!$A$28:$AL$136,E$143,FALSE) -> 1242.427106 | F196: =VLOOKUP(Vlookup!$B155,'CDCM Volume Forecasts'!$A$28:$AL$136,F$143,FALSE) -> 888545.7243 | G196: =VLOOKUP(Vlookup!$B155,'CDCM Volume Forecasts'!$A$28:$AL$136,G$143,FALSE) -> 12932.01119 | H196: =VLOOKUP(Vlookup!$B155,'CDCM Volume Forecasts'!$A$28:$AL$136,H$143,FALSE) -> 171554.1734
A197: LDNO HV: HV HH Metered | B197: =VLOOKUP(Vlookup!$B156,'CDCM Volume Forecasts'!$A$28:$AL$136,B$143,FALSE) -> 1479.333832 | C197: =VLOOKUP(Vlookup!$B156,'CDCM Volume Forecasts'!$A$28:$AL$136,C$143,FALSE) -> 8277.244473 | D197: =VLOOKUP(Vlookup!$B156,'CDCM Volume Forecasts'!$A$28:$AL$136,D$143,FALSE) -> 11213.06626 | E197: =VLOOKUP(Vlookup!$B156,'CDCM Volume Forecasts'!$A$28:$AL$136,E$143,FALSE) -> 11.17578242 | F197: =VLOOKUP(Vlookup!$B156,'CDCM Volume Forecasts'!$A$28:$AL$136,F$143,FALSE) -> 16463.86924 | G197: =VLOOKUP(Vlookup!$B156,'CDCM Volume Forecasts'!$A$28:$AL$136,G$143,FALSE) -> 0 | H197: =VLOOKUP(Vlookup!$B156,'CDCM Volume Forecasts'!$A$28:$AL$136,H$143,FALSE) -> 616.2023296
A198: > NHH UMS category A
A199: NHH UMS category A | B199: =VLOOKUP(Vlookup!$B158,'CDCM Volume Forecasts'!$A$28:$AL$136,B$143,FALSE) -> 4068.429323 | E199: =VLOOKUP(Vlookup!$B158,'CDCM Volume Forecasts'!$A$28:$AL$136,E$143,FALSE) -> 818
A200: LDNO LV: NHH UMS category A | B200: =VLOOKUP(Vlookup!$B159,'CDCM Volume Forecasts'!$A$28:$AL$136,B$143,FALSE) -> 0 | E200: =VLOOKUP(Vlookup!$B159,'CDCM Volume Forecasts'!$A$28:$AL$136,E$143,FALSE) -> 0
A201: LDNO HV: NHH UMS category A | B201: =VLOOKUP(Vlookup!$B160,'CDCM Volume Forecasts'!$A$28:$AL$136,B$143,FALSE) -> 207.6954543 | E201: =VLOOKUP(Vlookup!$B160,'CDCM Volume Forecasts'!$A$28:$AL$136,E$143,FALSE) -> 0
A202: > NHH UMS category B
A203: NHH UMS category B | B203: =VLOOKUP(Vlookup!$B162,'CDCM Volume Forecasts'!$A$28:$AL$136,B$143,FALSE) -> 4958.851789 | E203: =VLOOKUP(Vlookup!$B162,'CDCM Volume Forecasts'!$A$28:$AL$136,E$143,FALSE) -> 759
A204: LDNO LV: NHH UMS category B | B204: =VLOOKUP(Vlookup!$B163,'CDCM Volume Forecasts'!$A$28:$AL$136,B$143,FALSE) -> 133.9819522 | E204: =VLOOKUP(Vlookup!$B163,'CDCM Volume Forecasts'!$A$28:$AL$136,E$143,FALSE) -> 0
A205: LDNO HV: NHH UMS category B | B205: =VLOOKUP(Vlookup!$B164,'CDCM Volume Forecasts'!$A$28:$AL$136,B$143,FALSE) -> 454.6986531 | E205: =VLOOKUP(Vlookup!$B164,'CDCM Volume Forecasts'!$A$28:$AL$136,E$143,FALSE) -> 0
A206: > NHH UMS category C
A207: NHH UMS category C | B207: =VLOOKUP(Vlookup!$B166,'CDCM Volume Forecasts'!$A$28:$AL$136,B$143,FALSE) -> 593.783964 | E207: =VLOOKUP(Vlookup!$B166,'CDCM Volume Forecasts'!$A$28:$AL$136,E$143,FALSE) -> 191
A208: LDNO LV: NHH UMS category C | B208: =VLOOKUP(Vlookup!$B167,'CDCM Volume Forecasts'!$A$28:$AL$136,B$143,FALSE) -> 0.0192010544 | E208: =VLOOKUP(Vlookup!$B167,'CDCM Volume Forecasts'!$A$28:$AL$136,E$143,FALSE) -> 0
A209: LDNO HV: NHH UMS category C | B209: =VLOOKUP(Vlookup!$B168,'CDCM Volume Forecasts'!$A$28:$AL$136,B$143,FALSE) -> 3.959794337 | E209: =VLOOKUP(Vlookup!$B168,'CDCM Volume Forecasts'!$A$28:$AL$136,E$143,FALSE) -> 0
A210: > NHH UMS category D
A211: NHH UMS category D | B211: =VLOOKUP(Vlookup!$B170,'CDCM Volume Forecasts'!$A$28:$AL$136,B$143,FALSE) -> 0 | E211: =VLOOKUP(Vlookup!$B170,'CDCM Volume Forecasts'!$A$28:$AL$136,E$143,FALSE) -> 0
A212: LDNO LV: NHH UMS category D | B212: =VLOOKUP(Vlookup!$B171,'CDCM Volume Forecasts'!$A$28:$AL$136,B$143,FALSE) -> 0 | E212: =VLOOKUP(Vlookup!$B171,'CDCM Volume Forecasts'!$A$28:$AL$136,E$143,FALSE) -> 0
A213: LDNO HV: NHH UMS category D | B213: =VLOOKUP(Vlookup!$B172,'CDCM Volume Forecasts'!$A$28:$AL$136,B$143,FALSE) -> 0 | E213: =VLOOKUP(Vlookup!$B172,'CDCM Volume Forecasts'!$A$28:$AL$136,E$143,FALSE) -> 0
A214: > LV UMS (Pseudo HH Metered)
A215: LV UMS (Pseudo HH Metered) | B215: =VLOOKUP(Vlookup!$B174,'CDCM Volume Forecasts'!$A$28:$AL$136,B$143,FALSE) -> 4025.426365 | C215: =VLOOKUP(Vlookup!$B174,'CDCM Volume Forecasts'!$A$28:$AL$136,C$143,FALSE) -> 30461.37997 | D215: =VLOOKUP(Vlookup!$B174,'CDCM Volume Forecasts'!$A$28:$AL$136,D$143,FALSE) -> 87397.55944 | E215: =VLOOKUP(Vlookup!$B174,'CDCM Volume Forecasts'!$A$28:$AL$136,E$143,FALSE) -> 22.33060109
A216: LDNO LV: LV UMS (Pseudo HH Metered) | B216: =VLOOKUP(Vlookup!$B175,'CDCM Volume Forecasts'!$A$28:$AL$136,B$143,FALSE) -> 0 | C216: =VLOOKUP(Vlookup!$B175,'CDCM Volume Forecasts'!$A$28:$AL$136,C$143,FALSE) -> 0 | D216: =VLOOKUP(Vlookup!$B175,'CDCM Volume Forecasts'!$A$28:$AL$136,D$143,FALSE) -> 0 | E216: =VLOOKUP(Vlookup!$B175,'CDCM Volume Forecasts'!$A$28:$AL$136,E$143,FALSE) -> 0
A217: LDNO HV: LV UMS (Pseudo HH Metered) | B217: =VLOOKUP(Vlookup!$B176,'CDCM Volume Forecasts'!$A$28:$AL$136,B$143,FALSE) -> 2.06307143 | C217: =VLOOKUP(Vlookup!$B176,'CDCM Volume Forecasts'!$A$28:$AL$136,C$143,FALSE) -> 7.29268794 | D217: =VLOOKUP(Vlookup!$B176,'CDCM Volume Forecasts'!$A$28:$AL$136,D$143,FALSE) -> 41.1568347 | E217: =VLOOKUP(Vlookup!$B176,'CDCM Volume Forecasts'!$A$28:$AL$136,E$143,FALSE) -> 1.693852573
A218: > LV Generation NHH or Aggregate HH
A219: LV Generation NHH or Aggregate HH | B219: =VLOOKUP(Vlookup!$B178,'CDCM Volume Forecasts'!$A$28:$AL$136,B$143,FALSE) -> 3884.145239 | E219: =VLOOKUP(Vlookup!$B178,'CDCM Volume Forecasts'!$A$28:$AL$136,E$143,FALSE) -> 332
A220: LDNO LV: LV Generation NHH or Aggregate HH | B220: =VLOOKUP(Vlookup!$B179,'CDCM Volume Forecasts'!$A$28:$AL$136,B$143,FALSE) -> 78.22429457 | E220: =VLOOKUP(Vlookup!$B179,'CDCM Volume Forecasts'!$A$28:$AL$136,E$143,FALSE) -> 0
A221: LDNO HV: LV Generation NHH or Aggregate HH | B221: =VLOOKUP(Vlookup!$B180,'CDCM Volume Forecasts'!$A$28:$AL$136,B$143,FALSE) -> 0 | E221: =VLOOKUP(Vlookup!$B180,'CDCM Volume Forecasts'!$A$28:$AL$136,E$143,FALSE) -> 0
A222: > LV Sub Generation NHH
A223: LV Sub Generation NHH | B223: =VLOOKUP(Vlookup!$B182,'CDCM Volume Forecasts'!$A$28:$AL$136,B$143,FALSE) -> 0 | E223: =VLOOKUP(Vlookup!$B182,'CDCM Volume Forecasts'!$A$28:$AL$136,E$143,FALSE) -> 0
A224: LDNO HV: LV Sub Generation NHH | B224: =VLOOKUP(Vlookup!$B183,'CDCM Volume Forecasts'!$A$28:$AL$136,B$143,FALSE) -> 0 | E224: =VLOOKUP(Vlookup!$B183,'CDCM Volume Forecasts'!$A$28:$AL$136,E$143,FALSE) -> 0
A225: > LV Generation Intermittent
A226: LV Generation Intermittent | B226: =VLOOKUP(Vlookup!$B185,'CDCM Volume Forecasts'!$A$28:$AL$136,B$143,FALSE) -> 70648.16806 | E226: =VLOOKUP(Vlookup!$B185,'CDCM Volume Forecasts'!$A$28:$AL$136,E$143,FALSE) -> 949.8952923 | H226: =VLOOKUP(Vlookup!$B185,'CDCM Volume Forecasts'!$A$28:$AL$136,H$143,FALSE) -> 6652.62173
A227: LDNO LV: LV Generation Intermittent | B227: =VLOOKUP(Vlookup!$B186,'CDCM Volume Forecasts'!$A$28:$AL$136,B$143,FALSE) -> 0 | E227: =VLOOKUP(Vlookup!$B186,'CDCM Volume Forecasts'!$A$28:$AL$136,E$143,FALSE) -> 0 | H227: =VLOOKUP(Vlookup!$B186,'CDCM Volume Forecasts'!$A$28:$AL$136,H$143,FALSE) -> 0
A228: LDNO HV: LV Generation Intermittent | B228: =VLOOKUP(Vlookup!$B187,'CDCM Volume Forecasts'!$A$28:$AL$136,B$143,FALSE) -> 1073.963274 | E228: =VLOOKUP(Vlookup!$B187,'CDCM Volume Forecasts'!$A$28:$AL$136,E$143,FALSE) -> 4.03442623 | H228: =VLOOKUP(Vlookup!$B187,'CDCM Volume Forecasts'!$A$28:$AL$136,H$143,FALSE) -> 0.6418212429
... 99 more rows

Sheet (Y+1)
A1: Input data (Y+1)
A4: 1000. Company, charging year, data version
B6: Company | C6: Year | D6: Version
A7: Company, charging year, data version | B7: =VLOOKUP(Vlookup!B7,'CDCM Forecast Data'!$A$14:$I$271,6,FALSE) -> WPD South West | C7: =VLOOKUP(Vlookup!C7,'CDCM Forecast Data'!$A$14:$I$271,6,FALSE) -> 2020/21 | D7: =VLOOKUP(Vlookup!D7,'CDCM Forecast Data'!$A$14:$I$271,6,FALSE) -> Forecast
A9: 1010. Financial and general assumptions
A11: Sources: financial assumptions; calendar; network model.
A12: These financial assumptions determine the annuity rate applied to convert the asset values of the network model into an annual charge.
B13: Rate of return | C13: Annualisation period (years) | D13: Annuity proportion for customer-contributed assets | E13: Power factor | F13: Days in the charging period
A14: Financial and general assumptions | B14: =VLOOKUP(Vlookup!B14,'CDCM Forecast Data'!$A$14:$I$271,6,FALSE) -> 0.0421 | C14: =VLOOKUP(Vlookup!C14,'CDCM Forecast Data'!$A$14:$I$271,6,FALSE) -> 40 | E14: =VLOOKUP(Vlookup!E14,'CDCM Forecast Data'!$A$14:$I$271,6,FALSE) -> 0.95 | F14: =VLOOKUP(Vlookup!F14,'CDCM Forecast Data'!$A$14:$I$271,6,FALSE) -> 365
A16: 1017. Diversity allowance between top and bottom of network level
A18: Source: operational data analysis and/or network model.
A19: The diversity figure against GSP is the diversity between GSP Group (the whole system) and individual GSPs.
A20: The diversity figure against 132kV is the diversity between GSPs (the top of the 132kV network) and 132kV/EHV bulk supply points (the bottom of the 132kV network).
A21: The diversity figure against EHV is the diversity between 132kV/EHV bulk supply points (the top of the EHV network) and EHV/HV primary substations (the bottom of the EHV network).
A22: The diversity figure against HV is the diversity between EHV/HV primary substations (the top of the HV network) and HV/LV substations (the bottom of the HV network).
B23: Diversity allowance between top and bottom of network level
A24: GSPs | B24: =VLOOKUP(Vlookup!B24,'CDCM Forecast Data'!$A$14:$I$271,6,FALSE) -> 0.022
A25: 132kV | B25: =VLOOKUP(Vlookup!B25,'CDCM Forecast Data'!$A$14:$I$271,6,FALSE) -> 0.031
A26: 132kV/EHV
A27: EHV | B27: =VLOOKUP(Vlookup!B27,'CDCM Forecast Data'!$A$14:$I$271,6,FALSE) -> 0.075
A28: EHV/HV
A29: HV | B29: =VLOOKUP(Vlookup!B29,'CDCM Forecast Data'!$A$14:$I$271,6,FALSE) -> 0.37
A30: HV/LV
A31: LV circuits
A33: 1018. Proportion of relevant load going through 132kV/HV direct transformation
B35: 132kV/HV
A36: EHV/HV | B36: =VLOOKUP(Vlookup!B36,'CDCM Forecast Data'!$A$14:$I$271,6,FALSE) -> 0
A38: 1019. Network model GSP peak demand (MW)
B40: Network model GSP peak demand (MW)
A41: Network model GSP peak demand (MW) | B41: =VLOOKUP(Vlookup!B41,'CDCM Forecast Data'!$A$14:$I$271,6,FALSE) -> 500
A43: 1020. Gross asset cost by network level (£)
B45: Gross assets £
A46: 132kV | B46: =VLOOKUP(Vlookup!B46,'CDCM Forecast Data'!$A$14:$I$271,6,FALSE) -> 119270271.3
A47: 132kV/EHV | B47: =VLOOKUP(Vlookup!B47,'CDCM Forecast Data'!$A$14:$I$271,6,FALSE) -> 18394614.43
A48: EHV | B48: =VLOOKUP(Vlookup!B48,'CDCM Forecast Data'!$A$14:$I$271,6,FALSE) -> 41052075.97
A49: EHV/HV | B49: =VLOOKUP(Vlookup!B49,'CDCM Forecast Data'!$A$14:$I$271,6,FALSE) -> 40743686.97
A50: 132kV/HV | B50: =VLOOKUP(Vlookup!B50,'CDCM Forecast Data'!$A$14:$I$271,6,FALSE) -> 0
A51: HV | B51: =VLOOKUP(Vlookup!B51,'CDCM Forecast Data'!$A$14:$I$271,6,FALSE) -> 157434117.3
A52: HV/LV | B52: =VLOOKUP(Vlookup!B52,'CDCM Forecast Data'!$A$14:$I$271,6,FALSE) -> 65570149.64
A53: LV circuits | B53: =VLOOKUP(Vlookup!B53,'CDCM Forecast Data'!$A$14:$I$271,6,FALSE) -> 153701309
A55: 1022. LV service model asset cost (£)
B57: LV service model 1 | C57: LV service model 2 | D57: LV service model 3 | E57: LV service model 4 | F57: LV service model 5 | G57: LV service model 6 | H57: LV service model 7 | I57: LV service model 8
A58: LV service model asset cost (£) | B58: =VLOOKUP(Vlookup!B58,'CDCM Forecast Data'!$A$14:$I$271,6,FALSE) -> 4495.771841 | C58: =VLOOKUP(Vlookup!C58,'CDCM Forecast Data'!$A$14:$I$271,6,FALSE) -> 685.4396296 | D58: =VLOOKUP(Vlookup!D58,'CDCM Forecast Data'!$A$14:$I$271,6,FALSE) -> 792.7676514 | E58: =VLOOKUP(Vlookup!E58,'CDCM Forecast Data'!$A$14:$I$271,6,FALSE) -> 575.3307709 | F58: =VLOOKUP(Vlookup!F58,'CDCM Forecast Data'!$A$14:$I$271,6,FALSE) -> 1269.305205 | G58: =VLOOKUP(Vlookup!G58,'CDCM Forecast Data'!$A$14:$I$271,6,FALSE) -> 990.8724913 | H58: =VLOOKUP(Vlookup!H58,'CDCM Forecast Data'!$A$14:$I$271,6,FALSE) -> 0 | I58: =VLOOKUP(Vlookup!I58,'CDCM Forecast Data'!$A$14:$I$271,6,FALSE) -> 542.3126865
A60: 1023. HV service model asset cost (£)
B62: HV service model 1 | C62: HV service model 2 | D62: HV service model 3 | E62: HV service model 4 | F62: HV service model 5
A63: HV service model asset cost (£) | B63: =VLOOKUP(Vlookup!B63,'CDCM Forecast Data'!$A$14:$I$271,6,FALSE) -> 10701.15894 | C63: =VLOOKUP(Vlookup!C63,'CDCM Forecast Data'!$A$14:$I$271,6,FALSE) -> 4399.478261 | D63: =VLOOKUP(Vlookup!D63,'CDCM Forecast Data'!$A$14:$I$271,6,FALSE) -> 0 | E63: =VLOOKUP(Vlookup!E63,'CDCM Forecast Data'!$A$14:$I$271,6,FALSE) -> 0 | F63: =VLOOKUP(Vlookup!F63,'CDCM Forecast Data'!$A$14:$I$271,6,FALSE) -> 0
A65: 1025. Matrix of applicability of LV service models to tariffs with fixed charges
B66: 10 | C66: =B66+1 -> 11 | D66: 12 | E66: 13 | F66: 14 | G66: 15 | H66: 16 | I66: 17
B67: LV service model 1 | C67: LV service model 2 | D67: LV service model 3 | E67: LV service model 4 | F67: LV service model 5 | G67: LV service model 6 | H67: LV service model 7 | I67: LV service model 8
A68: Domestic Unrestricted | B68: =VLOOKUP($A68,'Mat of App'!$B$7:$AP$43,B$66,FALSE) -> 0.05 | C68: =VLOOKUP($A68,'Mat of App'!$B$7:$AP$43,C$66,FALSE) -> 0 | D68: =VLOOKUP($A68,'Mat of App'!$B$7:$AP$43,D$66,FALSE) -> 0 | E68: =VLOOKUP($A68,'Mat of App'!$B$7:$AP$43,E$66,FALSE) -> 0 | F68: =VLOOKUP($A68,'Mat of App'!$B$7:$AP$43,F$66,FALSE) -> 0 | G68: =VLOOKUP($A68,'Mat of App'!$B$7:$AP$43,G$66,FALSE) -> 0 | H68: =VLOOKUP($A68,'Mat of App'!$B$7:$AP$43,H$66,FALSE) -> 0 | I68: =VLOOKUP($A68,'Mat of App'!$B$7:$AP$43,I$66,FALSE) -> 0
A69: Domestic Two Rate | B69: =VLOOKUP($A69,'Mat of App'!$B$7:$AP$43,B$66,FALSE) -> 0.05 | C69: =VLOOKUP($A69,'Mat of App'!$B$7:$AP$43,C$66,FALSE) -> 0 | D69: =VLOOKUP($A69,'Mat of App'!$B$7:$AP$43,D$66,FALSE) -> 0 | E69: =VLOOKUP($A69,'Mat of App'!$B$7:$AP$43,E$66,FALSE) -> 0 | F69: =VLOOKUP($A69,'Mat of App'!$B$7:$AP$43,F$66,FALSE) -> 0 | G69: =VLOOKUP($A69,'Mat of App'!$B$7:$AP$43,G$66,FALSE) -> 0 | H69: =VLOOKUP($A69,'Mat of App'!$B$7:$AP$43,H$66,FALSE) -> 0 | I69: =VLOOKUP($A69,'Mat of App'!$B$7:$AP$43,I$66,FALSE) -> 0
A70: Small Non Domestic Unrestricted | B70: =VLOOKUP($A70,'Mat of App'!$B$7:$AP$43,B$66,FALSE) -> 0 | C70: =VLOOKUP($A70,'Mat of App'!$B$7:$AP$43,C$66,FALSE) -> 1 | D70: =VLOOKUP($A70,'Mat of App'!$B$7:$AP$43,D$66,FALSE) -> 0 | E70: =VLOOKUP($A70,'Mat of App'!$B$7:$AP$43,E$66,FALSE) -> 0 | F70: =VLOOKUP($A70,'Mat of App'!$B$7:$AP$43,F$66,FALSE) -> 0 | G70: =VLOOKUP($A70,'Mat of App'!$B$7:$AP$43,G$66,FALSE) -> 0 | H70: =VLOOKUP($A70,'Mat of App'!$B$7:$AP$43,H$66,FALSE) -> 0 | I70: =VLOOKUP($A70,'Mat of App'!$B$7:$AP$43,I$66,FALSE) -> 0
A71: Small Non Domestic Two Rate | B71: =VLOOKUP($A71,'Mat of App'!$B$7:$AP$43,B$66,FALSE) -> 0 | C71: =VLOOKUP($A71,'Mat of App'!$B$7:$AP$43,C$66,FALSE) -> 1 | D71: =VLOOKUP($A71,'Mat of App'!$B$7:$AP$43,D$66,FALSE) -> 0 | E71: =VLOOKUP($A71,'Mat of App'!$B$7:$AP$43,E$66,FALSE) -> 0 | F71: =VLOOKUP($A71,'Mat of App'!$B$7:$AP$43,F$66,FALSE) -> 0 | G71: =VLOOKUP($A71,'Mat of App'!$B$7:$AP$43,G$66,FALSE) -> 0 | H71: =VLOOKUP($A71,'Mat of App'!$B$7:$AP$43,H$66,FALSE) -> 0 | I71: =VLOOKUP($A71,'Mat of App'!$B$7:$AP$43,I$66,FALSE) -> 0
A72: LV Medium Non-Domestic | B72: =VLOOKUP($A72,'Mat of App'!$B$7:$AP$43,B$66,FALSE) -> 0 | C72: =VLOOKUP($A72,'Mat of App'!$B$7:$AP$43,C$66,FALSE) -> 0 | D72: =VLOOKUP($A72,'Mat of App'!$B$7:$AP$43,D$66,FALSE) -> 1 | E72: =VLOOKUP($A72,'Mat of App'!$B$7:$AP$43,E$66,FALSE) -> 0 | F72: =VLOOKUP($A72,'Mat of App'!$B$7:$AP$43,F$66,FALSE) -> 0 | G72: =VLOOKUP($A72,'Mat of App'!$B$7:$AP$43,G$66,FALSE) -> 0 | H72: =VLOOKUP($A72,'Mat of App'!$B$7:$AP$43,H$66,FALSE) -> 0 | I72: =VLOOKUP($A72,'Mat of App'!$B$7:$AP$43,I$66,FALSE) -> 0
A73: LV Sub Medium Non-Domestic | B73: =VLOOKUP($A73,'Mat of App'!$B$7:$AP$43,B$66,FALSE) -> 0 | C73: =VLOOKUP($A73,'Mat of App'!$B$7:$AP$43,C$66,FALSE) -> 0 | D73: =VLOOKUP($A73,'Mat of App'!$B$7:$AP$43,D$66,FALSE) -> 0 | E73: =VLOOKUP($A73,'Mat of App'!$B$7:$AP$43,E$66,FALSE) -> 1 | F73: =VLOOKUP($A73,'Mat of App'!$B$7:$AP$43,F$66,FALSE) -> 0 | G73: =VLOOKUP($A73,'Mat of App'!$B$7:$AP$43,G$66,FALSE) -> 0 | H73: =VLOOKUP($A73,'Mat of App'!$B$7:$AP$43,H$66,FALSE) -> 0 | I73: =VLOOKUP($A73,'Mat of App'!$B$7:$AP$43,I$66,FALSE) -> 0
A74: LV Network Domestic | B74: =VLOOKUP($A74,'Mat of App'!$B$7:$AP$43,B$66,FALSE) -> 0.05 | C74: =VLOOKUP($A74,'Mat of App'!$B$7:$AP$43,C$66,FALSE) -> 0 | D74: =VLOOKUP($A74,'Mat of App'!$B$7:$AP$43,D$66,FALSE) -> 0 | E74: =VLOOKUP($A74,'Mat of App'!$B$7:$AP$43,E$66,FALSE) -> 0 | F74: =VLOOKUP($A74,'Mat of App'!$B$7:$AP$43,F$66,FALSE) -> 0 | G74: =VLOOKUP($A74,'Mat of App'!$B$7:$AP$43,G$66,FALSE) -> 0 | H74: =VLOOKUP($A74,'Mat of App'!$B$7:$AP$43,H$66,FALSE) -> 0 | I74: =VLOOKUP($A74,'Mat of App'!$B$7:$AP$43,I$66,FALSE) -> 0
A75: LV Network Non-Domestic Non-CT | B75: =VLOOKUP($A75,'Mat of App'!$B$7:$AP$43,B$66,FALSE) -> 0 | C75: =VLOOKUP($A75,'Mat of App'!$B$7:$AP$43,C$66,FALSE) -> 1 | D75: =VLOOKUP($A75,'Mat of App'!$B$7:$AP$43,D$66,FALSE) -> 0 | E75: =VLOOKUP($A75,'Mat of App'!$B$7:$AP$43,E$66,FALSE) -> 0 | F75: =VLOOKUP($A75,'Mat of App'!$B$7:$AP$43,F$66,FALSE) -> 0 | G75: =VLOOKUP($A75,'Mat of App'!$B$7:$AP$43,G$66,FALSE) -> 0 | H75: =VLOOKUP($A75,'Mat of App'!$B$7:$AP$43,H$66,FALSE) -> 0 | I75: =VLOOKUP($A75,'Mat of App'!$B$7:$AP$43,I$66,FALSE) -> 0
A76: LV HH Metered | B76: =VLOOKUP($A76,'Mat of App'!$B$7:$AP$43,B$66,FALSE) -> 0 | C76: =VLOOKUP($A76,'Mat of App'!$B$7:$AP$43,C$66,FALSE) -> 0 | D76: =VLOOKUP($A76,'Mat of App'!$B$7:$AP$43,D$66,FALSE) -> 0 | E76: =VLOOKUP($A76,'Mat of App'!$B$7:$AP$43,E$66,FALSE) -> 0 | F76: =VLOOKUP($A76,'Mat of App'!$B$7:$AP$43,F$66,FALSE) -> 1 | G76: =VLOOKUP($A76,'Mat of App'!$B$7:$AP$43,G$66,FALSE) -> 0 | H76: =VLOOKUP($A76,'Mat of App'!$B$7:$AP$43,H$66,FALSE) -> 0 | I76: =VLOOKUP($A76,'Mat of App'!$B$7:$AP$43,I$66,FALSE) -> 0
A77: LV Sub HH Metered | B77: =VLOOKUP($A77,'Mat of App'!$B$7:$AP$43,B$66,FALSE) -> 0 | C77: =VLOOKUP($A77,'Mat of App'!$B$7:$AP$43,C$66,FALSE) -> 0 | D77: =VLOOKUP($A77,'Mat of App'!$B$7:$AP$43,D$66,FALSE) -> 0 | E77: =VLOOKUP($A77,'Mat of App'!$B$7:$AP$43,E$66,FALSE) -> 0 | F77: =VLOOKUP($A77,'Mat of App'!$B$7:$AP$43,F$66,FALSE) -> 0 | G77: =VLOOKUP($A77,'Mat of App'!$B$7:$AP$43,G$66,FALSE) -> 1 | H77: =VLOOKUP($A77,'Mat of App'!$B$7:$AP$43,H$66,FALSE) -> 0 | I77: =VLOOKUP($A77,'Mat of App'!$B$7:$AP$43,I$66,FALSE) -> 0
A78: LV Generation NHH or Aggregate HH | B78: =VLOOKUP($A78,'Mat of App'!$B$7:$AP$43,B$66,FALSE) -> 0 | C78: =VLOOKUP($A78,'Mat of App'!$B$7:$AP$43,C$66,FALSE) -> 0 | D78: =VLOOKUP($A78,'Mat of App'!$B$7:$AP$43,D$66,FALSE) -> 0 | E78: =VLOOKUP($A78,'Mat of App'!$B$7:$AP$43,E$66,FALSE) -> 0 | F78: =VLOOKUP($A78,'Mat of App'!$B$7:$AP$43,F$66,FALSE) -> 0 | G78: =VLOOKUP($A78,'Mat of App'!$B$7:$AP$43,G$66,FALSE) -> 0 | H78: =VLOOKUP($A78,'Mat of App'!$B$7:$AP$43,H$66,FALSE) -> 1 | I78: =VLOOKUP($A78,'Mat of App'!$B$7:$AP$43,I$66,FALSE) -> 0
A79: LV Sub Generation NHH | B79: =VLOOKUP($A79,'Mat of App'!$B$7:$AP$43,B$66,FALSE) -> 0 | C79: =VLOOKUP($A79,'Mat of App'!$B$7:$AP$43,C$66,FALSE) -> 0 | D79: =VLOOKUP($A79,'Mat of App'!$B$7:$AP$43,D$66,FALSE) -> 0 | E79: =VLOOKUP($A79,'Mat of App'!$B$7:$AP$43,E$66,FALSE) -> 0 | F79: =VLOOKUP($A79,'Mat of App'!$B$7:$AP$43,F$66,FALSE) -> 0 | G79: =VLOOKUP($A79,'Mat of App'!$B$7:$AP$43,G$66,FALSE) -> 0 | H79: =VLOOKUP($A79,'Mat of App'!$B$7:$AP$43,H$66,FALSE) -> 1 | I79: =VLOOKUP($A79,'Mat of App'!$B$7:$AP$43,I$66,FALSE) -> 0
A80: LV Generation Intermittent | B80: =VLOOKUP($A80,'Mat of App'!$B$7:$AP$43,B$66,FALSE) -> 0 | C80: =VLOOKUP($A80,'Mat of App'!$B$7:$AP$43,C$66,FALSE) -> 0 | D80: =VLOOKUP($A80,'Mat of App'!$B$7:$AP$43,D$66,FALSE) -> 0 | E80: =VLOOKUP($A80,'Mat of App'!$B$7:$AP$43,E$66,FALSE) -> 0 | F80: =VLOOKUP($A80,'Mat of App'!$B$7:$AP$43,F$66,FALSE) -> 0 | G80: =VLOOKUP($A80,'Mat of App'!$B$7:$AP$43,G$66,FALSE) -> 0 | H80: =VLOOKUP($A80,'Mat of App'!$B$7:$AP$43,H$66,FALSE) -> 1 | I80: =VLOOKUP($A80,'Mat of App'!$B$7:$AP$43,I$66,FALSE) -> 0
A81: LV Generation Intermittent no RP charge | B81: =VLOOKUP($A81,'Mat of App'!$B$7:$AP$43,B$66,FALSE) -> 0 | C81: =VLOOKUP($A81,'Mat of App'!$B$7:$AP$43,C$66,FALSE) -> 0 | D81: =VLOOKUP($A81,'Mat of App'!$B$7:$AP$43,D$66,FALSE) -> 0 | E81: =VLOOKUP($A81,'Mat of App'!$B$7:$AP$43,E$66,FALSE) -> 0 | F81: =VLOOKUP($A81,'Mat of App'!$B$7:$AP$43,F$66,FALSE) -> 0 | G81: =VLOOKUP($A81,'Mat of App'!$B$7:$AP$43,G$66,FALSE) -> 0 | H81: =VLOOKUP($A81,'Mat of App'!$B$7:$AP$43,H$66,FALSE) -> 1 | I81: =VLOOKUP($A81,'Mat of App'!$B$7:$AP$43,I$66,FALSE) -> 0
A82: LV Generation Non-Intermittent | B82: =VLOOKUP($A82,'Mat of App'!$B$7:$AP$43,B$66,FALSE) -> 0 | C82: =VLOOKUP($A82,'Mat of App'!$B$7:$AP$43,C$66,FALSE) -> 0 | D82: =VLOOKUP($A82,'Mat of App'!$B$7:$AP$43,D$66,FALSE) -> 0 | E82: =VLOOKUP($A82,'Mat of App'!$B$7:$AP$43,E$66,FALSE) -> 0 | F82: =VLOOKUP($A82,'Mat of App'!$B$7:$AP$43,F$66,FALSE) -> 0 | G82: =VLOOKUP($A82,'Mat of App'!$B$7:$AP$43,G$66,FALSE) -> 0 | H82: =VLOOKUP($A82,'Mat of App'!$B$7:$AP$43,H$66,FALSE) -> 0 | I82: =VLOOKUP($A82,'Mat of App'!$B$7:$AP$43,I$66,FALSE) -> 0
A83: LV Generation Non-Intermittent no RP charge | B83: =VLOOKUP($A83,'Mat of App'!$B$7:$AP$43,B$66,FALSE) -> 0 | C83: =VLOOKUP($A83,'Mat of App'!$B$7:$AP$43,C$66,FALSE) -> 0 | D83: =VLOOKUP($A83,'Mat of App'!$B$7:$AP$43,D$66,FALSE) -> 0 | E83: =VLOOKUP($A83,'Mat of App'!$B$7:$AP$43,E$66,FALSE) -> 0 | F83: =VLOOKUP($A83,'Mat of App'!$B$7:$AP$43,F$66,FALSE) -> 0 | G83: =VLOOKUP($A83,'Mat of App'!$B$7:$AP$43,G$66,FALSE) -> 0 | H83: =VLOOKUP($A83,'Mat of App'!$B$7:$AP$43,H$66,FALSE) -> 0 | I83: =VLOOKUP($A83,'Mat of App'!$B$7:$AP$43,I$66,FALSE) -> 0
A84: LV Sub Generation Intermittent | B84: =VLOOKUP($A84,'Mat of App'!$B$7:$AP$43,B$66,FALSE) -> 0 | C84: =VLOOKUP($A84,'Mat of App'!$B$7:$AP$43,C$66,FALSE) -> 0 | D84: =VLOOKUP($A84,'Mat of App'!$B$7:$AP$43,D$66,FALSE) -> 0 | E84: =VLOOKUP($A84,'Mat of App'!$B$7:$AP$43,E$66,FALSE) -> 0 | F84: =VLOOKUP($A84,'Mat of App'!$B$7:$AP$43,F$66,FALSE) -> 0 | G84: =VLOOKUP($A84,'Mat of App'!$B$7:$AP$43,G$66,FALSE) -> 0 | H84: =VLOOKUP($A84,'Mat of App'!$B$7:$AP$43,H$66,FALSE) -> 0 | I84: =VLOOKUP($A84,'Mat of App'!$B$7:$AP$43,I$66,FALSE) -> 0
A85: LV Sub Generation Intermittent no RP charge | B85: =VLOOKUP($A85,'Mat of App'!$B$7:$AP$43,B$66,FALSE) -> 0 | C85: =VLOOKUP($A85,'Mat of App'!$B$7:$AP$43,C$66,FALSE) -> 0 | D85: =VLOOKUP($A85,'Mat of App'!$B$7:$AP$43,D$66,FALSE) -> 0 | E85: =VLOOKUP($A85,'Mat of App'!$B$7:$AP$43,E$66,FALSE) -> 0 | F85: =VLOOKUP($A85,'Mat of App'!$B$7:$AP$43,F$66,FALSE) -> 0 | G85: =VLOOKUP($A85,'Mat of App'!$B$7:$AP$43,G$66,FALSE) -> 0 | H85: =VLOOKUP($A85,'Mat of App'!$B$7:$AP$43,H$66,FALSE) -> 0 | I85: =VLOOKUP($A85,'Mat of App'!$B$7:$AP$43,I$66,FALSE) -> 0
A86: LV Sub Generation Non-Intermittent | B86: =VLOOKUP($A86,'Mat of App'!$B$7:$AP$43,B$66,FALSE) -> 0 | C86: =VLOOKUP($A86,'Mat of App'!$B$7:$AP$43,C$66,FALSE) -> 0 | D86: =VLOOKUP($A86,'Mat of App'!$B$7:$AP$43,D$66,FALSE) -> 0 | E86: =VLOOKUP($A86,'Mat of App'!$B$7:$AP$43,E$66,FALSE) -> 0 | F86: =VLOOKUP($A86,'Mat of App'!$B$7:$AP$43,F$66,FALSE) -> 0 | G86: =VLOOKUP($A86,'Mat of App'!$B$7:$AP$43,G$66,FALSE) -> 0 | H86: =VLOOKUP($A86,'Mat of App'!$B$7:$AP$43,H$66,FALSE) -> 0 | I86: =VLOOKUP($A86,'Mat of App'!$B$7:$AP$43,I$66,FALSE) -> 0
A87: LV Sub Generation Non-Intermittent no RP charge | B87: =VLOOKUP($A87,'Mat of App'!$B$7:$AP$43,B$66,FALSE) -> 0 | C87: =VLOOKUP($A87,'Mat of App'!$B$7:$AP$43,C$66,FALSE) -> 0 | D87: =VLOOKUP($A87,'Mat of App'!$B$7:$AP$43,D$66,FALSE) -> 0 | E87: =VLOOKUP($A87,'Mat of App'!$B$7:$AP$43,E$66,FALSE) -> 0 | F87: =VLOOKUP($A87,'Mat of App'!$B$7:$AP$43,F$66,FALSE) -> 0 | G87: =VLOOKUP($A87,'Mat of App'!$B$7:$AP$43,G$66,FALSE) -> 0 | H87: =VLOOKUP($A87,'Mat of App'!$B$7:$AP$43,H$66,FALSE) -> 0 | I87: =VLOOKUP($A87,'Mat of App'!$B$7:$AP$43,I$66,FALSE) -> 0
A89: 1026. Matrix of applicability of LV service models to unmetered tariffs
A91: Source: service models
A92: Proportion of service model involved in connecting load of 1 MWh/year
B93: LV service model 1 | C93: LV service model 2 | D93: LV service model 3 | E93: LV service model 4 | F93: LV service model 5 | G93: LV service model 6 | H93: LV service model 7 | I93: LV service model 8
A94: All LV unmetered tariffs | B94: =VLOOKUP($A94,'Mat of App'!$B$7:$AP$43,B$66,FALSE) -> 0 | C94: =VLOOKUP($A94,'Mat of App'!$B$7:$AP$43,C$66,FALSE) -> 0 | D94: =VLOOKUP($A94,'Mat of App'!$B$7:$AP$43,D$66,FALSE) -> 0 | E94: =VLOOKUP($A94,'Mat of App'!$B$7:$AP$43,E$66,FALSE) -> 0 | F94: =VLOOKUP($A94,'Mat of App'!$B$7:$AP$43,F$66,FALSE) -> 0 | G94: =VLOOKUP($A94,'Mat of App'!$B$7:$AP$43,G$66,FALSE) -> 0 | H94: =VLOOKUP($A94,'Mat of App'!$B$7:$AP$43,H$66,FALSE) -> 0 | I94: =VLOOKUP($A94,'Mat of App'!$B$7:$AP$43,I$66,FALSE) -> 0.488
A96: 1028. Matrix of applicability of HV service models to tariffs with fixed charges
B97: 7 | C97: =B97+1 -> 8 | D97: =C97+1 -> 9 | E97: =D97+1 -> 10 | F97: =E97+1 -> 11
B98: HV service model 1 | C98: HV service model 2 | D98: HV service model 3 | E98: HV service model 4 | F98: HV service model 5
A99: HV Medium Non-Domestic | B99: =VLOOKUP($A99,'Mat of App'!$B$7:$AP$43,B$97,FALSE) -> 1 | C99: =VLOOKUP($A99,'Mat of App'!$B$7:$AP$43,C$97,FALSE) -> 0 | D99: =VLOOKUP($A99,'Mat of App'!$B$7:$AP$43,D$97,FALSE) -> 0 | E99: =VLOOKUP($A99,'Mat of App'!$B$7:$AP$43,E$97,FALSE) -> 0 | F99: =VLOOKUP($A99,'Mat of App'!$B$7:$AP$43,F$97,FALSE) -> 0
A100: HV HH Metered | B100: =VLOOKUP($A100,'Mat of App'!$B$7:$AP$43,B$97,FALSE) -> 1 | C100: =VLOOKUP($A100,'Mat of App'!$B$7:$AP$43,C$97,FALSE) -> 0 | D100: =VLOOKUP($A100,'Mat of App'!$B$7:$AP$43,D$97,FALSE) -> 0 | E100: =VLOOKUP($A100,'Mat of App'!$B$7:$AP$43,E$97,FALSE) -> 0 | F100: =VLOOKUP($A100,'Mat of App'!$B$7:$AP$43,F$97,FALSE) -> 0
A101: HV Generation Intermittent | B101: =VLOOKUP($A101,'Mat of App'!$B$7:$AP$43,B$97,FALSE) -> 0 | C101: =VLOOKUP($A101,'Mat of App'!$B$7:$AP$43,C$97,FALSE) -> 1 | D101: =VLOOKUP($A101,'Mat of App'!$B$7:$AP$43,D$97,FALSE) -> 0 | E101: =VLOOKUP($A101,'Mat of App'!$B$7:$AP$43,E$97,FALSE) -> 0 | F101: =VLOOKUP($A101,'Mat of App'!$B$7:$AP$43,F$97,FALSE) -> 0
A102: HV Generation Intermittent no RP charge | B102: =VLOOKUP($A102,'Mat of App'!$B$7:$AP$43,B$97,FALSE) -> 0 | C102: =VLOOKUP($A102,'Mat of App'!$B$7:$AP$43,C$97,FALSE) -> 1 | D102: =VLOOKUP($A102,'Mat of App'!$B$7:$AP$43,D$97,FALSE) -> 0 | E102: =VLOOKUP($A102,'Mat of App'!$B$7:$AP$43,E$97,FALSE) -> 0 | F102: =VLOOKUP($A102,'Mat of App'!$B$7:$AP$43,F$97,FALSE) -> 0
A103: HV Generation Non-Intermittent | B103: =VLOOKUP($A103,'Mat of App'!$B$7:$AP$43,B$97,FALSE) -> 0 | C103: =VLOOKUP($A103,'Mat of App'!$B$7:$AP$43,C$97,FALSE) -> 1 | D103: =VLOOKUP($A103,'Mat of App'!$B$7:$AP$43,D$97,FALSE) -> 0 | E103: =VLOOKUP($A103,'Mat of App'!$B$7:$AP$43,E$97,FALSE) -> 0 | F103: =VLOOKUP($A103,'Mat of App'!$B$7:$AP$43,F$97,FALSE) -> 0
A104: HV Generation Non-Intermittent no RP charge | B104: =VLOOKUP($A104,'Mat of App'!$B$7:$AP$43,B$97,FALSE) -> 0 | C104: =VLOOKUP($A104,'Mat of App'!$B$7:$AP$43,C$97,FALSE) -> 1 | D104: =VLOOKUP($A104,'Mat of App'!$B$7:$AP$43,D$97,FALSE) -> 0 | E104: =VLOOKUP($A104,'Mat of App'!$B$7:$AP$43,E$97,FALSE) -> 0 | F104: =VLOOKUP($A104,'Mat of App'!$B$7:$AP$43,F$97,FALSE) -> 0
A106: 1032. Loss adjustment factors to transmission
A108: Source: losses model or loss adjustment factors at time of system peak.
B109: 132kV | C109: 132kV/EHV | D109: EHV | E109: EHV/HV | F109: HV | G109: HV/LV | H109: LV circuits
A110: Loss adjustment factor | B110: =VLOOKUP(Vlookup!B69,'CDCM Forecast Data'!$A$14:$I$271,6,FALSE) -> 1.002 | C110: =VLOOKUP(Vlookup!C69,'CDCM Forecast Data'!$A$14:$I$271,6,FALSE) -> 1.006 | D110: =VLOOKUP(Vlookup!D69,'CDCM Forecast Data'!$A$14:$I$271,6,FALSE) -> 1.012 | E110: =VLOOKUP(Vlookup!E69,'CDCM Forecast Data'!$A$14:$I$271,6,FALSE) -> 1.021 | F110: =VLOOKUP(Vlookup!F69,'CDCM Forecast Data'!$A$14:$I$271,6,FALSE) -> 1.038 | G110: =VLOOKUP(Vlookup!G69,'CDCM Forecast Data'!$A$14:$I$271,6,FALSE) -> 1.049 | H110: =VLOOKUP(Vlookup!H69,'CDCM Forecast Data'!$A$14:$I$271,6,FALSE) -> 1.062
A112: 1037. Embedded network (LDNO) discounts
A114: Source: separate price control disaggregation model.
B115: No discount | C115: LDNO LV: LV user | D115: LDNO HV: LV user | E115: LDNO HV: LV sub user | F115: LDNO HV: HV user
A116: LDNO discount | C116: =VLOOKUP(Vlookup!C75,'CDCM Forecast Data'!$A$14:$I$271,6,FALSE) -> 0.375266152 | D116: =VLOOKUP(Vlookup!D75,'CDCM Forecast Data'!$A$14:$I$271,6,FALSE) -> 0.6158354319 | E116: =VLOOKUP(Vlookup!E75,'CDCM Forecast Data'!$A$14:$I$271,6,FALSE) -> 0.3697741805 | F116: =VLOOKUP(Vlookup!F75,'CDCM Forecast Data'!$A$14:$I$271,6,FALSE) -> 0.2523098802
A118: 1041. Load profile data for demand users
A120: Source: load data analysis.
B121: Coincidence factor | C121: Load factor
A122: Domestic Unrestricted | B122: =VLOOKUP(Vlookup!B81,'CDCM Forecast Data'!$A$14:$I$271,6,FALSE) -> 0.9036972613 | C122: =VLOOKUP(Vlookup!C81,'CDCM Forecast Data'!$A$14:$I$271,6,FALSE) -> 0.4101809031
A123: Domestic Two Rate | B123: =VLOOKUP(Vlookup!B82,'CDCM Forecast Data'!$A$14:$I$271,6,FALSE) -> 0.3484929087 | C123: =VLOOKUP(Vlookup!C82,'CDCM Forecast Data'!$A$14:$I$271,6,FALSE) -> 0.2578651801
A124: Domestic Off Peak (related MPAN) | C124: =VLOOKUP(Vlookup!C83,'CDCM Forecast Data'!$A$14:$I$271,6,FALSE) -> 0.1430432895
A125: Small Non Domestic Unrestricted | B125: =VLOOKUP(Vlookup!B84,'CDCM Forecast Data'!$A$14:$I$271,6,FALSE) -> 0.6573652486 | C125: =VLOOKUP(Vlookup!C84,'CDCM Forecast Data'!$A$14:$I$271,6,FALSE) -> 0.3893231103
A126: Small Non Domestic Two Rate | B126: =VLOOKUP(Vlookup!B85,'CDCM Forecast Data'!$A$14:$I$271,6,FALSE) -> 0.6308650462 | C126: =VLOOKUP(Vlookup!C85,'CDCM Forecast Data'!$A$14:$I$271,6,FALSE) -> 0.4408770156
A127: Small Non Domestic Off Peak (related MPAN) | C127: =VLOOKUP(Vlookup!C86,'CDCM Forecast Data'!$A$14:$I$271,6,FALSE) -> 0.1559146372
A128: LV Medium Non-Domestic | B128: =VLOOKUP(Vlookup!B87,'CDCM Forecast Data'!$A$14:$I$271,6,FALSE) -> 0.8585513205 | C128: =VLOOKUP(Vlookup!C87,'CDCM Forecast Data'!$A$14:$I$271,6,FALSE) -> 0.593601508
A129: LV Sub Medium Non-Domestic | B129: =VLOOKUP(Vlookup!B88,'CDCM Forecast Data'!$A$14:$I$271,6,FALSE) -> 0.8382314172 | C129: =VLOOKUP(Vlookup!C88,'CDCM Forecast Data'!$A$14:$I$271,6,FALSE) -> 0.6000900558
A130: HV Medium Non-Domestic | B130: =VLOOKUP(Vlookup!B89,'CDCM Forecast Data'!$A$14:$I$271,6,FALSE) -> 0.6632207801 | C130: =VLOOKUP(Vlookup!C89,'CDCM Forecast Data'!$A$14:$I$271,6,FALSE) -> 0.4549084208
A131: LV Network Domestic | B131: =VLOOKUP(Vlookup!B90,'CDCM Forecast Data'!$A$14:$I$271,6,FALSE) -> 0.8164587795 | C131: =VLOOKUP(Vlookup!C90,'CDCM Forecast Data'!$A$14:$I$271,6,FALSE) -> 0.3835067319
A132: LV Network Non-Domestic Non-CT | B132: =VLOOKUP(Vlookup!B91,'CDCM Forecast Data'!$A$14:$I$271,6,FALSE) -> 0.6520374339 | C132: =VLOOKUP(Vlookup!C91,'CDCM Forecast Data'!$A$14:$I$271,6,FALSE) -> 0.3936768454
A133: LV HH Metered | B133: =VLOOKUP(Vlookup!B92,'CDCM Forecast Data'!$A$14:$I$271,6,FALSE) -> 0.803287895 | C133: =VLOOKUP(Vlookup!C92,'CDCM Forecast Data'!$A$14:$I$271,6,FALSE) -> 0.5875803245
A134: LV Sub HH Metered | B134: =VLOOKUP(Vlookup!B93,'CDCM Forecast Data'!$A$14:$I$271,6,FALSE) -> 0.7658193845 | C134: =VLOOKUP(Vlookup!C93,'CDCM Forecast Data'!$A$14:$I$271,6,FALSE) -> 0.6115171759
A135: HV HH Metered | B135: =VLOOKUP(Vlookup!B94,'CDCM Forecast Data'!$A$14:$I$271,6,FALSE) -> 0.819551906 | C135: =VLOOKUP(Vlookup!C94,'CDCM Forecast Data'!$A$14:$I$271,6,FALSE) -> 0.7322211111
A136: NHH UMS category A | B136: =VLOOKUP(Vlookup!B95,'CDCM Forecast Data'!$A$14:$I$271,6,FALSE) -> 1 | C136: =VLOOKUP(Vlookup!C95,'CDCM Forecast Data'!$A$14:$I$271,6,FALSE) -> 1
A137: NHH UMS category B | B137: =VLOOKUP(Vlookup!B96,'CDCM Forecast Data'!$A$14:$I$271,6,FALSE) -> 0.983875969 | C137: =VLOOKUP(Vlookup!C96,'CDCM Forecast Data'!$A$14:$I$271,6,FALSE) -> 0.4756809068
A138: NHH UMS category C | B138: =VLOOKUP(Vlookup!B97,'CDCM Forecast Data'!$A$14:$I$271,6,FALSE) -> 0.8805058428 | C138: =VLOOKUP(Vlookup!C97,'CDCM Forecast Data'!$A$14:$I$271,6,FALSE) -> 0.2562760241
A139: NHH UMS category D | B139: =VLOOKUP(Vlookup!B98,'CDCM Forecast Data'!$A$14:$I$271,6,FALSE) -> 0 | C139: =VLOOKUP(Vlookup!C98,'CDCM Forecast Data'!$A$14:$I$271,6,FALSE) -> 0.515288843
A140: LV UMS (Pseudo HH Metered) | B140: =VLOOKUP(Vlookup!B99,'CDCM Forecast Data'!$A$14:$I$271,6,FALSE) -> 0.9656353209 | C140: =VLOOKUP(Vlookup!C99,'CDCM Forecast Data'!$A$14:$I$271,6,FALSE) -> 0.459118878
A142: 1053. Volume forecasts for the charging year
B143: 11 | C143: 12 | D143: 13 | E143: 14 | F143: 15 | G143: 16 | H143: 17
A144: Source: forecast.
A145: Please include MPAN counts for tariffs with no fixed charge (e.g. off-peak tariffs),
A146: but exclude MPANs on tariffs with a fixed charge that are not subject to a fixed charge due to a site grouping arrangement.
B147: Rate 1 units (MWh) | C147: Rate 2 units (MWh) | D147: Rate 3 units (MWh) | E147: MPANs | F147: Import capacity (kVA) | G147: Exceeded capacity (kVA) | H147: Reactive power units (MVArh)
A148: > Domestic Unrestricted | B148: =VLOOKUP(Vlookup!$B107,'CDCM Volume Forecasts'!$A$28:$AL$136,B$143,FALSE) -> 0 | C148: =VLOOKUP(Vlookup!$B107,'CDCM Volume Forecasts'!$A$28:$AL$136,C$143,FALSE) -> 0 | D148: =VLOOKUP(Vlookup!$B107,'CDCM Volume Forecasts'!$A$28:$AL$136,D$143,FALSE) -> 0 | E148: =VLOOKUP(Vlookup!$B107,'CDCM Volume Forecasts'!$A$28:$AL$136,E$143,FALSE) -> 0 | F148: =VLOOKUP(Vlookup!$B107,'CDCM Volume Forecasts'!$A$28:$AL$136,F$143,FALSE) -> 0 | H148: =VLOOKUP(Vlookup!$B107,'CDCM Volume Forecasts'!$A$28:$AL$136,G$143,FALSE) -> 0
A149: Domestic Unrestricted | B149: =VLOOKUP(Vlookup!$B108,'CDCM Volume Forecasts'!$A$28:$AL$136,B$143,FALSE) -> 4325611.921 | E149: =VLOOKUP(Vlookup!$B108,'CDCM Volume Forecasts'!$A$28:$AL$136,E$143,FALSE) -> 1265207.227
A150: LDNO LV: Domestic Unrestricted | B150: =VLOOKUP(Vlookup!$B109,'CDCM Volume Forecasts'!$A$28:$AL$136,B$143,FALSE) -> 26901.24523 | E150: =VLOOKUP(Vlookup!$B109,'CDCM Volume Forecasts'!$A$28:$AL$136,E$143,FALSE) -> 10731.18734
A151: LDNO HV: Domestic Unrestricted | B151: =VLOOKUP(Vlookup!$B110,'CDCM Volume Forecasts'!$A$28:$AL$136,B$143,FALSE) -> 55013.17403 | E151: =VLOOKUP(Vlookup!$B110,'CDCM Volume Forecasts'!$A$28:$AL$136,E$143,FALSE) -> 23203.54275
A152: > Domestic Two Rate
A153: Domestic Two Rate | B153: =VLOOKUP(Vlookup!$B112,'CDCM Volume Forecasts'!$A$28:$AL$136,B$143,FALSE) -> 631896.2065 | C153: =VLOOKUP(Vlookup!$B112,'CDCM Volume Forecasts'!$A$28:$AL$136,C$143,FALSE) -> 608756.1369 | E153: =VLOOKUP(Vlookup!$B112,'CDCM Volume Forecasts'!$A$28:$AL$136,E$143,FALSE) -> 204084.5815
A154: LDNO LV: Domestic Two Rate | B154: =VLOOKUP(Vlookup!$B113,'CDCM Volume Forecasts'!$A$28:$AL$136,B$143,FALSE) -> 1606.416511 | C154: =VLOOKUP(Vlookup!$B113,'CDCM Volume Forecasts'!$A$28:$AL$136,C$143,FALSE) -> 611.2867969 | E154: =VLOOKUP(Vlookup!$B113,'CDCM Volume Forecasts'!$A$28:$AL$136,E$143,FALSE) -> 726.066174
A155: LDNO HV: Domestic Two Rate | B155: =VLOOKUP(Vlookup!$B114,'CDCM Volume Forecasts'!$A$28:$AL$136,B$143,FALSE) -> 1981.803301 | C155: =VLOOKUP(Vlookup!$B114,'CDCM Volume Forecasts'!$A$28:$AL$136,C$143,FALSE) -> 699.8861911 | E155: =VLOOKUP(Vlookup!$B114,'CDCM Volume Forecasts'!$A$28:$AL$136,E$143,FALSE) -> 760.4569348
A156: > Domestic Off Peak (related MPAN)
A157: Domestic Off Peak (related MPAN) | B157: =VLOOKUP(Vlookup!$B116,'CDCM Volume Forecasts'!$A$28:$AL$136,B$143,FALSE) -> 49584.94863 | E157: =VLOOKUP(Vlookup!$B116,'CDCM Volume Forecasts'!$A$28:$AL$136,E$143,FALSE) -> 14616
A158: LDNO LV: Domestic Off Peak (related MPAN) | B158: =VLOOKUP(Vlookup!$B117,'CDCM Volume Forecasts'!$A$28:$AL$136,B$143,FALSE) -> 0 | E158: =VLOOKUP(Vlookup!$B117,'CDCM Volume Forecasts'!$A$28:$AL$136,E$143,FALSE) -> 0
A159: LDNO HV: Domestic Off Peak (related MPAN) | B159: =VLOOKUP(Vlookup!$B118,'CDCM Volume Forecasts'!$A$28:$AL$136,B$143,FALSE) -> 0 | E159: =VLOOKUP(Vlookup!$B118,'CDCM Volume Forecasts'!$A$28:$AL$136,E$143,FALSE) -> 0
A160: > Small Non Domestic Unrestricted
A161: Small Non Domestic Unrestricted | B161: =VLOOKUP(Vlookup!$B120,'CDCM Volume Forecasts'!$A$28:$AL$136,B$143,FALSE) -> 1188673.863 | E161: =VLOOKUP(Vlookup!$B120,'CDCM Volume Forecasts'!$A$28:$AL$136,E$143,FALSE) -> 109551.1821
A162: LDNO LV: Small Non Domestic Unrestricted | B162: =VLOOKUP(Vlookup!$B121,'CDCM Volume Forecasts'!$A$28:$AL$136,B$143,FALSE) -> 1302.442217 | E162: =VLOOKUP(Vlookup!$B121,'CDCM Volume Forecasts'!$A$28:$AL$136,E$143,FALSE) -> 222.1176994
A163: LDNO HV: Small Non Domestic Unrestricted | B163: =VLOOKUP(Vlookup!$B122,'CDCM Volume Forecasts'!$A$28:$AL$136,B$143,FALSE) -> 10841.52452 | E163: =VLOOKUP(Vlookup!$B122,'CDCM Volume Forecasts'!$A$28:$AL$136,E$143,FALSE) -> 839.4722938
A164: > Small Non Domestic Two Rate
A165: Small Non Domestic Two Rate | B165: =VLOOKUP(Vlookup!$B124,'CDCM Volume Forecasts'!$A$28:$AL$136,B$143,FALSE) -> 408779.3081 | C165: =VLOOKUP(Vlookup!$B124,'CDCM Volume Forecasts'!$A$28:$AL$136,C$143,FALSE) -> 170833.8982 | E165: =VLOOKUP(Vlookup!$B124,'CDCM Volume Forecasts'!$A$28:$AL$136,E$143,FALSE) -> 30180.33101
A166: LDNO LV: Small Non Domestic Two Rate | B166: =VLOOKUP(Vlookup!$B125,'CDCM Volume Forecasts'!$A$28:$AL$136,B$143,FALSE) -> 61.82357923 | C166: =VLOOKUP(Vlookup!$B125,'CDCM Volume Forecasts'!$A$28:$AL$136,C$143,FALSE) -> 24.87329924 | E166: =VLOOKUP(Vlookup!$B125,'CDCM Volume Forecasts'!$A$28:$AL$136,E$143,FALSE) -> 3.387705146
A167: LDNO HV: Small Non Domestic Two Rate | B167: =VLOOKUP(Vlookup!$B126,'CDCM Volume Forecasts'!$A$28:$AL$136,B$143,FALSE) -> 1089.425813 | C167: =VLOOKUP(Vlookup!$B126,'CDCM Volume Forecasts'!$A$28:$AL$136,C$143,FALSE) -> 319.6974232 | E167: =VLOOKUP(Vlookup!$B126,'CDCM Volume Forecasts'!$A$28:$AL$136,E$143,FALSE) -> 32.70298254
A168: > Small Non Domestic Off Peak (related MPAN)
A169: Small Non Domestic Off Peak (related MPAN) | B169: =VLOOKUP(Vlookup!$B128,'CDCM Volume Forecasts'!$A$28:$AL$136,B$143,FALSE) -> 18696.27093 | E169: =VLOOKUP(Vlookup!$B128,'CDCM Volume Forecasts'!$A$28:$AL$136,E$143,FALSE) -> 3163
A170: LDNO LV: Small Non Domestic Off Peak (related MPAN) | B170: =VLOOKUP(Vlookup!$B129,'CDCM Volume Forecasts'!$A$28:$AL$136,B$143,FALSE) -> 0 | E170: =VLOOKUP(Vlookup!$B129,'CDCM Volume Forecasts'!$A$28:$AL$136,E$143,FALSE) -> 0
A171: LDNO HV: Small Non Domestic Off Peak (related MPAN) | B171: =VLOOKUP(Vlookup!$B130,'CDCM Volume Forecasts'!$A$28:$AL$136,B$143,FALSE) -> 0 | E171: =VLOOKUP(Vlookup!$B130,'CDCM Volume Forecasts'!$A$28:$AL$136,E$143,FALSE) -> 0
A172: > LV Medium Non-Domestic
A173: LV Medium Non-Domestic | B173: =VLOOKUP(Vlookup!$B132,'CDCM Volume Forecasts'!$A$28:$AL$136,B$143,FALSE) -> 61016.90072 | C173: =VLOOKUP(Vlookup!$B132,'CDCM Volume Forecasts'!$A$28:$AL$136,C$143,FALSE) -> 15363.29892 | E173: =VLOOKUP(Vlookup!$B132,'CDCM Volume Forecasts'!$A$28:$AL$136,E$143,FALSE) -> 1833.471678
A174: LDNO LV: LV Medium Non-Domestic | B174: =VLOOKUP(Vlookup!$B133,'CDCM Volume Forecasts'!$A$28:$AL$136,B$143,FALSE) -> 0 | C174: =VLOOKUP(Vlookup!$B133,'CDCM Volume Forecasts'!$A$28:$AL$136,C$143,FALSE) -> 0 | E174: =VLOOKUP(Vlookup!$B133,'CDCM Volume Forecasts'!$A$28:$AL$136,E$143,FALSE) -> 0
A175: LDNO HV: LV Medium Non-Domestic | B175: =VLOOKUP(Vlookup!$B134,'CDCM Volume Forecasts'!$A$28:$AL$136,B$143,FALSE) -> 0 | C175: =VLOOKUP(Vlookup!$B134,'CDCM Volume Forecasts'!$A$28:$AL$136,C$143,FALSE) -> -1.818989404e-15 | E175: =VLOOKUP(Vlookup!$B134,'CDCM Volume Forecasts'!$A$28:$AL$136,E$143,FALSE) -> 0
A176: > LV Sub Medium Non-Domestic
A177: LV Sub Medium Non-Domestic | B177: =VLOOKUP(Vlookup!$B136,'CDCM Volume Forecasts'!$A$28:$AL$136,B$143,FALSE) -> 11011.49022 | C177: =VLOOKUP(Vlookup!$B136,'CDCM Volume Forecasts'!$A$28:$AL$136,C$143,FALSE) -> 2877.336903 | E177: =VLOOKUP(Vlookup!$B136,'CDCM Volume Forecasts'!$A$28:$AL$136,E$143,FALSE) -> 151.4251277
A178: > HV Medium Non-Domestic
A179: HV Medium Non-Domestic | B179: =VLOOKUP(Vlookup!$B138,'CDCM Volume Forecasts'!$A$28:$AL$136,B$143,FALSE) -> 475.1455588 | C179: =VLOOKUP(Vlookup!$B138,'CDCM Volume Forecasts'!$A$28:$AL$136,C$143,FALSE) -> 185.1968348 | E179: =VLOOKUP(Vlookup!$B138,'CDCM Volume Forecasts'!$A$28:$AL$136,E$143,FALSE) -> 11.57760531
A180: > LV Network Domestic
A181: LV Network Domestic | B181: =VLOOKUP(Vlookup!$B140,'CDCM Volume Forecasts'!$A$28:$AL$136,B$143,FALSE) -> 17.91450059 | C181: =VLOOKUP(Vlookup!$B140,'CDCM Volume Forecasts'!$A$28:$AL$136,C$143,FALSE) -> 148.9061615 | D181: =VLOOKUP(Vlookup!$B140,'CDCM Volume Forecasts'!$A$28:$AL$136,D$143,FALSE) -> 132.1498047 | E181: =VLOOKUP(Vlookup!$B140,'CDCM Volume Forecasts'!$A$28:$AL$136,E$143,FALSE) -> 90.26226422
A182: LDNO LV: LV Network Domestic | B182: =VLOOKUP(Vlookup!$B141,'CDCM Volume Forecasts'!$A$28:$AL$136,B$143,FALSE) -> 0 | C182: =VLOOKUP(Vlookup!$B141,'CDCM Volume Forecasts'!$A$28:$AL$136,C$143,FALSE) -> 0 | D182: =VLOOKUP(Vlookup!$B141,'CDCM Volume Forecasts'!$A$28:$AL$136,D$143,FALSE) -> 0 | E182: =VLOOKUP(Vlookup!$B141,'CDCM Volume Forecasts'!$A$28:$AL$136,E$143,FALSE) -> 0
A183: LDNO HV: LV Network Domestic | B183: =VLOOKUP(Vlookup!$B142,'CDCM Volume Forecasts'!$A$28:$AL$136,B$143,FALSE) -> 0 | C183: =VLOOKUP(Vlookup!$B142,'CDCM Volume Forecasts'!$A$28:$AL$136,C$143,FALSE) -> 0 | D183: =VLOOKUP(Vlookup!$B142,'CDCM Volume Forecasts'!$A$28:$AL$136,D$143,FALSE) -> 0 | E183: =VLOOKUP(Vlookup!$B142,'CDCM Volume Forecasts'!$A$28:$AL$136,E$143,FALSE) -> 0
A184: > LV Network Non-Domestic Non-CT
A185: LV Network Non-Domestic Non-CT | B185: =VLOOKUP(Vlookup!$B144,'CDCM Volume Forecasts'!$A$28:$AL$136,B$143,FALSE) -> 25120.809 | C185: =VLOOKUP(Vlookup!$B144,'CDCM Volume Forecasts'!$A$28:$AL$136,C$143,FALSE) -> 181265.3363 | D185: =VLOOKUP(Vlookup!$B144,'CDCM Volume Forecasts'!$A$28:$AL$136,D$143,FALSE) -> 162228.4589 | E185: =VLOOKUP(Vlookup!$B144,'CDCM Volume Forecasts'!$A$28:$AL$136,E$143,FALSE) -> 5017.125897
A186: LDNO LV: LV Network Non-Domestic Non-CT | B186: =VLOOKUP(Vlookup!$B145,'CDCM Volume Forecasts'!$A$28:$AL$136,B$143,FALSE) -> 5.655269468 | C186: =VLOOKUP(Vlookup!$B145,'CDCM Volume Forecasts'!$A$28:$AL$136,C$143,FALSE) -> 41.96646988 | D186: =VLOOKUP(Vlookup!$B145,'CDCM Volume Forecasts'!$A$28:$AL$136,D$143,FALSE) -> 40.2914082 | E186: =VLOOKUP(Vlookup!$B145,'CDCM Volume Forecasts'!$A$28:$AL$136,E$143,FALSE) -> 2.285782398
A187: LDNO HV: LV Network Non-Domestic Non-CT | B187: =VLOOKUP(Vlookup!$B146,'CDCM Volume Forecasts'!$A$28:$AL$136,B$143,FALSE) -> 196.871113 | C187: =VLOOKUP(Vlookup!$B146,'CDCM Volume Forecasts'!$A$28:$AL$136,C$143,FALSE) -> 798.0854267 | D187: =VLOOKUP(Vlookup!$B146,'CDCM Volume Forecasts'!$A$28:$AL$136,D$143,FALSE) -> 644.0586198 | E187: =VLOOKUP(Vlookup!$B146,'CDCM Volume Forecasts'!$A$28:$AL$136,E$143,FALSE) -> 40.06998868
A188: > LV HH Metered
A189: LV HH Metered | B189: =VLOOKUP(Vlookup!$B148,'CDCM Volume Forecasts'!$A$28:$AL$136,B$143,FALSE) -> 88440.19018 | C189: =VLOOKUP(Vlookup!$B148,'CDCM Volume Forecasts'!$A$28:$AL$136,C$143,FALSE) -> 636664.9164 | D189: =VLOOKUP(Vlookup!$B148,'CDCM Volume Forecasts'!$A$28:$AL$136,D$143,FALSE) -> 540985.3164 | E189: =VLOOKUP(Vlookup!$B148,'CDCM Volume Forecasts'!$A$28:$AL$136,E$143,FALSE) -> 7358.873392 | F189: =VLOOKUP(Vlookup!$B148,'CDCM Volume Forecasts'!$A$28:$AL$136,F$143,FALSE) -> 669999.8413 | G189: =VLOOKUP(Vlookup!$B148,'CDCM Volume Forecasts'!$A$28:$AL$136,G$143,FALSE) -> 26935.33574 | H189: =VLOOKUP(Vlookup!$B148,'CDCM Volume Forecasts'!$A$28:$AL$136,H$143,FALSE) -> 103729.9852
A190: LDNO LV: LV HH Metered | B190: =VLOOKUP(Vlookup!$B149,'CDCM Volume Forecasts'!$A$28:$AL$136,B$143,FALSE) -> 86.16521614 | C190: =VLOOKUP(Vlookup!$B149,'CDCM Volume Forecasts'!$A$28:$AL$136,C$143,FALSE) -> 538.6117911 | D190: =VLOOKUP(Vlookup!$B149,'CDCM Volume Forecasts'!$A$28:$AL$136,D$143,FALSE) -> 513.0487545 | E190: =VLOOKUP(Vlookup!$B149,'CDCM Volume Forecasts'!$A$28:$AL$136,E$143,FALSE) -> 13.16584969 | F190: =VLOOKUP(Vlookup!$B149,'CDCM Volume Forecasts'!$A$28:$AL$136,F$143,FALSE) -> 1617.217604 | G190: =VLOOKUP(Vlookup!$B149,'CDCM Volume Forecasts'!$A$28:$AL$136,G$143,FALSE) -> 0 | H190: =VLOOKUP(Vlookup!$B149,'CDCM Volume Forecasts'!$A$28:$AL$136,H$143,FALSE) -> 106.3204184
A191: LDNO HV: LV HH Metered | B191: =VLOOKUP(Vlookup!$B150,'CDCM Volume Forecasts'!$A$28:$AL$136,B$143,FALSE) -> 4262.877109 | C191: =VLOOKUP(Vlookup!$B150,'CDCM Volume Forecasts'!$A$28:$AL$136,C$143,FALSE) -> 24227.26939 | D191: =VLOOKUP(Vlookup!$B150,'CDCM Volume Forecasts'!$A$28:$AL$136,D$143,FALSE) -> 20257.54291 | E191: =VLOOKUP(Vlookup!$B150,'CDCM Volume Forecasts'!$A$28:$AL$136,E$143,FALSE) -> 191.4203038 | F191: =VLOOKUP(Vlookup!$B150,'CDCM Volume Forecasts'!$A$28:$AL$136,F$143,FALSE) -> 29908.94749 | G191: =VLOOKUP(Vlookup!$B150,'CDCM Volume Forecasts'!$A$28:$AL$136,G$143,FALSE) -> 581.7612978 | H191: =VLOOKUP(Vlookup!$B150,'CDCM Volume Forecasts'!$A$28:$AL$136,H$143,FALSE) -> 2716.187582
A192: > LV Sub HH Metered
A193: LV Sub HH Metered | B193: =VLOOKUP(Vlookup!$B152,'CDCM Volume Forecasts'!$A$28:$AL$136,B$143,FALSE) -> 48977.5164 | C193: =VLOOKUP(Vlookup!$B152,'CDCM Volume Forecasts'!$A$28:$AL$136,C$143,FALSE) -> 361536.8328 | D193: =VLOOKUP(Vlookup!$B152,'CDCM Volume Forecasts'!$A$28:$AL$136,D$143,FALSE) -> 330106.1002 | E193: =VLOOKUP(Vlookup!$B152,'CDCM Volume Forecasts'!$A$28:$AL$136,E$143,FALSE) -> 1767.931462 | F193: =VLOOKUP(Vlookup!$B152,'CDCM Volume Forecasts'!$A$28:$AL$136,F$143,FALSE) -> 352078.7432 | G193: =VLOOKUP(Vlookup!$B152,'CDCM Volume Forecasts'!$A$28:$AL$136,G$143,FALSE) -> 5897.369936 | H193: =VLOOKUP(Vlookup!$B152,'CDCM Volume Forecasts'!$A$28:$AL$136,H$143,FALSE) -> 68974.53484
A194: LDNO HV: LV Sub HH Metered | B194: =VLOOKUP(Vlookup!$B153,'CDCM Volume Forecasts'!$A$28:$AL$136,B$143,FALSE) -> 409.7914242 | C194: =VLOOKUP(Vlookup!$B153,'CDCM Volume Forecasts'!$A$28:$AL$136,C$143,FALSE) -> 2104.566065 | D194: =VLOOKUP(Vlookup!$B153,'CDCM Volume Forecasts'!$A$28:$AL$136,D$143,FALSE) -> 2395.703292 | E194: =VLOOKUP(Vlookup!$B153,'CDCM Volume Forecasts'!$A$28:$AL$136,E$143,FALSE) -> 4.351344122 | F194: =VLOOKUP(Vlookup!$B153,'CDCM Volume Forecasts'!$A$28:$AL$136,F$143,FALSE) -> 2418.217773 | G194: =VLOOKUP(Vlookup!$B153,'CDCM Volume Forecasts'!$A$28:$AL$136,G$143,FALSE) -> 0 | H194: =VLOOKUP(Vlookup!$B153,'CDCM Volume Forecasts'!$A$28:$AL$136,H$143,FALSE) -> 404.8937827
A195: > HV HH Metered
A196: HV HH Metered | B196: =VLOOKUP(Vlookup!$B155,'CDCM Volume Forecasts'!$A$28:$AL$136,B$143,FALSE) -> 158180.58 | C196: =VLOOKUP(Vlookup!$B155,'CDCM Volume Forecasts'!$A$28:$AL$136,C$143,FALSE) -> 1114577.674 | D196: =VLOOKUP(Vlookup!$B155,'CDCM Volume Forecasts'!$A$28:$AL$136,D$143,FALSE) -> 1231512.847 | E196: =VLOOKUP(Vlookup!$B155,'CDCM Volume Forecasts'!$A$28:$AL$136,E$143,FALSE) -> 1242.427106 | F196: =VLOOKUP(Vlookup!$B155,'CDCM Volume Forecasts'!$A$28:$AL$136,F$143,FALSE) -> 888545.7243 | G196: =VLOOKUP(Vlookup!$B155,'CDCM Volume Forecasts'!$A$28:$AL$136,G$143,FALSE) -> 12932.01119 | H196: =VLOOKUP(Vlookup!$B155,'CDCM Volume Forecasts'!$A$28:$AL$136,H$143,FALSE) -> 171554.1734
A197: LDNO HV: HV HH Metered | B197: =VLOOKUP(Vlookup!$B156,'CDCM Volume Forecasts'!$A$28:$AL$136,B$143,FALSE) -> 1479.333832 | C197: =VLOOKUP(Vlookup!$B156,'CDCM Volume Forecasts'!$A$28:$AL$136,C$143,FALSE) -> 8277.244473 | D197: =VLOOKUP(Vlookup!$B156,'CDCM Volume Forecasts'!$A$28:$AL$136,D$143,FALSE) -> 11213.06626 | E197: =VLOOKUP(Vlookup!$B156,'CDCM Volume Forecasts'!$A$28:$AL$136,E$143,FALSE) -> 11.17578242 | F197: =VLOOKUP(Vlookup!$B156,'CDCM Volume Forecasts'!$A$28:$AL$136,F$143,FALSE) -> 16463.86924 | G197: =VLOOKUP(Vlookup!$B156,'CDCM Volume Forecasts'!$A$28:$AL$136,G$143,FALSE) -> 0 | H197: =VLOOKUP(Vlookup!$B156,'CDCM Volume Forecasts'!$A$28:$AL$136,H$143,FALSE) -> 616.2023296
A198: > NHH UMS category A
A199: NHH UMS category A | B199: =VLOOKUP(Vlookup!$B158,'CDCM Volume Forecasts'!$A$28:$AL$136,B$143,FALSE) -> 4068.429323 | E199: =VLOOKUP(Vlookup!$B158,'CDCM Volume Forecasts'!$A$28:$AL$136,E$143,FALSE) -> 818
A200: LDNO LV: NHH UMS category A | B200: =VLOOKUP(Vlookup!$B159,'CDCM Volume Forecasts'!$A$28:$AL$136,B$143,FALSE) -> 0 | E200: =VLOOKUP(Vlookup!$B159,'CDCM Volume Forecasts'!$A$28:$AL$136,E$143,FALSE) -> 0
A201: LDNO HV: NHH UMS category A | B201: =VLOOKUP(Vlookup!$B160,'CDCM Volume Forecasts'!$A$28:$AL$136,B$143,FALSE) -> 207.6954543 | E201: =VLOOKUP(Vlookup!$B160,'CDCM Volume Forecasts'!$A$28:$AL$136,E$143,FALSE) -> 0
A202: > NHH UMS category B
A203: NHH UMS category B | B203: =VLOOKUP(Vlookup!$B162,'CDCM Volume Forecasts'!$A$28:$AL$136,B$143,FALSE) -> 4958.851789 | E203: =VLOOKUP(Vlookup!$B162,'CDCM Volume Forecasts'!$A$28:$AL$136,E$143,FALSE) -> 759
A204: LDNO LV: NHH UMS category B | B204: =VLOOKUP(Vlookup!$B163,'CDCM Volume Forecasts'!$A$28:$AL$136,B$143,FALSE) -> 133.9819522 | E204: =VLOOKUP(Vlookup!$B163,'CDCM Volume Forecasts'!$A$28:$AL$136,E$143,FALSE) -> 0
A205: LDNO HV: NHH UMS category B | B205: =VLOOKUP(Vlookup!$B164,'CDCM Volume Forecasts'!$A$28:$AL$136,B$143,FALSE) -> 454.6986531 | E205: =VLOOKUP(Vlookup!$B164,'CDCM Volume Forecasts'!$A$28:$AL$136,E$143,FALSE) -> 0
A206: > NHH UMS category C
A207: NHH UMS category C | B207: =VLOOKUP(Vlookup!$B166,'CDCM Volume Forecasts'!$A$28:$AL$136,B$143,FALSE) -> 593.783964 | E207: =VLOOKUP(Vlookup!$B166,'CDCM Volume Forecasts'!$A$28:$AL$136,E$143,FALSE) -> 191
A208: LDNO LV: NHH UMS category C | B208: =VLOOKUP(Vlookup!$B167,'CDCM Volume Forecasts'!$A$28:$AL$136,B$143,FALSE) -> 0.0192010544 | E208: =VLOOKUP(Vlookup!$B167,'CDCM Volume Forecasts'!$A$28:$AL$136,E$143,FALSE) -> 0
A209: LDNO HV: NHH UMS category C | B209: =VLOOKUP(Vlookup!$B168,'CDCM Volume Forecasts'!$A$28:$AL$136,B$143,FALSE) -> 3.959794337 | E209: =VLOOKUP(Vlookup!$B168,'CDCM Volume Forecasts'!$A$28:$AL$136,E$143,FALSE) -> 0
A210: > NHH UMS category D
A211: NHH UMS category D | B211: =VLOOKUP(Vlookup!$B170,'CDCM Volume Forecasts'!$A$28:$AL$136,B$143,FALSE) -> 0 | E211: =VLOOKUP(Vlookup!$B170,'CDCM Volume Forecasts'!$A$28:$AL$136,E$143,FALSE) -> 0
A212: LDNO LV: NHH UMS category D | B212: =VLOOKUP(Vlookup!$B171,'CDCM Volume Forecasts'!$A$28:$AL$136,B$143,FALSE) -> 0 | E212: =VLOOKUP(Vlookup!$B171,'CDCM Volume Forecasts'!$A$28:$AL$136,E$143,FALSE) -> 0
A213: LDNO HV: NHH UMS category D | B213: =VLOOKUP(Vlookup!$B172,'CDCM Volume Forecasts'!$A$28:$AL$136,B$143,FALSE) -> 0 | E213: =VLOOKUP(Vlookup!$B172,'CDCM Volume Forecasts'!$A$28:$AL$136,E$143,FALSE) -> 0
A214: > LV UMS (Pseudo HH Metered)
A215: LV UMS (Pseudo HH Metered) | B215: =VLOOKUP(Vlookup!$B174,'CDCM Volume Forecasts'!$A$28:$AL$136,B$143,FALSE) -> 4025.426365 | C215: =VLOOKUP(Vlookup!$B174,'CDCM Volume Forecasts'!$A$28:$AL$136,C$143,FALSE) -> 30461.37997 | D215: =VLOOKUP(Vlookup!$B174,'CDCM Volume Forecasts'!$A$28:$AL$136,D$143,FALSE) -> 87397.55944 | E215: =VLOOKUP(Vlookup!$B174,'CDCM Volume Forecasts'!$A$28:$AL$136,E$143,FALSE) -> 22.33060109
A216: LDNO LV: LV UMS (Pseudo HH Metered) | B216: =VLOOKUP(Vlookup!$B175,'CDCM Volume Forecasts'!$A$28:$AL$136,B$143,FALSE) -> 0 | C216: =VLOOKUP(Vlookup!$B175,'CDCM Volume Forecasts'!$A$28:$AL$136,C$143,FALSE) -> 0 | D216: =VLOOKUP(Vlookup!$B175,'CDCM Volume Forecasts'!$A$28:$AL$136,D$143,FALSE) -> 0 | E216: =VLOOKUP(Vlookup!$B175,'CDCM Volume Forecasts'!$A$28:$AL$136,E$143,FALSE) -> 0
A217: LDNO HV: LV UMS (Pseudo HH Metered) | B217: =VLOOKUP(Vlookup!$B176,'CDCM Volume Forecasts'!$A$28:$AL$136,B$143,FALSE) -> 2.06307143 | C217: =VLOOKUP(Vlookup!$B176,'CDCM Volume Forecasts'!$A$28:$AL$136,C$143,FALSE) -> 7.29268794 | D217: =VLOOKUP(Vlookup!$B176,'CDCM Volume Forecasts'!$A$28:$AL$136,D$143,FALSE) -> 41.1568347 | E217: =VLOOKUP(Vlookup!$B176,'CDCM Volume Forecasts'!$A$28:$AL$136,E$143,FALSE) -> 1.693852573
A218: > LV Generation NHH or Aggregate HH
A219: LV Generation NHH or Aggregate HH | B219: =VLOOKUP(Vlookup!$B178,'CDCM Volume Forecasts'!$A$28:$AL$136,B$143,FALSE) -> 3884.145239 | E219: =VLOOKUP(Vlookup!$B178,'CDCM Volume Forecasts'!$A$28:$AL$136,E$143,FALSE) -> 332
A220: LDNO LV: LV Generation NHH or Aggregate HH | B220: =VLOOKUP(Vlookup!$B179,'CDCM Volume Forecasts'!$A$28:$AL$136,B$143,FALSE) -> 78.22429457 | E220: =VLOOKUP(Vlookup!$B179,'CDCM Volume Forecasts'!$A$28:$AL$136,E$143,FALSE) -> 0
A221: LDNO HV: LV Generation NHH or Aggregate HH | B221: =VLOOKUP(Vlookup!$B180,'CDCM Volume Forecasts'!$A$28:$AL$136,B$143,FALSE) -> 0 | E221: =VLOOKUP(Vlookup!$B180,'CDCM Volume Forecasts'!$A$28:$AL$136,E$143,FALSE) -> 0
A222: > LV Sub Generation NHH
A223: LV Sub Generation NHH | B223: =VLOOKUP(Vlookup!$B182,'CDCM Volume Forecasts'!$A$28:$AL$136,B$143,FALSE) -> 0 | E223: =VLOOKUP(Vlookup!$B182,'CDCM Volume Forecasts'!$A$28:$AL$136,E$143,FALSE) -> 0
A224: LDNO HV: LV Sub Generation NHH | B224: =VLOOKUP(Vlookup!$B183,'CDCM Volume Forecasts'!$A$28:$AL$136,B$143,FALSE) -> 0 | E224: =VLOOKUP(Vlookup!$B183,'CDCM Volume Forecasts'!$A$28:$AL$136,E$143,FALSE) -> 0
A225: > LV Generation Intermittent
A226: LV Generation Intermittent | B226: =VLOOKUP(Vlookup!$B185,'CDCM Volume Forecasts'!$A$28:$AL$136,B$143,FALSE) -> 70648.16806 | E226: =VLOOKUP(Vlookup!$B185,'CDCM Volume Forecasts'!$A$28:$AL$136,E$143,FALSE) -> 949.8952923 | H226: =VLOOKUP(Vlookup!$B185,'CDCM Volume Forecasts'!$A$28:$AL$136,H$143,FALSE) -> 6652.62173
A227: LDNO LV: LV Generation Intermittent | B227: =VLOOKUP(Vlookup!$B186,'CDCM Volume Forecasts'!$A$28:$AL$136,B$143,FALSE) -> 0 | E227: =VLOOKUP(Vlookup!$B186,'CDCM Volume Forecasts'!$A$28:$AL$136,E$143,FALSE) -> 0 | H227: =VLOOKUP(Vlookup!$B186,'CDCM Volume Forecasts'!$A$28:$AL$136,H$143,FALSE) -> 0
A228: LDNO HV: LV Generation Intermittent | B228: =VLOOKUP(Vlookup!$B187,'CDCM Volume Forecasts'!$A$28:$AL$136,B$143,FALSE) -> 1073.963274 | E228: =VLOOKUP(Vlookup!$B187,'CDCM Volume Forecasts'!$A$28:$AL$136,E$143,FALSE) -> 4.03442623 | H228: =VLOOKUP(Vlookup!$B187,'CDCM Volume Forecasts'!$A$28:$AL$136,H$143,FALSE) -> 0.6418212429
... 99 more rows

Sheet (Y+2)
A1: Input data (Y+2)
A4: 1000. Company, charging year, data version
B6: Company | C6: Year | D6: Version
A7: Company, charging year, data version | B7: =VLOOKUP(Vlookup!B7,'CDCM Forecast Data'!$A$14:$I$271,7,FALSE) -> WPD South West | C7: =VLOOKUP(Vlookup!C7,'CDCM Forecast Data'!$A$14:$I$271,7,FALSE) -> 2021/22 | D7: =VLOOKUP(Vlookup!D7,'CDCM Forecast Data'!$A$14:$I$271,7,FALSE) -> Forecast
A9: 1010. Financial and general assumptions
A11: Sources: financial assumptions; calendar; network model.
A12: These financial assumptions determine the annuity rate applied to convert the asset values of the network model into an annual charge.
B13: Rate of return | C13: Annualisation period (years) | D13: Annuity proportion for customer-contributed assets | E13: Power factor | F13: Days in the charging period
A14: Financial and general assumptions | B14: =VLOOKUP(Vlookup!B14,'CDCM Forecast Data'!$A$14:$I$271,7,FALSE) -> 0.0421 | C14: =VLOOKUP(Vlookup!C14,'CDCM Forecast Data'!$A$14:$I$271,7,FALSE) -> 40 | E14: =VLOOKUP(Vlookup!E14,'CDCM Forecast Data'!$A$14:$I$271,7,FALSE) -> 0.95 | F14: =VLOOKUP(Vlookup!F14,'CDCM Forecast Data'!$A$14:$I$271,7,FALSE) -> 365
A16: 1017. Diversity allowance between top and bottom of network level
A18: Source: operational data analysis and/or network model.
A19: The diversity figure against GSP is the diversity between GSP Group (the whole system) and individual GSPs.
A20: The diversity figure against 132kV is the diversity between GSPs (the top of the 132kV network) and 132kV/EHV bulk supply points (the bottom of the 132kV network).
A21: The diversity figure against EHV is the diversity between 132kV/EHV bulk supply points (the top of the EHV network) and EHV/HV primary substations (the bottom of the EHV network).
A22: The diversity figure against HV is the diversity between EHV/HV primary substations (the top of the HV network) and HV/LV substations (the bottom of the HV network).
B23: Diversity allowance between top and bottom of network level
A24: GSPs | B24: =VLOOKUP(Vlookup!B24,'CDCM Forecast Data'!$A$14:$I$271,7,FALSE) -> 0.022
A25: 132kV | B25: =VLOOKUP(Vlookup!B25,'CDCM Forecast Data'!$A$14:$I$271,7,FALSE) -> 0.031
A26: 132kV/EHV
A27: EHV | B27: =VLOOKUP(Vlookup!B27,'CDCM Forecast Data'!$A$14:$I$271,7,FALSE) -> 0.075
A28: EHV/HV
A29: HV | B29: =VLOOKUP(Vlookup!B29,'CDCM Forecast Data'!$A$14:$I$271,7,FALSE) -> 0.37
A30: HV/LV
A31: LV circuits
A33: 1018. Proportion of relevant load going through 132kV/HV direct transformation
B35: 132kV/HV
A36: EHV/HV | B36: =VLOOKUP(Vlookup!B36,'CDCM Forecast Data'!$A$14:$I$271,7,FALSE) -> 0
A38: 1019. Network model GSP peak demand (MW)
B40: Network model GSP peak demand (MW)
A41: Network model GSP peak demand (MW) | B41: =VLOOKUP(Vlookup!B41,'CDCM Forecast Data'!$A$14:$I$271,7,FALSE) -> 500
A43: 1020. Gross asset cost by network level (£)
B45: Gross assets £
A46: 132kV | B46: =VLOOKUP(Vlookup!B46,'CDCM Forecast Data'!$A$14:$I$271,7,FALSE) -> 122943099.8
A47: 132kV/EHV | B47: =VLOOKUP(Vlookup!B47,'CDCM Forecast Data'!$A$14:$I$271,7,FALSE) -> 18961061.23
A48: EHV | B48: =VLOOKUP(Vlookup!B48,'CDCM Forecast Data'!$A$14:$I$271,7,FALSE) -> 42316240.38
A49: EHV/HV | B49: =VLOOKUP(Vlookup!B49,'CDCM Forecast Data'!$A$14:$I$271,7,FALSE) -> 41998354.8
A50: 132kV/HV | B50: =VLOOKUP(Vlookup!B50,'CDCM Forecast Data'!$A$14:$I$271,7,FALSE) -> 0
A51: HV | B51: =VLOOKUP(Vlookup!B51,'CDCM Forecast Data'!$A$14:$I$271,7,FALSE) -> 162282169.5
A52: HV/LV | B52: =VLOOKUP(Vlookup!B52,'CDCM Forecast Data'!$A$14:$I$271,7,FALSE) -> 67589327.67
A53: LV circuits | B53: =VLOOKUP(Vlookup!B53,'CDCM Forecast Data'!$A$14:$I$271,7,FALSE) -> 158434412.5
A55: 1022. LV service model asset cost (£)
B57: LV service model 1 | C57: LV service model 2 | D57: LV service model 3 | E57: LV service model 4 | F57: LV service model 5 | G57: LV service model 6 | H57: LV service model 7 | I57: LV service model 8
A58: LV service model asset cost (£) | B58: =VLOOKUP(Vlookup!B58,'CDCM Forecast Data'!$A$14:$I$271,7,FALSE) -> 4634.215383 | C58: =VLOOKUP(Vlookup!C58,'CDCM Forecast Data'!$A$14:$I$271,7,FALSE) -> 706.5471709 | D58: =VLOOKUP(Vlookup!D58,'CDCM Forecast Data'!$A$14:$I$271,7,FALSE) -> 817.1802696 | E58: =VLOOKUP(Vlookup!E58,'CDCM Forecast Data'!$A$14:$I$271,7,FALSE) -> 593.0476017 | F58: =VLOOKUP(Vlookup!F58,'CDCM Forecast Data'!$A$14:$I$271,7,FALSE) -> 1308.392399 | G58: =VLOOKUP(Vlookup!G58,'CDCM Forecast Data'!$A$14:$I$271,7,FALSE) -> 1021.385583 | H58: =VLOOKUP(Vlookup!H58,'CDCM Forecast Data'!$A$14:$I$271,7,FALSE) -> 0 | I58: =VLOOKUP(Vlookup!I58,'CDCM Forecast Data'!$A$14:$I$271,7,FALSE) -> 559.012753
A60: 1023. HV service model asset cost (£)
B62: HV service model 1 | C62: HV service model 2 | D62: HV service model 3 | E62: HV service model 4 | F62: HV service model 5
A63: HV service model asset cost (£) | B63: =VLOOKUP(Vlookup!B63,'CDCM Forecast Data'!$A$14:$I$271,7,FALSE) -> 11030.69219 | C63: =VLOOKUP(Vlookup!C63,'CDCM Forecast Data'!$A$14:$I$271,7,FALSE) -> 4534.956522 | D63: =VLOOKUP(Vlookup!D63,'CDCM Forecast Data'!$A$14:$I$271,7,FALSE) -> 0 | E63: =VLOOKUP(Vlookup!E63,'CDCM Forecast Data'!$A$14:$I$271,7,FALSE) -> 0 | F63: =VLOOKUP(Vlookup!F63,'CDCM Forecast Data'!$A$14:$I$271,7,FALSE) -> 0
A65: 1025. Matrix of applicability of LV service models to tariffs with fixed charges
B66: 18 | C66: =B66+1 -> 19 | D66: 20 | E66: 21 | F66: 22 | G66: 23 | H66: 24 | I66: 25
B67: LV service model 1 | C67: LV service model 2 | D67: LV service model 3 | E67: LV service model 4 | F67: LV service model 5 | G67: LV service model 6 | H67: LV service model 7 | I67: LV service model 8
A68: Domestic Unrestricted | B68: =VLOOKUP($A68,'Mat of App'!$B$7:$AP$43,B$66,FALSE) -> 0.05 | C68: =VLOOKUP($A68,'Mat of App'!$B$7:$AP$43,C$66,FALSE) -> 0 | D68: =VLOOKUP($A68,'Mat of App'!$B$7:$AP$43,D$66,FALSE) -> 0 | E68: =VLOOKUP($A68,'Mat of App'!$B$7:$AP$43,E$66,FALSE) -> 0 | F68: =VLOOKUP($A68,'Mat of App'!$B$7:$AP$43,F$66,FALSE) -> 0 | G68: =VLOOKUP($A68,'Mat of App'!$B$7:$AP$43,G$66,FALSE) -> 0 | H68: =VLOOKUP($A68,'Mat of App'!$B$7:$AP$43,H$66,FALSE) -> 0 | I68: =VLOOKUP($A68,'Mat of App'!$B$7:$AP$43,I$66,FALSE) -> 0
A69: Domestic Two Rate | B69: =VLOOKUP($A69,'Mat of App'!$B$7:$AP$43,B$66,FALSE) -> 0.05 | C69: =VLOOKUP($A69,'Mat of App'!$B$7:$AP$43,C$66,FALSE) -> 0 | D69: =VLOOKUP($A69,'Mat of App'!$B$7:$AP$43,D$66,FALSE) -> 0 | E69: =VLOOKUP($A69,'Mat of App'!$B$7:$AP$43,E$66,FALSE) -> 0 | F69: =VLOOKUP($A69,'Mat of App'!$B$7:$AP$43,F$66,FALSE) -> 0 | G69: =VLOOKUP($A69,'Mat of App'!$B$7:$AP$43,G$66,FALSE) -> 0 | H69: =VLOOKUP($A69,'Mat of App'!$B$7:$AP$43,H$66,FALSE) -> 0 | I69: =VLOOKUP($A69,'Mat of App'!$B$7:$AP$43,I$66,FALSE) -> 0
A70: Small Non Domestic Unrestricted | B70: =VLOOKUP($A70,'Mat of App'!$B$7:$AP$43,B$66,FALSE) -> 0 | C70: =VLOOKUP($A70,'Mat of App'!$B$7:$AP$43,C$66,FALSE) -> 1 | D70: =VLOOKUP($A70,'Mat of App'!$B$7:$AP$43,D$66,FALSE) -> 0 | E70: =VLOOKUP($A70,'Mat of App'!$B$7:$AP$43,E$66,FALSE) -> 0 | F70: =VLOOKUP($A70,'Mat of App'!$B$7:$AP$43,F$66,FALSE) -> 0 | G70: =VLOOKUP($A70,'Mat of App'!$B$7:$AP$43,G$66,FALSE) -> 0 | H70: =VLOOKUP($A70,'Mat of App'!$B$7:$AP$43,H$66,FALSE) -> 0 | I70: =VLOOKUP($A70,'Mat of App'!$B$7:$AP$43,I$66,FALSE) -> 0
A71: Small Non Domestic Two Rate | B71: =VLOOKUP($A71,'Mat of App'!$B$7:$AP$43,B$66,FALSE) -> 0 | C71: =VLOOKUP($A71,'Mat of App'!$B$7:$AP$43,C$66,FALSE) -> 1 | D71: =VLOOKUP($A71,'Mat of App'!$B$7:$AP$43,D$66,FALSE) -> 0 | E71: =VLOOKUP($A71,'Mat of App'!$B$7:$AP$43,E$66,FALSE) -> 0 | F71: =VLOOKUP($A71,'Mat of App'!$B$7:$AP$43,F$66,FALSE) -> 0 | G71: =VLOOKUP($A71,'Mat of App'!$B$7:$AP$43,G$66,FALSE) -> 0 | H71: =VLOOKUP($A71,'Mat of App'!$B$7:$AP$43,H$66,FALSE) -> 0 | I71: =VLOOKUP($A71,'Mat of App'!$B$7:$AP$43,I$66,FALSE) -> 0
A72: LV Medium Non-Domestic | B72: =VLOOKUP($A72,'Mat of App'!$B$7:$AP$43,B$66,FALSE) -> 0 | C72: =VLOOKUP($A72,'Mat of App'!$B$7:$AP$43,C$66,FALSE) -> 0 | D72: =VLOOKUP($A72,'Mat of App'!$B$7:$AP$43,D$66,FALSE) -> 1 | E72: =VLOOKUP($A72,'Mat of App'!$B$7:$AP$43,E$66,FALSE) -> 0 | F72: =VLOOKUP($A72,'Mat of App'!$B$7:$AP$43,F$66,FALSE) -> 0 | G72: =VLOOKUP($A72,'Mat of App'!$B$7:$AP$43,G$66,FALSE) -> 0 | H72: =VLOOKUP($A72,'Mat of App'!$B$7:$AP$43,H$66,FALSE) -> 0 | I72: =VLOOKUP($A72,'Mat of App'!$B$7:$AP$43,I$66,FALSE) -> 0
A73: LV Sub Medium Non-Domestic | B73: =VLOOKUP($A73,'Mat of App'!$B$7:$AP$43,B$66,FALSE) -> 0 | C73: =VLOOKUP($A73,'Mat of App'!$B$7:$AP$43,C$66,FALSE) -> 0 | D73: =VLOOKUP($A73,'Mat of App'!$B$7:$AP$43,D$66,FALSE) -> 0 | E73: =VLOOKUP($A73,'Mat of App'!$B$7:$AP$43,E$66,FALSE) -> 1 | F73: =VLOOKUP($A73,'Mat of App'!$B$7:$AP$43,F$66,FALSE) -> 0 | G73: =VLOOKUP($A73,'Mat of App'!$B$7:$AP$43,G$66,FALSE) -> 0 | H73: =VLOOKUP($A73,'Mat of App'!$B$7:$AP$43,H$66,FALSE) -> 0 | I73: =VLOOKUP($A73,'Mat of App'!$B$7:$AP$43,I$66,FALSE) -> 0
A74: LV Network Domestic | B74: =VLOOKUP($A74,'Mat of App'!$B$7:$AP$43,B$66,FALSE) -> 0.05 | C74: =VLOOKUP($A74,'Mat of App'!$B$7:$AP$43,C$66,FALSE) -> 0 | D74: =VLOOKUP($A74,'Mat of App'!$B$7:$AP$43,D$66,FALSE) -> 0 | E74: =VLOOKUP($A74,'Mat of App'!$B$7:$AP$43,E$66,FALSE) -> 0 | F74: =VLOOKUP($A74,'Mat of App'!$B$7:$AP$43,F$66,FALSE) -> 0 | G74: =VLOOKUP($A74,'Mat of App'!$B$7:$AP$43,G$66,FALSE) -> 0 | H74: =VLOOKUP($A74,'Mat of App'!$B$7:$AP$43,H$66,FALSE) -> 0 | I74: =VLOOKUP($A74,'Mat of App'!$B$7:$AP$43,I$66,FALSE) -> 0
A75: LV Network Non-Domestic Non-CT | B75: =VLOOKUP($A75,'Mat of App'!$B$7:$AP$43,B$66,FALSE) -> 0 | C75: =VLOOKUP($A75,'Mat of App'!$B$7:$AP$43,C$66,FALSE) -> 1 | D75: =VLOOKUP($A75,'Mat of App'!$B$7:$AP$43,D$66,FALSE) -> 0 | E75: =VLOOKUP($A75,'Mat of App'!$B$7:$AP$43,E$66,FALSE) -> 0 | F75: =VLOOKUP($A75,'Mat of App'!$B$7:$AP$43,F$66,FALSE) -> 0 | G75: =VLOOKUP($A75,'Mat of App'!$B$7:$AP$43,G$66,FALSE) -> 0 | H75: =VLOOKUP($A75,'Mat of App'!$B$7:$AP$43,H$66,FALSE) -> 0 | I75: =VLOOKUP($A75,'Mat of App'!$B$7:$AP$43,I$66,FALSE) -> 0
A76: LV HH Metered | B76: =VLOOKUP($A76,'Mat of App'!$B$7:$AP$43,B$66,FALSE) -> 0 | C76: =VLOOKUP($A76,'Mat of App'!$B$7:$AP$43,C$66,FALSE) -> 0 | D76: =VLOOKUP($A76,'Mat of App'!$B$7:$AP$43,D$66,FALSE) -> 0 | E76: =VLOOKUP($A76,'Mat of App'!$B$7:$AP$43,E$66,FALSE) -> 0 | F76: =VLOOKUP($A76,'Mat of App'!$B$7:$AP$43,F$66,FALSE) -> 1 | G76: =VLOOKUP($A76,'Mat of App'!$B$7:$AP$43,G$66,FALSE) -> 0 | H76: =VLOOKUP($A76,'Mat of App'!$B$7:$AP$43,H$66,FALSE) -> 0 | I76: =VLOOKUP($A76,'Mat of App'!$B$7:$AP$43,I$66,FALSE) -> 0
A77: LV Sub HH Metered | B77: =VLOOKUP($A77,'Mat of App'!$B$7:$AP$43,B$66,FALSE) -> 0 | C77: =VLOOKUP($A77,'Mat of App'!$B$7:$AP$43,C$66,FALSE) -> 0 | D77: =VLOOKUP($A77,'Mat of App'!$B$7:$AP$43,D$66,FALSE) -> 0 | E77: =VLOOKUP($A77,'Mat of App'!$B$7:$AP$43,E$66,FALSE) -> 0 | F77: =VLOOKUP($A77,'Mat of App'!$B$7:$AP$43,F$66,FALSE) -> 0 | G77: =VLOOKUP($A77,'Mat of App'!$B$7:$AP$43,G$66,FALSE) -> 1 | H77: =VLOOKUP($A77,'Mat of App'!$B$7:$AP$43,H$66,FALSE) -> 0 | I77: =VLOOKUP($A77,'Mat of App'!$B$7:$AP$43,I$66,FALSE) -> 0
A78: LV Generation NHH or Aggregate HH | B78: =VLOOKUP($A78,'Mat of App'!$B$7:$AP$43,B$66,FALSE) -> 0 | C78: =VLOOKUP($A78,'Mat of App'!$B$7:$AP$43,C$66,FALSE) -> 0 | D78: =VLOOKUP($A78,'Mat of App'!$B$7:$AP$43,D$66,FALSE) -> 0 | E78: =VLOOKUP($A78,'Mat of App'!$B$7:$AP$43,E$66,FALSE) -> 0 | F78: =VLOOKUP($A78,'Mat of App'!$B$7:$AP$43,F$66,FALSE) -> 0 | G78: =VLOOKUP($A78,'Mat of App'!$B$7:$AP$43,G$66,FALSE) -> 0 | H78: =VLOOKUP($A78,'Mat of App'!$B$7:$AP$43,H$66,FALSE) -> 1 | I78: =VLOOKUP($A78,'Mat of App'!$B$7:$AP$43,I$66,FALSE) -> 0
A79: LV Sub Generation NHH | B79: =VLOOKUP($A79,'Mat of App'!$B$7:$AP$43,B$66,FALSE) -> 0 | C79: =VLOOKUP($A79,'Mat of App'!$B$7:$AP$43,C$66,FALSE) -> 0 | D79: =VLOOKUP($A79,'Mat of App'!$B$7:$AP$43,D$66,FALSE) -> 0 | E79: =VLOOKUP($A79,'Mat of App'!$B$7:$AP$43,E$66,FALSE) -> 0 | F79: =VLOOKUP($A79,'Mat of App'!$B$7:$AP$43,F$66,FALSE) -> 0 | G79: =VLOOKUP($A79,'Mat of App'!$B$7:$AP$43,G$66,FALSE) -> 0 | H79: =VLOOKUP($A79,'Mat of App'!$B$7:$AP$43,H$66,FALSE) -> 1 | I79: =VLOOKUP($A79,'Mat of App'!$B$7:$AP$43,I$66,FALSE) -> 0
A80: LV Generation Intermittent | B80: =VLOOKUP($A80,'Mat of App'!$B$7:$AP$43,B$66,FALSE) -> 0 | C80: =VLOOKUP($A80,'Mat of App'!$B$7:$AP$43,C$66,FALSE) -> 0 | D80: =VLOOKUP($A80,'Mat of App'!$B$7:$AP$43,D$66,FALSE) -> 0 | E80: =VLOOKUP($A80,'Mat of App'!$B$7:$AP$43,E$66,FALSE) -> 0 | F80: =VLOOKUP($A80,'Mat of App'!$B$7:$AP$43,F$66,FALSE) -> 0 | G80: =VLOOKUP($A80,'Mat of App'!$B$7:$AP$43,G$66,FALSE) -> 0 | H80: =VLOOKUP($A80,'Mat of App'!$B$7:$AP$43,H$66,FALSE) -> 1 | I80: =VLOOKUP($A80,'Mat of App'!$B$7:$AP$43,I$66,FALSE) -> 0
A81: LV Generation Intermittent no RP charge | B81: =VLOOKUP($A81,'Mat of App'!$B$7:$AP$43,B$66,FALSE) -> 0 | C81: =VLOOKUP($A81,'Mat of App'!$B$7:$AP$43,C$66,FALSE) -> 0 | D81: =VLOOKUP($A81,'Mat of App'!$B$7:$AP$43,D$66,FALSE) -> 0 | E81: =VLOOKUP($A81,'Mat of App'!$B$7:$AP$43,E$66,FALSE) -> 0 | F81: =VLOOKUP($A81,'Mat of App'!$B$7:$AP$43,F$66,FALSE) -> 0 | G81: =VLOOKUP($A81,'Mat of App'!$B$7:$AP$43,G$66,FALSE) -> 0 | H81: =VLOOKUP($A81,'Mat of App'!$B$7:$AP$43,H$66,FALSE) -> 1 | I81: =VLOOKUP($A81,'Mat of App'!$B$7:$AP$43,I$66,FALSE) -> 0
A82: LV Generation Non-Intermittent | B82: =VLOOKUP($A82,'Mat of App'!$B$7:$AP$43,B$66,FALSE) -> 0 | C82: =VLOOKUP($A82,'Mat of App'!$B$7:$AP$43,C$66,FALSE) -> 0 | D82: =VLOOKUP($A82,'Mat of App'!$B$7:$AP$43,D$66,FALSE) -> 0 | E82: =VLOOKUP($A82,'Mat of App'!$B$7:$AP$43,E$66,FALSE) -> 0 | F82: =VLOOKUP($A82,'Mat of App'!$B$7:$AP$43,F$66,FALSE) -> 0 | G82: =VLOOKUP($A82,'Mat of App'!$B$7:$AP$43,G$66,FALSE) -> 0 | H82: =VLOOKUP($A82,'Mat of App'!$B$7:$AP$43,H$66,FALSE) -> 0 | I82: =VLOOKUP($A82,'Mat of App'!$B$7:$AP$43,I$66,FALSE) -> 0
A83: LV Generation Non-Intermittent no RP charge | B83: =VLOOKUP($A83,'Mat of App'!$B$7:$AP$43,B$66,FALSE) -> 0 | C83: =VLOOKUP($A83,'Mat of App'!$B$7:$AP$43,C$66,FALSE) -> 0 | D83: =VLOOKUP($A83,'Mat of App'!$B$7:$AP$43,D$66,FALSE) -> 0 | E83: =VLOOKUP($A83,'Mat of App'!$B$7:$AP$43,E$66,FALSE) -> 0 | F83: =VLOOKUP($A83,'Mat of App'!$B$7:$AP$43,F$66,FALSE) -> 0 | G83: =VLOOKUP($A83,'Mat of App'!$B$7:$AP$43,G$66,FALSE) -> 0 | H83: =VLOOKUP($A83,'Mat of App'!$B$7:$AP$43,H$66,FALSE) -> 0 | I83: =VLOOKUP($A83,'Mat of App'!$B$7:$AP$43,I$66,FALSE) -> 0
A84: LV Sub Generation Intermittent | B84: =VLOOKUP($A84,'Mat of App'!$B$7:$AP$43,B$66,FALSE) -> 0 | C84: =VLOOKUP($A84,'Mat of App'!$B$7:$AP$43,C$66,FALSE) -> 0 | D84: =VLOOKUP($A84,'Mat of App'!$B$7:$AP$43,D$66,FALSE) -> 0 | E84: =VLOOKUP($A84,'Mat of App'!$B$7:$AP$43,E$66,FALSE) -> 0 | F84: =VLOOKUP($A84,'Mat of App'!$B$7:$AP$43,F$66,FALSE) -> 0 | G84: =VLOOKUP($A84,'Mat of App'!$B$7:$AP$43,G$66,FALSE) -> 0 | H84: =VLOOKUP($A84,'Mat of App'!$B$7:$AP$43,H$66,FALSE) -> 0 | I84: =VLOOKUP($A84,'Mat of App'!$B$7:$AP$43,I$66,FALSE) -> 0
A85: LV Sub Generation Intermittent no RP charge | B85: =VLOOKUP($A85,'Mat of App'!$B$7:$AP$43,B$66,FALSE) -> 0 | C85: =VLOOKUP($A85,'Mat of App'!$B$7:$AP$43,C$66,FALSE) -> 0 | D85: =VLOOKUP($A85,'Mat of App'!$B$7:$AP$43,D$66,FALSE) -> 0 | E85: =VLOOKUP($A85,'Mat of App'!$B$7:$AP$43,E$66,FALSE) -> 0 | F85: =VLOOKUP($A85,'Mat of App'!$B$7:$AP$43,F$66,FALSE) -> 0 | G85: =VLOOKUP($A85,'Mat of App'!$B$7:$AP$43,G$66,FALSE) -> 0 | H85: =VLOOKUP($A85,'Mat of App'!$B$7:$AP$43,H$66,FALSE) -> 0 | I85: =VLOOKUP($A85,'Mat of App'!$B$7:$AP$43,I$66,FALSE) -> 0
A86: LV Sub Generation Non-Intermittent | B86: =VLOOKUP($A86,'Mat of App'!$B$7:$AP$43,B$66,FALSE) -> 0 | C86: =VLOOKUP($A86,'Mat of App'!$B$7:$AP$43,C$66,FALSE) -> 0 | D86: =VLOOKUP($A86,'Mat of App'!$B$7:$AP$43,D$66,FALSE) -> 0 | E86: =VLOOKUP($A86,'Mat of App'!$B$7:$AP$43,E$66,FALSE) -> 0 | F86: =VLOOKUP($A86,'Mat of App'!$B$7:$AP$43,F$66,FALSE) -> 0 | G86: =VLOOKUP($A86,'Mat of App'!$B$7:$AP$43,G$66,FALSE) -> 0 | H86: =VLOOKUP($A86,'Mat of App'!$B$7:$AP$43,H$66,FALSE) -> 0 | I86: =VLOOKUP($A86,'Mat of App'!$B$7:$AP$43,I$66,FALSE) -> 0
A87: LV Sub Generation Non-Intermittent no RP charge | B87: =VLOOKUP($A87,'Mat of App'!$B$7:$AP$43,B$66,FALSE) -> 0 | C87: =VLOOKUP($A87,'Mat of App'!$B$7:$AP$43,C$66,FALSE) -> 0 | D87: =VLOOKUP($A87,'Mat of App'!$B$7:$AP$43,D$66,FALSE) -> 0 | E87: =VLOOKUP($A87,'Mat of App'!$B$7:$AP$43,E$66,FALSE) -> 0 | F87: =VLOOKUP($A87,'Mat of App'!$B$7:$AP$43,F$66,FALSE) -> 0 | G87: =VLOOKUP($A87,'Mat of App'!$B$7:$AP$43,G$66,FALSE) -> 0 | H87: =VLOOKUP($A87,'Mat of App'!$B$7:$AP$43,H$66,FALSE) -> 0 | I87: =VLOOKUP($A87,'Mat of App'!$B$7:$AP$43,I$66,FALSE) -> 0
A89: 1026. Matrix of applicability of LV service models to unmetered tariffs
A91: Source: service models
A92: Proportion of service model involved in connecting load of 1 MWh/year
B93: LV service model 1 | C93: LV service model 2 | D93: LV service model 3 | E93: LV service model 4 | F93: LV service model 5 | G93: LV service model 6 | H93: LV service model 7 | I93: LV service model 8
A94: All LV unmetered tariffs | B94: =VLOOKUP($A94,'Mat of App'!$B$7:$AP$43,B$66,FALSE) -> 0 | C94: =VLOOKUP($A94,'Mat of App'!$B$7:$AP$43,C$66,FALSE) -> 0 | D94: =VLOOKUP($A94,'Mat of App'!$B$7:$AP$43,D$66,FALSE) -> 0 | E94: =VLOOKUP($A94,'Mat of App'!$B$7:$AP$43,E$66,FALSE) -> 0 | F94: =VLOOKUP($A94,'Mat of App'!$B$7:$AP$43,F$66,FALSE) -> 0 | G94: =VLOOKUP($A94,'Mat of App'!$B$7:$AP$43,G$66,FALSE) -> 0 | H94: =VLOOKUP($A94,'Mat of App'!$B$7:$AP$43,H$66,FALSE) -> 0 | I94: =VLOOKUP($A94,'Mat of App'!$B$7:$AP$43,I$66,FALSE) -> 0.488
A96: 1028. Matrix of applicability of HV service models to tariffs with fixed charges
B97: 12 | C97: =B97+1 -> 13 | D97: =C97+1 -> 14 | E97: =D97+1 -> 15 | F97: =E97+1 -> 16
B98: HV service model 1 | C98: HV service model 2 | D98: HV service model 3 | E98: HV service model 4 | F98: HV service model 5
A99: HV Medium Non-Domestic | B99: =VLOOKUP($A99,'Mat of App'!$B$7:$AP$43,B$97,FALSE) -> 1 | C99: =VLOOKUP($A99,'Mat of App'!$B$7:$AP$43,C$97,FALSE) -> 0 | D99: =VLOOKUP($A99,'Mat of App'!$B$7:$AP$43,D$97,FALSE) -> 0 | E99: =VLOOKUP($A99,'Mat of App'!$B$7:$AP$43,E$97,FALSE) -> 0 | F99: =VLOOKUP($A99,'Mat of App'!$B$7:$AP$43,F$97,FALSE) -> 0
A100: HV HH Metered | B100: =VLOOKUP($A100,'Mat of App'!$B$7:$AP$43,B$97,FALSE) -> 1 | C100: =VLOOKUP($A100,'Mat of App'!$B$7:$AP$43,C$97,FALSE) -> 0 | D100: =VLOOKUP($A100,'Mat of App'!$B$7:$AP$43,D$97,FALSE) -> 0 | E100: =VLOOKUP($A100,'Mat of App'!$B$7:$AP$43,E$97,FALSE) -> 0 | F100: =VLOOKUP($A100,'Mat of App'!$B$7:$AP$43,F$97,FALSE) -> 0
A101: HV Generation Intermittent | B101: =VLOOKUP($A101,'Mat of App'!$B$7:$AP$43,B$97,FALSE) -> 0 | C101: =VLOOKUP($A101,'Mat of App'!$B$7:$AP$43,C$97,FALSE) -> 1 | D101: =VLOOKUP($A101,'Mat of App'!$B$7:$AP$43,D$97,FALSE) -> 0 | E101: =VLOOKUP($A101,'Mat of App'!$B$7:$AP$43,E$97,FALSE) -> 0 | F101: =VLOOKUP($A101,'Mat of App'!$B$7:$AP$43,F$97,FALSE) -> 0
A102: HV Generation Intermittent no RP charge | B102: =VLOOKUP($A102,'Mat of App'!$B$7:$AP$43,B$97,FALSE) -> 0 | C102: =VLOOKUP($A102,'Mat of App'!$B$7:$AP$43,C$97,FALSE) -> 1 | D102: =VLOOKUP($A102,'Mat of App'!$B$7:$AP$43,D$97,FALSE) -> 0 | E102: =VLOOKUP($A102,'Mat of App'!$B$7:$AP$43,E$97,FALSE) -> 0 | F102: =VLOOKUP($A102,'Mat of App'!$B$7:$AP$43,F$97,FALSE) -> 0
A103: HV Generation Non-Intermittent | B103: =VLOOKUP($A103,'Mat of App'!$B$7:$AP$43,B$97,FALSE) -> 0 | C103: =VLOOKUP($A103,'Mat of App'!$B$7:$AP$43,C$97,FALSE) -> 1 | D103: =VLOOKUP($A103,'Mat of App'!$B$7:$AP$43,D$97,FALSE) -> 0 | E103: =VLOOKUP($A103,'Mat of App'!$B$7:$AP$43,E$97,FALSE) -> 0 | F103: =VLOOKUP($A103,'Mat of App'!$B$7:$AP$43,F$97,FALSE) -> 0
A104: HV Generation Non-Intermittent no RP charge | B104: =VLOOKUP($A104,'Mat of App'!$B$7:$AP$43,B$97,FALSE) -> 0 | C104: =VLOOKUP($A104,'Mat of App'!$B$7:$AP$43,C$97,FALSE) -> 1 | D104: =VLOOKUP($A104,'Mat of App'!$B$7:$AP$43,D$97,FALSE) -> 0 | E104: =VLOOKUP($A104,'Mat of App'!$B$7:$AP$43,E$97,FALSE) -> 0 | F104: =VLOOKUP($A104,'Mat of App'!$B$7:$AP$43,F$97,FALSE) -> 0
A106: 1032. Loss adjustment factors to transmission
A108: Source: losses model or loss adjustment factors at time of system peak.
B109: 132kV | C109: 132kV/EHV | D109: EHV | E109: EHV/HV | F109: HV | G109: HV/LV | H109: LV circuits
A110: Loss adjustment factor | B110: =VLOOKUP(Vlookup!B69,'CDCM Forecast Data'!$A$14:$I$271,7,FALSE) -> 1.002 | C110: =VLOOKUP(Vlookup!C69,'CDCM Forecast Data'!$A$14:$I$271,7,FALSE) -> 1.006 | D110: =VLOOKUP(Vlookup!D69,'CDCM Forecast Data'!$A$14:$I$271,7,FALSE) -> 1.012 | E110: =VLOOKUP(Vlookup!E69,'CDCM Forecast Data'!$A$14:$I$271,7,FALSE) -> 1.021 | F110: =VLOOKUP(Vlookup!F69,'CDCM Forecast Data'!$A$14:$I$271,7,FALSE) -> 1.038 | G110: =VLOOKUP(Vlookup!G69,'CDCM Forecast Data'!$A$14:$I$271,7,FALSE) -> 1.049 | H110: =VLOOKUP(Vlookup!H69,'CDCM Forecast Data'!$A$14:$I$271,7,FALSE) -> 1.062
A112: 1037. Embedded network (LDNO) discounts
A114: Source: separate price control disaggregation model.
B115: No discount | C115: LDNO LV: LV user | D115: LDNO HV: LV user | E115: LDNO HV: LV sub user | F115: LDNO HV: HV user
A116: LDNO discount | C116: =VLOOKUP(Vlookup!C75,'CDCM Forecast Data'!$A$14:$I$271,7,FALSE) -> 0.375266152 | D116: =VLOOKUP(Vlookup!D75,'CDCM Forecast Data'!$A$14:$I$271,7,FALSE) -> 0.6158354319 | E116: =VLOOKUP(Vlookup!E75,'CDCM Forecast Data'!$A$14:$I$271,7,FALSE) -> 0.3697741805 | F116: =VLOOKUP(Vlookup!F75,'CDCM Forecast Data'!$A$14:$I$271,7,FALSE) -> 0.2523098802
A118: 1041. Load profile data for demand users
A120: Source: load data analysis.
B121: Coincidence factor | C121: Load factor
A122: Domestic Unrestricted | B122: =VLOOKUP(Vlookup!B81,'CDCM Forecast Data'!$A$14:$I$271,7,FALSE) -> 0.9036972613 | C122: =VLOOKUP(Vlookup!C81,'CDCM Forecast Data'!$A$14:$I$271,7,FALSE) -> 0.4101809031
A123: Domestic Two Rate | B123: =VLOOKUP(Vlookup!B82,'CDCM Forecast Data'!$A$14:$I$271,7,FALSE) -> 0.3484929087 | C123: =VLOOKUP(Vlookup!C82,'CDCM Forecast Data'!$A$14:$I$271,7,FALSE) -> 0.2578651801
A124: Domestic Off Peak (related MPAN) | C124: =VLOOKUP(Vlookup!C83,'CDCM Forecast Data'!$A$14:$I$271,7,FALSE) -> 0.1430432895
A125: Small Non Domestic Unrestricted | B125: =VLOOKUP(Vlookup!B84,'CDCM Forecast Data'!$A$14:$I$271,7,FALSE) -> 0.6573652486 | C125: =VLOOKUP(Vlookup!C84,'CDCM Forecast Data'!$A$14:$I$271,7,FALSE) -> 0.3893231103
A126: Small Non Domestic Two Rate | B126: =VLOOKUP(Vlookup!B85,'CDCM Forecast Data'!$A$14:$I$271,7,FALSE) -> 0.6308650462 | C126: =VLOOKUP(Vlookup!C85,'CDCM Forecast Data'!$A$14:$I$271,7,FALSE) -> 0.4408770156
A127: Small Non Domestic Off Peak (related MPAN) | C127: =VLOOKUP(Vlookup!C86,'CDCM Forecast Data'!$A$14:$I$271,7,FALSE) -> 0.1559146372
A128: LV Medium Non-Domestic | B128: =VLOOKUP(Vlookup!B87,'CDCM Forecast Data'!$A$14:$I$271,7,FALSE) -> 0.8585513205 | C128: =VLOOKUP(Vlookup!C87,'CDCM Forecast Data'!$A$14:$I$271,7,FALSE) -> 0.593601508
A129: LV Sub Medium Non-Domestic | B129: =VLOOKUP(Vlookup!B88,'CDCM Forecast Data'!$A$14:$I$271,7,FALSE) -> 0.8382314172 | C129: =VLOOKUP(Vlookup!C88,'CDCM Forecast Data'!$A$14:$I$271,7,FALSE) -> 0.6000900558
A130: HV Medium Non-Domestic | B130: =VLOOKUP(Vlookup!B89,'CDCM Forecast Data'!$A$14:$I$271,7,FALSE) -> 0.6632207801 | C130: =VLOOKUP(Vlookup!C89,'CDCM Forecast Data'!$A$14:$I$271,7,FALSE) -> 0.4549084208
A131: LV Network Domestic | B131: =VLOOKUP(Vlookup!B90,'CDCM Forecast Data'!$A$14:$I$271,7,FALSE) -> 0.8164587795 | C131: =VLOOKUP(Vlookup!C90,'CDCM Forecast Data'!$A$14:$I$271,7,FALSE) -> 0.3835067319
A132: LV Network Non-Domestic Non-CT | B132: =VLOOKUP(Vlookup!B91,'CDCM Forecast Data'!$A$14:$I$271,7,FALSE) -> 0.6520374339 | C132: =VLOOKUP(Vlookup!C91,'CDCM Forecast Data'!$A$14:$I$271,7,FALSE) -> 0.3936768454
A133: LV HH Metered | B133: =VLOOKUP(Vlookup!B92,'CDCM Forecast Data'!$A$14:$I$271,7,FALSE) -> 0.803287895 | C133: =VLOOKUP(Vlookup!C92,'CDCM Forecast Data'!$A$14:$I$271,7,FALSE) -> 0.5875803245
A134: LV Sub HH Metered | B134: =VLOOKUP(Vlookup!B93,'CDCM Forecast Data'!$A$14:$I$271,7,FALSE) -> 0.7658193845 | C134: =VLOOKUP(Vlookup!C93,'CDCM Forecast Data'!$A$14:$I$271,7,FALSE) -> 0.6115171759
A135: HV HH Metered | B135: =VLOOKUP(Vlookup!B94,'CDCM Forecast Data'!$A$14:$I$271,7,FALSE) -> 0.819551906 | C135: =VLOOKUP(Vlookup!C94,'CDCM Forecast Data'!$A$14:$I$271,7,FALSE) -> 0.7322211111
A136: NHH UMS category A | B136: =VLOOKUP(Vlookup!B95,'CDCM Forecast Data'!$A$14:$I$271,7,FALSE) -> 1 | C136: =VLOOKUP(Vlookup!C95,'CDCM Forecast Data'!$A$14:$I$271,7,FALSE) -> 1
A137: NHH UMS category B | B137: =VLOOKUP(Vlookup!B96,'CDCM Forecast Data'!$A$14:$I$271,7,FALSE) -> 0.983875969 | C137: =VLOOKUP(Vlookup!C96,'CDCM Forecast Data'!$A$14:$I$271,7,FALSE) -> 0.4756809068
A138: NHH UMS category C | B138: =VLOOKUP(Vlookup!B97,'CDCM Forecast Data'!$A$14:$I$271,7,FALSE) -> 0.8805058428 | C138: =VLOOKUP(Vlookup!C97,'CDCM Forecast Data'!$A$14:$I$271,7,FALSE) -> 0.2562760241
A139: NHH UMS category D | B139: =VLOOKUP(Vlookup!B98,'CDCM Forecast Data'!$A$14:$I$271,7,FALSE) -> 0 | C139: =VLOOKUP(Vlookup!C98,'CDCM Forecast Data'!$A$14:$I$271,7,FALSE) -> 0.515288843
A140: LV UMS (Pseudo HH Metered) | B140: =VLOOKUP(Vlookup!B99,'CDCM Forecast Data'!$A$14:$I$271,7,FALSE) -> 0.9656353209 | C140: =VLOOKUP(Vlookup!C99,'CDCM Forecast Data'!$A$14:$I$271,7,FALSE) -> 0.459118878
A142: 1053. Volume forecasts for the charging year
B143: 18 | C143: 19 | D143: 20 | E143: 21 | F143: 22 | G143: 23 | H143: 24
A144: Source: forecast.
A145: Please include MPAN counts for tariffs with no fixed charge (e.g. off-peak tariffs),
A146: but exclude MPANs on tariffs with a fixed charge that are not subject to a fixed charge due to a site grouping arrangement.
B147: Rate 1 units (MWh) | C147: Rate 2 units (MWh) | D147: Rate 3 units (MWh) | E147: MPANs | F147: Import capacity (kVA) | G147: Exceeded capacity (kVA) | H147: Reactive power units (MVArh)
A148: > Domestic Unrestricted | B148: =VLOOKUP(Vlookup!$B107,'CDCM Volume Forecasts'!$A$28:$AL$136,B$143,FALSE) -> 0 | C148: =VLOOKUP(Vlookup!$B107,'CDCM Volume Forecasts'!$A$28:$AL$136,C$143,FALSE) -> 0 | D148: =VLOOKUP(Vlookup!$B107,'CDCM Volume Forecasts'!$A$28:$AL$136,D$143,FALSE) -> 0 | E148: =VLOOKUP(Vlookup!$B107,'CDCM Volume Forecasts'!$A$28:$AL$136,E$143,FALSE) -> 0 | F148: =VLOOKUP(Vlookup!$B107,'CDCM Volume Forecasts'!$A$28:$AL$136,F$143,FALSE) -> 0 | H148: =VLOOKUP(Vlookup!$B107,'CDCM Volume Forecasts'!$A$28:$AL$136,G$143,FALSE) -> 0
A149: Domestic Unrestricted | B149: =VLOOKUP(Vlookup!$B108,'CDCM Volume Forecasts'!$A$28:$AL$136,B$143,FALSE) -> 4325611.921 | E149: =VLOOKUP(Vlookup!$B108,'CDCM Volume Forecasts'!$A$28:$AL$136,E$143,FALSE) -> 1265207.227
A150: LDNO LV: Domestic Unrestricted | B150: =VLOOKUP(Vlookup!$B109,'CDCM Volume Forecasts'!$A$28:$AL$136,B$143,FALSE) -> 26901.24523 | E150: =VLOOKUP(Vlookup!$B109,'CDCM Volume Forecasts'!$A$28:$AL$136,E$143,FALSE) -> 10731.18734
A151: LDNO HV: Domestic Unrestricted | B151: =VLOOKUP(Vlookup!$B110,'CDCM Volume Forecasts'!$A$28:$AL$136,B$143,FALSE) -> 55013.17403 | E151: =VLOOKUP(Vlookup!$B110,'CDCM Volume Forecasts'!$A$28:$AL$136,E$143,FALSE) -> 23203.54275
A152: > Domestic Two Rate
A153: Domestic Two Rate | B153: =VLOOKUP(Vlookup!$B112,'CDCM Volume Forecasts'!$A$28:$AL$136,B$143,FALSE) -> 631896.2065 | C153: =VLOOKUP(Vlookup!$B112,'CDCM Volume Forecasts'!$A$28:$AL$136,C$143,FALSE) -> 608756.1369 | E153: =VLOOKUP(Vlookup!$B112,'CDCM Volume Forecasts'!$A$28:$AL$136,E$143,FALSE) -> 204084.5815
A154: LDNO LV: Domestic Two Rate | B154: =VLOOKUP(Vlookup!$B113,'CDCM Volume Forecasts'!$A$28:$AL$136,B$143,FALSE) -> 1606.416511 | C154: =VLOOKUP(Vlookup!$B113,'CDCM Volume Forecasts'!$A$28:$AL$136,C$143,FALSE) -> 611.2867969 | E154: =VLOOKUP(Vlookup!$B113,'CDCM Volume Forecasts'!$A$28:$AL$136,E$143,FALSE) -> 726.066174
A155: LDNO HV: Domestic Two Rate | B155: =VLOOKUP(Vlookup!$B114,'CDCM Volume Forecasts'!$A$28:$AL$136,B$143,FALSE) -> 1981.803301 | C155: =VLOOKUP(Vlookup!$B114,'CDCM Volume Forecasts'!$A$28:$AL$136,C$143,FALSE) -> 699.8861911 | E155: =VLOOKUP(Vlookup!$B114,'CDCM Volume Forecasts'!$A$28:$AL$136,E$143,FALSE) -> 760.4569348
A156: > Domestic Off Peak (related MPAN)
A157: Domestic Off Peak (related MPAN) | B157: =VLOOKUP(Vlookup!$B116,'CDCM Volume Forecasts'!$A$28:$AL$136,B$143,FALSE) -> 49584.94863 | E157: =VLOOKUP(Vlookup!$B116,'CDCM Volume Forecasts'!$A$28:$AL$136,E$143,FALSE) -> 14616
A158: LDNO LV: Domestic Off Peak (related MPAN) | B158: =VLOOKUP(Vlookup!$B117,'CDCM Volume Forecasts'!$A$28:$AL$136,B$143,FALSE) -> 0 | E158: =VLOOKUP(Vlookup!$B117,'CDCM Volume Forecasts'!$A$28:$AL$136,E$143,FALSE) -> 0
A159: LDNO HV: Domestic Off Peak (related MPAN) | B159: =VLOOKUP(Vlookup!$B118,'CDCM Volume Forecasts'!$A$28:$AL$136,B$143,FALSE) -> 0 | E159: =VLOOKUP(Vlookup!$B118,'CDCM Volume Forecasts'!$A$28:$AL$136,E$143,FALSE) -> 0
A160: > Small Non Domestic Unrestricted
A161: Small Non Domestic Unrestricted | B161: =VLOOKUP(Vlookup!$B120,'CDCM Volume Forecasts'!$A$28:$AL$136,B$143,FALSE) -> 1188673.863 | E161: =VLOOKUP(Vlookup!$B120,'CDCM Volume Forecasts'!$A$28:$AL$136,E$143,FALSE) -> 109551.1821
A162: LDNO LV: Small Non Domestic Unrestricted | B162: =VLOOKUP(Vlookup!$B121,'CDCM Volume Forecasts'!$A$28:$AL$136,B$143,FALSE) -> 1302.442217 | E162: =VLOOKUP(Vlookup!$B121,'CDCM Volume Forecasts'!$A$28:$AL$136,E$143,FALSE) -> 222.1176994
A163: LDNO HV: Small Non Domestic Unrestricted | B163: =VLOOKUP(Vlookup!$B122,'CDCM Volume Forecasts'!$A$28:$AL$136,B$143,FALSE) -> 10841.52452 | E163: =VLOOKUP(Vlookup!$B122,'CDCM Volume Forecasts'!$A$28:$AL$136,E$143,FALSE) -> 839.4722938
A164: > Small Non Domestic Two Rate
A165: Small Non Domestic Two Rate | B165: =VLOOKUP(Vlookup!$B124,'CDCM Volume Forecasts'!$A$28:$AL$136,B$143,FALSE) -> 408779.3081 | C165: =VLOOKUP(Vlookup!$B124,'CDCM Volume Forecasts'!$A$28:$AL$136,C$143,FALSE) -> 170833.8982 | E165: =VLOOKUP(Vlookup!$B124,'CDCM Volume Forecasts'!$A$28:$AL$136,E$143,FALSE) -> 30180.33101
A166: LDNO LV: Small Non Domestic Two Rate | B166: =VLOOKUP(Vlookup!$B125,'CDCM Volume Forecasts'!$A$28:$AL$136,B$143,FALSE) -> 61.82357923 | C166: =VLOOKUP(Vlookup!$B125,'CDCM Volume Forecasts'!$A$28:$AL$136,C$143,FALSE) -> 24.87329924 | E166: =VLOOKUP(Vlookup!$B125,'CDCM Volume Forecasts'!$A$28:$AL$136,E$143,FALSE) -> 3.387705146
A167: LDNO HV: Small Non Domestic Two Rate | B167: =VLOOKUP(Vlookup!$B126,'CDCM Volume Forecasts'!$A$28:$AL$136,B$143,FALSE) -> 1089.425813 | C167: =VLOOKUP(Vlookup!$B126,'CDCM Volume Forecasts'!$A$28:$AL$136,C$143,FALSE) -> 319.6974232 | E167: =VLOOKUP(Vlookup!$B126,'CDCM Volume Forecasts'!$A$28:$AL$136,E$143,FALSE) -> 32.70298254
A168: > Small Non Domestic Off Peak (related MPAN)
A169: Small Non Domestic Off Peak (related MPAN) | B169: =VLOOKUP(Vlookup!$B128,'CDCM Volume Forecasts'!$A$28:$AL$136,B$143,FALSE) -> 18696.27093 | E169: =VLOOKUP(Vlookup!$B128,'CDCM Volume Forecasts'!$A$28:$AL$136,E$143,FALSE) -> 3163
A170: LDNO LV: Small Non Domestic Off Peak (related MPAN) | B170: =VLOOKUP(Vlookup!$B129,'CDCM Volume Forecasts'!$A$28:$AL$136,B$143,FALSE) -> 0 | E170: =VLOOKUP(Vlookup!$B129,'CDCM Volume Forecasts'!$A$28:$AL$136,E$143,FALSE) -> 0
A171: LDNO HV: Small Non Domestic Off Peak (related MPAN) | B171: =VLOOKUP(Vlookup!$B130,'CDCM Volume Forecasts'!$A$28:$AL$136,B$143,FALSE) -> 0 | E171: =VLOOKUP(Vlookup!$B130,'CDCM Volume Forecasts'!$A$28:$AL$136,E$143,FALSE) -> 0
A172: > LV Medium Non-Domestic
A173: LV Medium Non-Domestic | B173: =VLOOKUP(Vlookup!$B132,'CDCM Volume Forecasts'!$A$28:$AL$136,B$143,FALSE) -> 61016.90072 | C173: =VLOOKUP(Vlookup!$B132,'CDCM Volume Forecasts'!$A$28:$AL$136,C$143,FALSE) -> 15363.29892 | E173: =VLOOKUP(Vlookup!$B132,'CDCM Volume Forecasts'!$A$28:$AL$136,E$143,FALSE) -> 1833.471678
A174: LDNO LV: LV Medium Non-Domestic | B174: =VLOOKUP(Vlookup!$B133,'CDCM Volume Forecasts'!$A$28:$AL$136,B$143,FALSE) -> 0 | C174: =VLOOKUP(Vlookup!$B133,'CDCM Volume Forecasts'!$A$28:$AL$136,C$143,FALSE) -> 0 | E174: =VLOOKUP(Vlookup!$B133,'CDCM Volume Forecasts'!$A$28:$AL$136,E$143,FALSE) -> 0
A175: LDNO HV: LV Medium Non-Domestic | B175: =VLOOKUP(Vlookup!$B134,'CDCM Volume Forecasts'!$A$28:$AL$136,B$143,FALSE) -> 0 | C175: =VLOOKUP(Vlookup!$B134,'CDCM Volume Forecasts'!$A$28:$AL$136,C$143,FALSE) -> -1.818989404e-15 | E175: =VLOOKUP(Vlookup!$B134,'CDCM Volume Forecasts'!$A$28:$AL$136,E$143,FALSE) -> 0
A176: > LV Sub Medium Non-Domestic
A177: LV Sub Medium Non-Domestic | B177: =VLOOKUP(Vlookup!$B136,'CDCM Volume Forecasts'!$A$28:$AL$136,B$143,FALSE) -> 11011.49022 | C177: =VLOOKUP(Vlookup!$B136,'CDCM Volume Forecasts'!$A$28:$AL$136,C$143,FALSE) -> 2877.336903 | E177: =VLOOKUP(Vlookup!$B136,'CDCM Volume Forecasts'!$A$28:$AL$136,E$143,FALSE) -> 151.4251277
A178: > HV Medium Non-Domestic
A179: HV Medium Non-Domestic | B179: =VLOOKUP(Vlookup!$B138,'CDCM Volume Forecasts'!$A$28:$AL$136,B$143,FALSE) -> 475.1455588 | C179: =VLOOKUP(Vlookup!$B138,'CDCM Volume Forecasts'!$A$28:$AL$136,C$143,FALSE) -> 185.1968348 | E179: =VLOOKUP(Vlookup!$B138,'CDCM Volume Forecasts'!$A$28:$AL$136,E$143,FALSE) -> 11.57760531
A180: > LV Network Domestic
A181: LV Network Domestic | B181: =VLOOKUP(Vlookup!$B140,'CDCM Volume Forecasts'!$A$28:$AL$136,B$143,FALSE) -> 17.91450059 | C181: =VLOOKUP(Vlookup!$B140,'CDCM Volume Forecasts'!$A$28:$AL$136,C$143,FALSE) -> 148.9061615 | D181: =VLOOKUP(Vlookup!$B140,'CDCM Volume Forecasts'!$A$28:$AL$136,D$143,FALSE) -> 132.1498047 | E181: =VLOOKUP(Vlookup!$B140,'CDCM Volume Forecasts'!$A$28:$AL$136,E$143,FALSE) -> 90.26226422
A182: LDNO LV: LV Network Domestic | B182: =VLOOKUP(Vlookup!$B141,'CDCM Volume Forecasts'!$A$28:$AL$136,B$143,FALSE) -> 0 | C182: =VLOOKUP(Vlookup!$B141,'CDCM Volume Forecasts'!$A$28:$AL$136,C$143,FALSE) -> 0 | D182: =VLOOKUP(Vlookup!$B141,'CDCM Volume Forecasts'!$A$28:$AL$136,D$143,FALSE) -> 0 | E182: =VLOOKUP(Vlookup!$B141,'CDCM Volume Forecasts'!$A$28:$AL$136,E$143,FALSE) -> 0
A183: LDNO HV: LV Network Domestic | B183: =VLOOKUP(Vlookup!$B142,'CDCM Volume Forecasts'!$A$28:$AL$136,B$143,FALSE) -> 0 | C183: =VLOOKUP(Vlookup!$B142,'CDCM Volume Forecasts'!$A$28:$AL$136,C$143,FALSE) -> 0 | D183: =VLOOKUP(Vlookup!$B142,'CDCM Volume Forecasts'!$A$28:$AL$136,D$143,FALSE) -> 0 | E183: =VLOOKUP(Vlookup!$B142,'CDCM Volume Forecasts'!$A$28:$AL$136,E$143,FALSE) -> 0
A184: > LV Network Non-Domestic Non-CT
A185: LV Network Non-Domestic Non-CT | B185: =VLOOKUP(Vlookup!$B144,'CDCM Volume Forecasts'!$A$28:$AL$136,B$143,FALSE) -> 25120.809 | C185: =VLOOKUP(Vlookup!$B144,'CDCM Volume Forecasts'!$A$28:$AL$136,C$143,FALSE) -> 181265.3363 | D185: =VLOOKUP(Vlookup!$B144,'CDCM Volume Forecasts'!$A$28:$AL$136,D$143,FALSE) -> 162228.4589 | E185: =VLOOKUP(Vlookup!$B144,'CDCM Volume Forecasts'!$A$28:$AL$136,E$143,FALSE) -> 5017.125897
A186: LDNO LV: LV Network Non-Domestic Non-CT | B186: =VLOOKUP(Vlookup!$B145,'CDCM Volume Forecasts'!$A$28:$AL$136,B$143,FALSE) -> 5.655269468 | C186: =VLOOKUP(Vlookup!$B145,'CDCM Volume Forecasts'!$A$28:$AL$136,C$143,FALSE) -> 41.96646988 | D186: =VLOOKUP(Vlookup!$B145,'CDCM Volume Forecasts'!$A$28:$AL$136,D$143,FALSE) -> 40.2914082 | E186: =VLOOKUP(Vlookup!$B145,'CDCM Volume Forecasts'!$A$28:$AL$136,E$143,FALSE) -> 2.285782398
A187: LDNO HV: LV Network Non-Domestic Non-CT | B187: =VLOOKUP(Vlookup!$B146,'CDCM Volume Forecasts'!$A$28:$AL$136,B$143,FALSE) -> 196.871113 | C187: =VLOOKUP(Vlookup!$B146,'CDCM Volume Forecasts'!$A$28:$AL$136,C$143,FALSE) -> 798.0854267 | D187: =VLOOKUP(Vlookup!$B146,'CDCM Volume Forecasts'!$A$28:$AL$136,D$143,FALSE) -> 644.0586198 | E187: =VLOOKUP(Vlookup!$B146,'CDCM Volume Forecasts'!$A$28:$AL$136,E$143,FALSE) -> 40.06998868
A188: > LV HH Metered
A189: LV HH Metered | B189: =VLOOKUP(Vlookup!$B148,'CDCM Volume Forecasts'!$A$28:$AL$136,B$143,FALSE) -> 88440.19018 | C189: =VLOOKUP(Vlookup!$B148,'CDCM Volume Forecasts'!$A$28:$AL$136,C$143,FALSE) -> 636664.9164 | D189: =VLOOKUP(Vlookup!$B148,'CDCM Volume Forecasts'!$A$28:$AL$136,D$143,FALSE) -> 540985.3164 | E189: =VLOOKUP(Vlookup!$B148,'CDCM Volume Forecasts'!$A$28:$AL$136,E$143,FALSE) -> 7358.873392 | F189: =VLOOKUP(Vlookup!$B148,'CDCM Volume Forecasts'!$A$28:$AL$136,F$143,FALSE) -> 669999.8413 | G189: =VLOOKUP(Vlookup!$B148,'CDCM Volume Forecasts'!$A$28:$AL$136,G$143,FALSE) -> 26935.33574 | H189: =VLOOKUP(Vlookup!$B148,'CDCM Volume Forecasts'!$A$28:$AL$136,H$143,FALSE) -> 103729.9852
A190: LDNO LV: LV HH Metered | B190: =VLOOKUP(Vlookup!$B149,'CDCM Volume Forecasts'!$A$28:$AL$136,B$143,FALSE) -> 86.16521614 | C190: =VLOOKUP(Vlookup!$B149,'CDCM Volume Forecasts'!$A$28:$AL$136,C$143,FALSE) -> 538.6117911 | D190: =VLOOKUP(Vlookup!$B149,'CDCM Volume Forecasts'!$A$28:$AL$136,D$143,FALSE) -> 513.0487545 | E190: =VLOOKUP(Vlookup!$B149,'CDCM Volume Forecasts'!$A$28:$AL$136,E$143,FALSE) -> 13.16584969 | F190: =VLOOKUP(Vlookup!$B149,'CDCM Volume Forecasts'!$A$28:$AL$136,F$143,FALSE) -> 1617.217604 | G190: =VLOOKUP(Vlookup!$B149,'CDCM Volume Forecasts'!$A$28:$AL$136,G$143,FALSE) -> 0 | H190: =VLOOKUP(Vlookup!$B149,'CDCM Volume Forecasts'!$A$28:$AL$136,H$143,FALSE) -> 106.3204184
A191: LDNO HV: LV HH Metered | B191: =VLOOKUP(Vlookup!$B150,'CDCM Volume Forecasts'!$A$28:$AL$136,B$143,FALSE) -> 4262.877109 | C191: =VLOOKUP(Vlookup!$B150,'CDCM Volume Forecasts'!$A$28:$AL$136,C$143,FALSE) -> 24227.26939 | D191: =VLOOKUP(Vlookup!$B150,'CDCM Volume Forecasts'!$A$28:$AL$136,D$143,FALSE) -> 20257.54291 | E191: =VLOOKUP(Vlookup!$B150,'CDCM Volume Forecasts'!$A$28:$AL$136,E$143,FALSE) -> 191.4203038 | F191: =VLOOKUP(Vlookup!$B150,'CDCM Volume Forecasts'!$A$28:$AL$136,F$143,FALSE) -> 29908.94749 | G191: =VLOOKUP(Vlookup!$B150,'CDCM Volume Forecasts'!$A$28:$AL$136,G$143,FALSE) -> 581.7612978 | H191: =VLOOKUP(Vlookup!$B150,'CDCM Volume Forecasts'!$A$28:$AL$136,H$143,FALSE) -> 2716.187582
A192: > LV Sub HH Metered
A193: LV Sub HH Metered | B193: =VLOOKUP(Vlookup!$B152,'CDCM Volume Forecasts'!$A$28:$AL$136,B$143,FALSE) -> 48977.5164 | C193: =VLOOKUP(Vlookup!$B152,'CDCM Volume Forecasts'!$A$28:$AL$136,C$143,FALSE) -> 361536.8328 | D193: =VLOOKUP(Vlookup!$B152,'CDCM Volume Forecasts'!$A$28:$AL$136,D$143,FALSE) -> 330106.1002 | E193: =VLOOKUP(Vlookup!$B152,'CDCM Volume Forecasts'!$A$28:$AL$136,E$143,FALSE) -> 1767.931462 | F193: =VLOOKUP(Vlookup!$B152,'CDCM Volume Forecasts'!$A$28:$AL$136,F$143,FALSE) -> 352078.7432 | G193: =VLOOKUP(Vlookup!$B152,'CDCM Volume Forecasts'!$A$28:$AL$136,G$143,FALSE) -> 5897.369936 | H193: =VLOOKUP(Vlookup!$B152,'CDCM Volume Forecasts'!$A$28:$AL$136,H$143,FALSE) -> 68974.53484
A194: LDNO HV: LV Sub HH Metered | B194: =VLOOKUP(Vlookup!$B153,'CDCM Volume Forecasts'!$A$28:$AL$136,B$143,FALSE) -> 409.7914242 | C194: =VLOOKUP(Vlookup!$B153,'CDCM Volume Forecasts'!$A$28:$AL$136,C$143,FALSE) -> 2104.566065 | D194: =VLOOKUP(Vlookup!$B153,'CDCM Volume Forecasts'!$A$28:$AL$136,D$143,FALSE) -> 2395.703292 | E194: =VLOOKUP(Vlookup!$B153,'CDCM Volume Forecasts'!$A$28:$AL$136,E$143,FALSE) -> 4.351344122 | F194: =VLOOKUP(Vlookup!$B153,'CDCM Volume Forecasts'!$A$28:$AL$136,F$143,FALSE) -> 2418.217773 | G194: =VLOOKUP(Vlookup!$B153,'CDCM Volume Forecasts'!$A$28:$AL$136,G$143,FALSE) -> 0 | H194: =VLOOKUP(Vlookup!$B153,'CDCM Volume Forecasts'!$A$28:$AL$136,H$143,FALSE) -> 404.8937827
A195: > HV HH Metered
A196: HV HH Metered | B196: =VLOOKUP(Vlookup!$B155,'CDCM Volume Forecasts'!$A$28:$AL$136,B$143,FALSE) -> 158180.58 | C196: =VLOOKUP(Vlookup!$B155,'CDCM Volume Forecasts'!$A$28:$AL$136,C$143,FALSE) -> 1114577.674 | D196: =VLOOKUP(Vlookup!$B155,'CDCM Volume Forecasts'!$A$28:$AL$136,D$143,FALSE) -> 1231512.847 | E196: =VLOOKUP(Vlookup!$B155,'CDCM Volume Forecasts'!$A$28:$AL$136,E$143,FALSE) -> 1242.427106 | F196: =VLOOKUP(Vlookup!$B155,'CDCM Volume Forecasts'!$A$28:$AL$136,F$143,FALSE) -> 888545.7243 | G196: =VLOOKUP(Vlookup!$B155,'CDCM Volume Forecasts'!$A$28:$AL$136,G$143,FALSE) -> 12932.01119 | H196: =VLOOKUP(Vlookup!$B155,'CDCM Volume Forecasts'!$A$28:$AL$136,H$143,FALSE) -> 171554.1734
A197: LDNO HV: HV HH Metered | B197: =VLOOKUP(Vlookup!$B156,'CDCM Volume Forecasts'!$A$28:$AL$136,B$143,FALSE) -> 1479.333832 | C197: =VLOOKUP(Vlookup!$B156,'CDCM Volume Forecasts'!$A$28:$AL$136,C$143,FALSE) -> 8277.244473 | D197: =VLOOKUP(Vlookup!$B156,'CDCM Volume Forecasts'!$A$28:$AL$136,D$143,FALSE) -> 11213.06626 | E197: =VLOOKUP(Vlookup!$B156,'CDCM Volume Forecasts'!$A$28:$AL$136,E$143,FALSE) -> 11.17578242 | F197: =VLOOKUP(Vlookup!$B156,'CDCM Volume Forecasts'!$A$28:$AL$136,F$143,FALSE) -> 16463.86924 | G197: =VLOOKUP(Vlookup!$B156,'CDCM Volume Forecasts'!$A$28:$AL$136,G$143,FALSE) -> 0 | H197: =VLOOKUP(Vlookup!$B156,'CDCM Volume Forecasts'!$A$28:$AL$136,H$143,FALSE) -> 616.2023296
A198: > NHH UMS category A
A199: NHH UMS category A | B199: =VLOOKUP(Vlookup!$B158,'CDCM Volume Forecasts'!$A$28:$AL$136,B$143,FALSE) -> 4068.429323 | E199: =VLOOKUP(Vlookup!$B158,'CDCM Volume Forecasts'!$A$28:$AL$136,E$143,FALSE) -> 818
A200: LDNO LV: NHH UMS category A | B200: =VLOOKUP(Vlookup!$B159,'CDCM Volume Forecasts'!$A$28:$AL$136,B$143,FALSE) -> 0 | E200: =VLOOKUP(Vlookup!$B159,'CDCM Volume Forecasts'!$A$28:$AL$136,E$143,FALSE) -> 0
A201: LDNO HV: NHH UMS category A | B201: =VLOOKUP(Vlookup!$B160,'CDCM Volume Forecasts'!$A$28:$AL$136,B$143,FALSE) -> 207.6954543 | E201: =VLOOKUP(Vlookup!$B160,'CDCM Volume Forecasts'!$A$28:$AL$136,E$143,FALSE) -> 0
A202: > NHH UMS category B
A203: NHH UMS category B | B203: =VLOOKUP(Vlookup!$B162,'CDCM Volume Forecasts'!$A$28:$AL$136,B$143,FALSE) -> 4958.851789 | E203: =VLOOKUP(Vlookup!$B162,'CDCM Volume Forecasts'!$A$28:$AL$136,E$143,FALSE) -> 759
A204: LDNO LV: NHH UMS category B | B204: =VLOOKUP(Vlookup!$B163,'CDCM Volume Forecasts'!$A$28:$AL$136,B$143,FALSE) -> 133.9819522 | E204: =VLOOKUP(Vlookup!$B163,'CDCM Volume Forecasts'!$A$28:$AL$136,E$143,FALSE) -> 0
A205: LDNO HV: NHH UMS category B | B205: =VLOOKUP(Vlookup!$B164,'CDCM Volume Forecasts'!$A$28:$AL$136,B$143,FALSE) -> 454.6986531 | E205: =VLOOKUP(Vlookup!$B164,'CDCM Volume Forecasts'!$A$28:$AL$136,E$143,FALSE) -> 0
A206: > NHH UMS category C
A207: NHH UMS category C | B207: =VLOOKUP(Vlookup!$B166,'CDCM Volume Forecasts'!$A$28:$AL$136,B$143,FALSE) -> 593.783964 | E207: =VLOOKUP(Vlookup!$B166,'CDCM Volume Forecasts'!$A$28:$AL$136,E$143,FALSE) -> 191
A208: LDNO LV: NHH UMS category C | B208: =VLOOKUP(Vlookup!$B167,'CDCM Volume Forecasts'!$A$28:$AL$136,B$143,FALSE) -> 0.0192010544 | E208: =VLOOKUP(Vlookup!$B167,'CDCM Volume Forecasts'!$A$28:$AL$136,E$143,FALSE) -> 0
A209: LDNO HV: NHH UMS category C | B209: =VLOOKUP(Vlookup!$B168,'CDCM Volume Forecasts'!$A$28:$AL$136,B$143,FALSE) -> 3.959794337 | E209: =VLOOKUP(Vlookup!$B168,'CDCM Volume Forecasts'!$A$28:$AL$136,E$143,FALSE) -> 0
A210: > NHH UMS category D
A211: NHH UMS category D | B211: =VLOOKUP(Vlookup!$B170,'CDCM Volume Forecasts'!$A$28:$AL$136,B$143,FALSE) -> 0 | E211: =VLOOKUP(Vlookup!$B170,'CDCM Volume Forecasts'!$A$28:$AL$136,E$143,FALSE) -> 0
A212: LDNO LV: NHH UMS category D | B212: =VLOOKUP(Vlookup!$B171,'CDCM Volume Forecasts'!$A$28:$AL$136,B$143,FALSE) -> 0 | E212: =VLOOKUP(Vlookup!$B171,'CDCM Volume Forecasts'!$A$28:$AL$136,E$143,FALSE) -> 0
A213: LDNO HV: NHH UMS category D | B213: =VLOOKUP(Vlookup!$B172,'CDCM Volume Forecasts'!$A$28:$AL$136,B$143,FALSE) -> 0 | E213: =VLOOKUP(Vlookup!$B172,'CDCM Volume Forecasts'!$A$28:$AL$136,E$143,FALSE) -> 0
A214: > LV UMS (Pseudo HH Metered)
A215: LV UMS (Pseudo HH Metered) | B215: =VLOOKUP(Vlookup!$B174,'CDCM Volume Forecasts'!$A$28:$AL$136,B$143,FALSE) -> 4025.426365 | C215: =VLOOKUP(Vlookup!$B174,'CDCM Volume Forecasts'!$A$28:$AL$136,C$143,FALSE) -> 30461.37997 | D215: =VLOOKUP(Vlookup!$B174,'CDCM Volume Forecasts'!$A$28:$AL$136,D$143,FALSE) -> 87397.55944 | E215: =VLOOKUP(Vlookup!$B174,'CDCM Volume Forecasts'!$A$28:$AL$136,E$143,FALSE) -> 22.33060109
A216: LDNO LV: LV UMS (Pseudo HH Metered) | B216: =VLOOKUP(Vlookup!$B175,'CDCM Volume Forecasts'!$A$28:$AL$136,B$143,FALSE) -> 0 | C216: =VLOOKUP(Vlookup!$B175,'CDCM Volume Forecasts'!$A$28:$AL$136,C$143,FALSE) -> 0 | D216: =VLOOKUP(Vlookup!$B175,'CDCM Volume Forecasts'!$A$28:$AL$136,D$143,FALSE) -> 0 | E216: =VLOOKUP(Vlookup!$B175,'CDCM Volume Forecasts'!$A$28:$AL$136,E$143,FALSE) -> 0
A217: LDNO HV: LV UMS (Pseudo HH Metered) | B217: =VLOOKUP(Vlookup!$B176,'CDCM Volume Forecasts'!$A$28:$AL$136,B$143,FALSE) -> 2.06307143 | C217: =VLOOKUP(Vlookup!$B176,'CDCM Volume Forecasts'!$A$28:$AL$136,C$143,FALSE) -> 7.29268794 | D217: =VLOOKUP(Vlookup!$B176,'CDCM Volume Forecasts'!$A$28:$AL$136,D$143,FALSE) -> 41.1568347 | E217: =VLOOKUP(Vlookup!$B176,'CDCM Volume Forecasts'!$A$28:$AL$136,E$143,FALSE) -> 1.693852573
A218: > LV Generation NHH or Aggregate HH
A219: LV Generation NHH or Aggregate HH | B219: =VLOOKUP(Vlookup!$B178,'CDCM Volume Forecasts'!$A$28:$AL$136,B$143,FALSE) -> 3884.145239 | E219: =VLOOKUP(Vlookup!$B178,'CDCM Volume Forecasts'!$A$28:$AL$136,E$143,FALSE) -> 332
A220: LDNO LV: LV Generation NHH or Aggregate HH | B220: =VLOOKUP(Vlookup!$B179,'CDCM Volume Forecasts'!$A$28:$AL$136,B$143,FALSE) -> 78.22429457 | E220: =VLOOKUP(Vlookup!$B179,'CDCM Volume Forecasts'!$A$28:$AL$136,E$143,FALSE) -> 0
A221: LDNO HV: LV Generation NHH or Aggregate HH | B221: =VLOOKUP(Vlookup!$B180,'CDCM Volume Forecasts'!$A$28:$AL$136,B$143,FALSE) -> 0 | E221: =VLOOKUP(Vlookup!$B180,'CDCM Volume Forecasts'!$A$28:$AL$136,E$143,FALSE) -> 0
A222: > LV Sub Generation NHH
A223: LV Sub Generation NHH | B223: =VLOOKUP(Vlookup!$B182,'CDCM Volume Forecasts'!$A$28:$AL$136,B$143,FALSE) -> 0 | E223: =VLOOKUP(Vlookup!$B182,'CDCM Volume Forecasts'!$A$28:$AL$136,E$143,FALSE) -> 0
A224: LDNO HV: LV Sub Generation NHH | B224: =VLOOKUP(Vlookup!$B183,'CDCM Volume Forecasts'!$A$28:$AL$136,B$143,FALSE) -> 0 | E224: =VLOOKUP(Vlookup!$B183,'CDCM Volume Forecasts'!$A$28:$AL$136,E$143,FALSE) -> 0
A225: > LV Generation Intermittent
A226: LV Generation Intermittent | B226: =VLOOKUP(Vlookup!$B185,'CDCM Volume Forecasts'!$A$28:$AL$136,B$143,FALSE) -> 70648.16806 | E226: =VLOOKUP(Vlookup!$B185,'CDCM Volume Forecasts'!$A$28:$AL$136,E$143,FALSE) -> 949.8952923 | H226: =VLOOKUP(Vlookup!$B185,'CDCM Volume Forecasts'!$A$28:$AL$136,H$143,FALSE) -> 6652.62173
A227: LDNO LV: LV Generation Intermittent | B227: =VLOOKUP(Vlookup!$B186,'CDCM Volume Forecasts'!$A$28:$AL$136,B$143,FALSE) -> 0 | E227: =VLOOKUP(Vlookup!$B186,'CDCM Volume Forecasts'!$A$28:$AL$136,E$143,FALSE) -> 0 | H227: =VLOOKUP(Vlookup!$B186,'CDCM Volume Forecasts'!$A$28:$AL$136,H$143,FALSE) -> 0
A228: LDNO HV: LV Generation Intermittent | B228: =VLOOKUP(Vlookup!$B187,'CDCM Volume Forecasts'!$A$28:$AL$136,B$143,FALSE) -> 1073.963274 | E228: =VLOOKUP(Vlookup!$B187,'CDCM Volume Forecasts'!$A$28:$AL$136,E$143,FALSE) -> 4.03442623 | H228: =VLOOKUP(Vlookup!$B187,'CDCM Volume Forecasts'!$A$28:$AL$136,H$143,FALSE) -> 0.6418212429
... 99 more rows

Sheet (Y+3)
A1: Input data (Y+3)
A4: 1000. Company, charging year, data version
B6: Company | C6: Year | D6: Version
A7: Company, charging year, data version | B7: =VLOOKUP(Vlookup!B7,'CDCM Forecast Data'!$A$14:$I$271,8,FALSE) -> WPD South West | C7: =VLOOKUP(Vlookup!C7,'CDCM Forecast Data'!$A$14:$I$271,8,FALSE) -> 2022/23 | D7: =VLOOKUP(Vlookup!D7,'CDCM Forecast Data'!$A$14:$I$271,8,FALSE) -> Forecast
A9: 1010. Financial and general assumptions
A11: Sources: financial assumptions; calendar; network model.
A12: These financial assumptions determine the annuity rate applied to convert the asset values of the network model into an annual charge.
B13: Rate of return | C13: Annualisation period (years) | D13: Annuity proportion for customer-contributed assets | E13: Power factor | F13: Days in the charging period
A14: Financial and general assumptions | B14: =VLOOKUP(Vlookup!B14,'CDCM Forecast Data'!$A$14:$I$271,8,FALSE) -> 0.0421 | C14: =VLOOKUP(Vlookup!C14,'CDCM Forecast Data'!$A$14:$I$271,8,FALSE) -> 40 | E14: =VLOOKUP(Vlookup!E14,'CDCM Forecast Data'!$A$14:$I$271,8,FALSE) -> 0.95 | F14: =VLOOKUP(Vlookup!F14,'CDCM Forecast Data'!$A$14:$I$271,8,FALSE) -> 365
A16: 1017. Diversity allowance between top and bottom of network level
A18: Source: operational data analysis and/or network model.
A19: The diversity figure against GSP is the diversity between GSP Group (the whole system) and individual GSPs.
A20: The diversity figure against 132kV is the diversity between GSPs (the top of the 132kV network) and 132kV/EHV bulk supply points (the bottom of the 132kV network).
A21: The diversity figure against EHV is the diversity between 132kV/EHV bulk supply points (the top of the EHV network) and EHV/HV primary substations (the bottom of the EHV network).
A22: The diversity figure against HV is the diversity between EHV/HV primary substations (the top of the HV network) and HV/LV substations (the bottom of the HV network).
B23: Diversity allowance between top and bottom of network level
A24: GSPs | B24: =VLOOKUP(Vlookup!B24,'CDCM Forecast Data'!$A$14:$I$271,8,FALSE) -> 0.022
A25: 132kV | B25: =VLOOKUP(Vlookup!B25,'CDCM Forecast Data'!$A$14:$I$271,8,FALSE) -> 0.031
A26: 132kV/EHV
A27: EHV | B27: =VLOOKUP(Vlookup!B27,'CDCM Forecast Data'!$A$14:$I$271,8,FALSE) -> 0.075
A28: EHV/HV
A29: HV | B29: =VLOOKUP(Vlookup!B29,'CDCM Forecast Data'!$A$14:$I$271,8,FALSE) -> 0.37
A30: HV/LV
A31: LV circuits
A33: 1018. Proportion of relevant load going through 132kV/HV direct transformation
B35: 132kV/HV
A36: EHV/HV | B36: =VLOOKUP(Vlookup!B36,'CDCM Forecast Data'!$A$14:$I$271,8,FALSE) -> 0
A38: 1019. Network model GSP peak demand (MW)
B40: Network model GSP peak demand (MW)
A41: Network model GSP peak demand (MW) | B41: =VLOOKUP(Vlookup!B41,'CDCM Forecast Data'!$A$14:$I$271,8,FALSE) -> 500
A43: 1020. Gross asset cost by network level (£)
B45: Gross assets £
A46: 132kV | B46: =VLOOKUP(Vlookup!B46,'CDCM Forecast Data'!$A$14:$I$271,8,FALSE) -> 126809235
A47: 132kV/EHV | B47: =VLOOKUP(Vlookup!B47,'CDCM Forecast Data'!$A$14:$I$271,8,FALSE) -> 19557321.01
A48: EHV | B48: =VLOOKUP(Vlookup!B48,'CDCM Forecast Data'!$A$14:$I$271,8,FALSE) -> 43646939.77
A49: EHV/HV | B49: =VLOOKUP(Vlookup!B49,'CDCM Forecast Data'!$A$14:$I$271,8,FALSE) -> 43319057.78
A50: 132kV/HV | B50: =VLOOKUP(Vlookup!B50,'CDCM Forecast Data'!$A$14:$I$271,8,FALSE) -> 0
A51: HV | B51: =VLOOKUP(Vlookup!B51,'CDCM Forecast Data'!$A$14:$I$271,8,FALSE) -> 167385382.4
A52: HV/LV | B52: =VLOOKUP(Vlookup!B52,'CDCM Forecast Data'!$A$14:$I$271,8,FALSE) -> 69714778.22
A53: LV circuits | B53: =VLOOKUP(Vlookup!B53,'CDCM Forecast Data'!$A$14:$I$271,8,FALSE) -> 163416626.8
A55: 1022. LV service model asset cost (£)
B57: LV service model 1 | C57: LV service model 2 | D57: LV service model 3 | E57: LV service model 4 | F57: LV service model 5 | G57: LV service model 6 | H57: LV service model 7 | I57: LV service model 8
A58: LV service model asset cost (£) | B58: =VLOOKUP(Vlookup!B58,'CDCM Forecast Data'!$A$14:$I$271,8,FALSE) -> 4779.945426 | C58: =VLOOKUP(Vlookup!C58,'CDCM Forecast Data'!$A$14:$I$271,8,FALSE) -> 728.7656354 | D58: =VLOOKUP(Vlookup!D58,'CDCM Forecast Data'!$A$14:$I$271,8,FALSE) -> 842.8777623 | E58: =VLOOKUP(Vlookup!E58,'CDCM Forecast Data'!$A$14:$I$271,8,FALSE) -> 611.6968974 | F58: =VLOOKUP(Vlookup!F58,'CDCM Forecast Data'!$A$14:$I$271,8,FALSE) -> 1349.536814 | G58: =VLOOKUP(Vlookup!G58,'CDCM Forecast Data'!$A$14:$I$271,8,FALSE) -> 1053.504626 | H58: =VLOOKUP(Vlookup!H58,'CDCM Forecast Data'!$A$14:$I$271,8,FALSE) -> 0 | I58: =VLOOKUP(Vlookup!I58,'CDCM Forecast Data'!$A$14:$I$271,8,FALSE) -> 576.5917704
A60: 1023. HV service model asset cost (£)
B62: HV service model 1 | C62: HV service model 2 | D62: HV service model 3 | E62: HV service model 4 | F62: HV service model 5
A63: HV service model asset cost (£) | B63: =VLOOKUP(Vlookup!B63,'CDCM Forecast Data'!$A$14:$I$271,8,FALSE) -> 11377.56931 | C63: =VLOOKUP(Vlookup!C63,'CDCM Forecast Data'!$A$14:$I$271,8,FALSE) -> 4677.565217 | D63: =VLOOKUP(Vlookup!D63,'CDCM Forecast Data'!$A$14:$I$271,8,FALSE) -> 0 | E63: =VLOOKUP(Vlookup!E63,'CDCM Forecast Data'!$A$14:$I$271,8,FALSE) -> 0 | F63: =VLOOKUP(Vlookup!F63,'CDCM Forecast Data'!$A$14:$I$271,8,FALSE) -> 0
A65: 1025. Matrix of applicability of LV service models to tariffs with fixed charges
B66: 26 | C66: =B66+1 -> 27 | D66: 28 | E66: 29 | F66: 30 | G66: 31 | H66: 32 | I66: 33
B67: LV service model 1 | C67: LV service model 2 | D67: LV service model 3 | E67: LV service model 4 | F67: LV service model 5 | G67: LV service model 6 | H67: LV service model 7 | I67: LV service model 8
A68: Domestic Unrestricted | B68: =VLOOKUP($A68,'Mat of App'!$B$7:$AP$43,B$66,FALSE) -> 0.05 | C68: =VLOOKUP($A68,'Mat of App'!$B$7:$AP$43,C$66,FALSE) -> 0 | D68: =VLOOKUP($A68,'Mat of App'!$B$7:$AP$43,D$66,FALSE) -> 0 | E68: =VLOOKUP($A68,'Mat of App'!$B$7:$AP$43,E$66,FALSE) -> 0 | F68: =VLOOKUP($A68,'Mat of App'!$B$7:$AP$43,F$66,FALSE) -> 0 | G68: =VLOOKUP($A68,'Mat of App'!$B$7:$AP$43,G$66,FALSE) -> 0 | H68: =VLOOKUP($A68,'Mat of App'!$B$7:$AP$43,H$66,FALSE) -> 0 | I68: =VLOOKUP($A68,'Mat of App'!$B$7:$AP$43,I$66,FALSE) -> 0
A69: Domestic Two Rate | B69: =VLOOKUP($A69,'Mat of App'!$B$7:$AP$43,B$66,FALSE) -> 0.05 | C69: =VLOOKUP($A69,'Mat of App'!$B$7:$AP$43,C$66,FALSE) -> 0 | D69: =VLOOKUP($A69,'Mat of App'!$B$7:$AP$43,D$66,FALSE) -> 0 | E69: =VLOOKUP($A69,'Mat of App'!$B$7:$AP$43,E$66,FALSE) -> 0 | F69: =VLOOKUP($A69,'Mat of App'!$B$7:$AP$43,F$66,FALSE) -> 0 | G69: =VLOOKUP($A69,'Mat of App'!$B$7:$AP$43,G$66,FALSE) -> 0 | H69: =VLOOKUP($A69,'Mat of App'!$B$7:$AP$43,H$66,FALSE) -> 0 | I69: =VLOOKUP($A69,'Mat of App'!$B$7:$AP$43,I$66,FALSE) -> 0
A70: Small Non Domestic Unrestricted | B70: =VLOOKUP($A70,'Mat of App'!$B$7:$AP$43,B$66,FALSE) -> 0 | C70: =VLOOKUP($A70,'Mat of App'!$B$7:$AP$43,C$66,FALSE) -> 1 | D70: =VLOOKUP($A70,'Mat of App'!$B$7:$AP$43,D$66,FALSE) -> 0 | E70: =VLOOKUP($A70,'Mat of App'!$B$7:$AP$43,E$66,FALSE) -> 0 | F70: =VLOOKUP($A70,'Mat of App'!$B$7:$AP$43,F$66,FALSE) -> 0 | G70: =VLOOKUP($A70,'Mat of App'!$B$7:$AP$43,G$66,FALSE) -> 0 | H70: =VLOOKUP($A70,'Mat of App'!$B$7:$AP$43,H$66,FALSE) -> 0 | I70: =VLOOKUP($A70,'Mat of App'!$B$7:$AP$43,I$66,FALSE) -> 0
A71: Small Non Domestic Two Rate | B71: =VLOOKUP($A71,'Mat of App'!$B$7:$AP$43,B$66,FALSE) -> 0 | C71: =VLOOKUP($A71,'Mat of App'!$B$7:$AP$43,C$66,FALSE) -> 1 | D71: =VLOOKUP($A71,'Mat of App'!$B$7:$AP$43,D$66,FALSE) -> 0 | E71: =VLOOKUP($A71,'Mat of App'!$B$7:$AP$43,E$66,FALSE) -> 0 | F71: =VLOOKUP($A71,'Mat of App'!$B$7:$AP$43,F$66,FALSE) -> 0 | G71: =VLOOKUP($A71,'Mat of App'!$B$7:$AP$43,G$66,FALSE) -> 0 | H71: =VLOOKUP($A71,'Mat of App'!$B$7:$AP$43,H$66,FALSE) -> 0 | I71: =VLOOKUP($A71,'Mat of App'!$B$7:$AP$43,I$66,FALSE) -> 0
A72: LV Medium Non-Domestic | B72: =VLOOKUP($A72,'Mat of App'!$B$7:$AP$43,B$66,FALSE) -> 0 | C72: =VLOOKUP($A72,'Mat of App'!$B$7:$AP$43,C$66,FALSE) -> 0 | D72: =VLOOKUP($A72,'Mat of App'!$B$7:$AP$43,D$66,FALSE) -> 1 | E72: =VLOOKUP($A72,'Mat of App'!$B$7:$AP$43,E$66,FALSE) -> 0 | F72: =VLOOKUP($A72,'Mat of App'!$B$7:$AP$43,F$66,FALSE) -> 0 | G72: =VLOOKUP($A72,'Mat of App'!$B$7:$AP$43,G$66,FALSE) -> 0 | H72: =VLOOKUP($A72,'Mat of App'!$B$7:$AP$43,H$66,FALSE) -> 0 | I72: =VLOOKUP($A72,'Mat of App'!$B$7:$AP$43,I$66,FALSE) -> 0
A73: LV Sub Medium Non-Domestic | B73: =VLOOKUP($A73,'Mat of App'!$B$7:$AP$43,B$66,FALSE) -> 0 | C73: =VLOOKUP($A73,'Mat of App'!$B$7:$AP$43,C$66,FALSE) -> 0 | D73: =VLOOKUP($A73,'Mat of App'!$B$7:$AP$43,D$66,FALSE) -> 0 | E73: =VLOOKUP($A73,'Mat of App'!$B$7:$AP$43,E$66,FALSE) -> 1 | F73: =VLOOKUP($A73,'Mat of App'!$B$7:$AP$43,F$66,FALSE) -> 0 | G73: =VLOOKUP($A73,'Mat of App'!$B$7:$AP$43,G$66,FALSE) -> 0 | H73: =VLOOKUP($A73,'Mat of App'!$B$7:$AP$43,H$66,FALSE) -> 0 | I73: =VLOOKUP($A73,'Mat of App'!$B$7:$AP$43,I$66,FALSE) -> 0
A74: LV Network Domestic | B74: =VLOOKUP($A74,'Mat of App'!$B$7:$AP$43,B$66,FALSE) -> 0.05 | C74: =VLOOKUP($A74,'Mat of App'!$B$7:$AP$43,C$66,FALSE) -> 0 | D74: =VLOOKUP($A74,'Mat of App'!$B$7:$AP$43,D$66,FALSE) -> 0 | E74: =VLOOKUP($A74,'Mat of App'!$B$7:$AP$43,E$66,FALSE) -> 0 | F74: =VLOOKUP($A74,'Mat of App'!$B$7:$AP$43,F$66,FALSE) -> 0 | G74: =VLOOKUP($A74,'Mat of App'!$B$7:$AP$43,G$66,FALSE) -> 0 | H74: =VLOOKUP($A74,'Mat of App'!$B$7:$AP$43,H$66,FALSE) -> 0 | I74: =VLOOKUP($A74,'Mat of App'!$B$7:$AP$43,I$66,FALSE) -> 0
A75: LV Network Non-Domestic Non-CT | B75: =VLOOKUP($A75,'Mat of App'!$B$7:$AP$43,B$66,FALSE) -> 0 | C75: =VLOOKUP($A75,'Mat of App'!$B$7:$AP$43,C$66,FALSE) -> 1 | D75: =VLOOKUP($A75,'Mat of App'!$B$7:$AP$43,D$66,FALSE) -> 0 | E75: =VLOOKUP($A75,'Mat of App'!$B$7:$AP$43,E$66,FALSE) -> 0 | F75: =VLOOKUP($A75,'Mat of App'!$B$7:$AP$43,F$66,FALSE) -> 0 | G75: =VLOOKUP($A75,'Mat of App'!$B$7:$AP$43,G$66,FALSE) -> 0 | H75: =VLOOKUP($A75,'Mat of App'!$B$7:$AP$43,H$66,FALSE) -> 0 | I75: =VLOOKUP($A75,'Mat of App'!$B$7:$AP$43,I$66,FALSE) -> 0
A76: LV HH Metered | B76: =VLOOKUP($A76,'Mat of App'!$B$7:$AP$43,B$66,FALSE) -> 0 | C76: =VLOOKUP($A76,'Mat of App'!$B$7:$AP$43,C$66,FALSE) -> 0 | D76: =VLOOKUP($A76,'Mat of App'!$B$7:$AP$43,D$66,FALSE) -> 0 | E76: =VLOOKUP($A76,'Mat of App'!$B$7:$AP$43,E$66,FALSE) -> 0 | F76: =VLOOKUP($A76,'Mat of App'!$B$7:$AP$43,F$66,FALSE) -> 1 | G76: =VLOOKUP($A76,'Mat of App'!$B$7:$AP$43,G$66,FALSE) -> 0 | H76: =VLOOKUP($A76,'Mat of App'!$B$7:$AP$43,H$66,FALSE) -> 0 | I76: =VLOOKUP($A76,'Mat of App'!$B$7:$AP$43,I$66,FALSE) -> 0
A77: LV Sub HH Metered | B77: =VLOOKUP($A77,'Mat of App'!$B$7:$AP$43,B$66,FALSE) -> 0 | C77: =VLOOKUP($A77,'Mat of App'!$B$7:$AP$43,C$66,FALSE) -> 0 | D77: =VLOOKUP($A77,'Mat of App'!$B$7:$AP$43,D$66,FALSE) -> 0 | E77: =VLOOKUP($A77,'Mat of App'!$B$7:$AP$43,E$66,FALSE) -> 0 | F77: =VLOOKUP($A77,'Mat of App'!$B$7:$AP$43,F$66,FALSE) -> 0 | G77: =VLOOKUP($A77,'Mat of App'!$B$7:$AP$43,G$66,FALSE) -> 1 | H77: =VLOOKUP($A77,'Mat of App'!$B$7:$AP$43,H$66,FALSE) -> 0 | I77: =VLOOKUP($A77,'Mat of App'!$B$7:$AP$43,I$66,FALSE) -> 0
A78: LV Generation NHH or Aggregate HH | B78: =VLOOKUP($A78,'Mat of App'!$B$7:$AP$43,B$66,FALSE) -> 0 | C78: =VLOOKUP($A78,'Mat of App'!$B$7:$AP$43,C$66,FALSE) -> 0 | D78: =VLOOKUP($A78,'Mat of App'!$B$7:$AP$43,D$66,FALSE) -> 0 | E78: =VLOOKUP($A78,'Mat of App'!$B$7:$AP$43,E$66,FALSE) -> 0 | F78: =VLOOKUP($A78,'Mat of App'!$B$7:$AP$43,F$66,FALSE) -> 0 | G78: =VLOOKUP($A78,'Mat of App'!$B$7:$AP$43,G$66,FALSE) -> 0 | H78: =VLOOKUP($A78,'Mat of App'!$B$7:$AP$43,H$66,FALSE) -> 1 | I78: =VLOOKUP($A78,'Mat of App'!$B$7:$AP$43,I$66,FALSE) -> 0
A79: LV Sub Generation NHH | B79: =VLOOKUP($A79,'Mat of App'!$B$7:$AP$43,B$66,FALSE) -> 0 | C79: =VLOOKUP($A79,'Mat of App'!$B$7:$AP$43,C$66,FALSE) -> 0 | D79: =VLOOKUP($A79,'Mat of App'!$B$7:$AP$43,D$66,FALSE) -> 0 | E79: =VLOOKUP($A79,'Mat of App'!$B$7:$AP$43,E$66,FALSE) -> 0 | F79: =VLOOKUP($A79,'Mat of App'!$B$7:$AP$43,F$66,FALSE) -> 0 | G79: =VLOOKUP($A79,'Mat of App'!$B$7:$AP$43,G$66,FALSE) -> 0 | H79: =VLOOKUP($A79,'Mat of App'!$B$7:$AP$43,H$66,FALSE) -> 1 | I79: =VLOOKUP($A79,'Mat of App'!$B$7:$AP$43,I$66,FALSE) -> 0
A80: LV Generation Intermittent | B80: =VLOOKUP($A80,'Mat of App'!$B$7:$AP$43,B$66,FALSE) -> 0 | C80: =VLOOKUP($A80,'Mat of App'!$B$7:$AP$43,C$66,FALSE) -> 0 | D80: =VLOOKUP($A80,'Mat of App'!$B$7:$AP$43,D$66,FALSE) -> 0 | E80: =VLOOKUP($A80,'Mat of App'!$B$7:$AP$43,E$66,FALSE) -> 0 | F80: =VLOOKUP($A80,'Mat of App'!$B$7:$AP$43,F$66,FALSE) -> 0 | G80: =VLOOKUP($A80,'Mat of App'!$B$7:$AP$43,G$66,FALSE) -> 0 | H80: =VLOOKUP($A80,'Mat of App'!$B$7:$AP$43,H$66,FALSE) -> 1 | I80: =VLOOKUP($A80,'Mat of App'!$B$7:$AP$43,I$66,FALSE) -> 0
A81: LV Generation Intermittent no RP charge | B81: =VLOOKUP($A81,'Mat of App'!$B$7:$AP$43,B$66,FALSE) -> 0 | C81: =VLOOKUP($A81,'Mat of App'!$B$7:$AP$43,C$66,FALSE) -> 0 | D81: =VLOOKUP($A81,'Mat of App'!$B$7:$AP$43,D$66,FALSE) -> 0 | E81: =VLOOKUP($A81,'Mat of App'!$B$7:$AP$43,E$66,FALSE) -> 0 | F81: =VLOOKUP($A81,'Mat of App'!$B$7:$AP$43,F$66,FALSE) -> 0 | G81: =VLOOKUP($A81,'Mat of App'!$B$7:$AP$43,G$66,FALSE) -> 0 | H81: =VLOOKUP($A81,'Mat of App'!$B$7:$AP$43,H$66,FALSE) -> 1 | I81: =VLOOKUP($A81,'Mat of App'!$B$7:$AP$43,I$66,FALSE) -> 0
A82: LV Generation Non-Intermittent | B82: =VLOOKUP($A82,'Mat of App'!$B$7:$AP$43,B$66,FALSE) -> 0 | C82: =VLOOKUP($A82,'Mat of App'!$B$7:$AP$43,C$66,FALSE) -> 0 | D82: =VLOOKUP($A82,'Mat of App'!$B$7:$AP$43,D$66,FALSE) -> 0 | E82: =VLOOKUP($A82,'Mat of App'!$B$7:$AP$43,E$66,FALSE) -> 0 | F82: =VLOOKUP($A82,'Mat of App'!$B$7:$AP$43,F$66,FALSE) -> 0 | G82: =VLOOKUP($A82,'Mat of App'!$B$7:$AP$43,G$66,FALSE) -> 0 | H82: =VLOOKUP($A82,'Mat of App'!$B$7:$AP$43,H$66,FALSE) -> 0 | I82: =VLOOKUP($A82,'Mat of App'!$B$7:$AP$43,I$66,FALSE) -> 0
A83: LV Generation Non-Intermittent no RP charge | B83: =VLOOKUP($A83,'Mat of App'!$B$7:$AP$43,B$66,FALSE) -> 0 | C83: =VLOOKUP($A83,'Mat of App'!$B$7:$AP$43,C$66,FALSE) -> 0 | D83: =VLOOKUP($A83,'Mat of App'!$B$7:$AP$43,D$66,FALSE) -> 0 | E83: =VLOOKUP($A83,'Mat of App'!$B$7:$AP$43,E$66,FALSE) -> 0 | F83: =VLOOKUP($A83,'Mat of App'!$B$7:$AP$43,F$66,FALSE) -> 0 | G83: =VLOOKUP($A83,'Mat of App'!$B$7:$AP$43,G$66,FALSE) -> 0 | H83: =VLOOKUP($A83,'Mat of App'!$B$7:$AP$43,H$66,FALSE) -> 0 | I83: =VLOOKUP($A83,'Mat of App'!$B$7:$AP$43,I$66,FALSE) -> 0
A84: LV Sub Generation Intermittent | B84: =VLOOKUP($A84,'Mat of App'!$B$7:$AP$43,B$66,FALSE) -> 0 | C84: =VLOOKUP($A84,'Mat of App'!$B$7:$AP$43,C$66,FALSE) -> 0 | D84: =VLOOKUP($A84,'Mat of App'!$B$7:$AP$43,D$66,FALSE) -> 0 | E84: =VLOOKUP($A84,'Mat of App'!$B$7:$AP$43,E$66,FALSE) -> 0 | F84: =VLOOKUP($A84,'Mat of App'!$B$7:$AP$43,F$66,FALSE) -> 0 | G84: =VLOOKUP($A84,'Mat of App'!$B$7:$AP$43,G$66,FALSE) -> 0 | H84: =VLOOKUP($A84,'Mat of App'!$B$7:$AP$43,H$66,FALSE) -> 0 | I84: =VLOOKUP($A84,'Mat of App'!$B$7:$AP$43,I$66,FALSE) -> 0
A85: LV Sub Generation Intermittent no RP charge | B85: =VLOOKUP($A85,'Mat of App'!$B$7:$AP$43,B$66,FALSE) -> 0 | C85: =VLOOKUP($A85,'Mat of App'!$B$7:$AP$43,C$66,FALSE) -> 0 | D85: =VLOOKUP($A85,'Mat of App'!$B$7:$AP$43,D$66,FALSE) -> 0 | E85: =VLOOKUP($A85,'Mat of App'!$B$7:$AP$43,E$66,FALSE) -> 0 | F85: =VLOOKUP($A85,'Mat of App'!$B$7:$AP$43,F$66,FALSE) -> 0 | G85: =VLOOKUP($A85,'Mat of App'!$B$7:$AP$43,G$66,FALSE) -> 0 | H85: =VLOOKUP($A85,'Mat of App'!$B$7:$AP$43,H$66,FALSE) -> 0 | I85: =VLOOKUP($A85,'Mat of App'!$B$7:$AP$43,I$66,FALSE) -> 0
A86: LV Sub Generation Non-Intermittent | B86: =VLOOKUP($A86,'Mat of App'!$B$7:$AP$43,B$66,FALSE) -> 0 | C86: =VLOOKUP($A86,'Mat of App'!$B$7:$AP$43,C$66,FALSE) -> 0 | D86: =VLOOKUP($A86,'Mat of App'!$B$7:$AP$43,D$66,FALSE) -> 0 | E86: =VLOOKUP($A86,'Mat of App'!$B$7:$AP$43,E$66,FALSE) -> 0 | F86: =VLOOKUP($A86,'Mat of App'!$B$7:$AP$43,F$66,FALSE) -> 0 | G86: =VLOOKUP($A86,'Mat of App'!$B$7:$AP$43,G$66,FALSE) -> 0 | H86: =VLOOKUP($A86,'Mat of App'!$B$7:$AP$43,H$66,FALSE) -> 0 | I86: =VLOOKUP($A86,'Mat of App'!$B$7:$AP$43,I$66,FALSE) -> 0
A87: LV Sub Generation Non-Intermittent no RP charge | B87: =VLOOKUP($A87,'Mat of App'!$B$7:$AP$43,B$66,FALSE) -> 0 | C87: =VLOOKUP($A87,'Mat of App'!$B$7:$AP$43,C$66,FALSE) -> 0 | D87: =VLOOKUP($A87,'Mat of App'!$B$7:$AP$43,D$66,FALSE) -> 0 | E87: =VLOOKUP($A87,'Mat of App'!$B$7:$AP$43,E$66,FALSE) -> 0 | F87: =VLOOKUP($A87,'Mat of App'!$B$7:$AP$43,F$66,FALSE) -> 0 | G87: =VLOOKUP($A87,'Mat of App'!$B$7:$AP$43,G$66,FALSE) -> 0 | H87: =VLOOKUP($A87,'Mat of App'!$B$7:$AP$43,H$66,FALSE) -> 0 | I87: =VLOOKUP($A87,'Mat of App'!$B$7:$AP$43,I$66,FALSE) -> 0
A89: 1026. Matrix of applicability of LV service models to unmetered tariffs
A91: Source: service models
A92: Proportion of service model involved in connecting load of 1 MWh/year
B93: LV service model 1 | C93: LV service model 2 | D93: LV service model 3 | E93: LV service model 4 | F93: LV service model 5 | G93: LV service model 6 | H93: LV service model 7 | I93: LV service model 8
A94: All LV unmetered tariffs | B94: =VLOOKUP($A94,'Mat of App'!$B$7:$AP$43,B$66,FALSE) -> 0 | C94: =VLOOKUP($A94,'Mat of App'!$B$7:$AP$43,C$66,FALSE) -> 0 | D94: =VLOOKUP($A94,'Mat of App'!$B$7:$AP$43,D$66,FALSE) -> 0 | E94: =VLOOKUP($A94,'Mat of App'!$B$7:$AP$43,E$66,FALSE) -> 0 | F94: =VLOOKUP($A94,'Mat of App'!$B$7:$AP$43,F$66,FALSE) -> 0 | G94: =VLOOKUP($A94,'Mat of App'!$B$7:$AP$43,G$66,FALSE) -> 0 | H94: =VLOOKUP($A94,'Mat of App'!$B$7:$AP$43,H$66,FALSE) -> 0 | I94: =VLOOKUP($A94,'Mat of App'!$B$7:$AP$43,I$66,FALSE) -> 0.488
A96: 1028. Matrix of applicability of HV service models to tariffs with fixed charges
B97: 17 | C97: =B97+1 -> 18 | D97: =C97+1 -> 19 | E97: =D97+1 -> 20 | F97: =E97+1 -> 21
B98: HV service model 1 | C98: HV service model 2 | D98: HV service model 3 | E98: HV service model 4 | F98: HV service model 5
A99: HV Medium Non-Domestic | B99: =VLOOKUP($A99,'Mat of App'!$B$7:$AP$43,B$97,FALSE) -> 1 | C99: =VLOOKUP($A99,'Mat of App'!$B$7:$AP$43,C$97,FALSE) -> 0 | D99: =VLOOKUP($A99,'Mat of App'!$B$7:$AP$43,D$97,FALSE) -> 0 | E99: =VLOOKUP($A99,'Mat of App'!$B$7:$AP$43,E$97,FALSE) -> 0 | F99: =VLOOKUP($A99,'Mat of App'!$B$7:$AP$43,F$97,FALSE) -> 0
